Workbook

Sheet Start
G2: Risk Dashboard Interactive Tool
G3: =+'Reference Dates'!$C$4 -> Q32022 Data
E4: Please enable macros to ensure the correct functioning of the tool
O5: List showing in Dropdown menu | P5: RI number | Q5: RI Code | R5: Name for tables - change if needs to be different from dropdown names | T5: Tables name for dropdown
O6: Tier 1 capital ratio | P6: 1 | Q6: SVC_1 | R6: Tier 1 capital ratio | T6: Assets
B7: Choose a Risk Indicator: | E7: RI Number (*) | G7: RI Code | O7: Total capital ratio | P7: 2 | Q7: SVC_2 | R7: Total capital ratio | T7: Loans Composition
B8: Tier 1 capital ratio | E8: =IFERROR(VLOOKUP(B8,$O$6:$Q$27,2,0),"") -> 1 | G8: =IFERROR(VLOOKUP(B8,$O$6:$Q$27,3,0),"") -> SVC_1 | O8: CET1 ratio | P8: 3 | Q8: SVC_3 | R8: CET1 ratio | T8: Loans NPL and coverage ratio
O9: CET1 ratio (fully loaded) | P9: 4 | Q9: SVC_29 | R9: CET1 ratio (fully loaded) | T9: NACE composition
B10: Choose a set of Tables from the statistical Annex: | O10: Leverage ratio | P10: 5 | Q10: SVC_13 | R10: Leverage ratio (transitional definition of Tier 1) | T10: NPL ratio by NACE
B11: Assets | I11: =IFERROR((LEFT($B$11,FIND(" ",$B$11)-1)),$B$11) -> Assets | O11: Leverage ratio (fully phased-in definition of Tier 1) | P11: 6 | Q11: SVC_12 | R11: Leverage ratio (fully phased-in definition of Tier 1) | T11: RE and Construction Exposures
O12: Ratio of non-performing loans and advances (NPL ratio) | P12: 7 | Q12: AQT_3.2 | R12: Ratio of non-performing loans and advances (NPL ratio) | T12: IFRS9
O13: Coverage ratio of non-performing loans and advances | P13: 8 | Q13: AQT_41.2 | R13: Coverage ratio of non-performing loans and advances | T13: Sovereigns
O14: Forbearance ratio for loans and advances | P14: 9 | Q14: AQT_42.2 | R14: Forbearance ratio for loans and advances | T14: Liabilities
B15: (*) In order of appearance in the Risk Dashboard | O15: Ratio of non-performing exposures (NPE ratio) | P15: 10 | Q15: AQT_3.1 | R15: Ratio of non-performing exposures (NPE ratio) | T15: Liquidity
O16: Return on equity | P16: 11 | Q16: PFT_21 | R16: Return on equity | T16: Own funds and RWA
O17: Return on assets | P17: 12 | Q17: PFT_24 | R17: Return on assets | T17: Profitability
O18: Cost to income ratio | P18: 13 | Q18: PFT_23 | R18: Cost to income ratio | T18: Moratoria
O19: Net interest income to total net operating income | P19: 14 | Q19: PFT_25 | R19: Net interest income to total net operating income
O20: Net fee and commission income to total net operating income | P20: 15 | Q20: PFT_26 | R20: Net fee and commission income to total net operating income
O21: Net trading income to total net operating income | P21: 16 | Q21: PFT_29 | R21: Net trading income to total net operating income
O22: Net interest margin | P22: 17 | Q22: PFT_41 | R22: Net interest margin
O23: Cost of Risk | P23: 18 | Q23: PFT_43 | R23: Cost of Risk
O24: Loan-to-deposit ratio for households and non-financial corporations | P24: 19 | Q24: FND_32 | R24: Loan-to-deposit ratio for households and non-financial corporations
O25: Asset encumbrance ratio | P25: 20 | Q25: FND_33 | R25: Asset encumbrance ratio
O26: Liquidity coverage ratio (%) | P26: 21 | Q26: LIQ_17 | R26: Liquidity coverage ratio (%)
O27: Net Stable Funding Ratio | P27: 22 | Q27: FND_Y | R27: Net Stable Funding Ratio

Sheet Charts
B2: =$AR$21 -> Solvency
B3: =AM21&" - "&$AO$20 -> 1 - Tier 1 capital ratio
B4: Due to the automation of this file, charts axis are not scaled as in the booklet version. User may need to manually adjust it.
B5: Dispersion | J5: Numerator and denominator: trends
B7: 5th and 95th pct, interquartile range and median. | J7: =IF(AK21="PFT_43","Total numerator and denominator. 2018Q1=100.","Total numerator and denominator. "& IF(NOT(ISNA($AS$25)), YEAR($AM$25), IF(NOT(ISNA($AS$26)), YEAR($AM$26), IF(NOT(ISNA($AS$27)), YEAR($AM$27), IF(NOT(ISNA($AS$29)), YEAR($AM$29), IF(NOT(ISNA(#REF!)), YEAR($AM$30),IF(NOT(ISNA($AS$31)), YEAR($AM$31),IF(NOT(ISNA($AS$32)), YEAR($AM$32),IF(NOT(ISNA($AS$33)), YEAR($AM$33),IF(NOT(ISNA($AS$34)), YEAR($AM$34),IF(NOT(ISNA($AS$35)), YEAR($AM$35),IF(NOT(ISNA($AS$36)), YEAR($AM$36),YEAR($AM$37)))))))))))) &"Q"& IF(NOT(ISNA($AS$25)),ROUNDUP(MONTH($AM$25)/3,0), IF(NOT(ISNA($AS$26)),ROUNDUP(MONTH($AM$26)/3,0), IF(NOT(ISNA($AS$27)), ROUNDUP(MONTH($AM$27)/3,0), IF(NOT(ISNA($AS$29)), ROUNDUP(MONTH($AM$29)/3,0),NOT(ISNA($AS$30)))))) &" = 100.") -> Total numerator and denominator. 2019Q4 = 100.
B9: ="Country dispersion (as of "& YEAR(MAX(AM25:AM46))&" Q"&(ROUNDUP((MONTH(MAX(AM25:AM46))/3),0))&")" -> Country dispersion (as of 2022 Q3) | J9: KRI by size class
B11: ( * ) Not reported. Weighted Averages by country. | J11: ="Weighted average. Banks are classified in the size class according to the their average total assets between 2014Q4 and "&YEAR(MAX(AM25:AM46))&"Q"&(ROUNDUP(MONTH(MAX(AM25:AM46))/3,0))&IF(AN49="Y",". Non-FINREP banks are assigned to the bucket of small banks.",". ") -> Weighted average. Banks are classified in the size class according to the their average total assets between 2014Q4 and 2022Q3.
B14: Period | E14: Weighted average | H14: 25th percentile | K14: 50th percentile | N14: 75th percentile
C16: =AM25 -> 2019-12-01 | F16: =IF(AND(YEAR(C16)<2018,$AK$21="PFT_43"),"",IFERROR(VLOOKUP($C16,$AM$25:$BB$43,8,FALSE), "")) -> 0.1678534559 | I16: =IF(AND(YEAR(C16)<2018,$AK$21="PFT_43"),"",IFERROR(VLOOKUP($C16,$AM$25:$BB$43,5,FALSE), "")) -> 0.152002714 | L16: =IF(AND(YEAR(C16)<2018,$AK$21="PFT_43"),"",IFERROR(VLOOKUP($C16,$AM$25:$BB$43,6,FALSE), "")) -> 0.1717275433 | O16: =IF(AND(YEAR(C16)<2018,$AK$21="PFT_43"),"",IFERROR(VLOOKUP($C16,$AM$25:$BB$43,9,FALSE), "")) -> 0.2041354545
C17: =AM26 -> 2020-03-01 | F17: 0.1581940407 | I17: 0.1427134004 | L17: 0.162881694 | O17: 0.1989703886
C18: =AM27 -> 2020-06-01 | F18: 0.1630563226 | I18: 0.1479937941 | L18: 0.1696146986 | O18: 0.2011049692
C19: =AM29 -> 2020-09-01 | F19: 0.1671962406 | I19: 0.1529035899 | L19: 0.172888396 | O19: 0.2052266468
C20: 2020-12-01 | F20: 0.1719856936 | I20: 0.1583604907 | L20: 0.1803584264 | O20: 0.212919732 | AN20: dashboard name | AO20: =VLOOKUP($AM$21*1,List!$A$3:$M$24,8,FALSE) -> Tier 1 capital ratio
C21: 2021-03-01 | F21: 0.1705110613 | I21: 0.1574664782 | L21: 0.1802804216 | O21: 0.2109595522 | AK21: =VLOOKUP($AM$21*1,List!$A$3:$F$24,6,0) -> SVC_1 | AM21: =Start!E8 -> 1 | AN21: =VLOOKUP($AM$21*1,List!$A$3:$F$24,4,0) -> 1 | AO21: =VLOOKUP($AM$21*1,List!$A$3:$E$24,5,0) -> Tier 1 capital ratio | AP21: =VLOOKUP($AM$21*1,List!$A$3:$K$24,11,FALSE) -> 0 | AR21: =VLOOKUP($AM$21*1,List!$A$3:$M$24,13,FALSE) -> Solvency
C22: 2021-06-01 | F22: 0.1708387971 | I22: 0.1559383138 | L22: 0.1760116964 | O22: 0.2125969098 | AT22: WA
C23: 2021-09-01 | F23: 0.1700204526 | I23: 0.1555245461 | L23: 0.1754100082 | O23: 0.2129016755 | AP23: 5 | AQ23: 6 | AR23: 7 | AS23: 8 | AT23: 9 | AU23: 10 | AV23: 11 | AW23: 14 | AX23: 15 | AY23: Dispersion chart | BD23: 12 | BE23: 13 | BJ23: 16
C24: 2021-12-01 | F24: 0.1712415763 | I24: 0.1577615238 | L24: 0.179593877 | O24: 0.2132876528 | AL24: =+'Reference Dates'!$C$6 -> 2022-09-30 | AP24: 5^ pct | AQ24: First quartile | AR24: Median | AS24: Average | AT24: All banks | AU24: Third quartile | AV24: 95^ pct | AW24: Small | AX24: Medium | AY24: Q1 | AZ24: Q1 Neg | BA24: Q2 | BB24: Q3 | BC24: 5pct | BD24: 95 pct | BE24: Numeratir | BF24: Denominator | BG24: =VLOOKUP($AN$21,List!$D:$L,6,0) -> Tier 1 capital | BH24: =VLOOKUP($AN$21,List!$D:$L,7,0) -> Total risk exposure amount | BI24: Quarter | BJ24: Large
C25: 2022-03-01 | F25: 0.164252016 | I25: 0.1529304941 | L25: 0.1694540415 | O25: 0.2011821022 | AK25: 1 | AL25: =(+AN25)*1 -> 201912 | AM25: =+'Reference Dates'!$C$7 -> 2019-12-01 | AN25: =+IF(MONTH(AM25)=12,YEAR(AM25)&MONTH(AM25),YEAR(AM25)&0&MONTH(AM25)) -> 201912 | AO25: =CONCATENATE($AO$21,AN25) -> Tier 1 capital ratio201912 | AP25: =VLOOKUP($AO25,Data!$A$1:$P$688,Charts!AP$23,FALSE) -> 0.132043229 | AQ25: =VLOOKUP($AO25,Data!$A$1:$P$688,Charts!AQ$23,FALSE) -> 0.152002714 | AR25: =VLOOKUP($AO25,Data!$A$1:$P$688,Charts!AR$23,FALSE) -> 0.1717275433 | AS25: =VLOOKUP($AO25,Data!$A$1:$P$688,Charts!AS$23,FALSE) -> 0.2063098402 | AT25: =VLOOKUP($AO25,Data!$A$1:$P$688,Charts!AT$23,FALSE) -> 0.1678534559 | AU25: =VLOOKUP($AO25,Data!$A$1:$P$688,Charts!AU$23,FALSE) -> 0.2041354545 | AV25: =VLOOKUP($AO25,Data!$A$1:$P$688,Charts!AV$23,FALSE) -> 0.388349476 | AW25: =VLOOKUP($AO25,Data!$A$1:$P$688,Charts!AW$23,FALSE) -> 0.1941026633 | AX25: =VLOOKUP($AO25,Data!$A$1:$P$688,Charts!AX$23,FALSE) -> 0.1747028442 | AY25: =IF(AQ25<0,0,AQ25) -> 0.152002714 | AZ25: =IF(AQ25<0,AQ25,0) -> 0 | BA25: =AR25-AY25 -> 0.01972482922 | BB25: =AU25-AR25 -> 0.0324079112 | BC25: =AQ25-AP25 -> 0.01995948503 | BD25: =AV25-AU25 -> 0.1842140215 | BE25: =VLOOKUP($AO25,Data!$A$1:$P$688,BD$23,FALSE) -> 1.327366681e+12 | BF25: =VLOOKUP($AO25,Data!$A$1:$P$688,BE$23,FALSE) -> 8.232475198e+12 | BG25: =IFERROR(IF($AP$21=0,BE25/BE$25*100,(100*(BE25*12/$BI25)/BE$25)),IFERROR(IF($AP$21=0, BE25/BE$26*100, 100*(BE25*12/$BI25)/BE$26), IFERROR(IF($AP$21=0, BE25/BE$27*100, 100*(BE25*12/$BI25)/BE$27),IFERROR(IF($AP$21=0, BE25/BE$29*100, 100*(BE25*12/$BI25)/BE$29), IFERROR(IF($AP$21=0, BE25/BE$30*100, 100*(BE25*12/$BI25)/BE$30),IFERROR(IF($AP$21=0, BE25/BE$31*100, 100*(BE25*12/$BI25)/#REF!),IFERROR(IF($AP$21=0, BE25/BE$32*100, 100*(BE25*12/$BI25)/BE$32),IFERROR(IF($AP$21=0, BE25/BE$32*100, 100*(BE25*12/$BI25)/BE$32),IFERROR(IF($AP$21=0, BE25/BE$33*100, 100*(BE25*12/$BI25)/BE$33),IFERROR(IF($AP$21=0, BE25/BE$34*100, 100*(BE25*12/$BI25)/BE$34),IF($AP$21=0, BE25/BE$35*100, 100*(BE25*12/$BI25)/BE$35))))))))))) -> 100 | BH25: =IFERROR(IF($AP$21=0,BF25/BF$25*100,(100*(BF25*12/$BI25)/BF$25)),IFERROR(IF($AP$21=0, BF25/BF$26*100, 100*(BF25*12/$BI25)/BF$26), IFERROR(IF($AP$21=0, BF25/BF$27*100, 100*(BF25*12/$BI25)/BF$27),IFERROR(IF($AP$21=0, BF25/BF$29*100, 100*(BF25*12/$BI25)/BF$29), IFERROR(IF($AP$21=0, BF25/BF$30*100, 100*(BF25*12/$BI25)/BF$30),IFERROR(IF($AP$21=0, BF25/BF$31*100, 100*(BF25*12/$BI25)/#REF!),IFERROR(IF($AP$21=0, BF25/BF$32*100, 100*(BF25*12/$BI25)/BF$32),IFERROR(IF($AP$21=0, BF25/BF$32*100, 100*(BF25*12/$BI25)/BF$32),IFERROR(IF($AP$21=0, BF25/BF$33*100, 100*(BF25*12/$BI25)/BF$33),IFERROR(IF($AP$21=0, BF25/BF$34*100, 100*(BF25*12/$BI25)/BF$34),IF($AP$21=0, BF25/BF$35*100, 100*(BF25*12/$BI25)/BF$35))))))))))) -> 100 | BI25: =MONTH(AM25) -> 12 | BJ25: =VLOOKUP($AO25,Data!$A$1:$P$688,Charts!BJ$23,FALSE) -> 0.1634109893
C26: =AM36 -> 2022-06-01 | F26: 0.1645938665 | I26: 0.1494405523 | L26: 0.1711790317 | O26: 0.20361911 | AL26: 202003 | AM26: =IF(AM25<$AL$24,+DATE(YEAR(AM25),MONTH(AM25)+3,DAY(AM25)),"") -> 2020-03-01 | AN26: =+IF(MONTH(AM26)=12,YEAR(AM26)&MONTH(AM26),YEAR(AM26)&0&MONTH(AM26)) -> 202003 | AO26: =CONCATENATE($AO$21,AN26) -> Tier 1 capital ratio202003 | AP26: =VLOOKUP($AO26,Data!$A$1:$P$688,Charts!AP$23,FALSE) -> 0.1310134759 | AQ26: =VLOOKUP($AO26,Data!$A$1:$P$688,Charts!AQ$23,FALSE) -> 0.1427134004 | AR26: =VLOOKUP($AO26,Data!$A$1:$P$688,Charts!AR$23,FALSE) -> 0.162881694 | AS26: =VLOOKUP($AO26,Data!$A$1:$P$688,Charts!AS$23,FALSE) -> 0.1985415454 | AT26: =VLOOKUP($AO26,Data!$A$1:$P$688,Charts!AT$23,FALSE) -> 0.1581940407 | AU26: =VLOOKUP($AO26,Data!$A$1:$P$688,Charts!AU$23,FALSE) -> 0.1989703886 | AV26: =VLOOKUP($AO26,Data!$A$1:$P$688,Charts!AV$23,FALSE) -> 0.3691135761 | AW26: =VLOOKUP($AO26,Data!$A$1:$P$688,Charts!AW$23,FALSE) -> 0.2010960205 | AX26: =VLOOKUP($AO26,Data!$A$1:$P$688,Charts!AX$23,FALSE) -> 0.1683898313 | AY26: =IF(AQ26<0,0,AQ26) -> 0.1427134004 | AZ26: =IF(AQ26<0,AQ26,0) -> 0 | BA26: =AR26-AY26 -> 0.02016829364 | BB26: =AU26-AR26 -> 0.03608869459 | BC26: =AQ26-AP26 -> 0.01169992444 | BD26: =AV26-AU26 -> 0.1701431875 | BE26: =VLOOKUP($AO26,Data!$A$1:$P$688,BD$23,FALSE) -> 1.310432796e+12 | BF26: =VLOOKUP($AO26,Data!$A$1:$P$688,BE$23,FALSE) -> 8.39325203e+12 | BG26: =IFERROR(IF($AP$21=0,BE26/BE$25*100,(100*(BE26*12/$BI26)/BE$25)),IFERROR(IF($AP$21=0, BE26/BE$26*100, 100*(BE26*12/$BI26)/BE$26), IFERROR(IF($AP$21=0, BE26/BE$27*100, 100*(BE26*12/$BI26)/BE$27),IFERROR(IF($AP$21=0, BE26/BE$29*100, 100*(BE26*12/$BI26)/BE$29), IFERROR(IF($AP$21=0, BE26/BE$30*100, 100*(BE26*12/$BI26)/BE$30),IFERROR(IF($AP$21=0, BE26/BE$31*100, 100*(BE26*12/$BI26)/#REF!),IFERROR(IF($AP$21=0, BE26/BE$32*100, 100*(BE26*12/$BI26)/BE$32),IFERROR(IF($AP$21=0, BE26/BE$32*100, 100*(BE26*12/$BI26)/BE$32),IFERROR(IF($AP$21=0, BE26/BE$33*100, 100*(BE26*12/$BI26)/BE$33),IFERROR(IF($AP$21=0, BE26/BE$34*100, 100*(BE26*12/$BI26)/BE$34),IF($AP$21=0, BE26/BE$35*100, 100*(BE26*12/$BI26)/BE$35))))))))))) -> 98.72424963 | BH26: =IFERROR(IF($AP$21=0,BF26/BF$25*100,(100*(BF26*12/$BI26)/BF$25)),IFERROR(IF($AP$21=0, BF26/BF$26*100, 100*(BF26*12/$BI26)/BF$26), IFERROR(IF($AP$21=0, BF26/BF$27*100, 100*(BF26*12/$BI26)/BF$27),IFERROR(IF($AP$21=0, BF26/BF$29*100, 100*(BF26*12/$BI26)/BF$29), IFERROR(IF($AP$21=0, BF26/BF$30*100, 100*(BF26*12/$BI26)/BF$30),IFERROR(IF($AP$21=0, BF26/BF$31*100, 100*(BF26*12/$BI26)/#REF!),IFERROR(IF($AP$21=0, BF26/BF$32*100, 100*(BF26*12/$BI26)/BF$32),IFERROR(IF($AP$21=0, BF26/BF$32*100, 100*(BF26*12/$BI26)/BF$32),IFERROR(IF($AP$21=0, BF26/BF$33*100, 100*(BF26*12/$BI26)/BF$33),IFERROR(IF($AP$21=0, BF26/BF$34*100, 100*(BF26*12/$BI26)/BF$34),IF($AP$21=0, BF26/BF$35*100, 100*(BF26*12/$BI26)/BF$35))))))))))) -> 101.9529586 | BI26: 3 | BJ26: =VLOOKUP($AO26,Data!$A$1:$P$688,Charts!BJ$23,FALSE) -> 0.1540963595
C27: =AM37 -> 2022-09-01 | F27: 0.1628836974 | I27: 0.1496346017 | L27: 0.1685548993 | O27: 0.2033308191 | AL27: 202006 | AM27: =IF(AM26<$AL$24,+DATE(YEAR(AM26),MONTH(AM26)+3,DAY(AM26)),"") -> 2020-06-01 | AN27: 202006 | AO27: Tier 1 capital ratio202006 | AP27: =VLOOKUP($AO27,Data!$A$1:$P$688,Charts!AP$23,FALSE) -> 0.1330936645 | AQ27: =VLOOKUP($AO27,Data!$A$1:$P$688,Charts!AQ$23,FALSE) -> 0.1479937941 | AR27: =VLOOKUP($AO27,Data!$A$1:$P$688,Charts!AR$23,FALSE) -> 0.1696146986 | AS27: =VLOOKUP($AO27,Data!$A$1:$P$688,Charts!AS$23,FALSE) -> 0.2065639391 | AT27: =VLOOKUP($AO27,Data!$A$1:$P$688,Charts!AT$23,FALSE) -> 0.1630563226 | AU27: =VLOOKUP($AO27,Data!$A$1:$P$688,Charts!AU$23,FALSE) -> 0.2011049692 | AV27: =VLOOKUP($AO27,Data!$A$1:$P$688,Charts!AV$23,FALSE) -> 0.3597325392 | AW27: =VLOOKUP($AO27,Data!$A$1:$P$688,Charts!AW$23,FALSE) -> 0.2079632882 | AX27: =VLOOKUP($AO27,Data!$A$1:$P$688,Charts!AX$23,FALSE) -> 0.172934514 | AY27: 0.1479937941 | AZ27: 0 | BA27: 0.02162090451 | BB27: 0.0314902706 | BC27: 0.01490012965 | BD27: 0.1586275699 | BE27: =VLOOKUP($AO27,Data!$A$1:$P$688,BD$23,FALSE) -> 1.342077516e+12 | BF27: =VLOOKUP($AO27,Data!$A$1:$P$688,BE$23,FALSE) -> 8.341730097e+12 | BG27: =IFERROR(IF($AP$21=0,BE27/BE$25*100,(100*(BE27*12/$BI27)/BE$25)),IFERROR(IF($AP$21=0, BE27/BE$26*100, 100*(BE27*12/$BI27)/BE$26), IFERROR(IF($AP$21=0, BE27/BE$27*100, 100*(BE27*12/$BI27)/BE$27),IFERROR(IF($AP$21=0, BE27/BE$29*100, 100*(BE27*12/$BI27)/BE$29), IFERROR(IF($AP$21=0, BE27/BE$30*100, 100*(BE27*12/$BI27)/BE$30),IFERROR(IF($AP$21=0, BE27/BE$31*100, 100*(BE27*12/$BI27)/#REF!),IFERROR(IF($AP$21=0, BE27/BE$32*100, 100*(BE27*12/$BI27)/BE$32),IFERROR(IF($AP$21=0, BE27/BE$32*100, 100*(BE27*12/$BI27)/BE$32),IFERROR(IF($AP$21=0, BE27/BE$33*100, 100*(BE27*12/$BI27)/BE$33),IFERROR(IF($AP$21=0, BE27/BE$34*100, 100*(BE27*12/$BI27)/BE$34),IF($AP$21=0, BE27/BE$35*100, 100*(BE27*12/$BI27)/BE$35))))))))))) -> 101.1082721 | BH27: =IFERROR(IF($AP$21=0,BF27/BF$25*100,(100*(BF27*12/$BI27)/BF$25)),IFERROR(IF($AP$21=0, BF27/BF$26*100, 100*(BF27*12/$BI27)/BF$26), IFERROR(IF($AP$21=0, BF27/BF$27*100, 100*(BF27*12/$BI27)/BF$27),IFERROR(IF($AP$21=0, BF27/BF$29*100, 100*(BF27*12/$BI27)/BF$29), IFERROR(IF($AP$21=0, BF27/BF$30*100, 100*(BF27*12/$BI27)/BF$30),IFERROR(IF($AP$21=0, BF27/BF$31*100, 100*(BF27*12/$BI27)/#REF!),IFERROR(IF($AP$21=0, BF27/BF$32*100, 100*(BF27*12/$BI27)/BF$32),IFERROR(IF($AP$21=0, BF27/BF$32*100, 100*(BF27*12/$BI27)/BF$32),IFERROR(IF($AP$21=0, BF27/BF$33*100, 100*(BF27*12/$BI27)/BF$33),IFERROR(IF($AP$21=0, BF27/BF$34*100, 100*(BF27*12/$BI27)/BF$34),IF($AP$21=0, BF27/BF$35*100, 100*(BF27*12/$BI27)/BF$35))))))))))) -> 101.3271209 | BI27: 6 | BJ27: =VLOOKUP($AO27,Data!$A$1:$P$688,Charts!BJ$23,FALSE) -> 0.1589869672
B29: From Q1 2020 onwards, EU aggregates no longer include figures for UK banks and they include data for subsidiaries of UK banks in EU countries. The EBA Risk Dashboard does not include data from Norwegian nor Liechtensteiner banks from June 2021 to March 2022 due to the implementation of the reporting framework based on CRR2/CRD5 taking place only in Q2 2022. | AL29: 202009 | AM29: =IF(AM27<$AL$24,+DATE(YEAR(AM27),MONTH(AM27)+3,DAY(AM27)),"") -> 2020-09-01 | AN29: 202009 | AO29: Tier 1 capital ratio202009 | AP29: =VLOOKUP($AO29,Data!$A$1:$P$688,Charts!AP$23,FALSE) -> 0.1338801773 | AQ29: =VLOOKUP($AO29,Data!$A$1:$P$688,Charts!AQ$23,FALSE) -> 0.1529035899 | AR29: =VLOOKUP($AO29,Data!$A$1:$P$688,Charts!AR$23,FALSE) -> 0.172888396 | AS29: =VLOOKUP($AO29,Data!$A$1:$P$688,Charts!AS$23,FALSE) -> 0.2147456218 | AT29: =VLOOKUP($AO29,Data!$A$1:$P$688,Charts!AT$23,FALSE) -> 0.1671962406 | AU29: =VLOOKUP($AO29,Data!$A$1:$P$688,Charts!AU$23,FALSE) -> 0.2052266468 | AV29: =VLOOKUP($AO29,Data!$A$1:$P$688,Charts!AV$23,FALSE) -> 0.4015620238 | AW29: =VLOOKUP($AO29,Data!$A$1:$P$688,Charts!AW$23,FALSE) -> 0.2222690973 | AX29: =VLOOKUP($AO29,Data!$A$1:$P$688,Charts!AX$23,FALSE) -> 0.1772008449 | AY29: 0.1529035899 | AZ29: 0 | BA29: 0.01998480614 | BB29: 0.0323382508 | BC29: 0.01902341254 | BD29: 0.196335377 | BE29: =VLOOKUP($AO29,Data!$A$1:$P$688,BD$23,FALSE) -> 1.352343935e+12 | BF29: =VLOOKUP($AO29,Data!$A$1:$P$688,BE$23,FALSE) -> 8.223774646e+12 | BG29: =IFERROR(IF($AP$21=0,BE29/BE$25*100,(100*(BE29*12/$BI29)/BE$25)),IFERROR(IF($AP$21=0, BE29/BE$26*100, 100*(BE29*12/$BI29)/BE$26), IFERROR(IF($AP$21=0, BE29/BE$27*100, 100*(BE29*12/$BI29)/BE$27),IFERROR(IF($AP$21=0, BE29/BE$29*100, 100*(BE29*12/$BI29)/BE$29), IFERROR(IF($AP$21=0, BE29/BE$30*100, 100*(BE29*12/$BI29)/BE$30),IFERROR(IF($AP$21=0, BE29/BE$31*100, 100*(BE29*12/$BI29)/#REF!),IFERROR(IF($AP$21=0, BE29/BE$32*100, 100*(BE29*12/$BI29)/BE$32),IFERROR(IF($AP$21=0, BE29/BE$32*100, 100*(BE29*12/$BI29)/BE$32),IFERROR(IF($AP$21=0, BE29/BE$33*100, 100*(BE29*12/$BI29)/BE$33),IFERROR(IF($AP$21=0, BE29/BE$34*100, 100*(BE29*12/$BI29)/BE$34),IF($AP$21=0, BE29/BE$35*100, 100*(BE29*12/$BI29)/BE$35))))))))))) -> 101.8817147 | BH29: =IFERROR(IF($AP$21=0,BF29/BF$25*100,(100*(BF29*12/$BI29)/BF$25)),IFERROR(IF($AP$21=0, BF29/BF$26*100, 100*(BF29*12/$BI29)/BF$26), IFERROR(IF($AP$21=0, BF29/BF$27*100, 100*(BF29*12/$BI29)/BF$27),IFERROR(IF($AP$21=0, BF29/BF$29*100, 100*(BF29*12/$BI29)/BF$29), IFERROR(IF($AP$21=0, BF29/BF$30*100, 100*(BF29*12/$BI29)/BF$30),IFERROR(IF($AP$21=0, BF29/BF$31*100, 100*(BF29*12/$BI29)/#REF!),IFERROR(IF($AP$21=0, BF29/BF$32*100, 100*(BF29*12/$BI29)/BF$32),IFERROR(IF($AP$21=0, BF29/BF$32*100, 100*(BF29*12/$BI29)/BF$32),IFERROR(IF($AP$21=0, BF29/BF$33*100, 100*(BF29*12/$BI29)/BF$33),IFERROR(IF($AP$21=0, BF29/BF$34*100, 100*(BF29*12/$BI29)/BF$34),IF($AP$21=0, BF29/BF$35*100, 100*(BF29*12/$BI29)/BF$35))))))))))) -> 99.89431426 | BI29: 9 | BJ29: =VLOOKUP($AO29,Data!$A$1:$P$688,Charts!BJ$23,FALSE) -> 0.1627480842
AL30: 202012 | AM30: 2020-12-01 | AN30: 202012 | AO30: Tier 1 capital ratio202012 | AP30: =VLOOKUP($AO30,Data!$A$1:$P$688,Charts!AP$23,FALSE) -> 0.1378822295 | AQ30: =VLOOKUP($AO30,Data!$A$1:$P$688,Charts!AQ$23,FALSE) -> 0.1583604907 | AR30: =VLOOKUP($AO30,Data!$A$1:$P$688,Charts!AR$23,FALSE) -> 0.1803584264 | AS30: =VLOOKUP($AO30,Data!$A$1:$P$688,Charts!AS$23,FALSE) -> 0.2341510742 | AT30: =VLOOKUP($AO30,Data!$A$1:$P$688,Charts!AT$23,FALSE) -> 0.1719856936 | AU30: =VLOOKUP($AO30,Data!$A$1:$P$688,Charts!AU$23,FALSE) -> 0.212919732 | AV30: =VLOOKUP($AO30,Data!$A$1:$P$688,Charts!AV$23,FALSE) -> 0.3869305403 | AW30: =VLOOKUP($AO30,Data!$A$1:$P$688,Charts!AW$23,FALSE) -> 0.2211627204 | AX30: =VLOOKUP($AO30,Data!$A$1:$P$688,Charts!AX$23,FALSE) -> 0.1828164655 | AY30: =IF(AQ30<0,0,AQ30) -> 0.1583604907 | AZ30: =IF(AQ30<0,AQ30,0) -> 0 | BA30: =AR30-AY30 -> 0.02199793567 | BB30: =AU30-AR30 -> 0.03256130555 | BC30: =AQ30-AP30 -> 0.0204782612 | BD30: =AV30-AU30 -> 0.1740108083 | BE30: =VLOOKUP($AO30,Data!$A$1:$P$688,BD$23,FALSE) -> 1.401970523e+12 | BF30: =VLOOKUP($AO30,Data!$A$1:$P$688,BE$23,FALSE) -> 8.287380305e+12 | BG30: =IFERROR(IF($AP$21=0,BE30/BE$25*100,(100*(BE30*12/$BI30)/BE$25)),IFERROR(IF($AP$21=0, BE30/BE$26*100, 100*(BE30*12/$BI30)/BE$26), IFERROR(IF($AP$21=0, BE30/BE$27*100, 100*(BE30*12/$BI30)/BE$27),IFERROR(IF($AP$21=0, BE30/BE$29*100, 100*(BE30*12/$BI30)/BE$29), IFERROR(IF($AP$21=0, BE30/BE$30*100, 100*(BE30*12/$BI30)/BE$30),IFERROR(IF($AP$21=0, BE30/BE$31*100, 100*(BE30*12/$BI30)/#REF!),IFERROR(IF($AP$21=0, BE30/BE$32*100, 100*(BE30*12/$BI30)/BE$32),IFERROR(IF($AP$21=0, BE30/BE$32*100, 100*(BE30*12/$BI30)/BE$32),IFERROR(IF($AP$21=0, BE30/BE$33*100, 100*(BE30*12/$BI30)/BE$33),IFERROR(IF($AP$21=0, BE30/BE$34*100, 100*(BE30*12/$BI30)/BE$34),IF($AP$21=0, BE30/BE$35*100, 100*(BE30*12/$BI30)/BE$35))))))))))) -> 105.6204395 | BH30: =IFERROR(IF($AP$21=0,BF30/BF$25*100,(100*(BF30*12/$BI30)/BF$25)),IFERROR(IF($AP$21=0, BF30/BF$26*100, 100*(BF30*12/$BI30)/BF$26), IFERROR(IF($AP$21=0, BF30/BF$27*100, 100*(BF30*12/$BI30)/BF$27),IFERROR(IF($AP$21=0, BF30/BF$29*100, 100*(BF30*12/$BI30)/BF$29), IFERROR(IF($AP$21=0, BF30/BF$30*100, 100*(BF30*12/$BI30)/BF$30),IFERROR(IF($AP$21=0, BF30/BF$31*100, 100*(BF30*12/$BI30)/#REF!),IFERROR(IF($AP$21=0, BF30/BF$32*100, 100*(BF30*12/$BI30)/BF$32),IFERROR(IF($AP$21=0, BF30/BF$32*100, 100*(BF30*12/$BI30)/BF$32),IFERROR(IF($AP$21=0, BF30/BF$33*100, 100*(BF30*12/$BI30)/BF$33),IFERROR(IF($AP$21=0, BF30/BF$34*100, 100*(BF30*12/$BI30)/BF$34),IF($AP$21=0, BF30/BF$35*100, 100*(BF30*12/$BI30)/BF$35))))))))))) -> 100.6669332 | BI30: 12 | BJ30: =VLOOKUP($AO30,Data!$A$1:$P$688,Charts!BJ$23,FALSE) -> 0.1674183198
AL31: 202103 | AM31: 2021-03-01 | AN31: 202103 | AO31: Tier 1 capital ratio202103 | AP31: =VLOOKUP($AO31,Data!$A$1:$P$688,Charts!AP$23,FALSE) -> 0.1374039246 | AQ31: =VLOOKUP($AO31,Data!$A$1:$P$688,Charts!AQ$23,FALSE) -> 0.1574664782 | AR31: =VLOOKUP($AO31,Data!$A$1:$P$688,Charts!AR$23,FALSE) -> 0.1802804216 | AS31: =VLOOKUP($AO31,Data!$A$1:$P$688,Charts!AS$23,FALSE) -> 0.2300475893 | AT31: =VLOOKUP($AO31,Data!$A$1:$P$688,Charts!AT$23,FALSE) -> 0.1705110613 | AU31: =VLOOKUP($AO31,Data!$A$1:$P$688,Charts!AU$23,FALSE) -> 0.2109595522 | AV31: =VLOOKUP($AO31,Data!$A$1:$P$688,Charts!AV$23,FALSE) -> 0.3839784168 | AW31: =VLOOKUP($AO31,Data!$A$1:$P$688,Charts!AW$23,FALSE) -> 0.2092294243 | AX31: =VLOOKUP($AO31,Data!$A$1:$P$688,Charts!AX$23,FALSE) -> 0.1807868303 | AY31: 0.1574664782 | AZ31: 0 | BA31: 0.02281394334 | BB31: 0.03067913059 | BC31: 0.02006255361 | BD31: 0.1730188647 | BE31: =VLOOKUP($AO31,Data!$A$1:$P$688,BD$23,FALSE) -> 1.409697429e+12 | BF31: =VLOOKUP($AO31,Data!$A$1:$P$688,BE$23,FALSE) -> 8.408026097e+12 | BG31: =IFERROR(IF($AP$21=0,BE31/BE$25*100,(100*(BE31*12/$BI31)/BE$25)),IFERROR(IF($AP$21=0, BE31/BE$26*100, 100*(BE31*12/$BI31)/BE$26), IFERROR(IF($AP$21=0, BE31/BE$27*100, 100*(BE31*12/$BI31)/BE$27),IFERROR(IF($AP$21=0, BE31/BE$29*100, 100*(BE31*12/$BI31)/BE$29), IFERROR(IF($AP$21=0, BE31/BE$30*100, 100*(BE31*12/$BI31)/BE$30),IFERROR(IF($AP$21=0, BE31/BE$31*100, 100*(BE31*12/$BI31)/#REF!),IFERROR(IF($AP$21=0, BE31/BE$32*100, 100*(BE31*12/$BI31)/BE$32),IFERROR(IF($AP$21=0, BE31/BE$32*100, 100*(BE31*12/$BI31)/BE$32),IFERROR(IF($AP$21=0, BE31/BE$33*100, 100*(BE31*12/$BI31)/BE$33),IFERROR(IF($AP$21=0, BE31/BE$34*100, 100*(BE31*12/$BI31)/BE$34),IF($AP$21=0, BE31/BE$35*100, 100*(BE31*12/$BI31)/BE$35))))))))))) -> 106.2025625 | BH31: =IFERROR(IF($AP$21=0,BF31/BF$25*100,(100*(BF31*12/$BI31)/BF$25)),IFERROR(IF($AP$21=0, BF31/BF$26*100, 100*(BF31*12/$BI31)/BF$26), IFERROR(IF($AP$21=0, BF31/BF$27*100, 100*(BF31*12/$BI31)/BF$27),IFERROR(IF($AP$21=0, BF31/BF$29*100, 100*(BF31*12/$BI31)/BF$29), IFERROR(IF($AP$21=0, BF31/BF$30*100, 100*(BF31*12/$BI31)/BF$30),IFERROR(IF($AP$21=0, BF31/BF$31*100, 100*(BF31*12/$BI31)/#REF!),IFERROR(IF($AP$21=0, BF31/BF$32*100, 100*(BF31*12/$BI31)/BF$32),IFERROR(IF($AP$21=0, BF31/BF$32*100, 100*(BF31*12/$BI31)/BF$32),IFERROR(IF($AP$21=0, BF31/BF$33*100, 100*(BF31*12/$BI31)/BF$33),IFERROR(IF($AP$21=0, BF31/BF$34*100, 100*(BF31*12/$BI31)/BF$34),IF($AP$21=0, BF31/BF$35*100, 100*(BF31*12/$BI31)/BF$35))))))))))) -> 102.1324194 | BI31: 3 | BJ31: =VLOOKUP($AO31,Data!$A$1:$P$688,Charts!BJ$23,FALSE) -> 0.1663589183
AL32: 202106 | AM32: 2021-06-01 | AN32: 202106 | AO32: =CONCATENATE($AO$21,AN32) -> Tier 1 capital ratio202106 | AP32: =VLOOKUP($AO32,Data!$A$1:$P$688,Charts!AP$23,FALSE) -> 0.1321016093 | AQ32: =VLOOKUP($AO32,Data!$A$1:$P$688,Charts!AQ$23,FALSE) -> 0.1559383138 | AR32: =VLOOKUP($AO32,Data!$A$1:$P$688,Charts!AR$23,FALSE) -> 0.1760116964 | AS32: =VLOOKUP($AO32,Data!$A$1:$P$688,Charts!AS$23,FALSE) -> 0.2268626834 | AT32: =VLOOKUP($AO32,Data!$A$1:$P$688,Charts!AT$23,FALSE) -> 0.1708387971 | AU32: =VLOOKUP($AO32,Data!$A$1:$P$688,Charts!AU$23,FALSE) -> 0.2125969098 | AV32: =VLOOKUP($AO32,Data!$A$1:$P$688,Charts!AV$23,FALSE) -> 0.3374986853 | AW32: =VLOOKUP($AO32,Data!$A$1:$P$688,Charts!AW$23,FALSE) -> 0.2137318891 | AX32: =VLOOKUP($AO32,Data!$A$1:$P$688,Charts!AX$23,FALSE) -> 0.1810225528 | AY32: =IF(AQ32<0,0,AQ32) -> 0.1559383138 | AZ32: =IF(AQ32<0,AQ32,0) -> 0 | BA32: =AR32-AY32 -> 0.02007338259 | BB32: =AU32-AR32 -> 0.03658521341 | BC32: =AQ32-AP32 -> 0.02383670454 | BD32: =AV32-AU32 -> 0.1249017754 | BE32: =VLOOKUP($AO32,Data!$A$1:$P$688,BD$23,FALSE) -> 1.423357875e+12 | BF32: =VLOOKUP($AO32,Data!$A$1:$P$688,BE$23,FALSE) -> 8.445014601e+12 | BG32: =IFERROR(IF($AP$21=0,BE32/BE$25*100,(100*(BE32*12/$BI32)/BE$25)),IFERROR(IF($AP$21=0, BE32/BE$26*100, 100*(BE32*12/$BI32)/BE$26), IFERROR(IF($AP$21=0, BE32/BE$27*100, 100*(BE32*12/$BI32)/BE$27),IFERROR(IF($AP$21=0, BE32/BE$29*100, 100*(BE32*12/$BI32)/BE$29), IFERROR(IF($AP$21=0, BE32/BE$30*100, 100*(BE32*12/$BI32)/BE$30),IFERROR(IF($AP$21=0, BE32/BE$31*100, 100*(BE32*12/$BI32)/#REF!),IFERROR(IF($AP$21=0, BE32/BE$32*100, 100*(BE32*12/$BI32)/BE$32),IFERROR(IF($AP$21=0, BE32/BE$32*100, 100*(BE32*12/$BI32)/BE$32),IFERROR(IF($AP$21=0, BE32/BE$33*100, 100*(BE32*12/$BI32)/BE$33),IFERROR(IF($AP$21=0, BE32/BE$34*100, 100*(BE32*12/$BI32)/BE$34),IF($AP$21=0, BE32/BE$35*100, 100*(BE32*12/$BI32)/BE$35))))))))))) -> 107.2317013 | BH32: =IFERROR(IF($AP$21=0,BF32/BF$25*100,(100*(BF32*12/$BI32)/BF$25)),IFERROR(IF($AP$21=0, BF32/BF$26*100, 100*(BF32*12/$BI32)/BF$26), IFERROR(IF($AP$21=0, BF32/BF$27*100, 100*(BF32*12/$BI32)/BF$27),IFERROR(IF($AP$21=0, BF32/BF$29*100, 100*(BF32*12/$BI32)/BF$29), IFERROR(IF($AP$21=0, BF32/BF$30*100, 100*(BF32*12/$BI32)/BF$30),IFERROR(IF($AP$21=0, BF32/BF$31*100, 100*(BF32*12/$BI32)/#REF!),IFERROR(IF($AP$21=0, BF32/BF$32*100, 100*(BF32*12/$BI32)/BF$32),IFERROR(IF($AP$21=0, BF32/BF$32*100, 100*(BF32*12/$BI32)/BF$32),IFERROR(IF($AP$21=0, BF32/BF$33*100, 100*(BF32*12/$BI32)/BF$33),IFERROR(IF($AP$21=0, BF32/BF$34*100, 100*(BF32*12/$BI32)/BF$34),IF($AP$21=0, BF32/BF$35*100, 100*(BF32*12/$BI32)/BF$35))))))))))) -> 102.5817193 | BI32: =MONTH(AM32) -> 6 | BJ32: =VLOOKUP($AO32,Data!$A$1:$P$688,Charts!BJ$23,FALSE) -> 0.1665268355
AL33: 202109 | AM33: =IF(AM32<$AL$24,+DATE(YEAR(AM32),MONTH(AM32)+3,DAY(AM32)),"") -> 2021-09-01 | AN33: 202109 | AO33: Tier 1 capital ratio202109 | AP33: =VLOOKUP($AO33,Data!$A$1:$P$688,Charts!AP$23,FALSE) -> 0.1313591355 | AQ33: =VLOOKUP($AO33,Data!$A$1:$P$688,Charts!AQ$23,FALSE) -> 0.1555245461 | AR33: =VLOOKUP($AO33,Data!$A$1:$P$688,Charts!AR$23,FALSE) -> 0.1754100082 | AS33: =VLOOKUP($AO33,Data!$A$1:$P$688,Charts!AS$23,FALSE) -> 0.2242327135 | AT33: =VLOOKUP($AO33,Data!$A$1:$P$688,Charts!AT$23,FALSE) -> 0.1700204526 | AU33: =VLOOKUP($AO33,Data!$A$1:$P$688,Charts!AU$23,FALSE) -> 0.2129016755 | AV33: =VLOOKUP($AO33,Data!$A$1:$P$688,Charts!AV$23,FALSE) -> 0.3315302694 | AW33: =VLOOKUP($AO33,Data!$A$1:$P$688,Charts!AW$23,FALSE) -> 0.2092976959 | AX33: =VLOOKUP($AO33,Data!$A$1:$P$688,Charts!AX$23,FALSE) -> 0.1787653382 | AY33: 0.1555245461 | AZ33: 0 | BA33: 0.01988546214 | BB33: 0.03749166729 | BC33: 0.02416541054 | BD33: 0.1186285939 | BE33: =VLOOKUP($AO33,Data!$A$1:$P$688,BD$23,FALSE) -> 1.420858569e+12 | BF33: =VLOOKUP($AO33,Data!$A$1:$P$688,BE$23,FALSE) -> 8.466992484e+12 | BG33: =IFERROR(IF($AP$21=0,BE33/BE$25*100,(100*(BE33*12/$BI33)/BE$25)),IFERROR(IF($AP$21=0, BE33/BE$26*100, 100*(BE33*12/$BI33)/BE$26), IFERROR(IF($AP$21=0, BE33/BE$27*100, 100*(BE33*12/$BI33)/BE$27),IFERROR(IF($AP$21=0, BE33/BE$29*100, 100*(BE33*12/$BI33)/BE$29), IFERROR(IF($AP$21=0, BE33/BE$30*100, 100*(BE33*12/$BI33)/BE$30),IFERROR(IF($AP$21=0, BE33/BE$31*100, 100*(BE33*12/$BI33)/#REF!),IFERROR(IF($AP$21=0, BE33/BE$32*100, 100*(BE33*12/$BI33)/BE$32),IFERROR(IF($AP$21=0, BE33/BE$32*100, 100*(BE33*12/$BI33)/BE$32),IFERROR(IF($AP$21=0, BE33/BE$33*100, 100*(BE33*12/$BI33)/BE$33),IFERROR(IF($AP$21=0, BE33/BE$34*100, 100*(BE33*12/$BI33)/BE$34),IF($AP$21=0, BE33/BE$35*100, 100*(BE33*12/$BI33)/BE$35))))))))))) -> 107.0434108 | BH33: =IFERROR(IF($AP$21=0,BF33/BF$25*100,(100*(BF33*12/$BI33)/BF$25)),IFERROR(IF($AP$21=0, BF33/BF$26*100, 100*(BF33*12/$BI33)/BF$26), IFERROR(IF($AP$21=0, BF33/BF$27*100, 100*(BF33*12/$BI33)/BF$27),IFERROR(IF($AP$21=0, BF33/BF$29*100, 100*(BF33*12/$BI33)/BF$29), IFERROR(IF($AP$21=0, BF33/BF$30*100, 100*(BF33*12/$BI33)/BF$30),IFERROR(IF($AP$21=0, BF33/BF$31*100, 100*(BF33*12/$BI33)/#REF!),IFERROR(IF($AP$21=0, BF33/BF$32*100, 100*(BF33*12/$BI33)/BF$32),IFERROR(IF($AP$21=0, BF33/BF$32*100, 100*(BF33*12/$BI33)/BF$32),IFERROR(IF($AP$21=0, BF33/BF$33*100, 100*(BF33*12/$BI33)/BF$33),IFERROR(IF($AP$21=0, BF33/BF$34*100, 100*(BF33*12/$BI33)/BF$34),IF($AP$21=0, BF33/BF$35*100, 100*(BF33*12/$BI33)/BF$35))))))))))) -> 102.848685 | BI33: 9 | BJ33: =VLOOKUP($AO33,Data!$A$1:$P$688,Charts!BJ$23,FALSE) -> 0.1661522594
AL34: 202112 | AM34: =IF(AM33<$AL$24,+DATE(YEAR(AM33),MONTH(AM33)+3,DAY(AM33)),"") -> 2021-12-01 | AN34: 202112 | AO34: Tier 1 capital ratio202112 | AP34: =VLOOKUP($AO34,Data!$A$1:$P$688,Charts!AP$23,FALSE) -> 0.131983238 | AQ34: =VLOOKUP($AO34,Data!$A$1:$P$688,Charts!AQ$23,FALSE) -> 0.1577615238 | AR34: =VLOOKUP($AO34,Data!$A$1:$P$688,Charts!AR$23,FALSE) -> 0.179593877 | AS34: =VLOOKUP($AO34,Data!$A$1:$P$688,Charts!AS$23,FALSE) -> 0.2326916925 | AT34: =VLOOKUP($AO34,Data!$A$1:$P$688,Charts!AT$23,FALSE) -> 0.1712415763 | AU34: =VLOOKUP($AO34,Data!$A$1:$P$688,Charts!AU$23,FALSE) -> 0.2132876528 | AV34: =VLOOKUP($AO34,Data!$A$1:$P$688,Charts!AV$23,FALSE) -> 0.3393697998 | AW34: =VLOOKUP($AO34,Data!$A$1:$P$688,Charts!AW$23,FALSE) -> 0.200618934 | AX34: =VLOOKUP($AO34,Data!$A$1:$P$688,Charts!AX$23,FALSE) -> 0.1822283454 | AY34: 0.1577615238 | AZ34: 0 | BA34: 0.02183235318 | BB34: 0.03369377578 | BC34: 0.02577828587 | BD34: 0.126082147 | BE34: =VLOOKUP($AO34,Data!$A$1:$P$688,BD$23,FALSE) -> 1.438711532e+12 | BF34: =VLOOKUP($AO34,Data!$A$1:$P$688,BE$23,FALSE) -> 8.492589587e+12 | BG34: =IFERROR(IF($AP$21=0,BE34/BE$25*100,(100*(BE34*12/$BI34)/BE$25)),IFERROR(IF($AP$21=0, BE34/BE$26*100, 100*(BE34*12/$BI34)/BE$26), IFERROR(IF($AP$21=0, BE34/BE$27*100, 100*(BE34*12/$BI34)/BE$27),IFERROR(IF($AP$21=0, BE34/BE$29*100, 100*(BE34*12/$BI34)/BE$29), IFERROR(IF($AP$21=0, BE34/BE$30*100, 100*(BE34*12/$BI34)/BE$30),IFERROR(IF($AP$21=0, BE34/BE$31*100, 100*(BE34*12/$BI34)/#REF!),IFERROR(IF($AP$21=0, BE34/BE$32*100, 100*(BE34*12/$BI34)/BE$32),IFERROR(IF($AP$21=0, BE34/BE$32*100, 100*(BE34*12/$BI34)/BE$32),IFERROR(IF($AP$21=0, BE34/BE$33*100, 100*(BE34*12/$BI34)/BE$33),IFERROR(IF($AP$21=0, BE34/BE$34*100, 100*(BE34*12/$BI34)/BE$34),IF($AP$21=0, BE34/BE$35*100, 100*(BE34*12/$BI34)/BE$35))))))))))) -> 108.3884018 | BH34: =IFERROR(IF($AP$21=0,BF34/BF$25*100,(100*(BF34*12/$BI34)/BF$25)),IFERROR(IF($AP$21=0, BF34/BF$26*100, 100*(BF34*12/$BI34)/BF$26), IFERROR(IF($AP$21=0, BF34/BF$27*100, 100*(BF34*12/$BI34)/BF$27),IFERROR(IF($AP$21=0, BF34/BF$29*100, 100*(BF34*12/$BI34)/BF$29), IFERROR(IF($AP$21=0, BF34/BF$30*100, 100*(BF34*12/$BI34)/BF$30),IFERROR(IF($AP$21=0, BF34/BF$31*100, 100*(BF34*12/$BI34)/#REF!),IFERROR(IF($AP$21=0, BF34/BF$32*100, 100*(BF34*12/$BI34)/BF$32),IFERROR(IF($AP$21=0, BF34/BF$32*100, 100*(BF34*12/$BI34)/BF$32),IFERROR(IF($AP$21=0, BF34/BF$33*100, 100*(BF34*12/$BI34)/BF$33),IFERROR(IF($AP$21=0, BF34/BF$34*100, 100*(BF34*12/$BI34)/BF$34),IF($AP$21=0, BF34/BF$35*100, 100*(BF34*12/$BI34)/BF$35))))))))))) -> 103.1596134 | BI34: 12 | BJ34: =VLOOKUP($AO34,Data!$A$1:$P$688,Charts!BJ$23,FALSE) -> 0.1672739442
AL35: 202203 | AM35: 2022-03-01 | AN35: 202203 | AO35: Tier 1 capital ratio202203 | AP35: =VLOOKUP($AO35,Data!$A$1:$P$688,Charts!AP$23,FALSE) -> 0.1311664396 | AQ35: =VLOOKUP($AO35,Data!$A$1:$P$688,Charts!AQ$23,FALSE) -> 0.1529304941 | AR35: =VLOOKUP($AO35,Data!$A$1:$P$688,Charts!AR$23,FALSE) -> 0.1694540415 | AS35: =VLOOKUP($AO35,Data!$A$1:$P$688,Charts!AS$23,FALSE) -> 0.2201718961 | AT35: =VLOOKUP($AO35,Data!$A$1:$P$688,Charts!AT$23,FALSE) -> 0.164252016 | AU35: =VLOOKUP($AO35,Data!$A$1:$P$688,Charts!AU$23,FALSE) -> 0.2011821022 | AV35: =VLOOKUP($AO35,Data!$A$1:$P$688,Charts!AV$23,FALSE) -> 0.357436876 | AW35: =VLOOKUP($AO35,Data!$A$1:$P$688,Charts!AW$23,FALSE) -> 0.2052423798 | AX35: =VLOOKUP($AO35,Data!$A$1:$P$688,Charts!AX$23,FALSE) -> 0.1770226388 | AY35: 0.1529304941 | AZ35: 0 | BA35: 0.01652354741 | BB35: 0.03172806073 | BC35: 0.02176405449 | BD35: 0.1562547738 | BE35: =VLOOKUP($AO35,Data!$A$1:$P$688,BD$23,FALSE) -> 1.412317281e+12 | BF35: =VLOOKUP($AO35,Data!$A$1:$P$688,BE$23,FALSE) -> 8.723782982e+12 | BG35: =IFERROR(IF($AP$21=0,BE35/BE$25*100,(100*(BE35*12/$BI35)/BE$25)),IFERROR(IF($AP$21=0, BE35/BE$26*100, 100*(BE35*12/$BI35)/BE$26), IFERROR(IF($AP$21=0, BE35/BE$27*100, 100*(BE35*12/$BI35)/BE$27),IFERROR(IF($AP$21=0, BE35/BE$29*100, 100*(BE35*12/$BI35)/BE$29), IFERROR(IF($AP$21=0, BE35/BE$30*100, 100*(BE35*12/$BI35)/BE$30),IFERROR(IF($AP$21=0, BE35/BE$31*100, 100*(BE35*12/$BI35)/#REF!),IFERROR(IF($AP$21=0, BE35/BE$32*100, 100*(BE35*12/$BI35)/BE$32),IFERROR(IF($AP$21=0, BE35/BE$32*100, 100*(BE35*12/$BI35)/BE$32),IFERROR(IF($AP$21=0, BE35/BE$33*100, 100*(BE35*12/$BI35)/BE$33),IFERROR(IF($AP$21=0, BE35/BE$34*100, 100*(BE35*12/$BI35)/BE$34),IF($AP$21=0, BE35/BE$35*100, 100*(BE35*12/$BI35)/BE$35))))))))))) -> 106.3999346 | BH35: =IFERROR(IF($AP$21=0,BF35/BF$25*100,(100*(BF35*12/$BI35)/BF$25)),IFERROR(IF($AP$21=0, BF35/BF$26*100, 100*(BF35*12/$BI35)/BF$26), IFERROR(IF($AP$21=0, BF35/BF$27*100, 100*(BF35*12/$BI35)/BF$27),IFERROR(IF($AP$21=0, BF35/BF$29*100, 100*(BF35*12/$BI35)/BF$29), IFERROR(IF($AP$21=0, BF35/BF$30*100, 100*(BF35*12/$BI35)/BF$30),IFERROR(IF($AP$21=0, BF35/BF$31*100, 100*(BF35*12/$BI35)/#REF!),IFERROR(IF($AP$21=0, BF35/BF$32*100, 100*(BF35*12/$BI35)/BF$32),IFERROR(IF($AP$21=0, BF35/BF$32*100, 100*(BF35*12/$BI35)/BF$32),IFERROR(IF($AP$21=0, BF35/BF$33*100, 100*(BF35*12/$BI35)/BF$33),IFERROR(IF($AP$21=0, BF35/BF$34*100, 100*(BF35*12/$BI35)/BF$34),IF($AP$21=0, BF35/BF$35*100, 100*(BF35*12/$BI35)/BF$35))))))))))) -> 105.967923 | BI35: 3 | BJ35: =VLOOKUP($AO35,Data!$A$1:$P$688,Charts!BJ$23,FALSE) -> 0.1591873311
AL36: 202206 | AM36: 2022-06-01 | AN36: 202206 | AO36: Tier 1 capital ratio202206 | AP36: =VLOOKUP($AO36,Data!$A$1:$P$688,Charts!AP$23,FALSE) -> 0.131848128 | AQ36: =VLOOKUP($AO36,Data!$A$1:$P$688,Charts!AQ$23,FALSE) -> 0.1494405523 | AR36: =VLOOKUP($AO36,Data!$A$1:$P$688,Charts!AR$23,FALSE) -> 0.1711790317 | AS36: =VLOOKUP($AO36,Data!$A$1:$P$688,Charts!AS$23,FALSE) -> 0.2153366752 | AT36: =VLOOKUP($AO36,Data!$A$1:$P$688,Charts!AT$23,FALSE) -> 0.1645938665 | AU36: =VLOOKUP($AO36,Data!$A$1:$P$688,Charts!AU$23,FALSE) -> 0.20361911 | AV36: =VLOOKUP($AO36,Data!$A$1:$P$688,Charts!AV$23,FALSE) -> 0.3811808636 | AW36: =VLOOKUP($AO36,Data!$A$1:$P$688,Charts!AW$23,FALSE) -> 0.2032021766 | AX36: =VLOOKUP($AO36,Data!$A$1:$P$688,Charts!AX$23,FALSE) -> 0.1767855881 | AY36: 0.1494405523 | AZ36: 0 | BA36: 0.0217384794 | BB36: 0.0324400783 | BC36: 0.01759242431 | BD36: 0.1775617536 | BE36: =VLOOKUP($AO36,Data!$A$1:$P$688,BD$23,FALSE) -> 1.418498393e+12 | BF36: =VLOOKUP($AO36,Data!$A$1:$P$688,BE$23,FALSE) -> 8.770921598e+12 | BG36: =IFERROR(IF($AP$21=0,BE36/BE$25*100,(100*(BE36*12/$BI36)/BE$25)),IFERROR(IF($AP$21=0, BE36/BE$26*100, 100*(BE36*12/$BI36)/BE$26), IFERROR(IF($AP$21=0, BE36/BE$27*100, 100*(BE36*12/$BI36)/BE$27),IFERROR(IF($AP$21=0, BE36/BE$29*100, 100*(BE36*12/$BI36)/BE$29), IFERROR(IF($AP$21=0, BE36/BE$30*100, 100*(BE36*12/$BI36)/BE$30),IFERROR(IF($AP$21=0, BE36/BE$31*100, 100*(BE36*12/$BI36)/#REF!),IFERROR(IF($AP$21=0, BE36/BE$32*100, 100*(BE36*12/$BI36)/BE$32),IFERROR(IF($AP$21=0, BE36/BE$32*100, 100*(BE36*12/$BI36)/BE$32),IFERROR(IF($AP$21=0, BE36/BE$33*100, 100*(BE36*12/$BI36)/BE$33),IFERROR(IF($AP$21=0, BE36/BE$34*100, 100*(BE36*12/$BI36)/BE$34),IF($AP$21=0, BE36/BE$35*100, 100*(BE36*12/$BI36)/BE$35))))))))))) -> 106.8656019 | BH36: =IFERROR(IF($AP$21=0,BF36/BF$25*100,(100*(BF36*12/$BI36)/BF$25)),IFERROR(IF($AP$21=0, BF36/BF$26*100, 100*(BF36*12/$BI36)/BF$26), IFERROR(IF($AP$21=0, BF36/BF$27*100, 100*(BF36*12/$BI36)/BF$27),IFERROR(IF($AP$21=0, BF36/BF$29*100, 100*(BF36*12/$BI36)/BF$29), IFERROR(IF($AP$21=0, BF36/BF$30*100, 100*(BF36*12/$BI36)/BF$30),IFERROR(IF($AP$21=0, BF36/BF$31*100, 100*(BF36*12/$BI36)/#REF!),IFERROR(IF($AP$21=0, BF36/BF$32*100, 100*(BF36*12/$BI36)/BF$32),IFERROR(IF($AP$21=0, BF36/BF$32*100, 100*(BF36*12/$BI36)/BF$32),IFERROR(IF($AP$21=0, BF36/BF$33*100, 100*(BF36*12/$BI36)/BF$33),IFERROR(IF($AP$21=0, BF36/BF$34*100, 100*(BF36*12/$BI36)/BF$34),IF($AP$21=0, BF36/BF$35*100, 100*(BF36*12/$BI36)/BF$35))))))))))) -> 106.5405165 | BI36: 6 | BJ36: =VLOOKUP($AO36,Data!$A$1:$P$688,Charts!BJ$23,FALSE) -> 0.159613633
AL37: 202209 | AM37: =IF(AM36<$AL$24,+DATE(YEAR(AM36),MONTH(AM36)+3,DAY(AM36)),"") -> 2022-09-01 | AN37: =+IF(MONTH(AM37)=12,YEAR(AM37)&MONTH(AM37),YEAR(AM37)&0&MONTH(AM37)) -> 202209 | AO37: Tier 1 capital ratio202209 | AP37: =VLOOKUP($AO37,Data!$A$1:$P$688,Charts!AP$23,FALSE) -> 0.1323149625 | AQ37: =VLOOKUP($AO37,Data!$A$1:$P$688,Charts!AQ$23,FALSE) -> 0.1496346017 | AR37: =VLOOKUP($AO37,Data!$A$1:$P$688,Charts!AR$23,FALSE) -> 0.1685548993 | AS37: =VLOOKUP($AO37,Data!$A$1:$P$688,Charts!AS$23,FALSE) -> 0.2303393089 | AT37: =VLOOKUP($AO37,Data!$A$1:$P$688,Charts!AT$23,FALSE) -> 0.1628836974 | AU37: =VLOOKUP($AO37,Data!$A$1:$P$688,Charts!AU$23,FALSE) -> 0.2033308191 | AV37: =VLOOKUP($AO37,Data!$A$1:$P$688,Charts!AV$23,FALSE) -> 0.3734115055 | AW37: =VLOOKUP($AO37,Data!$A$1:$P$688,Charts!AW$23,FALSE) -> 0.1961930326 | AX37: =VLOOKUP($AO37,Data!$A$1:$P$688,Charts!AX$23,FALSE) -> 0.1747037741 | AY37: 0.1496346017 | AZ37: 0 | BA37: 0.0189202976 | BB37: 0.03477591983 | BC37: 0.01731963917 | BD37: 0.1700806864 | BE37: =VLOOKUP($AO37,Data!$A$1:$P$688,BD$23,FALSE) -> 1.415157276e+12 | BF37: =VLOOKUP($AO37,Data!$A$1:$P$688,BE$23,FALSE) -> 8.822739214e+12 | BG37: =IFERROR(IF($AP$21=0,BE37/BE$25*100,(100*(BE37*12/$BI37)/BE$25)),IFERROR(IF($AP$21=0, BE37/BE$26*100, 100*(BE37*12/$BI37)/BE$26), IFERROR(IF($AP$21=0, BE37/BE$27*100, 100*(BE37*12/$BI37)/BE$27),IFERROR(IF($AP$21=0, BE37/BE$29*100, 100*(BE37*12/$BI37)/BE$29), IFERROR(IF($AP$21=0, BE37/BE$30*100, 100*(BE37*12/$BI37)/BE$30),IFERROR(IF($AP$21=0, BE37/BE$31*100, 100*(BE37*12/$BI37)/#REF!),IFERROR(IF($AP$21=0, BE37/BE$32*100, 100*(BE37*12/$BI37)/BE$32),IFERROR(IF($AP$21=0, BE37/BE$32*100, 100*(BE37*12/$BI37)/BE$32),IFERROR(IF($AP$21=0, BE37/BE$33*100, 100*(BE37*12/$BI37)/BE$33),IFERROR(IF($AP$21=0, BE37/BE$34*100, 100*(BE37*12/$BI37)/BE$34),IF($AP$21=0, BE37/BE$35*100, 100*(BE37*12/$BI37)/BE$35))))))))))) -> 106.6138917 | BH37: =IFERROR(IF($AP$21=0,BF37/BF$25*100,(100*(BF37*12/$BI37)/BF$25)),IFERROR(IF($AP$21=0, BF37/BF$26*100, 100*(BF37*12/$BI37)/BF$26), IFERROR(IF($AP$21=0, BF37/BF$27*100, 100*(BF37*12/$BI37)/BF$27),IFERROR(IF($AP$21=0, BF37/BF$29*100, 100*(BF37*12/$BI37)/BF$29), IFERROR(IF($AP$21=0, BF37/BF$30*100, 100*(BF37*12/$BI37)/BF$30),IFERROR(IF($AP$21=0, BF37/BF$31*100, 100*(BF37*12/$BI37)/#REF!),IFERROR(IF($AP$21=0, BF37/BF$32*100, 100*(BF37*12/$BI37)/BF$32),IFERROR(IF($AP$21=0, BF37/BF$32*100, 100*(BF37*12/$BI37)/BF$32),IFERROR(IF($AP$21=0, BF37/BF$33*100, 100*(BF37*12/$BI37)/BF$33),IFERROR(IF($AP$21=0, BF37/BF$34*100, 100*(BF37*12/$BI37)/BF$34),IF($AP$21=0, BF37/BF$35*100, 100*(BF37*12/$BI37)/BF$35))))))))))) -> 107.1699459 | BI37: 9 | BJ37: =VLOOKUP($AO37,Data!$A$1:$P$688,Charts!BJ$23,FALSE) -> 0.1582773264
AN49: =VLOOKUP(AM21*1,List!$A$1:$I$100,9,FALSE) -> 9 | AO49: Indicator | AP49: Country | AQ49: Country name | AR49: Value | AS49: EU value
AO50: 2 | AQ50: 5 | AR50: 8
AN51: =MAX($AL$25:$AL$46) -> 202209 | AO51: =CONCATENATE(VLOOKUP($AN$21*1,Data!$W$1:$AB$688,AO$50,FALSE),AP51) -> Tier 1 Capital Ratio1 | AP51: 1 | AQ51: =VLOOKUP($AO51,Data!$U$1:$AC$714,AQ$50,FALSE)&IF(AR51="","*","") -> LV | AR51: =IF(ISBLANK(VLOOKUP($AO51,Data!$U$1:$AC$714,AR$50,FALSE)),"",VLOOKUP($AO51,Data!$U$1:$AC$714,AR$50,FALSE)) -> 0.2702631896 | AS51: =VLOOKUP($AO$81,Data!$U$1:$AC$714,$AR$50,FALSE) -> 0.1628836974
AN52: =MAX($AL$25:$AL$46) -> 202209 | AO52: =CONCATENATE(VLOOKUP($AN$21*1,Data!$W$1:$AB$688,AO$50,FALSE),AP52) -> Tier 1 Capital Ratio2 | AP52: 2 | AQ52: =VLOOKUP($AO52,Data!$U$1:$AC$714,AQ$50,FALSE)&IF(AR52="","*","") -> EE | AR52: =IF(ISBLANK(VLOOKUP($AO52,Data!$U$1:$AC$714,AR$50,FALSE)),"",VLOOKUP($AO52,Data!$U$1:$AC$714,AR$50,FALSE)) -> 0.2309433659 | AS52: =VLOOKUP($AO$81,Data!$U$1:$AC$714,$AR$50,FALSE) -> 0.1628836974
AN53: 202209 | AO53: =CONCATENATE(VLOOKUP($AN$21*1,Data!$W$1:$AB$688,AO$50,FALSE),AP53) -> Tier 1 Capital Ratio3 | AP53: 3 | AQ53: =VLOOKUP($AO53,Data!$U$1:$AC$714,AQ$50,FALSE)&IF(AR53="","*","") -> HR | AR53: =IF(ISBLANK(VLOOKUP($AO53,Data!$U$1:$AC$714,AR$50,FALSE)),"",VLOOKUP($AO53,Data!$U$1:$AC$714,AR$50,FALSE)) -> 0.2279260385 | AS53: =VLOOKUP($AO$81,Data!$U$1:$AC$714,$AR$50,FALSE) -> 0.1628836974
AN54: 202209 | AO54: =CONCATENATE(VLOOKUP($AN$21*1,Data!$W$1:$AB$688,AO$50,FALSE),AP54) -> Tier 1 Capital Ratio4 | AP54: 4 | AQ54: =VLOOKUP($AO54,Data!$U$1:$AC$714,AQ$50,FALSE)&IF(AR54="","*","") -> LU | AR54: =IF(ISBLANK(VLOOKUP($AO54,Data!$U$1:$AC$714,AR$50,FALSE)),"",VLOOKUP($AO54,Data!$U$1:$AC$714,AR$50,FALSE)) -> 0.2100813971 | AS54: =VLOOKUP($AO$81,Data!$U$1:$AC$714,$AR$50,FALSE) -> 0.1628836974
AN55: 202209 | AO55: =CONCATENATE(VLOOKUP($AN$21*1,Data!$W$1:$AB$688,AO$50,FALSE),AP55) -> Tier 1 Capital Ratio5 | AP55: 5 | AQ55: =VLOOKUP($AO55,Data!$U$1:$AC$714,AQ$50,FALSE)&IF(AR55="","*","") -> BG | AR55: =IF(ISBLANK(VLOOKUP($AO55,Data!$U$1:$AC$714,AR$50,FALSE)),"",VLOOKUP($AO55,Data!$U$1:$AC$714,AR$50,FALSE)) -> 0.2087516374 | AS55: =VLOOKUP($AO$81,Data!$U$1:$AC$714,$AR$50,FALSE) -> 0.1628836974
AN56: 202209 | AO56: =CONCATENATE(VLOOKUP($AN$21*1,Data!$W$1:$AB$688,AO$50,FALSE),AP56) -> Tier 1 Capital Ratio6 | AP56: 6 | AQ56: =VLOOKUP($AO56,Data!$U$1:$AC$714,AQ$50,FALSE)&IF(AR56="","*","") -> IS | AR56: =IF(ISBLANK(VLOOKUP($AO56,Data!$U$1:$AC$714,AR$50,FALSE)),"",VLOOKUP($AO56,Data!$U$1:$AC$714,AR$50,FALSE)) -> 0.2071966599 | AS56: =VLOOKUP($AO$81,Data!$U$1:$AC$714,$AR$50,FALSE) -> 0.1628836974
AN57: 202209 | AO57: =CONCATENATE(VLOOKUP($AN$21*1,Data!$W$1:$AB$688,AO$50,FALSE),AP57) -> Tier 1 Capital Ratio7 | AP57: 7 | AQ57: =VLOOKUP($AO57,Data!$U$1:$AC$714,AQ$50,FALSE)&IF(AR57="","*","") -> SE | AR57: =IF(ISBLANK(VLOOKUP($AO57,Data!$U$1:$AC$714,AR$50,FALSE)),"",VLOOKUP($AO57,Data!$U$1:$AC$714,AR$50,FALSE)) -> 0.2024513862 | AS57: =VLOOKUP($AO$81,Data!$U$1:$AC$714,$AR$50,FALSE) -> 0.1628836974
AN58: 202209 | AO58: =CONCATENATE(VLOOKUP($AN$21*1,Data!$W$1:$AB$688,AO$50,FALSE),AP58) -> Tier 1 Capital Ratio8 | AP58: 8 | AQ58: =VLOOKUP($AO58,Data!$U$1:$AC$714,AQ$50,FALSE)&IF(AR58="","*","") -> CZ | AR58: =IF(ISBLANK(VLOOKUP($AO58,Data!$U$1:$AC$714,AR$50,FALSE)),"",VLOOKUP($AO58,Data!$U$1:$AC$714,AR$50,FALSE)) -> 0.1983267755 | AS58: =VLOOKUP($AO$81,Data!$U$1:$AC$714,$AR$50,FALSE) -> 0.1628836974
AN59: 202209 | AO59: =CONCATENATE(VLOOKUP($AN$21*1,Data!$W$1:$AB$688,AO$50,FALSE),AP59) -> Tier 1 Capital Ratio9 | AP59: 9 | AQ59: =VLOOKUP($AO59,Data!$U$1:$AC$714,AQ$50,FALSE)&IF(AR59="","*","") -> DK | AR59: =IF(ISBLANK(VLOOKUP($AO59,Data!$U$1:$AC$714,AR$50,FALSE)),"",VLOOKUP($AO59,Data!$U$1:$AC$714,AR$50,FALSE)) -> 0.194837152 | AS59: =VLOOKUP($AO$81,Data!$U$1:$AC$714,$AR$50,FALSE) -> 0.1628836974
AN60: 202209 | AO60: =CONCATENATE(VLOOKUP($AN$21*1,Data!$W$1:$AB$688,AO$50,FALSE),AP60) -> Tier 1 Capital Ratio10 | AP60: 10 | AQ60: =VLOOKUP($AO60,Data!$U$1:$AC$714,AQ$50,FALSE)&IF(AR60="","*","") -> CY | AR60: =IF(ISBLANK(VLOOKUP($AO60,Data!$U$1:$AC$714,AR$50,FALSE)),"",VLOOKUP($AO60,Data!$U$1:$AC$714,AR$50,FALSE)) -> 0.1925478973 | AS60: =VLOOKUP($AO$81,Data!$U$1:$AC$714,$AR$50,FALSE) -> 0.1628836974
AN61: 202209 | AO61: =CONCATENATE(VLOOKUP($AN$21*1,Data!$W$1:$AB$688,AO$50,FALSE),AP61) -> Tier 1 Capital Ratio11 | AP61: 11 | AQ61: =VLOOKUP($AO61,Data!$U$1:$AC$714,AQ$50,FALSE)&IF(AR61="","*","") -> IE | AR61: =IF(ISBLANK(VLOOKUP($AO61,Data!$U$1:$AC$714,AR$50,FALSE)),"",VLOOKUP($AO61,Data!$U$1:$AC$714,AR$50,FALSE)) -> 0.1901643507 | AS61: =VLOOKUP($AO$81,Data!$U$1:$AC$714,$AR$50,FALSE) -> 0.1628836974
AN62: 202209 | AO62: =CONCATENATE(VLOOKUP($AN$21*1,Data!$W$1:$AB$688,AO$50,FALSE),AP62) -> Tier 1 Capital Ratio12 | AP62: 12 | AQ62: =VLOOKUP($AO62,Data!$U$1:$AC$714,AQ$50,FALSE)&IF(AR62="","*","") -> LT | AR62: =IF(ISBLANK(VLOOKUP($AO62,Data!$U$1:$AC$714,AR$50,FALSE)),"",VLOOKUP($AO62,Data!$U$1:$AC$714,AR$50,FALSE)) -> 0.1893844519 | AS62: =VLOOKUP($AO$81,Data!$U$1:$AC$714,$AR$50,FALSE) -> 0.1628836974
AN63: 202209 | AO63: =CONCATENATE(VLOOKUP($AN$21*1,Data!$W$1:$AB$688,AO$50,FALSE),AP63) -> Tier 1 Capital Ratio13 | AP63: 13 | AQ63: =VLOOKUP($AO63,Data!$U$1:$AC$714,AQ$50,FALSE)&IF(AR63="","*","") -> BE | AR63: =IF(ISBLANK(VLOOKUP($AO63,Data!$U$1:$AC$714,AR$50,FALSE)),"",VLOOKUP($AO63,Data!$U$1:$AC$714,AR$50,FALSE)) -> 0.1890465028 | AS63: =VLOOKUP($AO$81,Data!$U$1:$AC$714,$AR$50,FALSE) -> 0.1628836974
AN64: 202209 | AO64: =CONCATENATE(VLOOKUP($AN$21*1,Data!$W$1:$AB$688,AO$50,FALSE),AP64) -> Tier 1 Capital Ratio14 | AP64: 14 | AQ64: =VLOOKUP($AO64,Data!$U$1:$AC$714,AQ$50,FALSE)&IF(AR64="","*","") -> LI | AR64: =IF(ISBLANK(VLOOKUP($AO64,Data!$U$1:$AC$714,AR$50,FALSE)),"",VLOOKUP($AO64,Data!$U$1:$AC$714,AR$50,FALSE)) -> 0.1872698123 | AS64: =VLOOKUP($AO$81,Data!$U$1:$AC$714,$AR$50,FALSE) -> 0.1628836974
AN65: 202209 | AO65: =CONCATENATE(VLOOKUP($AN$21*1,Data!$W$1:$AB$688,AO$50,FALSE),AP65) -> Tier 1 Capital Ratio15 | AP65: 15 | AQ65: =VLOOKUP($AO65,Data!$U$1:$AC$714,AQ$50,FALSE)&IF(AR65="","*","") -> MT | AR65: =IF(ISBLANK(VLOOKUP($AO65,Data!$U$1:$AC$714,AR$50,FALSE)),"",VLOOKUP($AO65,Data!$U$1:$AC$714,AR$50,FALSE)) -> 0.1853291946 | AS65: =VLOOKUP($AO$81,Data!$U$1:$AC$714,$AR$50,FALSE) -> 0.1628836974
AN66: 202209 | AO66: =CONCATENATE(VLOOKUP($AN$21*1,Data!$W$1:$AB$688,AO$50,FALSE),AP66) -> Tier 1 Capital Ratio16 | AP66: 16 | AQ66: =VLOOKUP($AO66,Data!$U$1:$AC$714,AQ$50,FALSE)&IF(AR66="","*","") -> FI | AR66: =IF(ISBLANK(VLOOKUP($AO66,Data!$U$1:$AC$714,AR$50,FALSE)),"",VLOOKUP($AO66,Data!$U$1:$AC$714,AR$50,FALSE)) -> 0.1852793718 | AS66: =VLOOKUP($AO$81,Data!$U$1:$AC$714,$AR$50,FALSE) -> 0.1628836974
AN67: 202209 | AO67: =CONCATENATE(VLOOKUP($AN$21*1,Data!$W$1:$AB$688,AO$50,FALSE),AP67) -> Tier 1 Capital Ratio17 | AP67: 17 | AQ67: =VLOOKUP($AO67,Data!$U$1:$AC$714,AQ$50,FALSE)&IF(AR67="","*","") -> NO | AR67: =IF(ISBLANK(VLOOKUP($AO67,Data!$U$1:$AC$714,AR$50,FALSE)),"",VLOOKUP($AO67,Data!$U$1:$AC$714,AR$50,FALSE)) -> 0.1850975144 | AS67: =VLOOKUP($AO$81,Data!$U$1:$AC$714,$AR$50,FALSE) -> 0.1628836974
AN68: 202209 | AO68: =CONCATENATE(VLOOKUP($AN$21*1,Data!$W$1:$AB$688,AO$50,FALSE),AP68) -> Tier 1 Capital Ratio18 | AP68: 18 | AQ68: =VLOOKUP($AO68,Data!$U$1:$AC$714,AQ$50,FALSE)&IF(AR68="","*","") -> RO | AR68: =IF(ISBLANK(VLOOKUP($AO68,Data!$U$1:$AC$714,AR$50,FALSE)),"",VLOOKUP($AO68,Data!$U$1:$AC$714,AR$50,FALSE)) -> 0.1825786189 | AS68: =VLOOKUP($AO$81,Data!$U$1:$AC$714,$AR$50,FALSE) -> 0.1628836974
AN69: 202209 | AO69: =CONCATENATE(VLOOKUP($AN$21*1,Data!$W$1:$AB$688,AO$50,FALSE),AP69) -> Tier 1 Capital Ratio19 | AP69: 19 | AQ69: =VLOOKUP($AO69,Data!$U$1:$AC$714,AQ$50,FALSE)&IF(AR69="","*","") -> NL | AR69: =IF(ISBLANK(VLOOKUP($AO69,Data!$U$1:$AC$714,AR$50,FALSE)),"",VLOOKUP($AO69,Data!$U$1:$AC$714,AR$50,FALSE)) -> 0.1742002251 | AS69: =VLOOKUP($AO$81,Data!$U$1:$AC$714,$AR$50,FALSE) -> 0.1628836974
AN70: 202209 | AO70: =CONCATENATE(VLOOKUP($AN$21*1,Data!$W$1:$AB$688,AO$50,FALSE),AP70) -> Tier 1 Capital Ratio20 | AP70: 20 | AQ70: =VLOOKUP($AO70,Data!$U$1:$AC$714,AQ$50,FALSE)&IF(AR70="","*","") -> SK | AR70: =IF(ISBLANK(VLOOKUP($AO70,Data!$U$1:$AC$714,AR$50,FALSE)),"",VLOOKUP($AO70,Data!$U$1:$AC$714,AR$50,FALSE)) -> 0.1722540306 | AS70: =VLOOKUP($AO$81,Data!$U$1:$AC$714,$AR$50,FALSE) -> 0.1628836974
AN71: 202209 | AO71: =CONCATENATE(VLOOKUP($AN$21*1,Data!$W$1:$AB$688,AO$50,FALSE),AP71) -> Tier 1 Capital Ratio21 | AP71: 21 | AQ71: =VLOOKUP($AO71,Data!$U$1:$AC$714,AQ$50,FALSE)&IF(AR71="","*","") -> HU | AR71: =IF(ISBLANK(VLOOKUP($AO71,Data!$U$1:$AC$714,AR$50,FALSE)),"",VLOOKUP($AO71,Data!$U$1:$AC$714,AR$50,FALSE)) -> 0.1631390587 | AS71: =VLOOKUP($AO$81,Data!$U$1:$AC$714,$AR$50,FALSE) -> 0.1628836974
AN72: 202209 | AO72: =CONCATENATE(VLOOKUP($AN$21*1,Data!$W$1:$AB$688,AO$50,FALSE),AP72) -> Tier 1 Capital Ratio22 | AP72: 22 | AQ72: =VLOOKUP($AO72,Data!$U$1:$AC$714,AQ$50,FALSE)&IF(AR72="","*","") -> IT | AR72: =IF(ISBLANK(VLOOKUP($AO72,Data!$U$1:$AC$714,AR$50,FALSE)),"",VLOOKUP($AO72,Data!$U$1:$AC$714,AR$50,FALSE)) -> 0.162241736 | AS72: =VLOOKUP($AO$81,Data!$U$1:$AC$714,$AR$50,FALSE) -> 0.1628836974
AN73: 202209 | AO73: =CONCATENATE(VLOOKUP($AN$21*1,Data!$W$1:$AB$688,AO$50,FALSE),AP73) -> Tier 1 Capital Ratio23 | AP73: 23 | AQ73: =VLOOKUP($AO73,Data!$U$1:$AC$714,AQ$50,FALSE)&IF(AR73="","*","") -> DE | AR73: =IF(ISBLANK(VLOOKUP($AO73,Data!$U$1:$AC$714,AR$50,FALSE)),"",VLOOKUP($AO73,Data!$U$1:$AC$714,AR$50,FALSE)) -> 0.1610431273 | AS73: =VLOOKUP($AO$81,Data!$U$1:$AC$714,$AR$50,FALSE) -> 0.1628836974
AN74: 202209 | AO74: =CONCATENATE(VLOOKUP($AN$21*1,Data!$W$1:$AB$688,AO$50,FALSE),AP74) -> Tier 1 Capital Ratio24 | AP74: 24 | AQ74: =VLOOKUP($AO74,Data!$U$1:$AC$714,AQ$50,FALSE)&IF(AR74="","*","") -> AT | AR74: =IF(ISBLANK(VLOOKUP($AO74,Data!$U$1:$AC$714,AR$50,FALSE)),"",VLOOKUP($AO74,Data!$U$1:$AC$714,AR$50,FALSE)) -> 0.1604458751 | AS74: =VLOOKUP($AO$81,Data!$U$1:$AC$714,$AR$50,FALSE) -> 0.1628836974
AN75: 202209 | AO75: =CONCATENATE(VLOOKUP($AN$21*1,Data!$W$1:$AB$688,AO$50,FALSE),AP75) -> Tier 1 Capital Ratio25 | AP75: 25 | AQ75: =VLOOKUP($AO75,Data!$U$1:$AC$714,AQ$50,FALSE)&IF(AR75="","*","") -> PL | AR75: =IF(ISBLANK(VLOOKUP($AO75,Data!$U$1:$AC$714,AR$50,FALSE)),"",VLOOKUP($AO75,Data!$U$1:$AC$714,AR$50,FALSE)) -> 0.1602830595 | AS75: =VLOOKUP($AO$81,Data!$U$1:$AC$714,$AR$50,FALSE) -> 0.1628836974
AN76: 202209 | AO76: =CONCATENATE(VLOOKUP($AN$21*1,Data!$W$1:$AB$688,AO$50,FALSE),AP76) -> Tier 1 Capital Ratio26 | AP76: 26 | AQ76: =VLOOKUP($AO76,Data!$U$1:$AC$714,AQ$50,FALSE)&IF(AR76="","*","") -> FR | AR76: =IF(ISBLANK(VLOOKUP($AO76,Data!$U$1:$AC$714,AR$50,FALSE)),"",VLOOKUP($AO76,Data!$U$1:$AC$714,AR$50,FALSE)) -> 0.1602167993 | AS76: =VLOOKUP($AO$81,Data!$U$1:$AC$714,$AR$50,FALSE) -> 0.1628836974
AN77: 202209 | AO77: =CONCATENATE(VLOOKUP($AN$21*1,Data!$W$1:$AB$688,AO$50,FALSE),AP77) -> Tier 1 Capital Ratio27 | AP77: 27 | AQ77: =VLOOKUP($AO77,Data!$U$1:$AC$714,AQ$50,FALSE)&IF(AR77="","*","") -> SI | AR77: =IF(ISBLANK(VLOOKUP($AO77,Data!$U$1:$AC$714,AR$50,FALSE)),"",VLOOKUP($AO77,Data!$U$1:$AC$714,AR$50,FALSE)) -> 0.1490753191 | AS77: =VLOOKUP($AO$81,Data!$U$1:$AC$714,$AR$50,FALSE) -> 0.1628836974
AN78: 202209 | AO78: =CONCATENATE(VLOOKUP($AN$21*1,Data!$W$1:$AB$688,AO$50,FALSE),AP78) -> Tier 1 Capital Ratio28 | AP78: 28 | AQ78: =VLOOKUP($AO78,Data!$U$1:$AC$714,AQ$50,FALSE)&IF(AR78="","*","") -> PT | AR78: =IF(ISBLANK(VLOOKUP($AO78,Data!$U$1:$AC$714,AR$50,FALSE)),"",VLOOKUP($AO78,Data!$U$1:$AC$714,AR$50,FALSE)) -> 0.1485253496 | AS78: =VLOOKUP($AO$81,Data!$U$1:$AC$714,$AR$50,FALSE) -> 0.1628836974
AN79: 202209 | AO79: =CONCATENATE(VLOOKUP($AN$21*1,Data!$W$1:$AB$688,AO$50,FALSE),AP79) -> Tier 1 Capital Ratio29 | AP79: 29 | AQ79: =VLOOKUP($AO79,Data!$U$1:$AC$714,AQ$50,FALSE)&IF(AR79="","*","") -> GR | AR79: =IF(ISBLANK(VLOOKUP($AO79,Data!$U$1:$AC$714,AR$50,FALSE)),"",VLOOKUP($AO79,Data!$U$1:$AC$714,AR$50,FALSE)) -> 0.1416300882 | AS79: =VLOOKUP($AO$81,Data!$U$1:$AC$714,$AR$50,FALSE) -> 0.1628836974
AN80: 202209 | AO80: =CONCATENATE(VLOOKUP($AN$21*1,Data!$W$1:$AB$688,AO$50,FALSE),AP80) -> Tier 1 Capital Ratio30 | AP80: 30 | AQ80: =VLOOKUP($AO80,Data!$U$1:$AC$714,AQ$50,FALSE)&IF(AR80="","*","") -> ES | AR80: =IF(ISBLANK(VLOOKUP($AO80,Data!$U$1:$AC$714,AR$50,FALSE)),"",VLOOKUP($AO80,Data!$U$1:$AC$714,AR$50,FALSE)) -> 0.1403064487 | AS80: =VLOOKUP($AO$81,Data!$U$1:$AC$714,$AR$50,FALSE) -> 0.1628836974
AN81: =MAX($AL$25:$AL$46) -> 202209 | AO81: =CONCATENATE(VLOOKUP($AN$21*1,Data!$W$1:$AB$688,AO$50,FALSE),AP81) -> Tier 1 Capital Ratio99 | AP81: 99 | AQ81: =VLOOKUP($AO81,Data!$U$1:$AC$714,AQ$50,FALSE)&IF(AR81="","*","") -> EU | AR81: =IF(ISBLANK(VLOOKUP($AO81,Data!$U$1:$AC$714,AR$50,FALSE)),"",VLOOKUP($AO81,Data!$U$1:$AC$714,AR$50,FALSE)) -> 0.1628836974 | AS81: =VLOOKUP($AO$81,Data!$U$1:$AC$714,$AR$50,FALSE) -> 0.1628836974

Sheet Assets
D1: =("'"&MID(CELL("filename",$A$1),FIND("]",CELL("filename",$A$1))+1,32)&"'") -> 'Assets' | E1: T01_1 | F1: T01_1 | G1: T01_1 | H1: T01_2 | I1: T01_2 | J1: T01_2 | K1: T01_3 | L1: T01_3 | M1: T01_3 | N1: T01_4 | O1: T01_4 | P1: T01_4 | Q1: T01_5 | R1: T01_5 | S1: T01_5 | T1: T01_6 | U1: T01_6 | V1: T01_6
A2: ='Reference Dates'!$C$8 -> 202209 | E2: =TEXT(E12,"YYYYMM")+0 -> 202109 | F2: 202206 | G2: 202209 | H2: 202109 | I2: 202206 | J2: 202209 | K2: 202109 | L2: 202206 | M2: 202209 | N2: 202109 | O2: 202206 | P2: 202209 | Q2: 202109 | R2: 202206 | S2: 202209 | T2: 202109 | U2: 202206 | V2: 202209
A3: =DATE(LEFT(A2,4),RIGHT(A2,2),1) -> 2022-09-01
D4: Statistical Annex
D5: Asset composition and volumes
B8: CH_1 | D8: Asset composition
D10: % of total assets
E11: Cash balances | H11: Equity instruments | K11: Debt securities | N11: Loans and advances | Q11: Derivatives | T11: Other Assets
E12: =EOMONTH($A$3,-12) -> 2021-09-30 | F12: =EOMONTH($A$3,-3) -> 2022-06-30 | G12: =$A$3 -> 2022-09-01 | H12: =EOMONTH($A$3,-12) -> 2021-09-30 | I12: =EOMONTH($A$3,-3) -> 2022-06-30 | J12: =$A$3 -> 2022-09-01 | K12: =EOMONTH($A$3,-12) -> 2021-09-30 | L12: =EOMONTH($A$3,-3) -> 2022-06-30 | M12: =$A$3 -> 2022-09-01 | N12: =EOMONTH($A$3,-12) -> 2021-09-30 | O12: =EOMONTH($A$3,-3) -> 2022-06-30 | P12: =$A$3 -> 2022-09-01 | Q12: =EOMONTH($A$3,-12) -> 2021-09-30 | R12: =EOMONTH($A$3,-3) -> 2022-06-30 | S12: =$A$3 -> 2022-09-01 | T12: =EOMONTH($A$3,-12) -> 2021-09-30 | U12: =EOMONTH($A$3,-3) -> 2022-06-30 | V12: =$A$3 -> 2022-09-01
B13: AT | D13: =IF(OR(E13="n.a.",F13="n.a.",G13="n.a.",H13="n.a.",I13="n.a.",J13="n.a.",K13="n.a.",L13="n.a.",M13="n.a.",N13="n.a.",O13="n.a.",P13="n.a.",Q13="n.a.",R13="n.a.",S13="n.a.",T13="n.a.",U13="n.a.",V13="n.a."),$B13&"*",$B13) -> AT | E13: =IFERROR(INDEX('Data Annex'!$K$1:$AV$6265,MATCH(Assets!E$1&"|"&Assets!$B13,'Data Annex'!$K$1:$K$6265,0),MATCH(Assets!E$2,'Data Annex'!$K$1:$AV$1,0)),"") -> 0.196141202 | F13: =IFERROR(INDEX('Data Annex'!$K$1:$AV$6265,MATCH(Assets!F$1&"|"&Assets!$B13,'Data Annex'!$K$1:$K$6265,0),MATCH(Assets!F$2,'Data Annex'!$K$1:$AV$1,0)),"") -> 0.1841413416 | G13: =IFERROR(INDEX('Data Annex'!$K$1:$AV$6265,MATCH(Assets!G$1&"|"&Assets!$B13,'Data Annex'!$K$1:$K$6265,0),MATCH(Assets!G$2,'Data Annex'!$K$1:$AV$1,0)),"") -> 0.1841557121 | H13: =IFERROR(INDEX('Data Annex'!$K$1:$AV$6265,MATCH(Assets!H$1&"|"&Assets!$B13,'Data Annex'!$K$1:$K$6265,0),MATCH(Assets!H$2,'Data Annex'!$K$1:$AV$1,0)),"") -> 0.004943932384 | I13: =IFERROR(INDEX('Data Annex'!$K$1:$AV$6265,MATCH(Assets!I$1&"|"&Assets!$B13,'Data Annex'!$K$1:$K$6265,0),MATCH(Assets!I$2,'Data Annex'!$K$1:$AV$1,0)),"") -> 0.005743562287 | J13: =IFERROR(INDEX('Data Annex'!$K$1:$AV$6265,MATCH(Assets!J$1&"|"&Assets!$B13,'Data Annex'!$K$1:$K$6265,0),MATCH(Assets!J$2,'Data Annex'!$K$1:$AV$1,0)),"") -> 0.005593816692 | K13: =IFERROR(INDEX('Data Annex'!$K$1:$AV$6265,MATCH(Assets!K$1&"|"&Assets!$B13,'Data Annex'!$K$1:$K$6265,0),MATCH(Assets!K$2,'Data Annex'!$K$1:$AV$1,0)),"") -> 0.1289731306 | L13: =IFERROR(INDEX('Data Annex'!$K$1:$AV$6265,MATCH(Assets!L$1&"|"&Assets!$B13,'Data Annex'!$K$1:$K$6265,0),MATCH(Assets!L$2,'Data Annex'!$K$1:$AV$1,0)),"") -> 0.1320369402 | M13: =IFERROR(INDEX('Data Annex'!$K$1:$AV$6265,MATCH(Assets!M$1&"|"&Assets!$B13,'Data Annex'!$K$1:$K$6265,0),MATCH(Assets!M$2,'Data Annex'!$K$1:$AV$1,0)),"") -> 0.1300446796 | N13: =IFERROR(INDEX('Data Annex'!$K$1:$AV$6265,MATCH(Assets!N$1&"|"&Assets!$B13,'Data Annex'!$K$1:$K$6265,0),MATCH(Assets!N$2,'Data Annex'!$K$1:$AV$1,0)),"") -> 0.628567038 | O13: =IFERROR(INDEX('Data Annex'!$K$1:$AV$6265,MATCH(Assets!O$1&"|"&Assets!$B13,'Data Annex'!$K$1:$K$6265,0),MATCH(Assets!O$2,'Data Annex'!$K$1:$AV$1,0)),"") -> 0.6337647297 | P13: =IFERROR(INDEX('Data Annex'!$K$1:$AV$6265,MATCH(Assets!P$1&"|"&Assets!$B13,'Data Annex'!$K$1:$K$6265,0),MATCH(Assets!P$2,'Data Annex'!$K$1:$AV$1,0)),"") -> 0.6330962351 | Q13: =IFERROR(INDEX('Data Annex'!$K$1:$AV$6265,MATCH(Assets!Q$1&"|"&Assets!$B13,'Data Annex'!$K$1:$K$6265,0),MATCH(Assets!Q$2,'Data Annex'!$K$1:$AV$1,0)),"") -> 0.0126053095 | R13: =IFERROR(INDEX('Data Annex'!$K$1:$AV$6265,MATCH(Assets!R$1&"|"&Assets!$B13,'Data Annex'!$K$1:$K$6265,0),MATCH(Assets!R$2,'Data Annex'!$K$1:$AV$1,0)),"") -> 0.01878155436 | S13: =IFERROR(INDEX('Data Annex'!$K$1:$AV$6265,MATCH(Assets!S$1&"|"&Assets!$B13,'Data Annex'!$K$1:$K$6265,0),MATCH(Assets!S$2,'Data Annex'!$K$1:$AV$1,0)),"") -> 0.02507324306 | T13: =IFERROR(INDEX('Data Annex'!$K$1:$AV$6265,MATCH(Assets!T$1&"|"&Assets!$B13,'Data Annex'!$K$1:$K$6265,0),MATCH(Assets!T$2,'Data Annex'!$K$1:$AV$1,0)),"") -> 0.02876938751 | U13: =IFERROR(INDEX('Data Annex'!$K$1:$AV$6265,MATCH(Assets!U$1&"|"&Assets!$B13,'Data Annex'!$K$1:$K$6265,0),MATCH(Assets!U$2,'Data Annex'!$K$1:$AV$1,0)),"") -> 0.02553187181 | V13: =IFERROR(INDEX('Data Annex'!$K$1:$AV$6265,MATCH(Assets!V$1&"|"&Assets!$B13,'Data Annex'!$K$1:$K$6265,0),MATCH(Assets!V$2,'Data Annex'!$K$1:$AV$1,0)),"") -> 0.02203631347 | W13: =IFERROR(INDEX('Data Annex'!$K$1:$AH$6001,MATCH(Assets!AC$1&"|"&Assets!$B13,'Data Annex'!$K$1:$K$6001,0),MATCH(Assets!AC$2,'Data Annex'!$K$1:$AH$1,0)),"") -> 
B14: BE | D14: =IF(OR(E14="n.a.",F14="n.a.",G14="n.a.",H14="n.a.",I14="n.a.",J14="n.a.",K14="n.a.",L14="n.a.",M14="n.a.",N14="n.a.",O14="n.a.",P14="n.a.",Q14="n.a.",R14="n.a.",S14="n.a.",T14="n.a.",U14="n.a.",V14="n.a."),$B14&"*",$B14) -> BE | E14: =IFERROR(INDEX('Data Annex'!$K$1:$AV$6265,MATCH(Assets!E$1&"|"&Assets!$B14,'Data Annex'!$K$1:$K$6265,0),MATCH(Assets!E$2,'Data Annex'!$K$1:$AV$1,0)),"") -> 0.2033236334 | F14: =IFERROR(INDEX('Data Annex'!$K$1:$AV$6265,MATCH(Assets!F$1&"|"&Assets!$B14,'Data Annex'!$K$1:$K$6265,0),MATCH(Assets!F$2,'Data Annex'!$K$1:$AV$1,0)),"") -> 0.1954166267 | G14: =IFERROR(INDEX('Data Annex'!$K$1:$AV$6265,MATCH(Assets!G$1&"|"&Assets!$B14,'Data Annex'!$K$1:$K$6265,0),MATCH(Assets!G$2,'Data Annex'!$K$1:$AV$1,0)),"") -> 0.1767880277 | H14: =IFERROR(INDEX('Data Annex'!$K$1:$AV$6265,MATCH(Assets!H$1&"|"&Assets!$B14,'Data Annex'!$K$1:$K$6265,0),MATCH(Assets!H$2,'Data Annex'!$K$1:$AV$1,0)),"") -> 0.00216844245 | I14: =IFERROR(INDEX('Data Annex'!$K$1:$AV$6265,MATCH(Assets!I$1&"|"&Assets!$B14,'Data Annex'!$K$1:$K$6265,0),MATCH(Assets!I$2,'Data Annex'!$K$1:$AV$1,0)),"") -> 0.001881087468 | J14: =IFERROR(INDEX('Data Annex'!$K$1:$AV$6265,MATCH(Assets!J$1&"|"&Assets!$B14,'Data Annex'!$K$1:$K$6265,0),MATCH(Assets!J$2,'Data Annex'!$K$1:$AV$1,0)),"") -> 0.001779687952 | K14: =IFERROR(INDEX('Data Annex'!$K$1:$AV$6265,MATCH(Assets!K$1&"|"&Assets!$B14,'Data Annex'!$K$1:$K$6265,0),MATCH(Assets!K$2,'Data Annex'!$K$1:$AV$1,0)),"") -> 0.1268820297 | L14: =IFERROR(INDEX('Data Annex'!$K$1:$AV$6265,MATCH(Assets!L$1&"|"&Assets!$B14,'Data Annex'!$K$1:$K$6265,0),MATCH(Assets!L$2,'Data Annex'!$K$1:$AV$1,0)),"") -> 0.1184859896 | M14: =IFERROR(INDEX('Data Annex'!$K$1:$AV$6265,MATCH(Assets!M$1&"|"&Assets!$B14,'Data Annex'!$K$1:$K$6265,0),MATCH(Assets!M$2,'Data Annex'!$K$1:$AV$1,0)),"") -> 0.1143556895 | N14: =IFERROR(INDEX('Data Annex'!$K$1:$AV$6265,MATCH(Assets!N$1&"|"&Assets!$B14,'Data Annex'!$K$1:$K$6265,0),MATCH(Assets!N$2,'Data Annex'!$K$1:$AV$1,0)),"") -> 0.5921305589 | O14: =IFERROR(INDEX('Data Annex'!$K$1:$AV$6265,MATCH(Assets!O$1&"|"&Assets!$B14,'Data Annex'!$K$1:$K$6265,0),MATCH(Assets!O$2,'Data Annex'!$K$1:$AV$1,0)),"") -> 0.6169218424 | P14: =IFERROR(INDEX('Data Annex'!$K$1:$AV$6265,MATCH(Assets!P$1&"|"&Assets!$B14,'Data Annex'!$K$1:$K$6265,0),MATCH(Assets!P$2,'Data Annex'!$K$1:$AV$1,0)),"") -> 0.6282230066 | Q14: =IFERROR(INDEX('Data Annex'!$K$1:$AV$6265,MATCH(Assets!Q$1&"|"&Assets!$B14,'Data Annex'!$K$1:$K$6265,0),MATCH(Assets!Q$2,'Data Annex'!$K$1:$AV$1,0)),"") -> 0.03214597113 | R14: =IFERROR(INDEX('Data Annex'!$K$1:$AV$6265,MATCH(Assets!R$1&"|"&Assets!$B14,'Data Annex'!$K$1:$K$6265,0),MATCH(Assets!R$2,'Data Annex'!$K$1:$AV$1,0)),"") -> 0.03677841868 | S14: =IFERROR(INDEX('Data Annex'!$K$1:$AV$6265,MATCH(Assets!S$1&"|"&Assets!$B14,'Data Annex'!$K$1:$K$6265,0),MATCH(Assets!S$2,'Data Annex'!$K$1:$AV$1,0)),"") -> 0.0491244215 | T14: =IFERROR(INDEX('Data Annex'!$K$1:$AV$6265,MATCH(Assets!T$1&"|"&Assets!$B14,'Data Annex'!$K$1:$K$6265,0),MATCH(Assets!T$2,'Data Annex'!$K$1:$AV$1,0)),"") -> 0.04334936453 | U14: =IFERROR(INDEX('Data Annex'!$K$1:$AV$6265,MATCH(Assets!U$1&"|"&Assets!$B14,'Data Annex'!$K$1:$K$6265,0),MATCH(Assets!U$2,'Data Annex'!$K$1:$AV$1,0)),"") -> 0.03051603521 | V14: =IFERROR(INDEX('Data Annex'!$K$1:$AV$6265,MATCH(Assets!V$1&"|"&Assets!$B14,'Data Annex'!$K$1:$K$6265,0),MATCH(Assets!V$2,'Data Annex'!$K$1:$AV$1,0)),"") -> 0.02972916682 | W14: =IFERROR(INDEX('Data Annex'!$K$1:$AH$6001,MATCH(Assets!AC$1&"|"&Assets!$B14,'Data Annex'!$K$1:$K$6001,0),MATCH(Assets!AC$2,'Data Annex'!$K$1:$AH$1,0)),"") -> 
B15: BG | D15: BG | E15: =IFERROR(INDEX('Data Annex'!$K$1:$AV$6265,MATCH(Assets!E$1&"|"&Assets!$B15,'Data Annex'!$K$1:$K$6265,0),MATCH(Assets!E$2,'Data Annex'!$K$1:$AV$1,0)),"") -> 0.1659085855 | F15: =IFERROR(INDEX('Data Annex'!$K$1:$AV$6265,MATCH(Assets!F$1&"|"&Assets!$B15,'Data Annex'!$K$1:$K$6265,0),MATCH(Assets!F$2,'Data Annex'!$K$1:$AV$1,0)),"") -> 0.1791140041 | G15: =IFERROR(INDEX('Data Annex'!$K$1:$AV$6265,MATCH(Assets!G$1&"|"&Assets!$B15,'Data Annex'!$K$1:$K$6265,0),MATCH(Assets!G$2,'Data Annex'!$K$1:$AV$1,0)),"") -> 0.1825176814 | H15: =IFERROR(INDEX('Data Annex'!$K$1:$AV$6265,MATCH(Assets!H$1&"|"&Assets!$B15,'Data Annex'!$K$1:$K$6265,0),MATCH(Assets!H$2,'Data Annex'!$K$1:$AV$1,0)),"") -> 0.001373645277 | I15: =IFERROR(INDEX('Data Annex'!$K$1:$AV$6265,MATCH(Assets!I$1&"|"&Assets!$B15,'Data Annex'!$K$1:$K$6265,0),MATCH(Assets!I$2,'Data Annex'!$K$1:$AV$1,0)),"") -> 0.001074065076 | J15: =IFERROR(INDEX('Data Annex'!$K$1:$AV$6265,MATCH(Assets!J$1&"|"&Assets!$B15,'Data Annex'!$K$1:$K$6265,0),MATCH(Assets!J$2,'Data Annex'!$K$1:$AV$1,0)),"") -> 0.001011106572 | K15: =IFERROR(INDEX('Data Annex'!$K$1:$AV$6265,MATCH(Assets!K$1&"|"&Assets!$B15,'Data Annex'!$K$1:$K$6265,0),MATCH(Assets!K$2,'Data Annex'!$K$1:$AV$1,0)),"") -> 0.1583429673 | L15: =IFERROR(INDEX('Data Annex'!$K$1:$AV$6265,MATCH(Assets!L$1&"|"&Assets!$B15,'Data Annex'!$K$1:$K$6265,0),MATCH(Assets!L$2,'Data Annex'!$K$1:$AV$1,0)),"") -> 0.1548998921 | M15: =IFERROR(INDEX('Data Annex'!$K$1:$AV$6265,MATCH(Assets!M$1&"|"&Assets!$B15,'Data Annex'!$K$1:$K$6265,0),MATCH(Assets!M$2,'Data Annex'!$K$1:$AV$1,0)),"") -> 0.1542652964 | N15: =IFERROR(INDEX('Data Annex'!$K$1:$AV$6265,MATCH(Assets!N$1&"|"&Assets!$B15,'Data Annex'!$K$1:$K$6265,0),MATCH(Assets!N$2,'Data Annex'!$K$1:$AV$1,0)),"") -> 0.6314941173 | O15: =IFERROR(INDEX('Data Annex'!$K$1:$AV$6265,MATCH(Assets!O$1&"|"&Assets!$B15,'Data Annex'!$K$1:$K$6265,0),MATCH(Assets!O$2,'Data Annex'!$K$1:$AV$1,0)),"") -> 0.6353639939 | P15: =IFERROR(INDEX('Data Annex'!$K$1:$AV$6265,MATCH(Assets!P$1&"|"&Assets!$B15,'Data Annex'!$K$1:$K$6265,0),MATCH(Assets!P$2,'Data Annex'!$K$1:$AV$1,0)),"") -> 0.6306974323 | Q15: =IFERROR(INDEX('Data Annex'!$K$1:$AV$6265,MATCH(Assets!Q$1&"|"&Assets!$B15,'Data Annex'!$K$1:$K$6265,0),MATCH(Assets!Q$2,'Data Annex'!$K$1:$AV$1,0)),"") -> 0.001922170077 | R15: =IFERROR(INDEX('Data Annex'!$K$1:$AV$6265,MATCH(Assets!R$1&"|"&Assets!$B15,'Data Annex'!$K$1:$K$6265,0),MATCH(Assets!R$2,'Data Annex'!$K$1:$AV$1,0)),"") -> 0.005025011705 | S15: =IFERROR(INDEX('Data Annex'!$K$1:$AV$6265,MATCH(Assets!S$1&"|"&Assets!$B15,'Data Annex'!$K$1:$K$6265,0),MATCH(Assets!S$2,'Data Annex'!$K$1:$AV$1,0)),"") -> 0.007421913358 | T15: =IFERROR(INDEX('Data Annex'!$K$1:$AV$6265,MATCH(Assets!T$1&"|"&Assets!$B15,'Data Annex'!$K$1:$K$6265,0),MATCH(Assets!T$2,'Data Annex'!$K$1:$AV$1,0)),"") -> 0.0409585146 | U15: =IFERROR(INDEX('Data Annex'!$K$1:$AV$6265,MATCH(Assets!U$1&"|"&Assets!$B15,'Data Annex'!$K$1:$K$6265,0),MATCH(Assets!U$2,'Data Annex'!$K$1:$AV$1,0)),"") -> 0.02452303321 | V15: =IFERROR(INDEX('Data Annex'!$K$1:$AV$6265,MATCH(Assets!V$1&"|"&Assets!$B15,'Data Annex'!$K$1:$K$6265,0),MATCH(Assets!V$2,'Data Annex'!$K$1:$AV$1,0)),"") -> 0.02408657002 | W15: =IFERROR(INDEX('Data Annex'!$K$1:$AH$6001,MATCH(Assets!AC$1&"|"&Assets!$B15,'Data Annex'!$K$1:$K$6001,0),MATCH(Assets!AC$2,'Data Annex'!$K$1:$AH$1,0)),"") -> 
B16: CY | D16: CY | E16: =IFERROR(INDEX('Data Annex'!$K$1:$AV$6265,MATCH(Assets!E$1&"|"&Assets!$B16,'Data Annex'!$K$1:$K$6265,0),MATCH(Assets!E$2,'Data Annex'!$K$1:$AV$1,0)),"") -> 0.3685858214 | F16: =IFERROR(INDEX('Data Annex'!$K$1:$AV$6265,MATCH(Assets!F$1&"|"&Assets!$B16,'Data Annex'!$K$1:$K$6265,0),MATCH(Assets!F$2,'Data Annex'!$K$1:$AV$1,0)),"") -> 0.3961302533 | G16: =IFERROR(INDEX('Data Annex'!$K$1:$AV$6265,MATCH(Assets!G$1&"|"&Assets!$B16,'Data Annex'!$K$1:$K$6265,0),MATCH(Assets!G$2,'Data Annex'!$K$1:$AV$1,0)),"") -> 0.3969220735 | H16: =IFERROR(INDEX('Data Annex'!$K$1:$AV$6265,MATCH(Assets!H$1&"|"&Assets!$B16,'Data Annex'!$K$1:$K$6265,0),MATCH(Assets!H$2,'Data Annex'!$K$1:$AV$1,0)),"") -> 0.001128148775 | I16: =IFERROR(INDEX('Data Annex'!$K$1:$AV$6265,MATCH(Assets!I$1&"|"&Assets!$B16,'Data Annex'!$K$1:$K$6265,0),MATCH(Assets!I$2,'Data Annex'!$K$1:$AV$1,0)),"") -> 0.001228251139 | J16: =IFERROR(INDEX('Data Annex'!$K$1:$AV$6265,MATCH(Assets!J$1&"|"&Assets!$B16,'Data Annex'!$K$1:$K$6265,0),MATCH(Assets!J$2,'Data Annex'!$K$1:$AV$1,0)),"") -> 0.001212460466 | K16: =IFERROR(INDEX('Data Annex'!$K$1:$AV$6265,MATCH(Assets!K$1&"|"&Assets!$B16,'Data Annex'!$K$1:$K$6265,0),MATCH(Assets!K$2,'Data Annex'!$K$1:$AV$1,0)),"") -> 0.1630599812 | L16: =IFERROR(INDEX('Data Annex'!$K$1:$AV$6265,MATCH(Assets!L$1&"|"&Assets!$B16,'Data Annex'!$K$1:$K$6265,0),MATCH(Assets!L$2,'Data Annex'!$K$1:$AV$1,0)),"") -> 0.1506348698 | M16: =IFERROR(INDEX('Data Annex'!$K$1:$AV$6265,MATCH(Assets!M$1&"|"&Assets!$B16,'Data Annex'!$K$1:$K$6265,0),MATCH(Assets!M$2,'Data Annex'!$K$1:$AV$1,0)),"") -> 0.1557146776 | N16: =IFERROR(INDEX('Data Annex'!$K$1:$AV$6265,MATCH(Assets!N$1&"|"&Assets!$B16,'Data Annex'!$K$1:$K$6265,0),MATCH(Assets!N$2,'Data Annex'!$K$1:$AV$1,0)),"") -> 0.3877030089 | O16: =IFERROR(INDEX('Data Annex'!$K$1:$AV$6265,MATCH(Assets!O$1&"|"&Assets!$B16,'Data Annex'!$K$1:$K$6265,0),MATCH(Assets!O$2,'Data Annex'!$K$1:$AV$1,0)),"") -> 0.376653269 | P16: =IFERROR(INDEX('Data Annex'!$K$1:$AV$6265,MATCH(Assets!P$1&"|"&Assets!$B16,'Data Annex'!$K$1:$K$6265,0),MATCH(Assets!P$2,'Data Annex'!$K$1:$AV$1,0)),"") -> 0.3723158735 | Q16: =IFERROR(INDEX('Data Annex'!$K$1:$AV$6265,MATCH(Assets!Q$1&"|"&Assets!$B16,'Data Annex'!$K$1:$K$6265,0),MATCH(Assets!Q$2,'Data Annex'!$K$1:$AV$1,0)),"") -> 0.0004482040142 | R16: =IFERROR(INDEX('Data Annex'!$K$1:$AV$6265,MATCH(Assets!R$1&"|"&Assets!$B16,'Data Annex'!$K$1:$K$6265,0),MATCH(Assets!R$2,'Data Annex'!$K$1:$AV$1,0)),"") -> 0.0009881432737 | S16: =IFERROR(INDEX('Data Annex'!$K$1:$AV$6265,MATCH(Assets!S$1&"|"&Assets!$B16,'Data Annex'!$K$1:$K$6265,0),MATCH(Assets!S$2,'Data Annex'!$K$1:$AV$1,0)),"") -> 0.001649873112 | T16: =IFERROR(INDEX('Data Annex'!$K$1:$AV$6265,MATCH(Assets!T$1&"|"&Assets!$B16,'Data Annex'!$K$1:$K$6265,0),MATCH(Assets!T$2,'Data Annex'!$K$1:$AV$1,0)),"") -> 0.07907483578 | U16: =IFERROR(INDEX('Data Annex'!$K$1:$AV$6265,MATCH(Assets!U$1&"|"&Assets!$B16,'Data Annex'!$K$1:$K$6265,0),MATCH(Assets!U$2,'Data Annex'!$K$1:$AV$1,0)),"") -> 0.07436521346 | V16: =IFERROR(INDEX('Data Annex'!$K$1:$AV$6265,MATCH(Assets!V$1&"|"&Assets!$B16,'Data Annex'!$K$1:$K$6265,0),MATCH(Assets!V$2,'Data Annex'!$K$1:$AV$1,0)),"") -> 0.0721850418 | W16: =IFERROR(INDEX('Data Annex'!$K$1:$AH$6001,MATCH(Assets!AC$1&"|"&Assets!$B16,'Data Annex'!$K$1:$K$6001,0),MATCH(Assets!AC$2,'Data Annex'!$K$1:$AH$1,0)),"") -> 
B17: CZ | D17: CZ | E17: =IFERROR(INDEX('Data Annex'!$K$1:$AV$6265,MATCH(Assets!E$1&"|"&Assets!$B17,'Data Annex'!$K$1:$K$6265,0),MATCH(Assets!E$2,'Data Annex'!$K$1:$AV$1,0)),"") -> 0.04207988008 | F17: =IFERROR(INDEX('Data Annex'!$K$1:$AV$6265,MATCH(Assets!F$1&"|"&Assets!$B17,'Data Annex'!$K$1:$K$6265,0),MATCH(Assets!F$2,'Data Annex'!$K$1:$AV$1,0)),"") -> 0.01999752234 | G17: =IFERROR(INDEX('Data Annex'!$K$1:$AV$6265,MATCH(Assets!G$1&"|"&Assets!$B17,'Data Annex'!$K$1:$K$6265,0),MATCH(Assets!G$2,'Data Annex'!$K$1:$AV$1,0)),"") -> 0.02555039336 | H17: =IFERROR(INDEX('Data Annex'!$K$1:$AV$6265,MATCH(Assets!H$1&"|"&Assets!$B17,'Data Annex'!$K$1:$K$6265,0),MATCH(Assets!H$2,'Data Annex'!$K$1:$AV$1,0)),"") -> 0.0003590828403 | I17: =IFERROR(INDEX('Data Annex'!$K$1:$AV$6265,MATCH(Assets!I$1&"|"&Assets!$B17,'Data Annex'!$K$1:$K$6265,0),MATCH(Assets!I$2,'Data Annex'!$K$1:$AV$1,0)),"") -> 0.0003467373657 | J17: =IFERROR(INDEX('Data Annex'!$K$1:$AV$6265,MATCH(Assets!J$1&"|"&Assets!$B17,'Data Annex'!$K$1:$K$6265,0),MATCH(Assets!J$2,'Data Annex'!$K$1:$AV$1,0)),"") -> 0.0005021914867 | K17: =IFERROR(INDEX('Data Annex'!$K$1:$AV$6265,MATCH(Assets!K$1&"|"&Assets!$B17,'Data Annex'!$K$1:$K$6265,0),MATCH(Assets!K$2,'Data Annex'!$K$1:$AV$1,0)),"") -> 0.1461164193 | L17: =IFERROR(INDEX('Data Annex'!$K$1:$AV$6265,MATCH(Assets!L$1&"|"&Assets!$B17,'Data Annex'!$K$1:$K$6265,0),MATCH(Assets!L$2,'Data Annex'!$K$1:$AV$1,0)),"") -> 0.1500134611 | M17: =IFERROR(INDEX('Data Annex'!$K$1:$AV$6265,MATCH(Assets!M$1&"|"&Assets!$B17,'Data Annex'!$K$1:$K$6265,0),MATCH(Assets!M$2,'Data Annex'!$K$1:$AV$1,0)),"") -> 0.1620718528 | N17: =IFERROR(INDEX('Data Annex'!$K$1:$AV$6265,MATCH(Assets!N$1&"|"&Assets!$B17,'Data Annex'!$K$1:$K$6265,0),MATCH(Assets!N$2,'Data Annex'!$K$1:$AV$1,0)),"") -> 0.7801344414 | O17: =IFERROR(INDEX('Data Annex'!$K$1:$AV$6265,MATCH(Assets!O$1&"|"&Assets!$B17,'Data Annex'!$K$1:$K$6265,0),MATCH(Assets!O$2,'Data Annex'!$K$1:$AV$1,0)),"") -> 0.7821557782 | P17: =IFERROR(INDEX('Data Annex'!$K$1:$AV$6265,MATCH(Assets!P$1&"|"&Assets!$B17,'Data Annex'!$K$1:$K$6265,0),MATCH(Assets!P$2,'Data Annex'!$K$1:$AV$1,0)),"") -> 0.758909148 | Q17: =IFERROR(INDEX('Data Annex'!$K$1:$AV$6265,MATCH(Assets!Q$1&"|"&Assets!$B17,'Data Annex'!$K$1:$K$6265,0),MATCH(Assets!Q$2,'Data Annex'!$K$1:$AV$1,0)),"") -> 0.01667204989 | R17: =IFERROR(INDEX('Data Annex'!$K$1:$AV$6265,MATCH(Assets!R$1&"|"&Assets!$B17,'Data Annex'!$K$1:$K$6265,0),MATCH(Assets!R$2,'Data Annex'!$K$1:$AV$1,0)),"") -> 0.0379070798 | S17: =IFERROR(INDEX('Data Annex'!$K$1:$AV$6265,MATCH(Assets!S$1&"|"&Assets!$B17,'Data Annex'!$K$1:$K$6265,0),MATCH(Assets!S$2,'Data Annex'!$K$1:$AV$1,0)),"") -> 0.04262979093 | T17: =IFERROR(INDEX('Data Annex'!$K$1:$AV$6265,MATCH(Assets!T$1&"|"&Assets!$B17,'Data Annex'!$K$1:$K$6265,0),MATCH(Assets!T$2,'Data Annex'!$K$1:$AV$1,0)),"") -> 0.01463812653 | U17: =IFERROR(INDEX('Data Annex'!$K$1:$AV$6265,MATCH(Assets!U$1&"|"&Assets!$B17,'Data Annex'!$K$1:$K$6265,0),MATCH(Assets!U$2,'Data Annex'!$K$1:$AV$1,0)),"") -> 0.0095794212 | V17: =IFERROR(INDEX('Data Annex'!$K$1:$AV$6265,MATCH(Assets!V$1&"|"&Assets!$B17,'Data Annex'!$K$1:$K$6265,0),MATCH(Assets!V$2,'Data Annex'!$K$1:$AV$1,0)),"") -> 0.01033662343 | W17: =IFERROR(INDEX('Data Annex'!$K$1:$AH$6001,MATCH(Assets!AC$1&"|"&Assets!$B17,'Data Annex'!$K$1:$K$6001,0),MATCH(Assets!AC$2,'Data Annex'!$K$1:$AH$1,0)),"") -> 
B18: DE | D18: DE | E18: =IFERROR(INDEX('Data Annex'!$K$1:$AV$6265,MATCH(Assets!E$1&"|"&Assets!$B18,'Data Annex'!$K$1:$K$6265,0),MATCH(Assets!E$2,'Data Annex'!$K$1:$AV$1,0)),"") -> 0.1864640069 | F18: =IFERROR(INDEX('Data Annex'!$K$1:$AV$6265,MATCH(Assets!F$1&"|"&Assets!$B18,'Data Annex'!$K$1:$K$6265,0),MATCH(Assets!F$2,'Data Annex'!$K$1:$AV$1,0)),"") -> 0.180068169 | G18: =IFERROR(INDEX('Data Annex'!$K$1:$AV$6265,MATCH(Assets!G$1&"|"&Assets!$B18,'Data Annex'!$K$1:$K$6265,0),MATCH(Assets!G$2,'Data Annex'!$K$1:$AV$1,0)),"") -> 0.1725917096 | H18: =IFERROR(INDEX('Data Annex'!$K$1:$AV$6265,MATCH(Assets!H$1&"|"&Assets!$B18,'Data Annex'!$K$1:$K$6265,0),MATCH(Assets!H$2,'Data Annex'!$K$1:$AV$1,0)),"") -> 0.008243784513 | I18: =IFERROR(INDEX('Data Annex'!$K$1:$AV$6265,MATCH(Assets!I$1&"|"&Assets!$B18,'Data Annex'!$K$1:$K$6265,0),MATCH(Assets!I$2,'Data Annex'!$K$1:$AV$1,0)),"") -> 0.004515827762 | J18: =IFERROR(INDEX('Data Annex'!$K$1:$AV$6265,MATCH(Assets!J$1&"|"&Assets!$B18,'Data Annex'!$K$1:$K$6265,0),MATCH(Assets!J$2,'Data Annex'!$K$1:$AV$1,0)),"") -> 0.004066056448 | K18: =IFERROR(INDEX('Data Annex'!$K$1:$AV$6265,MATCH(Assets!K$1&"|"&Assets!$B18,'Data Annex'!$K$1:$K$6265,0),MATCH(Assets!K$2,'Data Annex'!$K$1:$AV$1,0)),"") -> 0.1243862752 | L18: =IFERROR(INDEX('Data Annex'!$K$1:$AV$6265,MATCH(Assets!L$1&"|"&Assets!$B18,'Data Annex'!$K$1:$K$6265,0),MATCH(Assets!L$2,'Data Annex'!$K$1:$AV$1,0)),"") -> 0.1130125507 | M18: =IFERROR(INDEX('Data Annex'!$K$1:$AV$6265,MATCH(Assets!M$1&"|"&Assets!$B18,'Data Annex'!$K$1:$K$6265,0),MATCH(Assets!M$2,'Data Annex'!$K$1:$AV$1,0)),"") -> 0.1071300197 | N18: =IFERROR(INDEX('Data Annex'!$K$1:$AV$6265,MATCH(Assets!N$1&"|"&Assets!$B18,'Data Annex'!$K$1:$K$6265,0),MATCH(Assets!N$2,'Data Annex'!$K$1:$AV$1,0)),"") -> 0.5522682986 | O18: =IFERROR(INDEX('Data Annex'!$K$1:$AV$6265,MATCH(Assets!O$1&"|"&Assets!$B18,'Data Annex'!$K$1:$K$6265,0),MATCH(Assets!O$2,'Data Annex'!$K$1:$AV$1,0)),"") -> 0.5604244637 | P18: =IFERROR(INDEX('Data Annex'!$K$1:$AV$6265,MATCH(Assets!P$1&"|"&Assets!$B18,'Data Annex'!$K$1:$K$6265,0),MATCH(Assets!P$2,'Data Annex'!$K$1:$AV$1,0)),"") -> 0.5551971753 | Q18: =IFERROR(INDEX('Data Annex'!$K$1:$AV$6265,MATCH(Assets!Q$1&"|"&Assets!$B18,'Data Annex'!$K$1:$K$6265,0),MATCH(Assets!Q$2,'Data Annex'!$K$1:$AV$1,0)),"") -> 0.103336541 | R18: =IFERROR(INDEX('Data Annex'!$K$1:$AV$6265,MATCH(Assets!R$1&"|"&Assets!$B18,'Data Annex'!$K$1:$K$6265,0),MATCH(Assets!R$2,'Data Annex'!$K$1:$AV$1,0)),"") -> 0.1212390995 | S18: =IFERROR(INDEX('Data Annex'!$K$1:$AV$6265,MATCH(Assets!S$1&"|"&Assets!$B18,'Data Annex'!$K$1:$K$6265,0),MATCH(Assets!S$2,'Data Annex'!$K$1:$AV$1,0)),"") -> 0.1421217418 | T18: =IFERROR(INDEX('Data Annex'!$K$1:$AV$6265,MATCH(Assets!T$1&"|"&Assets!$B18,'Data Annex'!$K$1:$K$6265,0),MATCH(Assets!T$2,'Data Annex'!$K$1:$AV$1,0)),"") -> 0.02530109373 | U18: =IFERROR(INDEX('Data Annex'!$K$1:$AV$6265,MATCH(Assets!U$1&"|"&Assets!$B18,'Data Annex'!$K$1:$K$6265,0),MATCH(Assets!U$2,'Data Annex'!$K$1:$AV$1,0)),"") -> 0.02073988939 | V18: =IFERROR(INDEX('Data Annex'!$K$1:$AV$6265,MATCH(Assets!V$1&"|"&Assets!$B18,'Data Annex'!$K$1:$K$6265,0),MATCH(Assets!V$2,'Data Annex'!$K$1:$AV$1,0)),"") -> 0.01889329749 | W18: =IFERROR(INDEX('Data Annex'!$K$1:$AH$6001,MATCH(Assets!AC$1&"|"&Assets!$B18,'Data Annex'!$K$1:$K$6001,0),MATCH(Assets!AC$2,'Data Annex'!$K$1:$AH$1,0)),"") -> 
B19: DK | D19: DK | E19: =IFERROR(INDEX('Data Annex'!$K$1:$AV$6265,MATCH(Assets!E$1&"|"&Assets!$B19,'Data Annex'!$K$1:$K$6265,0),MATCH(Assets!E$2,'Data Annex'!$K$1:$AV$1,0)),"") -> 0.06531799097 | F19: =IFERROR(INDEX('Data Annex'!$K$1:$AV$6265,MATCH(Assets!F$1&"|"&Assets!$B19,'Data Annex'!$K$1:$K$6265,0),MATCH(Assets!F$2,'Data Annex'!$K$1:$AV$1,0)),"") -> 0.05567949753 | G19: =IFERROR(INDEX('Data Annex'!$K$1:$AV$6265,MATCH(Assets!G$1&"|"&Assets!$B19,'Data Annex'!$K$1:$K$6265,0),MATCH(Assets!G$2,'Data Annex'!$K$1:$AV$1,0)),"") -> 0.05696352925 | H19: =IFERROR(INDEX('Data Annex'!$K$1:$AV$6265,MATCH(Assets!H$1&"|"&Assets!$B19,'Data Annex'!$K$1:$K$6265,0),MATCH(Assets!H$2,'Data Annex'!$K$1:$AV$1,0)),"") -> 0.007843437441 | I19: =IFERROR(INDEX('Data Annex'!$K$1:$AV$6265,MATCH(Assets!I$1&"|"&Assets!$B19,'Data Annex'!$K$1:$K$6265,0),MATCH(Assets!I$2,'Data Annex'!$K$1:$AV$1,0)),"") -> 0.002946991172 | J19: =IFERROR(INDEX('Data Annex'!$K$1:$AV$6265,MATCH(Assets!J$1&"|"&Assets!$B19,'Data Annex'!$K$1:$K$6265,0),MATCH(Assets!J$2,'Data Annex'!$K$1:$AV$1,0)),"") -> 0.002898189909 | K19: =IFERROR(INDEX('Data Annex'!$K$1:$AV$6265,MATCH(Assets!K$1&"|"&Assets!$B19,'Data Annex'!$K$1:$K$6265,0),MATCH(Assets!K$2,'Data Annex'!$K$1:$AV$1,0)),"") -> 0.1388923189 | L19: =IFERROR(INDEX('Data Annex'!$K$1:$AV$6265,MATCH(Assets!L$1&"|"&Assets!$B19,'Data Annex'!$K$1:$K$6265,0),MATCH(Assets!L$2,'Data Annex'!$K$1:$AV$1,0)),"") -> 0.1230857804 | M19: =IFERROR(INDEX('Data Annex'!$K$1:$AV$6265,MATCH(Assets!M$1&"|"&Assets!$B19,'Data Annex'!$K$1:$K$6265,0),MATCH(Assets!M$2,'Data Annex'!$K$1:$AV$1,0)),"") -> 0.1207462452 | N19: =IFERROR(INDEX('Data Annex'!$K$1:$AV$6265,MATCH(Assets!N$1&"|"&Assets!$B19,'Data Annex'!$K$1:$K$6265,0),MATCH(Assets!N$2,'Data Annex'!$K$1:$AV$1,0)),"") -> 0.7058565876 | O19: =IFERROR(INDEX('Data Annex'!$K$1:$AV$6265,MATCH(Assets!O$1&"|"&Assets!$B19,'Data Annex'!$K$1:$K$6265,0),MATCH(Assets!O$2,'Data Annex'!$K$1:$AV$1,0)),"") -> 0.712690213 | P19: =IFERROR(INDEX('Data Annex'!$K$1:$AV$6265,MATCH(Assets!P$1&"|"&Assets!$B19,'Data Annex'!$K$1:$K$6265,0),MATCH(Assets!P$2,'Data Annex'!$K$1:$AV$1,0)),"") -> 0.6943502754 | Q19: =IFERROR(INDEX('Data Annex'!$K$1:$AV$6265,MATCH(Assets!Q$1&"|"&Assets!$B19,'Data Annex'!$K$1:$K$6265,0),MATCH(Assets!Q$2,'Data Annex'!$K$1:$AV$1,0)),"") -> 0.05699953175 | R19: =IFERROR(INDEX('Data Annex'!$K$1:$AV$6265,MATCH(Assets!R$1&"|"&Assets!$B19,'Data Annex'!$K$1:$K$6265,0),MATCH(Assets!R$2,'Data Annex'!$K$1:$AV$1,0)),"") -> 0.08222783817 | S19: =IFERROR(INDEX('Data Annex'!$K$1:$AV$6265,MATCH(Assets!S$1&"|"&Assets!$B19,'Data Annex'!$K$1:$K$6265,0),MATCH(Assets!S$2,'Data Annex'!$K$1:$AV$1,0)),"") -> 0.1030688951 | T19: =IFERROR(INDEX('Data Annex'!$K$1:$AV$6265,MATCH(Assets!T$1&"|"&Assets!$B19,'Data Annex'!$K$1:$K$6265,0),MATCH(Assets!T$2,'Data Annex'!$K$1:$AV$1,0)),"") -> 0.02509013329 | U19: =IFERROR(INDEX('Data Annex'!$K$1:$AV$6265,MATCH(Assets!U$1&"|"&Assets!$B19,'Data Annex'!$K$1:$K$6265,0),MATCH(Assets!U$2,'Data Annex'!$K$1:$AV$1,0)),"") -> 0.02336967977 | V19: =IFERROR(INDEX('Data Annex'!$K$1:$AV$6265,MATCH(Assets!V$1&"|"&Assets!$B19,'Data Annex'!$K$1:$K$6265,0),MATCH(Assets!V$2,'Data Annex'!$K$1:$AV$1,0)),"") -> 0.02197286519 | W19: =IFERROR(INDEX('Data Annex'!$K$1:$AH$6001,MATCH(Assets!AC$1&"|"&Assets!$B19,'Data Annex'!$K$1:$K$6001,0),MATCH(Assets!AC$2,'Data Annex'!$K$1:$AH$1,0)),"") -> 
B20: EE | D20: EE | E20: =IFERROR(INDEX('Data Annex'!$K$1:$AV$6265,MATCH(Assets!E$1&"|"&Assets!$B20,'Data Annex'!$K$1:$K$6265,0),MATCH(Assets!E$2,'Data Annex'!$K$1:$AV$1,0)),"") -> 0.2356055477 | F20: =IFERROR(INDEX('Data Annex'!$K$1:$AV$6265,MATCH(Assets!F$1&"|"&Assets!$B20,'Data Annex'!$K$1:$K$6265,0),MATCH(Assets!F$2,'Data Annex'!$K$1:$AV$1,0)),"") -> 0.2359426096 | G20: =IFERROR(INDEX('Data Annex'!$K$1:$AV$6265,MATCH(Assets!G$1&"|"&Assets!$B20,'Data Annex'!$K$1:$K$6265,0),MATCH(Assets!G$2,'Data Annex'!$K$1:$AV$1,0)),"") -> 0.2162193524 | H20: =IFERROR(INDEX('Data Annex'!$K$1:$AV$6265,MATCH(Assets!H$1&"|"&Assets!$B20,'Data Annex'!$K$1:$K$6265,0),MATCH(Assets!H$2,'Data Annex'!$K$1:$AV$1,0)),"") -> 0.0002738553919 | I20: =IFERROR(INDEX('Data Annex'!$K$1:$AV$6265,MATCH(Assets!I$1&"|"&Assets!$B20,'Data Annex'!$K$1:$K$6265,0),MATCH(Assets!I$2,'Data Annex'!$K$1:$AV$1,0)),"") -> 0.0002198974772 | J20: =IFERROR(INDEX('Data Annex'!$K$1:$AV$6265,MATCH(Assets!J$1&"|"&Assets!$B20,'Data Annex'!$K$1:$K$6265,0),MATCH(Assets!J$2,'Data Annex'!$K$1:$AV$1,0)),"") -> 0.0002036127944 | K20: =IFERROR(INDEX('Data Annex'!$K$1:$AV$6265,MATCH(Assets!K$1&"|"&Assets!$B20,'Data Annex'!$K$1:$K$6265,0),MATCH(Assets!K$2,'Data Annex'!$K$1:$AV$1,0)),"") -> 0.07844534813 | L20: =IFERROR(INDEX('Data Annex'!$K$1:$AV$6265,MATCH(Assets!L$1&"|"&Assets!$B20,'Data Annex'!$K$1:$K$6265,0),MATCH(Assets!L$2,'Data Annex'!$K$1:$AV$1,0)),"") -> 0.08310981549 | M20: =IFERROR(INDEX('Data Annex'!$K$1:$AV$6265,MATCH(Assets!M$1&"|"&Assets!$B20,'Data Annex'!$K$1:$K$6265,0),MATCH(Assets!M$2,'Data Annex'!$K$1:$AV$1,0)),"") -> 0.0840249865 | N20: =IFERROR(INDEX('Data Annex'!$K$1:$AV$6265,MATCH(Assets!N$1&"|"&Assets!$B20,'Data Annex'!$K$1:$K$6265,0),MATCH(Assets!N$2,'Data Annex'!$K$1:$AV$1,0)),"") -> 0.6748880078 | O20: =IFERROR(INDEX('Data Annex'!$K$1:$AV$6265,MATCH(Assets!O$1&"|"&Assets!$B20,'Data Annex'!$K$1:$K$6265,0),MATCH(Assets!O$2,'Data Annex'!$K$1:$AV$1,0)),"") -> 0.66825423 | P20: =IFERROR(INDEX('Data Annex'!$K$1:$AV$6265,MATCH(Assets!P$1&"|"&Assets!$B20,'Data Annex'!$K$1:$K$6265,0),MATCH(Assets!P$2,'Data Annex'!$K$1:$AV$1,0)),"") -> 0.684544855 | Q20: =IFERROR(INDEX('Data Annex'!$K$1:$AV$6265,MATCH(Assets!Q$1&"|"&Assets!$B20,'Data Annex'!$K$1:$K$6265,0),MATCH(Assets!Q$2,'Data Annex'!$K$1:$AV$1,0)),"") -> 0.002766009441 | R20: =IFERROR(INDEX('Data Annex'!$K$1:$AV$6265,MATCH(Assets!R$1&"|"&Assets!$B20,'Data Annex'!$K$1:$K$6265,0),MATCH(Assets!R$2,'Data Annex'!$K$1:$AV$1,0)),"") -> 0.004442944684 | S20: =IFERROR(INDEX('Data Annex'!$K$1:$AV$6265,MATCH(Assets!S$1&"|"&Assets!$B20,'Data Annex'!$K$1:$K$6265,0),MATCH(Assets!S$2,'Data Annex'!$K$1:$AV$1,0)),"") -> 0.005104181645 | T20: =IFERROR(INDEX('Data Annex'!$K$1:$AV$6265,MATCH(Assets!T$1&"|"&Assets!$B20,'Data Annex'!$K$1:$K$6265,0),MATCH(Assets!T$2,'Data Annex'!$K$1:$AV$1,0)),"") -> 0.008021231505 | U20: =IFERROR(INDEX('Data Annex'!$K$1:$AV$6265,MATCH(Assets!U$1&"|"&Assets!$B20,'Data Annex'!$K$1:$K$6265,0),MATCH(Assets!U$2,'Data Annex'!$K$1:$AV$1,0)),"") -> 0.008030502764 | V20: =IFERROR(INDEX('Data Annex'!$K$1:$AV$6265,MATCH(Assets!V$1&"|"&Assets!$B20,'Data Annex'!$K$1:$K$6265,0),MATCH(Assets!V$2,'Data Annex'!$K$1:$AV$1,0)),"") -> 0.009903011629 | W20: =IFERROR(INDEX('Data Annex'!$K$1:$AH$6001,MATCH(Assets!AC$1&"|"&Assets!$B20,'Data Annex'!$K$1:$K$6001,0),MATCH(Assets!AC$2,'Data Annex'!$K$1:$AH$1,0)),"") -> 
B21: ES | D21: ES | E21: =IFERROR(INDEX('Data Annex'!$K$1:$AV$6265,MATCH(Assets!E$1&"|"&Assets!$B21,'Data Annex'!$K$1:$K$6265,0),MATCH(Assets!E$2,'Data Annex'!$K$1:$AV$1,0)),"") -> 0.1364071406 | F21: =IFERROR(INDEX('Data Annex'!$K$1:$AV$6265,MATCH(Assets!F$1&"|"&Assets!$B21,'Data Annex'!$K$1:$K$6265,0),MATCH(Assets!F$2,'Data Annex'!$K$1:$AV$1,0)),"") -> 0.1404604561 | G21: =IFERROR(INDEX('Data Annex'!$K$1:$AV$6265,MATCH(Assets!G$1&"|"&Assets!$B21,'Data Annex'!$K$1:$K$6265,0),MATCH(Assets!G$2,'Data Annex'!$K$1:$AV$1,0)),"") -> 0.1383539723 | H21: =IFERROR(INDEX('Data Annex'!$K$1:$AV$6265,MATCH(Assets!H$1&"|"&Assets!$B21,'Data Annex'!$K$1:$K$6265,0),MATCH(Assets!H$2,'Data Annex'!$K$1:$AV$1,0)),"") -> 0.01163364955 | I21: =IFERROR(INDEX('Data Annex'!$K$1:$AV$6265,MATCH(Assets!I$1&"|"&Assets!$B21,'Data Annex'!$K$1:$K$6265,0),MATCH(Assets!I$2,'Data Annex'!$K$1:$AV$1,0)),"") -> 0.007599261696 | J21: =IFERROR(INDEX('Data Annex'!$K$1:$AV$6265,MATCH(Assets!J$1&"|"&Assets!$B21,'Data Annex'!$K$1:$K$6265,0),MATCH(Assets!J$2,'Data Annex'!$K$1:$AV$1,0)),"") -> 0.006555638747 | K21: =IFERROR(INDEX('Data Annex'!$K$1:$AV$6265,MATCH(Assets!K$1&"|"&Assets!$B21,'Data Annex'!$K$1:$K$6265,0),MATCH(Assets!K$2,'Data Annex'!$K$1:$AV$1,0)),"") -> 0.1247770596 | L21: =IFERROR(INDEX('Data Annex'!$K$1:$AV$6265,MATCH(Assets!L$1&"|"&Assets!$B21,'Data Annex'!$K$1:$K$6265,0),MATCH(Assets!L$2,'Data Annex'!$K$1:$AV$1,0)),"") -> 0.1271285172 | M21: =IFERROR(INDEX('Data Annex'!$K$1:$AV$6265,MATCH(Assets!M$1&"|"&Assets!$B21,'Data Annex'!$K$1:$K$6265,0),MATCH(Assets!M$2,'Data Annex'!$K$1:$AV$1,0)),"") -> 0.1265120798 | N21: =IFERROR(INDEX('Data Annex'!$K$1:$AV$6265,MATCH(Assets!N$1&"|"&Assets!$B21,'Data Annex'!$K$1:$K$6265,0),MATCH(Assets!N$2,'Data Annex'!$K$1:$AV$1,0)),"") -> 0.6301345091 | O21: =IFERROR(INDEX('Data Annex'!$K$1:$AV$6265,MATCH(Assets!O$1&"|"&Assets!$B21,'Data Annex'!$K$1:$K$6265,0),MATCH(Assets!O$2,'Data Annex'!$K$1:$AV$1,0)),"") -> 0.6270024128 | P21: =IFERROR(INDEX('Data Annex'!$K$1:$AV$6265,MATCH(Assets!P$1&"|"&Assets!$B21,'Data Annex'!$K$1:$K$6265,0),MATCH(Assets!P$2,'Data Annex'!$K$1:$AV$1,0)),"") -> 0.6257809491 | Q21: =IFERROR(INDEX('Data Annex'!$K$1:$AV$6265,MATCH(Assets!Q$1&"|"&Assets!$B21,'Data Annex'!$K$1:$K$6265,0),MATCH(Assets!Q$2,'Data Annex'!$K$1:$AV$1,0)),"") -> 0.03386406486 | R21: =IFERROR(INDEX('Data Annex'!$K$1:$AV$6265,MATCH(Assets!R$1&"|"&Assets!$B21,'Data Annex'!$K$1:$K$6265,0),MATCH(Assets!R$2,'Data Annex'!$K$1:$AV$1,0)),"") -> 0.03913156191 | S21: =IFERROR(INDEX('Data Annex'!$K$1:$AV$6265,MATCH(Assets!S$1&"|"&Assets!$B21,'Data Annex'!$K$1:$K$6265,0),MATCH(Assets!S$2,'Data Annex'!$K$1:$AV$1,0)),"") -> 0.04689619904 | T21: =IFERROR(INDEX('Data Annex'!$K$1:$AV$6265,MATCH(Assets!T$1&"|"&Assets!$B21,'Data Annex'!$K$1:$K$6265,0),MATCH(Assets!T$2,'Data Annex'!$K$1:$AV$1,0)),"") -> 0.06318357594 | U21: =IFERROR(INDEX('Data Annex'!$K$1:$AV$6265,MATCH(Assets!U$1&"|"&Assets!$B21,'Data Annex'!$K$1:$K$6265,0),MATCH(Assets!U$2,'Data Annex'!$K$1:$AV$1,0)),"") -> 0.0586777903 | V21: =IFERROR(INDEX('Data Annex'!$K$1:$AV$6265,MATCH(Assets!V$1&"|"&Assets!$B21,'Data Annex'!$K$1:$K$6265,0),MATCH(Assets!V$2,'Data Annex'!$K$1:$AV$1,0)),"") -> 0.05590116161 | W21: =IFERROR(INDEX('Data Annex'!$K$1:$AH$6001,MATCH(Assets!AC$1&"|"&Assets!$B21,'Data Annex'!$K$1:$K$6001,0),MATCH(Assets!AC$2,'Data Annex'!$K$1:$AH$1,0)),"") -> 
B22: FI | D22: FI | E22: =IFERROR(INDEX('Data Annex'!$K$1:$AV$6265,MATCH(Assets!E$1&"|"&Assets!$B22,'Data Annex'!$K$1:$K$6265,0),MATCH(Assets!E$2,'Data Annex'!$K$1:$AV$1,0)),"") -> 0.1590869854 | F22: =IFERROR(INDEX('Data Annex'!$K$1:$AV$6265,MATCH(Assets!F$1&"|"&Assets!$B22,'Data Annex'!$K$1:$K$6265,0),MATCH(Assets!F$2,'Data Annex'!$K$1:$AV$1,0)),"") -> 0.1429833223 | G22: =IFERROR(INDEX('Data Annex'!$K$1:$AV$6265,MATCH(Assets!G$1&"|"&Assets!$B22,'Data Annex'!$K$1:$K$6265,0),MATCH(Assets!G$2,'Data Annex'!$K$1:$AV$1,0)),"") -> 0.1324227444 | H22: =IFERROR(INDEX('Data Annex'!$K$1:$AV$6265,MATCH(Assets!H$1&"|"&Assets!$B22,'Data Annex'!$K$1:$K$6265,0),MATCH(Assets!H$2,'Data Annex'!$K$1:$AV$1,0)),"") -> 0.01788094527 | I22: =IFERROR(INDEX('Data Annex'!$K$1:$AV$6265,MATCH(Assets!I$1&"|"&Assets!$B22,'Data Annex'!$K$1:$K$6265,0),MATCH(Assets!I$2,'Data Annex'!$K$1:$AV$1,0)),"") -> 0.01541993413 | J22: =IFERROR(INDEX('Data Annex'!$K$1:$AV$6265,MATCH(Assets!J$1&"|"&Assets!$B22,'Data Annex'!$K$1:$K$6265,0),MATCH(Assets!J$2,'Data Annex'!$K$1:$AV$1,0)),"") -> 0.01330732312 | K22: =IFERROR(INDEX('Data Annex'!$K$1:$AV$6265,MATCH(Assets!K$1&"|"&Assets!$B22,'Data Annex'!$K$1:$K$6265,0),MATCH(Assets!K$2,'Data Annex'!$K$1:$AV$1,0)),"") -> 0.1055481443 | L22: =IFERROR(INDEX('Data Annex'!$K$1:$AV$6265,MATCH(Assets!L$1&"|"&Assets!$B22,'Data Annex'!$K$1:$K$6265,0),MATCH(Assets!L$2,'Data Annex'!$K$1:$AV$1,0)),"") -> 0.1089005303 | M22: =IFERROR(INDEX('Data Annex'!$K$1:$AV$6265,MATCH(Assets!M$1&"|"&Assets!$B22,'Data Annex'!$K$1:$K$6265,0),MATCH(Assets!M$2,'Data Annex'!$K$1:$AV$1,0)),"") -> 0.1055745006 | N22: =IFERROR(INDEX('Data Annex'!$K$1:$AV$6265,MATCH(Assets!N$1&"|"&Assets!$B22,'Data Annex'!$K$1:$K$6265,0),MATCH(Assets!N$2,'Data Annex'!$K$1:$AV$1,0)),"") -> 0.6454949214 | O22: =IFERROR(INDEX('Data Annex'!$K$1:$AV$6265,MATCH(Assets!O$1&"|"&Assets!$B22,'Data Annex'!$K$1:$K$6265,0),MATCH(Assets!O$2,'Data Annex'!$K$1:$AV$1,0)),"") -> 0.6562396344 | P22: =IFERROR(INDEX('Data Annex'!$K$1:$AV$6265,MATCH(Assets!P$1&"|"&Assets!$B22,'Data Annex'!$K$1:$K$6265,0),MATCH(Assets!P$2,'Data Annex'!$K$1:$AV$1,0)),"") -> 0.6597095569 | Q22: =IFERROR(INDEX('Data Annex'!$K$1:$AV$6265,MATCH(Assets!Q$1&"|"&Assets!$B22,'Data Annex'!$K$1:$K$6265,0),MATCH(Assets!Q$2,'Data Annex'!$K$1:$AV$1,0)),"") -> 0.0476018755 | R22: =IFERROR(INDEX('Data Annex'!$K$1:$AV$6265,MATCH(Assets!R$1&"|"&Assets!$B22,'Data Annex'!$K$1:$K$6265,0),MATCH(Assets!R$2,'Data Annex'!$K$1:$AV$1,0)),"") -> 0.05932425296 | S22: =IFERROR(INDEX('Data Annex'!$K$1:$AV$6265,MATCH(Assets!S$1&"|"&Assets!$B22,'Data Annex'!$K$1:$K$6265,0),MATCH(Assets!S$2,'Data Annex'!$K$1:$AV$1,0)),"") -> 0.07293501267 | T22: =IFERROR(INDEX('Data Annex'!$K$1:$AV$6265,MATCH(Assets!T$1&"|"&Assets!$B22,'Data Annex'!$K$1:$K$6265,0),MATCH(Assets!T$2,'Data Annex'!$K$1:$AV$1,0)),"") -> 0.02438712809 | U22: =IFERROR(INDEX('Data Annex'!$K$1:$AV$6265,MATCH(Assets!U$1&"|"&Assets!$B22,'Data Annex'!$K$1:$K$6265,0),MATCH(Assets!U$2,'Data Annex'!$K$1:$AV$1,0)),"") -> 0.0171323256 | V22: =IFERROR(INDEX('Data Annex'!$K$1:$AV$6265,MATCH(Assets!V$1&"|"&Assets!$B22,'Data Annex'!$K$1:$K$6265,0),MATCH(Assets!V$2,'Data Annex'!$K$1:$AV$1,0)),"") -> 0.01605086239 | W22: =IFERROR(INDEX('Data Annex'!$K$1:$AH$6001,MATCH(Assets!AC$1&"|"&Assets!$B22,'Data Annex'!$K$1:$K$6001,0),MATCH(Assets!AC$2,'Data Annex'!$K$1:$AH$1,0)),"") -> 
B23: FR | D23: FR | E23: =IFERROR(INDEX('Data Annex'!$K$1:$AV$6265,MATCH(Assets!E$1&"|"&Assets!$B23,'Data Annex'!$K$1:$K$6265,0),MATCH(Assets!E$2,'Data Annex'!$K$1:$AV$1,0)),"") -> 0.153680048 | F23: =IFERROR(INDEX('Data Annex'!$K$1:$AV$6265,MATCH(Assets!F$1&"|"&Assets!$B23,'Data Annex'!$K$1:$K$6265,0),MATCH(Assets!F$2,'Data Annex'!$K$1:$AV$1,0)),"") -> 0.1357009036 | G23: =IFERROR(INDEX('Data Annex'!$K$1:$AV$6265,MATCH(Assets!G$1&"|"&Assets!$B23,'Data Annex'!$K$1:$K$6265,0),MATCH(Assets!G$2,'Data Annex'!$K$1:$AV$1,0)),"") -> 0.1322277909 | H23: =IFERROR(INDEX('Data Annex'!$K$1:$AV$6265,MATCH(Assets!H$1&"|"&Assets!$B23,'Data Annex'!$K$1:$K$6265,0),MATCH(Assets!H$2,'Data Annex'!$K$1:$AV$1,0)),"") -> 0.03727266917 | I23: =IFERROR(INDEX('Data Annex'!$K$1:$AV$6265,MATCH(Assets!I$1&"|"&Assets!$B23,'Data Annex'!$K$1:$K$6265,0),MATCH(Assets!I$2,'Data Annex'!$K$1:$AV$1,0)),"") -> 0.02538753453 | J23: =IFERROR(INDEX('Data Annex'!$K$1:$AV$6265,MATCH(Assets!J$1&"|"&Assets!$B23,'Data Annex'!$K$1:$K$6265,0),MATCH(Assets!J$2,'Data Annex'!$K$1:$AV$1,0)),"") -> 0.02201050803 | K23: =IFERROR(INDEX('Data Annex'!$K$1:$AV$6265,MATCH(Assets!K$1&"|"&Assets!$B23,'Data Annex'!$K$1:$K$6265,0),MATCH(Assets!K$2,'Data Annex'!$K$1:$AV$1,0)),"") -> 0.1002101871 | L23: =IFERROR(INDEX('Data Annex'!$K$1:$AV$6265,MATCH(Assets!L$1&"|"&Assets!$B23,'Data Annex'!$K$1:$K$6265,0),MATCH(Assets!L$2,'Data Annex'!$K$1:$AV$1,0)),"") -> 0.09021927139 | M23: =IFERROR(INDEX('Data Annex'!$K$1:$AV$6265,MATCH(Assets!M$1&"|"&Assets!$B23,'Data Annex'!$K$1:$K$6265,0),MATCH(Assets!M$2,'Data Annex'!$K$1:$AV$1,0)),"") -> 0.08394099379 | N23: =IFERROR(INDEX('Data Annex'!$K$1:$AV$6265,MATCH(Assets!N$1&"|"&Assets!$B23,'Data Annex'!$K$1:$K$6265,0),MATCH(Assets!N$2,'Data Annex'!$K$1:$AV$1,0)),"") -> 0.5784078104 | O23: =IFERROR(INDEX('Data Annex'!$K$1:$AV$6265,MATCH(Assets!O$1&"|"&Assets!$B23,'Data Annex'!$K$1:$K$6265,0),MATCH(Assets!O$2,'Data Annex'!$K$1:$AV$1,0)),"") -> 0.5865473765 | P23: =IFERROR(INDEX('Data Annex'!$K$1:$AV$6265,MATCH(Assets!P$1&"|"&Assets!$B23,'Data Annex'!$K$1:$K$6265,0),MATCH(Assets!P$2,'Data Annex'!$K$1:$AV$1,0)),"") -> 0.5731789623 | Q23: =IFERROR(INDEX('Data Annex'!$K$1:$AV$6265,MATCH(Assets!Q$1&"|"&Assets!$B23,'Data Annex'!$K$1:$K$6265,0),MATCH(Assets!Q$2,'Data Annex'!$K$1:$AV$1,0)),"") -> 0.06814216661 | R23: =IFERROR(INDEX('Data Annex'!$K$1:$AV$6265,MATCH(Assets!R$1&"|"&Assets!$B23,'Data Annex'!$K$1:$K$6265,0),MATCH(Assets!R$2,'Data Annex'!$K$1:$AV$1,0)),"") -> 0.08524155371 | S23: =IFERROR(INDEX('Data Annex'!$K$1:$AV$6265,MATCH(Assets!S$1&"|"&Assets!$B23,'Data Annex'!$K$1:$K$6265,0),MATCH(Assets!S$2,'Data Annex'!$K$1:$AV$1,0)),"") -> 0.1059644575 | T23: =IFERROR(INDEX('Data Annex'!$K$1:$AV$6265,MATCH(Assets!T$1&"|"&Assets!$B23,'Data Annex'!$K$1:$K$6265,0),MATCH(Assets!T$2,'Data Annex'!$K$1:$AV$1,0)),"") -> 0.06228711893 | U23: =IFERROR(INDEX('Data Annex'!$K$1:$AV$6265,MATCH(Assets!U$1&"|"&Assets!$B23,'Data Annex'!$K$1:$K$6265,0),MATCH(Assets!U$2,'Data Annex'!$K$1:$AV$1,0)),"") -> 0.07690336027 | V23: =IFERROR(INDEX('Data Annex'!$K$1:$AV$6265,MATCH(Assets!V$1&"|"&Assets!$B23,'Data Annex'!$K$1:$K$6265,0),MATCH(Assets!V$2,'Data Annex'!$K$1:$AV$1,0)),"") -> 0.0826772876 | W23: =IFERROR(INDEX('Data Annex'!$K$1:$AH$6001,MATCH(Assets!AC$1&"|"&Assets!$B23,'Data Annex'!$K$1:$K$6001,0),MATCH(Assets!AC$2,'Data Annex'!$K$1:$AH$1,0)),"") -> 
B24: GR | D24: GR | E24: =IFERROR(INDEX('Data Annex'!$K$1:$AV$6265,MATCH(Assets!E$1&"|"&Assets!$B24,'Data Annex'!$K$1:$K$6265,0),MATCH(Assets!E$2,'Data Annex'!$K$1:$AV$1,0)),"") -> 0.1713516189 | F24: =IFERROR(INDEX('Data Annex'!$K$1:$AV$6265,MATCH(Assets!F$1&"|"&Assets!$B24,'Data Annex'!$K$1:$K$6265,0),MATCH(Assets!F$2,'Data Annex'!$K$1:$AV$1,0)),"") -> 0.1946441023 | G24: =IFERROR(INDEX('Data Annex'!$K$1:$AV$6265,MATCH(Assets!G$1&"|"&Assets!$B24,'Data Annex'!$K$1:$K$6265,0),MATCH(Assets!G$2,'Data Annex'!$K$1:$AV$1,0)),"") -> 0.2054332313 | H24: =IFERROR(INDEX('Data Annex'!$K$1:$AV$6265,MATCH(Assets!H$1&"|"&Assets!$B24,'Data Annex'!$K$1:$K$6265,0),MATCH(Assets!H$2,'Data Annex'!$K$1:$AV$1,0)),"") -> 0.002456335028 | I24: =IFERROR(INDEX('Data Annex'!$K$1:$AV$6265,MATCH(Assets!I$1&"|"&Assets!$B24,'Data Annex'!$K$1:$K$6265,0),MATCH(Assets!I$2,'Data Annex'!$K$1:$AV$1,0)),"") -> 0.002582307282 | J24: =IFERROR(INDEX('Data Annex'!$K$1:$AV$6265,MATCH(Assets!J$1&"|"&Assets!$B24,'Data Annex'!$K$1:$K$6265,0),MATCH(Assets!J$2,'Data Annex'!$K$1:$AV$1,0)),"") -> 0.002634503373 | K24: =IFERROR(INDEX('Data Annex'!$K$1:$AV$6265,MATCH(Assets!K$1&"|"&Assets!$B24,'Data Annex'!$K$1:$K$6265,0),MATCH(Assets!K$2,'Data Annex'!$K$1:$AV$1,0)),"") -> 0.1608469831 | L24: =IFERROR(INDEX('Data Annex'!$K$1:$AV$6265,MATCH(Assets!L$1&"|"&Assets!$B24,'Data Annex'!$K$1:$K$6265,0),MATCH(Assets!L$2,'Data Annex'!$K$1:$AV$1,0)),"") -> 0.1587049461 | M24: =IFERROR(INDEX('Data Annex'!$K$1:$AV$6265,MATCH(Assets!M$1&"|"&Assets!$B24,'Data Annex'!$K$1:$K$6265,0),MATCH(Assets!M$2,'Data Annex'!$K$1:$AV$1,0)),"") -> 0.1548716965 | N24: =IFERROR(INDEX('Data Annex'!$K$1:$AV$6265,MATCH(Assets!N$1&"|"&Assets!$B24,'Data Annex'!$K$1:$K$6265,0),MATCH(Assets!N$2,'Data Annex'!$K$1:$AV$1,0)),"") -> 0.4740780398 | O24: =IFERROR(INDEX('Data Annex'!$K$1:$AV$6265,MATCH(Assets!O$1&"|"&Assets!$B24,'Data Annex'!$K$1:$K$6265,0),MATCH(Assets!O$2,'Data Annex'!$K$1:$AV$1,0)),"") -> 0.4803994456 | P24: =IFERROR(INDEX('Data Annex'!$K$1:$AV$6265,MATCH(Assets!P$1&"|"&Assets!$B24,'Data Annex'!$K$1:$K$6265,0),MATCH(Assets!P$2,'Data Annex'!$K$1:$AV$1,0)),"") -> 0.4786015998 | Q24: =IFERROR(INDEX('Data Annex'!$K$1:$AV$6265,MATCH(Assets!Q$1&"|"&Assets!$B24,'Data Annex'!$K$1:$K$6265,0),MATCH(Assets!Q$2,'Data Annex'!$K$1:$AV$1,0)),"") -> 0.02715852673 | R24: =IFERROR(INDEX('Data Annex'!$K$1:$AV$6265,MATCH(Assets!R$1&"|"&Assets!$B24,'Data Annex'!$K$1:$K$6265,0),MATCH(Assets!R$2,'Data Annex'!$K$1:$AV$1,0)),"") -> 0.02477582852 | S24: =IFERROR(INDEX('Data Annex'!$K$1:$AV$6265,MATCH(Assets!S$1&"|"&Assets!$B24,'Data Annex'!$K$1:$K$6265,0),MATCH(Assets!S$2,'Data Annex'!$K$1:$AV$1,0)),"") -> 0.02628462252 | T24: =IFERROR(INDEX('Data Annex'!$K$1:$AV$6265,MATCH(Assets!T$1&"|"&Assets!$B24,'Data Annex'!$K$1:$K$6265,0),MATCH(Assets!T$2,'Data Annex'!$K$1:$AV$1,0)),"") -> 0.1641084965 | U24: =IFERROR(INDEX('Data Annex'!$K$1:$AV$6265,MATCH(Assets!U$1&"|"&Assets!$B24,'Data Annex'!$K$1:$K$6265,0),MATCH(Assets!U$2,'Data Annex'!$K$1:$AV$1,0)),"") -> 0.1388933702 | V24: =IFERROR(INDEX('Data Annex'!$K$1:$AV$6265,MATCH(Assets!V$1&"|"&Assets!$B24,'Data Annex'!$K$1:$K$6265,0),MATCH(Assets!V$2,'Data Annex'!$K$1:$AV$1,0)),"") -> 0.1321743464 | W24: =IFERROR(INDEX('Data Annex'!$K$1:$AH$6001,MATCH(Assets!AC$1&"|"&Assets!$B24,'Data Annex'!$K$1:$K$6001,0),MATCH(Assets!AC$2,'Data Annex'!$K$1:$AH$1,0)),"") -> 
B25: HR | D25: HR | E25: =IFERROR(INDEX('Data Annex'!$K$1:$AV$6265,MATCH(Assets!E$1&"|"&Assets!$B25,'Data Annex'!$K$1:$K$6265,0),MATCH(Assets!E$2,'Data Annex'!$K$1:$AV$1,0)),"") -> 0.181880284 | F25: =IFERROR(INDEX('Data Annex'!$K$1:$AV$6265,MATCH(Assets!F$1&"|"&Assets!$B25,'Data Annex'!$K$1:$K$6265,0),MATCH(Assets!F$2,'Data Annex'!$K$1:$AV$1,0)),"") -> 0.2119871422 | G25: =IFERROR(INDEX('Data Annex'!$K$1:$AV$6265,MATCH(Assets!G$1&"|"&Assets!$B25,'Data Annex'!$K$1:$K$6265,0),MATCH(Assets!G$2,'Data Annex'!$K$1:$AV$1,0)),"") -> 0.2036690776 | H25: =IFERROR(INDEX('Data Annex'!$K$1:$AV$6265,MATCH(Assets!H$1&"|"&Assets!$B25,'Data Annex'!$K$1:$K$6265,0),MATCH(Assets!H$2,'Data Annex'!$K$1:$AV$1,0)),"") -> 0.001327981214 | I25: =IFERROR(INDEX('Data Annex'!$K$1:$AV$6265,MATCH(Assets!I$1&"|"&Assets!$B25,'Data Annex'!$K$1:$K$6265,0),MATCH(Assets!I$2,'Data Annex'!$K$1:$AV$1,0)),"") -> 0.001203866075 | J25: =IFERROR(INDEX('Data Annex'!$K$1:$AV$6265,MATCH(Assets!J$1&"|"&Assets!$B25,'Data Annex'!$K$1:$K$6265,0),MATCH(Assets!J$2,'Data Annex'!$K$1:$AV$1,0)),"") -> 0.001077973444 | K25: =IFERROR(INDEX('Data Annex'!$K$1:$AV$6265,MATCH(Assets!K$1&"|"&Assets!$B25,'Data Annex'!$K$1:$K$6265,0),MATCH(Assets!K$2,'Data Annex'!$K$1:$AV$1,0)),"") -> 0.1134770112 | L25: =IFERROR(INDEX('Data Annex'!$K$1:$AV$6265,MATCH(Assets!L$1&"|"&Assets!$B25,'Data Annex'!$K$1:$K$6265,0),MATCH(Assets!L$2,'Data Annex'!$K$1:$AV$1,0)),"") -> 0.110865516 | M25: =IFERROR(INDEX('Data Annex'!$K$1:$AV$6265,MATCH(Assets!M$1&"|"&Assets!$B25,'Data Annex'!$K$1:$K$6265,0),MATCH(Assets!M$2,'Data Annex'!$K$1:$AV$1,0)),"") -> 0.1125839527 | N25: =IFERROR(INDEX('Data Annex'!$K$1:$AV$6265,MATCH(Assets!N$1&"|"&Assets!$B25,'Data Annex'!$K$1:$K$6265,0),MATCH(Assets!N$2,'Data Annex'!$K$1:$AV$1,0)),"") -> 0.6788250384 | O25: =IFERROR(INDEX('Data Annex'!$K$1:$AV$6265,MATCH(Assets!O$1&"|"&Assets!$B25,'Data Annex'!$K$1:$K$6265,0),MATCH(Assets!O$2,'Data Annex'!$K$1:$AV$1,0)),"") -> 0.649116363 | P25: =IFERROR(INDEX('Data Annex'!$K$1:$AV$6265,MATCH(Assets!P$1&"|"&Assets!$B25,'Data Annex'!$K$1:$K$6265,0),MATCH(Assets!P$2,'Data Annex'!$K$1:$AV$1,0)),"") -> 0.6533022484 | Q25: =IFERROR(INDEX('Data Annex'!$K$1:$AV$6265,MATCH(Assets!Q$1&"|"&Assets!$B25,'Data Annex'!$K$1:$K$6265,0),MATCH(Assets!Q$2,'Data Annex'!$K$1:$AV$1,0)),"") -> 0.002579713778 | R25: =IFERROR(INDEX('Data Annex'!$K$1:$AV$6265,MATCH(Assets!R$1&"|"&Assets!$B25,'Data Annex'!$K$1:$K$6265,0),MATCH(Assets!R$2,'Data Annex'!$K$1:$AV$1,0)),"") -> 0.006321599301 | S25: =IFERROR(INDEX('Data Annex'!$K$1:$AV$6265,MATCH(Assets!S$1&"|"&Assets!$B25,'Data Annex'!$K$1:$K$6265,0),MATCH(Assets!S$2,'Data Annex'!$K$1:$AV$1,0)),"") -> 0.009056814623 | T25: =IFERROR(INDEX('Data Annex'!$K$1:$AV$6265,MATCH(Assets!T$1&"|"&Assets!$B25,'Data Annex'!$K$1:$K$6265,0),MATCH(Assets!T$2,'Data Annex'!$K$1:$AV$1,0)),"") -> 0.02190997141 | U25: =IFERROR(INDEX('Data Annex'!$K$1:$AV$6265,MATCH(Assets!U$1&"|"&Assets!$B25,'Data Annex'!$K$1:$K$6265,0),MATCH(Assets!U$2,'Data Annex'!$K$1:$AV$1,0)),"") -> 0.02050551347 | V25: =IFERROR(INDEX('Data Annex'!$K$1:$AV$6265,MATCH(Assets!V$1&"|"&Assets!$B25,'Data Annex'!$K$1:$K$6265,0),MATCH(Assets!V$2,'Data Annex'!$K$1:$AV$1,0)),"") -> 0.02030993327 | W25: =IFERROR(INDEX('Data Annex'!$K$1:$AH$6001,MATCH(Assets!AC$1&"|"&Assets!$B25,'Data Annex'!$K$1:$K$6001,0),MATCH(Assets!AC$2,'Data Annex'!$K$1:$AH$1,0)),"") -> 
B26: HU | D26: HU | E26: =IFERROR(INDEX('Data Annex'!$K$1:$AV$6265,MATCH(Assets!E$1&"|"&Assets!$B26,'Data Annex'!$K$1:$K$6265,0),MATCH(Assets!E$2,'Data Annex'!$K$1:$AV$1,0)),"") -> 0.09455078744 | F26: =IFERROR(INDEX('Data Annex'!$K$1:$AV$6265,MATCH(Assets!F$1&"|"&Assets!$B26,'Data Annex'!$K$1:$K$6265,0),MATCH(Assets!F$2,'Data Annex'!$K$1:$AV$1,0)),"") -> 0.06246466184 | G26: =IFERROR(INDEX('Data Annex'!$K$1:$AV$6265,MATCH(Assets!G$1&"|"&Assets!$B26,'Data Annex'!$K$1:$K$6265,0),MATCH(Assets!G$2,'Data Annex'!$K$1:$AV$1,0)),"") -> 0.08119383849 | H26: =IFERROR(INDEX('Data Annex'!$K$1:$AV$6265,MATCH(Assets!H$1&"|"&Assets!$B26,'Data Annex'!$K$1:$K$6265,0),MATCH(Assets!H$2,'Data Annex'!$K$1:$AV$1,0)),"") -> 0.003126419213 | I26: =IFERROR(INDEX('Data Annex'!$K$1:$AV$6265,MATCH(Assets!I$1&"|"&Assets!$B26,'Data Annex'!$K$1:$K$6265,0),MATCH(Assets!I$2,'Data Annex'!$K$1:$AV$1,0)),"") -> 0.00270742757 | J26: =IFERROR(INDEX('Data Annex'!$K$1:$AV$6265,MATCH(Assets!J$1&"|"&Assets!$B26,'Data Annex'!$K$1:$K$6265,0),MATCH(Assets!J$2,'Data Annex'!$K$1:$AV$1,0)),"") -> 0.002287220332 | K26: =IFERROR(INDEX('Data Annex'!$K$1:$AV$6265,MATCH(Assets!K$1&"|"&Assets!$B26,'Data Annex'!$K$1:$K$6265,0),MATCH(Assets!K$2,'Data Annex'!$K$1:$AV$1,0)),"") -> 0.2403014869 | L26: =IFERROR(INDEX('Data Annex'!$K$1:$AV$6265,MATCH(Assets!L$1&"|"&Assets!$B26,'Data Annex'!$K$1:$K$6265,0),MATCH(Assets!L$2,'Data Annex'!$K$1:$AV$1,0)),"") -> 0.2390141328 | M26: =IFERROR(INDEX('Data Annex'!$K$1:$AV$6265,MATCH(Assets!M$1&"|"&Assets!$B26,'Data Annex'!$K$1:$K$6265,0),MATCH(Assets!M$2,'Data Annex'!$K$1:$AV$1,0)),"") -> 0.2260844633 | N26: =IFERROR(INDEX('Data Annex'!$K$1:$AV$6265,MATCH(Assets!N$1&"|"&Assets!$B26,'Data Annex'!$K$1:$K$6265,0),MATCH(Assets!N$2,'Data Annex'!$K$1:$AV$1,0)),"") -> 0.6123603803 | O26: =IFERROR(INDEX('Data Annex'!$K$1:$AV$6265,MATCH(Assets!O$1&"|"&Assets!$B26,'Data Annex'!$K$1:$K$6265,0),MATCH(Assets!O$2,'Data Annex'!$K$1:$AV$1,0)),"") -> 0.6395774119 | P26: =IFERROR(INDEX('Data Annex'!$K$1:$AV$6265,MATCH(Assets!P$1&"|"&Assets!$B26,'Data Annex'!$K$1:$K$6265,0),MATCH(Assets!P$2,'Data Annex'!$K$1:$AV$1,0)),"") -> 0.628249192 | Q26: =IFERROR(INDEX('Data Annex'!$K$1:$AV$6265,MATCH(Assets!Q$1&"|"&Assets!$B26,'Data Annex'!$K$1:$K$6265,0),MATCH(Assets!Q$2,'Data Annex'!$K$1:$AV$1,0)),"") -> 0.01413070318 | R26: =IFERROR(INDEX('Data Annex'!$K$1:$AV$6265,MATCH(Assets!R$1&"|"&Assets!$B26,'Data Annex'!$K$1:$K$6265,0),MATCH(Assets!R$2,'Data Annex'!$K$1:$AV$1,0)),"") -> 0.03005267082 | S26: =IFERROR(INDEX('Data Annex'!$K$1:$AV$6265,MATCH(Assets!S$1&"|"&Assets!$B26,'Data Annex'!$K$1:$K$6265,0),MATCH(Assets!S$2,'Data Annex'!$K$1:$AV$1,0)),"") -> 0.03657107563 | T26: =IFERROR(INDEX('Data Annex'!$K$1:$AV$6265,MATCH(Assets!T$1&"|"&Assets!$B26,'Data Annex'!$K$1:$K$6265,0),MATCH(Assets!T$2,'Data Annex'!$K$1:$AV$1,0)),"") -> 0.03553022296 | U26: =IFERROR(INDEX('Data Annex'!$K$1:$AV$6265,MATCH(Assets!U$1&"|"&Assets!$B26,'Data Annex'!$K$1:$K$6265,0),MATCH(Assets!U$2,'Data Annex'!$K$1:$AV$1,0)),"") -> 0.02618369511 | V26: =IFERROR(INDEX('Data Annex'!$K$1:$AV$6265,MATCH(Assets!V$1&"|"&Assets!$B26,'Data Annex'!$K$1:$K$6265,0),MATCH(Assets!V$2,'Data Annex'!$K$1:$AV$1,0)),"") -> 0.0256142103 | W26: =IFERROR(INDEX('Data Annex'!$K$1:$AH$6001,MATCH(Assets!AC$1&"|"&Assets!$B26,'Data Annex'!$K$1:$K$6001,0),MATCH(Assets!AC$2,'Data Annex'!$K$1:$AH$1,0)),"") -> 
B27: IE | D27: IE | E27: =IFERROR(INDEX('Data Annex'!$K$1:$AV$6265,MATCH(Assets!E$1&"|"&Assets!$B27,'Data Annex'!$K$1:$K$6265,0),MATCH(Assets!E$2,'Data Annex'!$K$1:$AV$1,0)),"") -> 0.2775560397 | F27: =IFERROR(INDEX('Data Annex'!$K$1:$AV$6265,MATCH(Assets!F$1&"|"&Assets!$B27,'Data Annex'!$K$1:$K$6265,0),MATCH(Assets!F$2,'Data Annex'!$K$1:$AV$1,0)),"") -> 0.2868726301 | G27: =IFERROR(INDEX('Data Annex'!$K$1:$AV$6265,MATCH(Assets!G$1&"|"&Assets!$B27,'Data Annex'!$K$1:$K$6265,0),MATCH(Assets!G$2,'Data Annex'!$K$1:$AV$1,0)),"") -> 0.2911547896 | H27: =IFERROR(INDEX('Data Annex'!$K$1:$AV$6265,MATCH(Assets!H$1&"|"&Assets!$B27,'Data Annex'!$K$1:$K$6265,0),MATCH(Assets!H$2,'Data Annex'!$K$1:$AV$1,0)),"") -> 0.001368652044 | I27: =IFERROR(INDEX('Data Annex'!$K$1:$AV$6265,MATCH(Assets!I$1&"|"&Assets!$B27,'Data Annex'!$K$1:$K$6265,0),MATCH(Assets!I$2,'Data Annex'!$K$1:$AV$1,0)),"") -> 0.001403977951 | J27: =IFERROR(INDEX('Data Annex'!$K$1:$AV$6265,MATCH(Assets!J$1&"|"&Assets!$B27,'Data Annex'!$K$1:$K$6265,0),MATCH(Assets!J$2,'Data Annex'!$K$1:$AV$1,0)),"") -> 0.001308678639 | K27: =IFERROR(INDEX('Data Annex'!$K$1:$AV$6265,MATCH(Assets!K$1&"|"&Assets!$B27,'Data Annex'!$K$1:$K$6265,0),MATCH(Assets!K$2,'Data Annex'!$K$1:$AV$1,0)),"") -> 0.1188135506 | L27: =IFERROR(INDEX('Data Annex'!$K$1:$AV$6265,MATCH(Assets!L$1&"|"&Assets!$B27,'Data Annex'!$K$1:$K$6265,0),MATCH(Assets!L$2,'Data Annex'!$K$1:$AV$1,0)),"") -> 0.1087506678 | M27: =IFERROR(INDEX('Data Annex'!$K$1:$AV$6265,MATCH(Assets!M$1&"|"&Assets!$B27,'Data Annex'!$K$1:$K$6265,0),MATCH(Assets!M$2,'Data Annex'!$K$1:$AV$1,0)),"") -> 0.1062757036 | N27: =IFERROR(INDEX('Data Annex'!$K$1:$AV$6265,MATCH(Assets!N$1&"|"&Assets!$B27,'Data Annex'!$K$1:$K$6265,0),MATCH(Assets!N$2,'Data Annex'!$K$1:$AV$1,0)),"") -> 0.5086253141 | O27: =IFERROR(INDEX('Data Annex'!$K$1:$AV$6265,MATCH(Assets!O$1&"|"&Assets!$B27,'Data Annex'!$K$1:$K$6265,0),MATCH(Assets!O$2,'Data Annex'!$K$1:$AV$1,0)),"") -> 0.4723899311 | P27: =IFERROR(INDEX('Data Annex'!$K$1:$AV$6265,MATCH(Assets!P$1&"|"&Assets!$B27,'Data Annex'!$K$1:$K$6265,0),MATCH(Assets!P$2,'Data Annex'!$K$1:$AV$1,0)),"") -> 0.4467348956 | Q27: =IFERROR(INDEX('Data Annex'!$K$1:$AV$6265,MATCH(Assets!Q$1&"|"&Assets!$B27,'Data Annex'!$K$1:$K$6265,0),MATCH(Assets!Q$2,'Data Annex'!$K$1:$AV$1,0)),"") -> 0.04393862143 | R27: =IFERROR(INDEX('Data Annex'!$K$1:$AV$6265,MATCH(Assets!R$1&"|"&Assets!$B27,'Data Annex'!$K$1:$K$6265,0),MATCH(Assets!R$2,'Data Annex'!$K$1:$AV$1,0)),"") -> 0.07286161437 | S27: =IFERROR(INDEX('Data Annex'!$K$1:$AV$6265,MATCH(Assets!S$1&"|"&Assets!$B27,'Data Annex'!$K$1:$K$6265,0),MATCH(Assets!S$2,'Data Annex'!$K$1:$AV$1,0)),"") -> 0.1007141757 | T27: =IFERROR(INDEX('Data Annex'!$K$1:$AV$6265,MATCH(Assets!T$1&"|"&Assets!$B27,'Data Annex'!$K$1:$K$6265,0),MATCH(Assets!T$2,'Data Annex'!$K$1:$AV$1,0)),"") -> 0.04969782218 | U27: =IFERROR(INDEX('Data Annex'!$K$1:$AV$6265,MATCH(Assets!U$1&"|"&Assets!$B27,'Data Annex'!$K$1:$K$6265,0),MATCH(Assets!U$2,'Data Annex'!$K$1:$AV$1,0)),"") -> 0.05772117865 | V27: =IFERROR(INDEX('Data Annex'!$K$1:$AV$6265,MATCH(Assets!V$1&"|"&Assets!$B27,'Data Annex'!$K$1:$K$6265,0),MATCH(Assets!V$2,'Data Annex'!$K$1:$AV$1,0)),"") -> 0.05381175693 | W27: =IFERROR(INDEX('Data Annex'!$K$1:$AH$6001,MATCH(Assets!AC$1&"|"&Assets!$B27,'Data Annex'!$K$1:$K$6001,0),MATCH(Assets!AC$2,'Data Annex'!$K$1:$AH$1,0)),"") -> 
B28: IS | D28: IS | E28: =IFERROR(INDEX('Data Annex'!$K$1:$AV$6265,MATCH(Assets!E$1&"|"&Assets!$B28,'Data Annex'!$K$1:$K$6265,0),MATCH(Assets!E$2,'Data Annex'!$K$1:$AV$1,0)),"") -> 0.08555910825 | F28: =IFERROR(INDEX('Data Annex'!$K$1:$AV$6265,MATCH(Assets!F$1&"|"&Assets!$B28,'Data Annex'!$K$1:$K$6265,0),MATCH(Assets!F$2,'Data Annex'!$K$1:$AV$1,0)),"") -> 0.07280946668 | G28: =IFERROR(INDEX('Data Annex'!$K$1:$AV$6265,MATCH(Assets!G$1&"|"&Assets!$B28,'Data Annex'!$K$1:$K$6265,0),MATCH(Assets!G$2,'Data Annex'!$K$1:$AV$1,0)),"") -> 0.08310233134 | H28: =IFERROR(INDEX('Data Annex'!$K$1:$AV$6265,MATCH(Assets!H$1&"|"&Assets!$B28,'Data Annex'!$K$1:$K$6265,0),MATCH(Assets!H$2,'Data Annex'!$K$1:$AV$1,0)),"") -> 0.02586930498 | I28: =IFERROR(INDEX('Data Annex'!$K$1:$AV$6265,MATCH(Assets!I$1&"|"&Assets!$B28,'Data Annex'!$K$1:$K$6265,0),MATCH(Assets!I$2,'Data Annex'!$K$1:$AV$1,0)),"") -> 0.02379570385 | J28: =IFERROR(INDEX('Data Annex'!$K$1:$AV$6265,MATCH(Assets!J$1&"|"&Assets!$B28,'Data Annex'!$K$1:$K$6265,0),MATCH(Assets!J$2,'Data Annex'!$K$1:$AV$1,0)),"") -> 0.02002148255 | K28: =IFERROR(INDEX('Data Annex'!$K$1:$AV$6265,MATCH(Assets!K$1&"|"&Assets!$B28,'Data Annex'!$K$1:$K$6265,0),MATCH(Assets!K$2,'Data Annex'!$K$1:$AV$1,0)),"") -> 0.09804865578 | L28: =IFERROR(INDEX('Data Annex'!$K$1:$AV$6265,MATCH(Assets!L$1&"|"&Assets!$B28,'Data Annex'!$K$1:$K$6265,0),MATCH(Assets!L$2,'Data Annex'!$K$1:$AV$1,0)),"") -> 0.07775082297 | M28: =IFERROR(INDEX('Data Annex'!$K$1:$AV$6265,MATCH(Assets!M$1&"|"&Assets!$B28,'Data Annex'!$K$1:$K$6265,0),MATCH(Assets!M$2,'Data Annex'!$K$1:$AV$1,0)),"") -> 0.08094886428 | N28: =IFERROR(INDEX('Data Annex'!$K$1:$AV$6265,MATCH(Assets!N$1&"|"&Assets!$B28,'Data Annex'!$K$1:$K$6265,0),MATCH(Assets!N$2,'Data Annex'!$K$1:$AV$1,0)),"") -> 0.7543663976 | O28: =IFERROR(INDEX('Data Annex'!$K$1:$AV$6265,MATCH(Assets!O$1&"|"&Assets!$B28,'Data Annex'!$K$1:$K$6265,0),MATCH(Assets!O$2,'Data Annex'!$K$1:$AV$1,0)),"") -> 0.7986530628 | P28: =IFERROR(INDEX('Data Annex'!$K$1:$AV$6265,MATCH(Assets!P$1&"|"&Assets!$B28,'Data Annex'!$K$1:$K$6265,0),MATCH(Assets!P$2,'Data Annex'!$K$1:$AV$1,0)),"") -> 0.7936573472 | Q28: =IFERROR(INDEX('Data Annex'!$K$1:$AV$6265,MATCH(Assets!Q$1&"|"&Assets!$B28,'Data Annex'!$K$1:$K$6265,0),MATCH(Assets!Q$2,'Data Annex'!$K$1:$AV$1,0)),"") -> 0.001957175674 | R28: =IFERROR(INDEX('Data Annex'!$K$1:$AV$6265,MATCH(Assets!R$1&"|"&Assets!$B28,'Data Annex'!$K$1:$K$6265,0),MATCH(Assets!R$2,'Data Annex'!$K$1:$AV$1,0)),"") -> 0.00273947896 | S28: =IFERROR(INDEX('Data Annex'!$K$1:$AV$6265,MATCH(Assets!S$1&"|"&Assets!$B28,'Data Annex'!$K$1:$K$6265,0),MATCH(Assets!S$2,'Data Annex'!$K$1:$AV$1,0)),"") -> 0.003475611245 | T28: =IFERROR(INDEX('Data Annex'!$K$1:$AV$6265,MATCH(Assets!T$1&"|"&Assets!$B28,'Data Annex'!$K$1:$K$6265,0),MATCH(Assets!T$2,'Data Annex'!$K$1:$AV$1,0)),"") -> 0.03419935768 | U28: =IFERROR(INDEX('Data Annex'!$K$1:$AV$6265,MATCH(Assets!U$1&"|"&Assets!$B28,'Data Annex'!$K$1:$K$6265,0),MATCH(Assets!U$2,'Data Annex'!$K$1:$AV$1,0)),"") -> 0.02425146477 | V28: =IFERROR(INDEX('Data Annex'!$K$1:$AV$6265,MATCH(Assets!V$1&"|"&Assets!$B28,'Data Annex'!$K$1:$K$6265,0),MATCH(Assets!V$2,'Data Annex'!$K$1:$AV$1,0)),"") -> 0.01879436337 | W28: =IFERROR(INDEX('Data Annex'!$K$1:$AH$6001,MATCH(Assets!AC$1&"|"&Assets!$B28,'Data Annex'!$K$1:$K$6001,0),MATCH(Assets!AC$2,'Data Annex'!$K$1:$AH$1,0)),"") -> 
B29: IT | D29: IT | E29: =IFERROR(INDEX('Data Annex'!$K$1:$AV$6265,MATCH(Assets!E$1&"|"&Assets!$B29,'Data Annex'!$K$1:$K$6265,0),MATCH(Assets!E$2,'Data Annex'!$K$1:$AV$1,0)),"") -> 0.164834358 | F29: =IFERROR(INDEX('Data Annex'!$K$1:$AV$6265,MATCH(Assets!F$1&"|"&Assets!$B29,'Data Annex'!$K$1:$K$6265,0),MATCH(Assets!F$2,'Data Annex'!$K$1:$AV$1,0)),"") -> 0.1454467734 | G29: =IFERROR(INDEX('Data Annex'!$K$1:$AV$6265,MATCH(Assets!G$1&"|"&Assets!$B29,'Data Annex'!$K$1:$K$6265,0),MATCH(Assets!G$2,'Data Annex'!$K$1:$AV$1,0)),"") -> 0.1391568218 | H29: =IFERROR(INDEX('Data Annex'!$K$1:$AV$6265,MATCH(Assets!H$1&"|"&Assets!$B29,'Data Annex'!$K$1:$K$6265,0),MATCH(Assets!H$2,'Data Annex'!$K$1:$AV$1,0)),"") -> 0.01220464903 | I29: =IFERROR(INDEX('Data Annex'!$K$1:$AV$6265,MATCH(Assets!I$1&"|"&Assets!$B29,'Data Annex'!$K$1:$K$6265,0),MATCH(Assets!I$2,'Data Annex'!$K$1:$AV$1,0)),"") -> 0.01072279295 | J29: =IFERROR(INDEX('Data Annex'!$K$1:$AV$6265,MATCH(Assets!J$1&"|"&Assets!$B29,'Data Annex'!$K$1:$K$6265,0),MATCH(Assets!J$2,'Data Annex'!$K$1:$AV$1,0)),"") -> 0.009824019335 | K29: =IFERROR(INDEX('Data Annex'!$K$1:$AV$6265,MATCH(Assets!K$1&"|"&Assets!$B29,'Data Annex'!$K$1:$K$6265,0),MATCH(Assets!K$2,'Data Annex'!$K$1:$AV$1,0)),"") -> 0.2035659614 | L29: =IFERROR(INDEX('Data Annex'!$K$1:$AV$6265,MATCH(Assets!L$1&"|"&Assets!$B29,'Data Annex'!$K$1:$K$6265,0),MATCH(Assets!L$2,'Data Annex'!$K$1:$AV$1,0)),"") -> 0.2007375607 | M29: =IFERROR(INDEX('Data Annex'!$K$1:$AV$6265,MATCH(Assets!M$1&"|"&Assets!$B29,'Data Annex'!$K$1:$K$6265,0),MATCH(Assets!M$2,'Data Annex'!$K$1:$AV$1,0)),"") -> 0.1937270571 | N29: =IFERROR(INDEX('Data Annex'!$K$1:$AV$6265,MATCH(Assets!N$1&"|"&Assets!$B29,'Data Annex'!$K$1:$K$6265,0),MATCH(Assets!N$2,'Data Annex'!$K$1:$AV$1,0)),"") -> 0.5393110581 | O29: =IFERROR(INDEX('Data Annex'!$K$1:$AV$6265,MATCH(Assets!O$1&"|"&Assets!$B29,'Data Annex'!$K$1:$K$6265,0),MATCH(Assets!O$2,'Data Annex'!$K$1:$AV$1,0)),"") -> 0.5578972165 | P29: =IFERROR(INDEX('Data Annex'!$K$1:$AV$6265,MATCH(Assets!P$1&"|"&Assets!$B29,'Data Annex'!$K$1:$K$6265,0),MATCH(Assets!P$2,'Data Annex'!$K$1:$AV$1,0)),"") -> 0.5627121686 | Q29: =IFERROR(INDEX('Data Annex'!$K$1:$AV$6265,MATCH(Assets!Q$1&"|"&Assets!$B29,'Data Annex'!$K$1:$K$6265,0),MATCH(Assets!Q$2,'Data Annex'!$K$1:$AV$1,0)),"") -> 0.02827478557 | R29: =IFERROR(INDEX('Data Annex'!$K$1:$AV$6265,MATCH(Assets!R$1&"|"&Assets!$B29,'Data Annex'!$K$1:$K$6265,0),MATCH(Assets!R$2,'Data Annex'!$K$1:$AV$1,0)),"") -> 0.03438212607 | S29: =IFERROR(INDEX('Data Annex'!$K$1:$AV$6265,MATCH(Assets!S$1&"|"&Assets!$B29,'Data Annex'!$K$1:$K$6265,0),MATCH(Assets!S$2,'Data Annex'!$K$1:$AV$1,0)),"") -> 0.0432234794 | T29: =IFERROR(INDEX('Data Annex'!$K$1:$AV$6265,MATCH(Assets!T$1&"|"&Assets!$B29,'Data Annex'!$K$1:$K$6265,0),MATCH(Assets!T$2,'Data Annex'!$K$1:$AV$1,0)),"") -> 0.05180918787 | U29: =IFERROR(INDEX('Data Annex'!$K$1:$AV$6265,MATCH(Assets!U$1&"|"&Assets!$B29,'Data Annex'!$K$1:$K$6265,0),MATCH(Assets!U$2,'Data Annex'!$K$1:$AV$1,0)),"") -> 0.05081353036 | V29: =IFERROR(INDEX('Data Annex'!$K$1:$AV$6265,MATCH(Assets!V$1&"|"&Assets!$B29,'Data Annex'!$K$1:$K$6265,0),MATCH(Assets!V$2,'Data Annex'!$K$1:$AV$1,0)),"") -> 0.05135645381 | W29: =IFERROR(INDEX('Data Annex'!$K$1:$AH$6001,MATCH(Assets!AC$1&"|"&Assets!$B29,'Data Annex'!$K$1:$K$6001,0),MATCH(Assets!AC$2,'Data Annex'!$K$1:$AH$1,0)),"") -> 
B30: LI | D30: LI* | E30: =IFERROR(INDEX('Data Annex'!$K$1:$AV$6265,MATCH(Assets!E$1&"|"&Assets!$B30,'Data Annex'!$K$1:$K$6265,0),MATCH(Assets!E$2,'Data Annex'!$K$1:$AV$1,0)),"") -> 0 | F30: =IFERROR(INDEX('Data Annex'!$K$1:$AV$6265,MATCH(Assets!F$1&"|"&Assets!$B30,'Data Annex'!$K$1:$K$6265,0),MATCH(Assets!F$2,'Data Annex'!$K$1:$AV$1,0)),"") -> 0.2038087921 | G30: =IFERROR(INDEX('Data Annex'!$K$1:$AV$6265,MATCH(Assets!G$1&"|"&Assets!$B30,'Data Annex'!$K$1:$K$6265,0),MATCH(Assets!G$2,'Data Annex'!$K$1:$AV$1,0)),"") -> 0.1358477679 | H30: =IFERROR(INDEX('Data Annex'!$K$1:$AV$6265,MATCH(Assets!H$1&"|"&Assets!$B30,'Data Annex'!$K$1:$K$6265,0),MATCH(Assets!H$2,'Data Annex'!$K$1:$AV$1,0)),"") -> 0 | I30: =IFERROR(INDEX('Data Annex'!$K$1:$AV$6265,MATCH(Assets!I$1&"|"&Assets!$B30,'Data Annex'!$K$1:$K$6265,0),MATCH(Assets!I$2,'Data Annex'!$K$1:$AV$1,0)),"") -> 0.05598183019 | J30: =IFERROR(INDEX('Data Annex'!$K$1:$AV$6265,MATCH(Assets!J$1&"|"&Assets!$B30,'Data Annex'!$K$1:$K$6265,0),MATCH(Assets!J$2,'Data Annex'!$K$1:$AV$1,0)),"") -> 0.0540768903 | K30: =IFERROR(INDEX('Data Annex'!$K$1:$AV$6265,MATCH(Assets!K$1&"|"&Assets!$B30,'Data Annex'!$K$1:$K$6265,0),MATCH(Assets!K$2,'Data Annex'!$K$1:$AV$1,0)),"") -> 0 | L30: =IFERROR(INDEX('Data Annex'!$K$1:$AV$6265,MATCH(Assets!L$1&"|"&Assets!$B30,'Data Annex'!$K$1:$K$6265,0),MATCH(Assets!L$2,'Data Annex'!$K$1:$AV$1,0)),"") -> 0.1420632767 | M30: =IFERROR(INDEX('Data Annex'!$K$1:$AV$6265,MATCH(Assets!M$1&"|"&Assets!$B30,'Data Annex'!$K$1:$K$6265,0),MATCH(Assets!M$2,'Data Annex'!$K$1:$AV$1,0)),"") -> 0.2106519332 | N30: =IFERROR(INDEX('Data Annex'!$K$1:$AV$6265,MATCH(Assets!N$1&"|"&Assets!$B30,'Data Annex'!$K$1:$K$6265,0),MATCH(Assets!N$2,'Data Annex'!$K$1:$AV$1,0)),"") -> 0 | O30: =IFERROR(INDEX('Data Annex'!$K$1:$AV$6265,MATCH(Assets!O$1&"|"&Assets!$B30,'Data Annex'!$K$1:$K$6265,0),MATCH(Assets!O$2,'Data Annex'!$K$1:$AV$1,0)),"") -> 0.5335090152 | P30: =IFERROR(INDEX('Data Annex'!$K$1:$AV$6265,MATCH(Assets!P$1&"|"&Assets!$B30,'Data Annex'!$K$1:$K$6265,0),MATCH(Assets!P$2,'Data Annex'!$K$1:$AV$1,0)),"") -> 0.5337178988 | Q30: =IFERROR(INDEX('Data Annex'!$K$1:$AV$6265,MATCH(Assets!Q$1&"|"&Assets!$B30,'Data Annex'!$K$1:$K$6265,0),MATCH(Assets!Q$2,'Data Annex'!$K$1:$AV$1,0)),"") -> 0 | R30: =IFERROR(INDEX('Data Annex'!$K$1:$AV$6265,MATCH(Assets!R$1&"|"&Assets!$B30,'Data Annex'!$K$1:$K$6265,0),MATCH(Assets!R$2,'Data Annex'!$K$1:$AV$1,0)),"") -> 0.02315670699 | S30: =IFERROR(INDEX('Data Annex'!$K$1:$AV$6265,MATCH(Assets!S$1&"|"&Assets!$B30,'Data Annex'!$K$1:$K$6265,0),MATCH(Assets!S$2,'Data Annex'!$K$1:$AV$1,0)),"") -> 0.02541976915 | T30: =IFERROR(INDEX('Data Annex'!$K$1:$AV$6265,MATCH(Assets!T$1&"|"&Assets!$B30,'Data Annex'!$K$1:$K$6265,0),MATCH(Assets!T$2,'Data Annex'!$K$1:$AV$1,0)),"") -> 0 | U30: =IFERROR(INDEX('Data Annex'!$K$1:$AV$6265,MATCH(Assets!U$1&"|"&Assets!$B30,'Data Annex'!$K$1:$K$6265,0),MATCH(Assets!U$2,'Data Annex'!$K$1:$AV$1,0)),"") -> 0.04148037885 | V30: =IFERROR(INDEX('Data Annex'!$K$1:$AV$6265,MATCH(Assets!V$1&"|"&Assets!$B30,'Data Annex'!$K$1:$K$6265,0),MATCH(Assets!V$2,'Data Annex'!$K$1:$AV$1,0)),"") -> 0.04028574074
B31: LT | D31: LT | E31: =IFERROR(INDEX('Data Annex'!$K$1:$AV$6265,MATCH(Assets!E$1&"|"&Assets!$B31,'Data Annex'!$K$1:$K$6265,0),MATCH(Assets!E$2,'Data Annex'!$K$1:$AV$1,0)),"") -> 0.4059216991 | F31: =IFERROR(INDEX('Data Annex'!$K$1:$AV$6265,MATCH(Assets!F$1&"|"&Assets!$B31,'Data Annex'!$K$1:$K$6265,0),MATCH(Assets!F$2,'Data Annex'!$K$1:$AV$1,0)),"") -> 0.3335693606 | G31: =IFERROR(INDEX('Data Annex'!$K$1:$AV$6265,MATCH(Assets!G$1&"|"&Assets!$B31,'Data Annex'!$K$1:$K$6265,0),MATCH(Assets!G$2,'Data Annex'!$K$1:$AV$1,0)),"") -> 0.3606441242 | H31: =IFERROR(INDEX('Data Annex'!$K$1:$AV$6265,MATCH(Assets!H$1&"|"&Assets!$B31,'Data Annex'!$K$1:$K$6265,0),MATCH(Assets!H$2,'Data Annex'!$K$1:$AV$1,0)),"") -> 0.0002077850234 | I31: =IFERROR(INDEX('Data Annex'!$K$1:$AV$6265,MATCH(Assets!I$1&"|"&Assets!$B31,'Data Annex'!$K$1:$K$6265,0),MATCH(Assets!I$2,'Data Annex'!$K$1:$AV$1,0)),"") -> 0.0004922303122 | J31: =IFERROR(INDEX('Data Annex'!$K$1:$AV$6265,MATCH(Assets!J$1&"|"&Assets!$B31,'Data Annex'!$K$1:$K$6265,0),MATCH(Assets!J$2,'Data Annex'!$K$1:$AV$1,0)),"") -> 0.0004546475224 | K31: =IFERROR(INDEX('Data Annex'!$K$1:$AV$6265,MATCH(Assets!K$1&"|"&Assets!$B31,'Data Annex'!$K$1:$K$6265,0),MATCH(Assets!K$2,'Data Annex'!$K$1:$AV$1,0)),"") -> 0.08349667787 | L31: =IFERROR(INDEX('Data Annex'!$K$1:$AV$6265,MATCH(Assets!L$1&"|"&Assets!$B31,'Data Annex'!$K$1:$K$6265,0),MATCH(Assets!L$2,'Data Annex'!$K$1:$AV$1,0)),"") -> 0.1659579668 | M31: =IFERROR(INDEX('Data Annex'!$K$1:$AV$6265,MATCH(Assets!M$1&"|"&Assets!$B31,'Data Annex'!$K$1:$K$6265,0),MATCH(Assets!M$2,'Data Annex'!$K$1:$AV$1,0)),"") -> 0.1149782249 | N31: =IFERROR(INDEX('Data Annex'!$K$1:$AV$6265,MATCH(Assets!N$1&"|"&Assets!$B31,'Data Annex'!$K$1:$K$6265,0),MATCH(Assets!N$2,'Data Annex'!$K$1:$AV$1,0)),"") -> 0.5016913159 | O31: =IFERROR(INDEX('Data Annex'!$K$1:$AV$6265,MATCH(Assets!O$1&"|"&Assets!$B31,'Data Annex'!$K$1:$K$6265,0),MATCH(Assets!O$2,'Data Annex'!$K$1:$AV$1,0)),"") -> 0.4918096367 | P31: =IFERROR(INDEX('Data Annex'!$K$1:$AV$6265,MATCH(Assets!P$1&"|"&Assets!$B31,'Data Annex'!$K$1:$K$6265,0),MATCH(Assets!P$2,'Data Annex'!$K$1:$AV$1,0)),"") -> 0.5157140899 | Q31: =IFERROR(INDEX('Data Annex'!$K$1:$AV$6265,MATCH(Assets!Q$1&"|"&Assets!$B31,'Data Annex'!$K$1:$K$6265,0),MATCH(Assets!Q$2,'Data Annex'!$K$1:$AV$1,0)),"") -> 0.001641863166 | R31: =IFERROR(INDEX('Data Annex'!$K$1:$AV$6265,MATCH(Assets!R$1&"|"&Assets!$B31,'Data Annex'!$K$1:$K$6265,0),MATCH(Assets!R$2,'Data Annex'!$K$1:$AV$1,0)),"") -> 0.000889268405 | S31: =IFERROR(INDEX('Data Annex'!$K$1:$AV$6265,MATCH(Assets!S$1&"|"&Assets!$B31,'Data Annex'!$K$1:$K$6265,0),MATCH(Assets!S$2,'Data Annex'!$K$1:$AV$1,0)),"") -> 0.001677230301 | T31: =IFERROR(INDEX('Data Annex'!$K$1:$AV$6265,MATCH(Assets!T$1&"|"&Assets!$B31,'Data Annex'!$K$1:$K$6265,0),MATCH(Assets!T$2,'Data Annex'!$K$1:$AV$1,0)),"") -> 0.007040658957 | U31: =IFERROR(INDEX('Data Annex'!$K$1:$AV$6265,MATCH(Assets!U$1&"|"&Assets!$B31,'Data Annex'!$K$1:$K$6265,0),MATCH(Assets!U$2,'Data Annex'!$K$1:$AV$1,0)),"") -> 0.007281537195 | V31: =IFERROR(INDEX('Data Annex'!$K$1:$AV$6265,MATCH(Assets!V$1&"|"&Assets!$B31,'Data Annex'!$K$1:$K$6265,0),MATCH(Assets!V$2,'Data Annex'!$K$1:$AV$1,0)),"") -> 0.006531683297 | W31: =IFERROR(INDEX('Data Annex'!$K$1:$AH$6001,MATCH(Assets!AC$1&"|"&Assets!$B31,'Data Annex'!$K$1:$K$6001,0),MATCH(Assets!AC$2,'Data Annex'!$K$1:$AH$1,0)),"") -> 
B32: LU | D32: LU | E32: =IFERROR(INDEX('Data Annex'!$K$1:$AV$6265,MATCH(Assets!E$1&"|"&Assets!$B32,'Data Annex'!$K$1:$K$6265,0),MATCH(Assets!E$2,'Data Annex'!$K$1:$AV$1,0)),"") -> 0.2381227551 | F32: =IFERROR(INDEX('Data Annex'!$K$1:$AV$6265,MATCH(Assets!F$1&"|"&Assets!$B32,'Data Annex'!$K$1:$K$6265,0),MATCH(Assets!F$2,'Data Annex'!$K$1:$AV$1,0)),"") -> 0.2787653871 | G32: =IFERROR(INDEX('Data Annex'!$K$1:$AV$6265,MATCH(Assets!G$1&"|"&Assets!$B32,'Data Annex'!$K$1:$K$6265,0),MATCH(Assets!G$2,'Data Annex'!$K$1:$AV$1,0)),"") -> 0.2849585482 | H32: =IFERROR(INDEX('Data Annex'!$K$1:$AV$6265,MATCH(Assets!H$1&"|"&Assets!$B32,'Data Annex'!$K$1:$K$6265,0),MATCH(Assets!H$2,'Data Annex'!$K$1:$AV$1,0)),"") -> 0.005507028619 | I32: =IFERROR(INDEX('Data Annex'!$K$1:$AV$6265,MATCH(Assets!I$1&"|"&Assets!$B32,'Data Annex'!$K$1:$K$6265,0),MATCH(Assets!I$2,'Data Annex'!$K$1:$AV$1,0)),"") -> 0.005257785052 | J32: =IFERROR(INDEX('Data Annex'!$K$1:$AV$6265,MATCH(Assets!J$1&"|"&Assets!$B32,'Data Annex'!$K$1:$K$6265,0),MATCH(Assets!J$2,'Data Annex'!$K$1:$AV$1,0)),"") -> 0.004808435864 | K32: =IFERROR(INDEX('Data Annex'!$K$1:$AV$6265,MATCH(Assets!K$1&"|"&Assets!$B32,'Data Annex'!$K$1:$K$6265,0),MATCH(Assets!K$2,'Data Annex'!$K$1:$AV$1,0)),"") -> 0.1386159075 | L32: =IFERROR(INDEX('Data Annex'!$K$1:$AV$6265,MATCH(Assets!L$1&"|"&Assets!$B32,'Data Annex'!$K$1:$K$6265,0),MATCH(Assets!L$2,'Data Annex'!$K$1:$AV$1,0)),"") -> 0.1222432335 | M32: =IFERROR(INDEX('Data Annex'!$K$1:$AV$6265,MATCH(Assets!M$1&"|"&Assets!$B32,'Data Annex'!$K$1:$K$6265,0),MATCH(Assets!M$2,'Data Annex'!$K$1:$AV$1,0)),"") -> 0.1156884818 | N32: =IFERROR(INDEX('Data Annex'!$K$1:$AV$6265,MATCH(Assets!N$1&"|"&Assets!$B32,'Data Annex'!$K$1:$K$6265,0),MATCH(Assets!N$2,'Data Annex'!$K$1:$AV$1,0)),"") -> 0.5827487368 | O32: =IFERROR(INDEX('Data Annex'!$K$1:$AV$6265,MATCH(Assets!O$1&"|"&Assets!$B32,'Data Annex'!$K$1:$K$6265,0),MATCH(Assets!O$2,'Data Annex'!$K$1:$AV$1,0)),"") -> 0.5521131471 | P32: =IFERROR(INDEX('Data Annex'!$K$1:$AV$6265,MATCH(Assets!P$1&"|"&Assets!$B32,'Data Annex'!$K$1:$K$6265,0),MATCH(Assets!P$2,'Data Annex'!$K$1:$AV$1,0)),"") -> 0.5467493712 | Q32: =IFERROR(INDEX('Data Annex'!$K$1:$AV$6265,MATCH(Assets!Q$1&"|"&Assets!$B32,'Data Annex'!$K$1:$K$6265,0),MATCH(Assets!Q$2,'Data Annex'!$K$1:$AV$1,0)),"") -> 0.008932919198 | R32: =IFERROR(INDEX('Data Annex'!$K$1:$AV$6265,MATCH(Assets!R$1&"|"&Assets!$B32,'Data Annex'!$K$1:$K$6265,0),MATCH(Assets!R$2,'Data Annex'!$K$1:$AV$1,0)),"") -> 0.01555527679 | S32: =IFERROR(INDEX('Data Annex'!$K$1:$AV$6265,MATCH(Assets!S$1&"|"&Assets!$B32,'Data Annex'!$K$1:$K$6265,0),MATCH(Assets!S$2,'Data Annex'!$K$1:$AV$1,0)),"") -> 0.02287267285 | T32: =IFERROR(INDEX('Data Annex'!$K$1:$AV$6265,MATCH(Assets!T$1&"|"&Assets!$B32,'Data Annex'!$K$1:$K$6265,0),MATCH(Assets!T$2,'Data Annex'!$K$1:$AV$1,0)),"") -> 0.02607265284 | U32: =IFERROR(INDEX('Data Annex'!$K$1:$AV$6265,MATCH(Assets!U$1&"|"&Assets!$B32,'Data Annex'!$K$1:$K$6265,0),MATCH(Assets!U$2,'Data Annex'!$K$1:$AV$1,0)),"") -> 0.02606517056 | V32: =IFERROR(INDEX('Data Annex'!$K$1:$AV$6265,MATCH(Assets!V$1&"|"&Assets!$B32,'Data Annex'!$K$1:$K$6265,0),MATCH(Assets!V$2,'Data Annex'!$K$1:$AV$1,0)),"") -> 0.02492249016 | W32: =IFERROR(INDEX('Data Annex'!$K$1:$AH$6001,MATCH(Assets!AC$1&"|"&Assets!$B32,'Data Annex'!$K$1:$K$6001,0),MATCH(Assets!AC$2,'Data Annex'!$K$1:$AH$1,0)),"") -> 
B33: LV | D33: LV | E33: =IFERROR(INDEX('Data Annex'!$K$1:$AV$6265,MATCH(Assets!E$1&"|"&Assets!$B33,'Data Annex'!$K$1:$K$6265,0),MATCH(Assets!E$2,'Data Annex'!$K$1:$AV$1,0)),"") -> 0.2667410322 | F33: =IFERROR(INDEX('Data Annex'!$K$1:$AV$6265,MATCH(Assets!F$1&"|"&Assets!$B33,'Data Annex'!$K$1:$K$6265,0),MATCH(Assets!F$2,'Data Annex'!$K$1:$AV$1,0)),"") -> 0.3041420785 | G33: =IFERROR(INDEX('Data Annex'!$K$1:$AV$6265,MATCH(Assets!G$1&"|"&Assets!$B33,'Data Annex'!$K$1:$K$6265,0),MATCH(Assets!G$2,'Data Annex'!$K$1:$AV$1,0)),"") -> 0.3109241408 | H33: =IFERROR(INDEX('Data Annex'!$K$1:$AV$6265,MATCH(Assets!H$1&"|"&Assets!$B33,'Data Annex'!$K$1:$K$6265,0),MATCH(Assets!H$2,'Data Annex'!$K$1:$AV$1,0)),"") -> 0.0005345867797 | I33: =IFERROR(INDEX('Data Annex'!$K$1:$AV$6265,MATCH(Assets!I$1&"|"&Assets!$B33,'Data Annex'!$K$1:$K$6265,0),MATCH(Assets!I$2,'Data Annex'!$K$1:$AV$1,0)),"") -> 0.0001209761571 | J33: =IFERROR(INDEX('Data Annex'!$K$1:$AV$6265,MATCH(Assets!J$1&"|"&Assets!$B33,'Data Annex'!$K$1:$K$6265,0),MATCH(Assets!J$2,'Data Annex'!$K$1:$AV$1,0)),"") -> 9.017688358e-05 | K33: =IFERROR(INDEX('Data Annex'!$K$1:$AV$6265,MATCH(Assets!K$1&"|"&Assets!$B33,'Data Annex'!$K$1:$K$6265,0),MATCH(Assets!K$2,'Data Annex'!$K$1:$AV$1,0)),"") -> 0.1750316976 | L33: =IFERROR(INDEX('Data Annex'!$K$1:$AV$6265,MATCH(Assets!L$1&"|"&Assets!$B33,'Data Annex'!$K$1:$K$6265,0),MATCH(Assets!L$2,'Data Annex'!$K$1:$AV$1,0)),"") -> 0.1321313992 | M33: =IFERROR(INDEX('Data Annex'!$K$1:$AV$6265,MATCH(Assets!M$1&"|"&Assets!$B33,'Data Annex'!$K$1:$K$6265,0),MATCH(Assets!M$2,'Data Annex'!$K$1:$AV$1,0)),"") -> 0.1082653331 | N33: =IFERROR(INDEX('Data Annex'!$K$1:$AV$6265,MATCH(Assets!N$1&"|"&Assets!$B33,'Data Annex'!$K$1:$K$6265,0),MATCH(Assets!N$2,'Data Annex'!$K$1:$AV$1,0)),"") -> 0.5467518732 | O33: =IFERROR(INDEX('Data Annex'!$K$1:$AV$6265,MATCH(Assets!O$1&"|"&Assets!$B33,'Data Annex'!$K$1:$K$6265,0),MATCH(Assets!O$2,'Data Annex'!$K$1:$AV$1,0)),"") -> 0.5518882507 | P33: =IFERROR(INDEX('Data Annex'!$K$1:$AV$6265,MATCH(Assets!P$1&"|"&Assets!$B33,'Data Annex'!$K$1:$K$6265,0),MATCH(Assets!P$2,'Data Annex'!$K$1:$AV$1,0)),"") -> 0.5687201914 | Q33: =IFERROR(INDEX('Data Annex'!$K$1:$AV$6265,MATCH(Assets!Q$1&"|"&Assets!$B33,'Data Annex'!$K$1:$K$6265,0),MATCH(Assets!Q$2,'Data Annex'!$K$1:$AV$1,0)),"") -> 0.001325334877 | R33: =IFERROR(INDEX('Data Annex'!$K$1:$AV$6265,MATCH(Assets!R$1&"|"&Assets!$B33,'Data Annex'!$K$1:$K$6265,0),MATCH(Assets!R$2,'Data Annex'!$K$1:$AV$1,0)),"") -> 0.001868815664 | S33: =IFERROR(INDEX('Data Annex'!$K$1:$AV$6265,MATCH(Assets!S$1&"|"&Assets!$B33,'Data Annex'!$K$1:$K$6265,0),MATCH(Assets!S$2,'Data Annex'!$K$1:$AV$1,0)),"") -> 0.002235252239 | T33: =IFERROR(INDEX('Data Annex'!$K$1:$AV$6265,MATCH(Assets!T$1&"|"&Assets!$B33,'Data Annex'!$K$1:$K$6265,0),MATCH(Assets!T$2,'Data Annex'!$K$1:$AV$1,0)),"") -> 0.009615475426 | U33: =IFERROR(INDEX('Data Annex'!$K$1:$AV$6265,MATCH(Assets!U$1&"|"&Assets!$B33,'Data Annex'!$K$1:$K$6265,0),MATCH(Assets!U$2,'Data Annex'!$K$1:$AV$1,0)),"") -> 0.009848479671 | V33: =IFERROR(INDEX('Data Annex'!$K$1:$AV$6265,MATCH(Assets!V$1&"|"&Assets!$B33,'Data Annex'!$K$1:$K$6265,0),MATCH(Assets!V$2,'Data Annex'!$K$1:$AV$1,0)),"") -> 0.009764905561 | W33: =IFERROR(INDEX('Data Annex'!$K$1:$AH$6001,MATCH(Assets!AC$1&"|"&Assets!$B33,'Data Annex'!$K$1:$K$6001,0),MATCH(Assets!AC$2,'Data Annex'!$K$1:$AH$1,0)),"") -> 
B34: MT | D34: MT | E34: =IFERROR(INDEX('Data Annex'!$K$1:$AV$6265,MATCH(Assets!E$1&"|"&Assets!$B34,'Data Annex'!$K$1:$K$6265,0),MATCH(Assets!E$2,'Data Annex'!$K$1:$AV$1,0)),"") -> 0.2518097436 | F34: =IFERROR(INDEX('Data Annex'!$K$1:$AV$6265,MATCH(Assets!F$1&"|"&Assets!$B34,'Data Annex'!$K$1:$K$6265,0),MATCH(Assets!F$2,'Data Annex'!$K$1:$AV$1,0)),"") -> 0.2529641569 | G34: =IFERROR(INDEX('Data Annex'!$K$1:$AV$6265,MATCH(Assets!G$1&"|"&Assets!$B34,'Data Annex'!$K$1:$K$6265,0),MATCH(Assets!G$2,'Data Annex'!$K$1:$AV$1,0)),"") -> 0.04130803395 | H34: =IFERROR(INDEX('Data Annex'!$K$1:$AV$6265,MATCH(Assets!H$1&"|"&Assets!$B34,'Data Annex'!$K$1:$K$6265,0),MATCH(Assets!H$2,'Data Annex'!$K$1:$AV$1,0)),"") -> 0.002246247761 | I34: =IFERROR(INDEX('Data Annex'!$K$1:$AV$6265,MATCH(Assets!I$1&"|"&Assets!$B34,'Data Annex'!$K$1:$K$6265,0),MATCH(Assets!I$2,'Data Annex'!$K$1:$AV$1,0)),"") -> 0.00199675014 | J34: =IFERROR(INDEX('Data Annex'!$K$1:$AV$6265,MATCH(Assets!J$1&"|"&Assets!$B34,'Data Annex'!$K$1:$K$6265,0),MATCH(Assets!J$2,'Data Annex'!$K$1:$AV$1,0)),"") -> 0.002312245607 | K34: =IFERROR(INDEX('Data Annex'!$K$1:$AV$6265,MATCH(Assets!K$1&"|"&Assets!$B34,'Data Annex'!$K$1:$K$6265,0),MATCH(Assets!K$2,'Data Annex'!$K$1:$AV$1,0)),"") -> 0.2485085586 | L34: =IFERROR(INDEX('Data Annex'!$K$1:$AV$6265,MATCH(Assets!L$1&"|"&Assets!$B34,'Data Annex'!$K$1:$K$6265,0),MATCH(Assets!L$2,'Data Annex'!$K$1:$AV$1,0)),"") -> 0.2561561168 | M34: =IFERROR(INDEX('Data Annex'!$K$1:$AV$6265,MATCH(Assets!M$1&"|"&Assets!$B34,'Data Annex'!$K$1:$K$6265,0),MATCH(Assets!M$2,'Data Annex'!$K$1:$AV$1,0)),"") -> 0.2780496973 | N34: =IFERROR(INDEX('Data Annex'!$K$1:$AV$6265,MATCH(Assets!N$1&"|"&Assets!$B34,'Data Annex'!$K$1:$K$6265,0),MATCH(Assets!N$2,'Data Annex'!$K$1:$AV$1,0)),"") -> 0.4685381111 | O34: =IFERROR(INDEX('Data Annex'!$K$1:$AV$6265,MATCH(Assets!O$1&"|"&Assets!$B34,'Data Annex'!$K$1:$K$6265,0),MATCH(Assets!O$2,'Data Annex'!$K$1:$AV$1,0)),"") -> 0.4588454083 | P34: =IFERROR(INDEX('Data Annex'!$K$1:$AV$6265,MATCH(Assets!P$1&"|"&Assets!$B34,'Data Annex'!$K$1:$K$6265,0),MATCH(Assets!P$2,'Data Annex'!$K$1:$AV$1,0)),"") -> 0.6488005706 | Q34: =IFERROR(INDEX('Data Annex'!$K$1:$AV$6265,MATCH(Assets!Q$1&"|"&Assets!$B34,'Data Annex'!$K$1:$K$6265,0),MATCH(Assets!Q$2,'Data Annex'!$K$1:$AV$1,0)),"") -> 0.001296981515 | R34: =IFERROR(INDEX('Data Annex'!$K$1:$AV$6265,MATCH(Assets!R$1&"|"&Assets!$B34,'Data Annex'!$K$1:$K$6265,0),MATCH(Assets!R$2,'Data Annex'!$K$1:$AV$1,0)),"") -> 0.008316447689 | S34: =IFERROR(INDEX('Data Annex'!$K$1:$AV$6265,MATCH(Assets!S$1&"|"&Assets!$B34,'Data Annex'!$K$1:$K$6265,0),MATCH(Assets!S$2,'Data Annex'!$K$1:$AV$1,0)),"") -> 0.01112229614 | T34: =IFERROR(INDEX('Data Annex'!$K$1:$AV$6265,MATCH(Assets!T$1&"|"&Assets!$B34,'Data Annex'!$K$1:$K$6265,0),MATCH(Assets!T$2,'Data Annex'!$K$1:$AV$1,0)),"") -> 0.02760035746 | U34: =IFERROR(INDEX('Data Annex'!$K$1:$AV$6265,MATCH(Assets!U$1&"|"&Assets!$B34,'Data Annex'!$K$1:$K$6265,0),MATCH(Assets!U$2,'Data Annex'!$K$1:$AV$1,0)),"") -> 0.02172112009 | V34: =IFERROR(INDEX('Data Annex'!$K$1:$AV$6265,MATCH(Assets!V$1&"|"&Assets!$B34,'Data Annex'!$K$1:$K$6265,0),MATCH(Assets!V$2,'Data Annex'!$K$1:$AV$1,0)),"") -> 0.0184071724 | W34: =IFERROR(INDEX('Data Annex'!$K$1:$AH$6001,MATCH(Assets!AC$1&"|"&Assets!$B34,'Data Annex'!$K$1:$K$6001,0),MATCH(Assets!AC$2,'Data Annex'!$K$1:$AH$1,0)),"") -> 
B35: NL | D35: NL | E35: =IFERROR(INDEX('Data Annex'!$K$1:$AV$6265,MATCH(Assets!E$1&"|"&Assets!$B35,'Data Annex'!$K$1:$K$6265,0),MATCH(Assets!E$2,'Data Annex'!$K$1:$AV$1,0)),"") -> 0.1671112245 | F35: =IFERROR(INDEX('Data Annex'!$K$1:$AV$6265,MATCH(Assets!F$1&"|"&Assets!$B35,'Data Annex'!$K$1:$K$6265,0),MATCH(Assets!F$2,'Data Annex'!$K$1:$AV$1,0)),"") -> 0.1646728316 | G35: =IFERROR(INDEX('Data Annex'!$K$1:$AV$6265,MATCH(Assets!G$1&"|"&Assets!$B35,'Data Annex'!$K$1:$K$6265,0),MATCH(Assets!G$2,'Data Annex'!$K$1:$AV$1,0)),"") -> 0.1885044199 | H35: =IFERROR(INDEX('Data Annex'!$K$1:$AV$6265,MATCH(Assets!H$1&"|"&Assets!$B35,'Data Annex'!$K$1:$K$6265,0),MATCH(Assets!H$2,'Data Annex'!$K$1:$AV$1,0)),"") -> 0.008960756774 | I35: =IFERROR(INDEX('Data Annex'!$K$1:$AV$6265,MATCH(Assets!I$1&"|"&Assets!$B35,'Data Annex'!$K$1:$K$6265,0),MATCH(Assets!I$2,'Data Annex'!$K$1:$AV$1,0)),"") -> 0.006758753569 | J35: =IFERROR(INDEX('Data Annex'!$K$1:$AV$6265,MATCH(Assets!J$1&"|"&Assets!$B35,'Data Annex'!$K$1:$K$6265,0),MATCH(Assets!J$2,'Data Annex'!$K$1:$AV$1,0)),"") -> 0.005211312449 | K35: =IFERROR(INDEX('Data Annex'!$K$1:$AV$6265,MATCH(Assets!K$1&"|"&Assets!$B35,'Data Annex'!$K$1:$K$6265,0),MATCH(Assets!K$2,'Data Annex'!$K$1:$AV$1,0)),"") -> 0.07287634258 | L35: =IFERROR(INDEX('Data Annex'!$K$1:$AV$6265,MATCH(Assets!L$1&"|"&Assets!$B35,'Data Annex'!$K$1:$K$6265,0),MATCH(Assets!L$2,'Data Annex'!$K$1:$AV$1,0)),"") -> 0.07091859864 | M35: =IFERROR(INDEX('Data Annex'!$K$1:$AV$6265,MATCH(Assets!M$1&"|"&Assets!$B35,'Data Annex'!$K$1:$K$6265,0),MATCH(Assets!M$2,'Data Annex'!$K$1:$AV$1,0)),"") -> 0.06660930848 | N35: =IFERROR(INDEX('Data Annex'!$K$1:$AV$6265,MATCH(Assets!N$1&"|"&Assets!$B35,'Data Annex'!$K$1:$K$6265,0),MATCH(Assets!N$2,'Data Annex'!$K$1:$AV$1,0)),"") -> 0.6889899875 | O35: =IFERROR(INDEX('Data Annex'!$K$1:$AV$6265,MATCH(Assets!O$1&"|"&Assets!$B35,'Data Annex'!$K$1:$K$6265,0),MATCH(Assets!O$2,'Data Annex'!$K$1:$AV$1,0)),"") -> 0.7088658342 | P35: =IFERROR(INDEX('Data Annex'!$K$1:$AV$6265,MATCH(Assets!P$1&"|"&Assets!$B35,'Data Annex'!$K$1:$K$6265,0),MATCH(Assets!P$2,'Data Annex'!$K$1:$AV$1,0)),"") -> 0.6913461935 | Q35: =IFERROR(INDEX('Data Annex'!$K$1:$AV$6265,MATCH(Assets!Q$1&"|"&Assets!$B35,'Data Annex'!$K$1:$K$6265,0),MATCH(Assets!Q$2,'Data Annex'!$K$1:$AV$1,0)),"") -> 0.02456960802 | R35: =IFERROR(INDEX('Data Annex'!$K$1:$AV$6265,MATCH(Assets!R$1&"|"&Assets!$B35,'Data Annex'!$K$1:$K$6265,0),MATCH(Assets!R$2,'Data Annex'!$K$1:$AV$1,0)),"") -> 0.03193846953 | S35: =IFERROR(INDEX('Data Annex'!$K$1:$AV$6265,MATCH(Assets!S$1&"|"&Assets!$B35,'Data Annex'!$K$1:$K$6265,0),MATCH(Assets!S$2,'Data Annex'!$K$1:$AV$1,0)),"") -> 0.03921517223 | T35: =IFERROR(INDEX('Data Annex'!$K$1:$AV$6265,MATCH(Assets!T$1&"|"&Assets!$B35,'Data Annex'!$K$1:$K$6265,0),MATCH(Assets!T$2,'Data Annex'!$K$1:$AV$1,0)),"") -> 0.03749208064 | U35: =IFERROR(INDEX('Data Annex'!$K$1:$AV$6265,MATCH(Assets!U$1&"|"&Assets!$B35,'Data Annex'!$K$1:$K$6265,0),MATCH(Assets!U$2,'Data Annex'!$K$1:$AV$1,0)),"") -> 0.01684551246 | V35: =IFERROR(INDEX('Data Annex'!$K$1:$AV$6265,MATCH(Assets!V$1&"|"&Assets!$B35,'Data Annex'!$K$1:$K$6265,0),MATCH(Assets!V$2,'Data Annex'!$K$1:$AV$1,0)),"") -> 0.009113593483 | W35: =IFERROR(INDEX('Data Annex'!$K$1:$AH$6001,MATCH(Assets!AC$1&"|"&Assets!$B35,'Data Annex'!$K$1:$K$6001,0),MATCH(Assets!AC$2,'Data Annex'!$K$1:$AH$1,0)),"") -> 
B36: NO | D36: NO* | E36: =IFERROR(INDEX('Data Annex'!$K$1:$AV$6265,MATCH(Assets!E$1&"|"&Assets!$B36,'Data Annex'!$K$1:$K$6265,0),MATCH(Assets!E$2,'Data Annex'!$K$1:$AV$1,0)),"") -> 0 | F36: =IFERROR(INDEX('Data Annex'!$K$1:$AV$6265,MATCH(Assets!F$1&"|"&Assets!$B36,'Data Annex'!$K$1:$K$6265,0),MATCH(Assets!F$2,'Data Annex'!$K$1:$AV$1,0)),"") -> 0.1056025438 | G36: =IFERROR(INDEX('Data Annex'!$K$1:$AV$6265,MATCH(Assets!G$1&"|"&Assets!$B36,'Data Annex'!$K$1:$K$6265,0),MATCH(Assets!G$2,'Data Annex'!$K$1:$AV$1,0)),"") -> 0.1231294544 | H36: =IFERROR(INDEX('Data Annex'!$K$1:$AV$6265,MATCH(Assets!H$1&"|"&Assets!$B36,'Data Annex'!$K$1:$K$6265,0),MATCH(Assets!H$2,'Data Annex'!$K$1:$AV$1,0)),"") -> 0 | I36: =IFERROR(INDEX('Data Annex'!$K$1:$AV$6265,MATCH(Assets!I$1&"|"&Assets!$B36,'Data Annex'!$K$1:$K$6265,0),MATCH(Assets!I$2,'Data Annex'!$K$1:$AV$1,0)),"") -> 0.003418083837 | J36: =IFERROR(INDEX('Data Annex'!$K$1:$AV$6265,MATCH(Assets!J$1&"|"&Assets!$B36,'Data Annex'!$K$1:$K$6265,0),MATCH(Assets!J$2,'Data Annex'!$K$1:$AV$1,0)),"") -> 0.002854235967 | K36: =IFERROR(INDEX('Data Annex'!$K$1:$AV$6265,MATCH(Assets!K$1&"|"&Assets!$B36,'Data Annex'!$K$1:$K$6265,0),MATCH(Assets!K$2,'Data Annex'!$K$1:$AV$1,0)),"") -> 0 | L36: =IFERROR(INDEX('Data Annex'!$K$1:$AV$6265,MATCH(Assets!L$1&"|"&Assets!$B36,'Data Annex'!$K$1:$K$6265,0),MATCH(Assets!L$2,'Data Annex'!$K$1:$AV$1,0)),"") -> 0.1048184548 | M36: =IFERROR(INDEX('Data Annex'!$K$1:$AV$6265,MATCH(Assets!M$1&"|"&Assets!$B36,'Data Annex'!$K$1:$K$6265,0),MATCH(Assets!M$2,'Data Annex'!$K$1:$AV$1,0)),"") -> 0.09746787724 | N36: =IFERROR(INDEX('Data Annex'!$K$1:$AV$6265,MATCH(Assets!N$1&"|"&Assets!$B36,'Data Annex'!$K$1:$K$6265,0),MATCH(Assets!N$2,'Data Annex'!$K$1:$AV$1,0)),"") -> 0 | O36: =IFERROR(INDEX('Data Annex'!$K$1:$AV$6265,MATCH(Assets!O$1&"|"&Assets!$B36,'Data Annex'!$K$1:$K$6265,0),MATCH(Assets!O$2,'Data Annex'!$K$1:$AV$1,0)),"") -> 0.6883370041 | P36: =IFERROR(INDEX('Data Annex'!$K$1:$AV$6265,MATCH(Assets!P$1&"|"&Assets!$B36,'Data Annex'!$K$1:$K$6265,0),MATCH(Assets!P$2,'Data Annex'!$K$1:$AV$1,0)),"") -> 0.6610663037 | Q36: =IFERROR(INDEX('Data Annex'!$K$1:$AV$6265,MATCH(Assets!Q$1&"|"&Assets!$B36,'Data Annex'!$K$1:$K$6265,0),MATCH(Assets!Q$2,'Data Annex'!$K$1:$AV$1,0)),"") -> 0 | R36: =IFERROR(INDEX('Data Annex'!$K$1:$AV$6265,MATCH(Assets!R$1&"|"&Assets!$B36,'Data Annex'!$K$1:$K$6265,0),MATCH(Assets!R$2,'Data Annex'!$K$1:$AV$1,0)),"") -> 0.07181767465 | S36: =IFERROR(INDEX('Data Annex'!$K$1:$AV$6265,MATCH(Assets!S$1&"|"&Assets!$B36,'Data Annex'!$K$1:$K$6265,0),MATCH(Assets!S$2,'Data Annex'!$K$1:$AV$1,0)),"") -> 0.09019131047 | T36: =IFERROR(INDEX('Data Annex'!$K$1:$AV$6265,MATCH(Assets!T$1&"|"&Assets!$B36,'Data Annex'!$K$1:$K$6265,0),MATCH(Assets!T$2,'Data Annex'!$K$1:$AV$1,0)),"") -> 0 | U36: =IFERROR(INDEX('Data Annex'!$K$1:$AV$6265,MATCH(Assets!U$1&"|"&Assets!$B36,'Data Annex'!$K$1:$K$6265,0),MATCH(Assets!U$2,'Data Annex'!$K$1:$AV$1,0)),"") -> 0.02600623882 | V36: =IFERROR(INDEX('Data Annex'!$K$1:$AV$6265,MATCH(Assets!V$1&"|"&Assets!$B36,'Data Annex'!$K$1:$K$6265,0),MATCH(Assets!V$2,'Data Annex'!$K$1:$AV$1,0)),"") -> 0.0252908182 | W36: =IFERROR(INDEX('Data Annex'!$K$1:$AH$6001,MATCH(Assets!AC$1&"|"&Assets!$B36,'Data Annex'!$K$1:$K$6001,0),MATCH(Assets!AC$2,'Data Annex'!$K$1:$AH$1,0)),"") -> 
B37: PL | D37: PL | E37: =IFERROR(INDEX('Data Annex'!$K$1:$AV$6265,MATCH(Assets!E$1&"|"&Assets!$B37,'Data Annex'!$K$1:$K$6265,0),MATCH(Assets!E$2,'Data Annex'!$K$1:$AV$1,0)),"") -> 0.0225519107 | F37: =IFERROR(INDEX('Data Annex'!$K$1:$AV$6265,MATCH(Assets!F$1&"|"&Assets!$B37,'Data Annex'!$K$1:$K$6265,0),MATCH(Assets!F$2,'Data Annex'!$K$1:$AV$1,0)),"") -> 0.04266267251 | G37: =IFERROR(INDEX('Data Annex'!$K$1:$AV$6265,MATCH(Assets!G$1&"|"&Assets!$B37,'Data Annex'!$K$1:$K$6265,0),MATCH(Assets!G$2,'Data Annex'!$K$1:$AV$1,0)),"") -> 0.04953778529 | H37: =IFERROR(INDEX('Data Annex'!$K$1:$AV$6265,MATCH(Assets!H$1&"|"&Assets!$B37,'Data Annex'!$K$1:$K$6265,0),MATCH(Assets!H$2,'Data Annex'!$K$1:$AV$1,0)),"") -> 0.002727392207 | I37: =IFERROR(INDEX('Data Annex'!$K$1:$AV$6265,MATCH(Assets!I$1&"|"&Assets!$B37,'Data Annex'!$K$1:$K$6265,0),MATCH(Assets!I$2,'Data Annex'!$K$1:$AV$1,0)),"") -> 0.001115438722 | J37: =IFERROR(INDEX('Data Annex'!$K$1:$AV$6265,MATCH(Assets!J$1&"|"&Assets!$B37,'Data Annex'!$K$1:$K$6265,0),MATCH(Assets!J$2,'Data Annex'!$K$1:$AV$1,0)),"") -> 0.001934022554 | K37: =IFERROR(INDEX('Data Annex'!$K$1:$AV$6265,MATCH(Assets!K$1&"|"&Assets!$B37,'Data Annex'!$K$1:$K$6265,0),MATCH(Assets!K$2,'Data Annex'!$K$1:$AV$1,0)),"") -> 0.3092051983 | L37: =IFERROR(INDEX('Data Annex'!$K$1:$AV$6265,MATCH(Assets!L$1&"|"&Assets!$B37,'Data Annex'!$K$1:$K$6265,0),MATCH(Assets!L$2,'Data Annex'!$K$1:$AV$1,0)),"") -> 0.2695761073 | M37: =IFERROR(INDEX('Data Annex'!$K$1:$AV$6265,MATCH(Assets!M$1&"|"&Assets!$B37,'Data Annex'!$K$1:$K$6265,0),MATCH(Assets!M$2,'Data Annex'!$K$1:$AV$1,0)),"") -> 0.2520736803 | N37: =IFERROR(INDEX('Data Annex'!$K$1:$AV$6265,MATCH(Assets!N$1&"|"&Assets!$B37,'Data Annex'!$K$1:$K$6265,0),MATCH(Assets!N$2,'Data Annex'!$K$1:$AV$1,0)),"") -> 0.6115369835 | O37: =IFERROR(INDEX('Data Annex'!$K$1:$AV$6265,MATCH(Assets!O$1&"|"&Assets!$B37,'Data Annex'!$K$1:$K$6265,0),MATCH(Assets!O$2,'Data Annex'!$K$1:$AV$1,0)),"") -> 0.6014977404 | P37: =IFERROR(INDEX('Data Annex'!$K$1:$AV$6265,MATCH(Assets!P$1&"|"&Assets!$B37,'Data Annex'!$K$1:$K$6265,0),MATCH(Assets!P$2,'Data Annex'!$K$1:$AV$1,0)),"") -> 0.6113758008 | Q37: =IFERROR(INDEX('Data Annex'!$K$1:$AV$6265,MATCH(Assets!Q$1&"|"&Assets!$B37,'Data Annex'!$K$1:$K$6265,0),MATCH(Assets!Q$2,'Data Annex'!$K$1:$AV$1,0)),"") -> 0.02041932499 | R37: =IFERROR(INDEX('Data Annex'!$K$1:$AV$6265,MATCH(Assets!R$1&"|"&Assets!$B37,'Data Annex'!$K$1:$K$6265,0),MATCH(Assets!R$2,'Data Annex'!$K$1:$AV$1,0)),"") -> 0.05058713192 | S37: =IFERROR(INDEX('Data Annex'!$K$1:$AV$6265,MATCH(Assets!S$1&"|"&Assets!$B37,'Data Annex'!$K$1:$K$6265,0),MATCH(Assets!S$2,'Data Annex'!$K$1:$AV$1,0)),"") -> 0.05137915819 | T37: =IFERROR(INDEX('Data Annex'!$K$1:$AV$6265,MATCH(Assets!T$1&"|"&Assets!$B37,'Data Annex'!$K$1:$K$6265,0),MATCH(Assets!T$2,'Data Annex'!$K$1:$AV$1,0)),"") -> 0.03355919024 | U37: =IFERROR(INDEX('Data Annex'!$K$1:$AV$6265,MATCH(Assets!U$1&"|"&Assets!$B37,'Data Annex'!$K$1:$K$6265,0),MATCH(Assets!U$2,'Data Annex'!$K$1:$AV$1,0)),"") -> 0.0345609091 | V37: =IFERROR(INDEX('Data Annex'!$K$1:$AV$6265,MATCH(Assets!V$1&"|"&Assets!$B37,'Data Annex'!$K$1:$K$6265,0),MATCH(Assets!V$2,'Data Annex'!$K$1:$AV$1,0)),"") -> 0.03369955287 | W37: =IFERROR(INDEX('Data Annex'!$K$1:$AH$6001,MATCH(Assets!AC$1&"|"&Assets!$B37,'Data Annex'!$K$1:$K$6001,0),MATCH(Assets!AC$2,'Data Annex'!$K$1:$AH$1,0)),"") -> 
B38: PT | D38: PT | E38: =IFERROR(INDEX('Data Annex'!$K$1:$AV$6265,MATCH(Assets!E$1&"|"&Assets!$B38,'Data Annex'!$K$1:$K$6265,0),MATCH(Assets!E$2,'Data Annex'!$K$1:$AV$1,0)),"") -> 0.141993541 | F38: =IFERROR(INDEX('Data Annex'!$K$1:$AV$6265,MATCH(Assets!F$1&"|"&Assets!$B38,'Data Annex'!$K$1:$K$6265,0),MATCH(Assets!F$2,'Data Annex'!$K$1:$AV$1,0)),"") -> 0.16373061 | G38: =IFERROR(INDEX('Data Annex'!$K$1:$AV$6265,MATCH(Assets!G$1&"|"&Assets!$B38,'Data Annex'!$K$1:$K$6265,0),MATCH(Assets!G$2,'Data Annex'!$K$1:$AV$1,0)),"") -> 0.05501663612 | H38: =IFERROR(INDEX('Data Annex'!$K$1:$AV$6265,MATCH(Assets!H$1&"|"&Assets!$B38,'Data Annex'!$K$1:$K$6265,0),MATCH(Assets!H$2,'Data Annex'!$K$1:$AV$1,0)),"") -> 0.01112312469 | I38: =IFERROR(INDEX('Data Annex'!$K$1:$AV$6265,MATCH(Assets!I$1&"|"&Assets!$B38,'Data Annex'!$K$1:$K$6265,0),MATCH(Assets!I$2,'Data Annex'!$K$1:$AV$1,0)),"") -> 0.01003443799 | J38: =IFERROR(INDEX('Data Annex'!$K$1:$AV$6265,MATCH(Assets!J$1&"|"&Assets!$B38,'Data Annex'!$K$1:$K$6265,0),MATCH(Assets!J$2,'Data Annex'!$K$1:$AV$1,0)),"") -> 0.009671635668 | K38: =IFERROR(INDEX('Data Annex'!$K$1:$AV$6265,MATCH(Assets!K$1&"|"&Assets!$B38,'Data Annex'!$K$1:$K$6265,0),MATCH(Assets!K$2,'Data Annex'!$K$1:$AV$1,0)),"") -> 0.2124527957 | L38: =IFERROR(INDEX('Data Annex'!$K$1:$AV$6265,MATCH(Assets!L$1&"|"&Assets!$B38,'Data Annex'!$K$1:$K$6265,0),MATCH(Assets!L$2,'Data Annex'!$K$1:$AV$1,0)),"") -> 0.2005132438 | M38: =IFERROR(INDEX('Data Annex'!$K$1:$AV$6265,MATCH(Assets!M$1&"|"&Assets!$B38,'Data Annex'!$K$1:$K$6265,0),MATCH(Assets!M$2,'Data Annex'!$K$1:$AV$1,0)),"") -> 0.1973832161 | N38: =IFERROR(INDEX('Data Annex'!$K$1:$AV$6265,MATCH(Assets!N$1&"|"&Assets!$B38,'Data Annex'!$K$1:$K$6265,0),MATCH(Assets!N$2,'Data Annex'!$K$1:$AV$1,0)),"") -> 0.5671328525 | O38: =IFERROR(INDEX('Data Annex'!$K$1:$AV$6265,MATCH(Assets!O$1&"|"&Assets!$B38,'Data Annex'!$K$1:$K$6265,0),MATCH(Assets!O$2,'Data Annex'!$K$1:$AV$1,0)),"") -> 0.5594234035 | P38: =IFERROR(INDEX('Data Annex'!$K$1:$AV$6265,MATCH(Assets!P$1&"|"&Assets!$B38,'Data Annex'!$K$1:$K$6265,0),MATCH(Assets!P$2,'Data Annex'!$K$1:$AV$1,0)),"") -> 0.6683255241 | Q38: =IFERROR(INDEX('Data Annex'!$K$1:$AV$6265,MATCH(Assets!Q$1&"|"&Assets!$B38,'Data Annex'!$K$1:$K$6265,0),MATCH(Assets!Q$2,'Data Annex'!$K$1:$AV$1,0)),"") -> 0.006970165536 | R38: =IFERROR(INDEX('Data Annex'!$K$1:$AV$6265,MATCH(Assets!R$1&"|"&Assets!$B38,'Data Annex'!$K$1:$K$6265,0),MATCH(Assets!R$2,'Data Annex'!$K$1:$AV$1,0)),"") -> 0.008656277519 | S38: =IFERROR(INDEX('Data Annex'!$K$1:$AV$6265,MATCH(Assets!S$1&"|"&Assets!$B38,'Data Annex'!$K$1:$K$6265,0),MATCH(Assets!S$2,'Data Annex'!$K$1:$AV$1,0)),"") -> 0.01123704394 | T38: =IFERROR(INDEX('Data Annex'!$K$1:$AV$6265,MATCH(Assets!T$1&"|"&Assets!$B38,'Data Annex'!$K$1:$K$6265,0),MATCH(Assets!T$2,'Data Annex'!$K$1:$AV$1,0)),"") -> 0.06032752051 | U38: =IFERROR(INDEX('Data Annex'!$K$1:$AV$6265,MATCH(Assets!U$1&"|"&Assets!$B38,'Data Annex'!$K$1:$K$6265,0),MATCH(Assets!U$2,'Data Annex'!$K$1:$AV$1,0)),"") -> 0.05764202715 | V38: =IFERROR(INDEX('Data Annex'!$K$1:$AV$6265,MATCH(Assets!V$1&"|"&Assets!$B38,'Data Annex'!$K$1:$K$6265,0),MATCH(Assets!V$2,'Data Annex'!$K$1:$AV$1,0)),"") -> 0.05836594405 | W38: =IFERROR(INDEX('Data Annex'!$K$1:$AH$6001,MATCH(Assets!AC$1&"|"&Assets!$B38,'Data Annex'!$K$1:$K$6001,0),MATCH(Assets!AC$2,'Data Annex'!$K$1:$AH$1,0)),"") -> 
B39: RO | D39: RO | E39: =IFERROR(INDEX('Data Annex'!$K$1:$AV$6265,MATCH(Assets!E$1&"|"&Assets!$B39,'Data Annex'!$K$1:$K$6265,0),MATCH(Assets!E$2,'Data Annex'!$K$1:$AV$1,0)),"") -> 0.1411917603 | F39: =IFERROR(INDEX('Data Annex'!$K$1:$AV$6265,MATCH(Assets!F$1&"|"&Assets!$B39,'Data Annex'!$K$1:$K$6265,0),MATCH(Assets!F$2,'Data Annex'!$K$1:$AV$1,0)),"") -> 0.141921106 | G39: =IFERROR(INDEX('Data Annex'!$K$1:$AV$6265,MATCH(Assets!G$1&"|"&Assets!$B39,'Data Annex'!$K$1:$K$6265,0),MATCH(Assets!G$2,'Data Annex'!$K$1:$AV$1,0)),"") -> 0.1268686157 | H39: =IFERROR(INDEX('Data Annex'!$K$1:$AV$6265,MATCH(Assets!H$1&"|"&Assets!$B39,'Data Annex'!$K$1:$K$6265,0),MATCH(Assets!H$2,'Data Annex'!$K$1:$AV$1,0)),"") -> 0.001282410837 | I39: =IFERROR(INDEX('Data Annex'!$K$1:$AV$6265,MATCH(Assets!I$1&"|"&Assets!$B39,'Data Annex'!$K$1:$K$6265,0),MATCH(Assets!I$2,'Data Annex'!$K$1:$AV$1,0)),"") -> 0.001192762932 | J39: =IFERROR(INDEX('Data Annex'!$K$1:$AV$6265,MATCH(Assets!J$1&"|"&Assets!$B39,'Data Annex'!$K$1:$K$6265,0),MATCH(Assets!J$2,'Data Annex'!$K$1:$AV$1,0)),"") -> 0.001472088986 | K39: =IFERROR(INDEX('Data Annex'!$K$1:$AV$6265,MATCH(Assets!K$1&"|"&Assets!$B39,'Data Annex'!$K$1:$K$6265,0),MATCH(Assets!K$2,'Data Annex'!$K$1:$AV$1,0)),"") -> 0.3249247501 | L39: =IFERROR(INDEX('Data Annex'!$K$1:$AV$6265,MATCH(Assets!L$1&"|"&Assets!$B39,'Data Annex'!$K$1:$K$6265,0),MATCH(Assets!L$2,'Data Annex'!$K$1:$AV$1,0)),"") -> 0.2848337373 | M39: =IFERROR(INDEX('Data Annex'!$K$1:$AV$6265,MATCH(Assets!M$1&"|"&Assets!$B39,'Data Annex'!$K$1:$K$6265,0),MATCH(Assets!M$2,'Data Annex'!$K$1:$AV$1,0)),"") -> 0.2852317488 | N39: =IFERROR(INDEX('Data Annex'!$K$1:$AV$6265,MATCH(Assets!N$1&"|"&Assets!$B39,'Data Annex'!$K$1:$K$6265,0),MATCH(Assets!N$2,'Data Annex'!$K$1:$AV$1,0)),"") -> 0.5106786009 | O39: =IFERROR(INDEX('Data Annex'!$K$1:$AV$6265,MATCH(Assets!O$1&"|"&Assets!$B39,'Data Annex'!$K$1:$K$6265,0),MATCH(Assets!O$2,'Data Annex'!$K$1:$AV$1,0)),"") -> 0.5471850519 | P39: =IFERROR(INDEX('Data Annex'!$K$1:$AV$6265,MATCH(Assets!P$1&"|"&Assets!$B39,'Data Annex'!$K$1:$K$6265,0),MATCH(Assets!P$2,'Data Annex'!$K$1:$AV$1,0)),"") -> 0.5609642321 | Q39: =IFERROR(INDEX('Data Annex'!$K$1:$AV$6265,MATCH(Assets!Q$1&"|"&Assets!$B39,'Data Annex'!$K$1:$K$6265,0),MATCH(Assets!Q$2,'Data Annex'!$K$1:$AV$1,0)),"") -> 0.0005144237901 | R39: =IFERROR(INDEX('Data Annex'!$K$1:$AV$6265,MATCH(Assets!R$1&"|"&Assets!$B39,'Data Annex'!$K$1:$K$6265,0),MATCH(Assets!R$2,'Data Annex'!$K$1:$AV$1,0)),"") -> 0.001404713689 | S39: =IFERROR(INDEX('Data Annex'!$K$1:$AV$6265,MATCH(Assets!S$1&"|"&Assets!$B39,'Data Annex'!$K$1:$K$6265,0),MATCH(Assets!S$2,'Data Annex'!$K$1:$AV$1,0)),"") -> 0.001982125658 | T39: =IFERROR(INDEX('Data Annex'!$K$1:$AV$6265,MATCH(Assets!T$1&"|"&Assets!$B39,'Data Annex'!$K$1:$K$6265,0),MATCH(Assets!T$2,'Data Annex'!$K$1:$AV$1,0)),"") -> 0.02140805409 | U39: =IFERROR(INDEX('Data Annex'!$K$1:$AV$6265,MATCH(Assets!U$1&"|"&Assets!$B39,'Data Annex'!$K$1:$K$6265,0),MATCH(Assets!U$2,'Data Annex'!$K$1:$AV$1,0)),"") -> 0.0234626282 | V39: =IFERROR(INDEX('Data Annex'!$K$1:$AV$6265,MATCH(Assets!V$1&"|"&Assets!$B39,'Data Annex'!$K$1:$K$6265,0),MATCH(Assets!V$2,'Data Annex'!$K$1:$AV$1,0)),"") -> 0.02348118884
B40: SE | D40: SE | E40: =IFERROR(INDEX('Data Annex'!$K$1:$AV$6265,MATCH(Assets!E$1&"|"&Assets!$B40,'Data Annex'!$K$1:$K$6265,0),MATCH(Assets!E$2,'Data Annex'!$K$1:$AV$1,0)),"") -> 0.1769948769 | F40: =IFERROR(INDEX('Data Annex'!$K$1:$AV$6265,MATCH(Assets!F$1&"|"&Assets!$B40,'Data Annex'!$K$1:$K$6265,0),MATCH(Assets!F$2,'Data Annex'!$K$1:$AV$1,0)),"") -> 0.1612557294 | G40: =IFERROR(INDEX('Data Annex'!$K$1:$AV$6265,MATCH(Assets!G$1&"|"&Assets!$B40,'Data Annex'!$K$1:$K$6265,0),MATCH(Assets!G$2,'Data Annex'!$K$1:$AV$1,0)),"") -> 0.1630226599 | H40: =IFERROR(INDEX('Data Annex'!$K$1:$AV$6265,MATCH(Assets!H$1&"|"&Assets!$B40,'Data Annex'!$K$1:$K$6265,0),MATCH(Assets!H$2,'Data Annex'!$K$1:$AV$1,0)),"") -> 0.0151570379 | I40: =IFERROR(INDEX('Data Annex'!$K$1:$AV$6265,MATCH(Assets!I$1&"|"&Assets!$B40,'Data Annex'!$K$1:$K$6265,0),MATCH(Assets!I$2,'Data Annex'!$K$1:$AV$1,0)),"") -> 0.007981401892 | J40: =IFERROR(INDEX('Data Annex'!$K$1:$AV$6265,MATCH(Assets!J$1&"|"&Assets!$B40,'Data Annex'!$K$1:$K$6265,0),MATCH(Assets!J$2,'Data Annex'!$K$1:$AV$1,0)),"") -> 0.006196988384 | K40: =IFERROR(INDEX('Data Annex'!$K$1:$AV$6265,MATCH(Assets!K$1&"|"&Assets!$B40,'Data Annex'!$K$1:$K$6265,0),MATCH(Assets!K$2,'Data Annex'!$K$1:$AV$1,0)),"") -> 0.08257495316 | L40: =IFERROR(INDEX('Data Annex'!$K$1:$AV$6265,MATCH(Assets!L$1&"|"&Assets!$B40,'Data Annex'!$K$1:$K$6265,0),MATCH(Assets!L$2,'Data Annex'!$K$1:$AV$1,0)),"") -> 0.07704304594 | M40: =IFERROR(INDEX('Data Annex'!$K$1:$AV$6265,MATCH(Assets!M$1&"|"&Assets!$B40,'Data Annex'!$K$1:$K$6265,0),MATCH(Assets!M$2,'Data Annex'!$K$1:$AV$1,0)),"") -> 0.07644783285 | N40: =IFERROR(INDEX('Data Annex'!$K$1:$AV$6265,MATCH(Assets!N$1&"|"&Assets!$B40,'Data Annex'!$K$1:$K$6265,0),MATCH(Assets!N$2,'Data Annex'!$K$1:$AV$1,0)),"") -> 0.6921791447 | O40: =IFERROR(INDEX('Data Annex'!$K$1:$AV$6265,MATCH(Assets!O$1&"|"&Assets!$B40,'Data Annex'!$K$1:$K$6265,0),MATCH(Assets!O$2,'Data Annex'!$K$1:$AV$1,0)),"") -> 0.6742512878 | P40: =IFERROR(INDEX('Data Annex'!$K$1:$AV$6265,MATCH(Assets!P$1&"|"&Assets!$B40,'Data Annex'!$K$1:$K$6265,0),MATCH(Assets!P$2,'Data Annex'!$K$1:$AV$1,0)),"") -> 0.6701593176 | Q40: =IFERROR(INDEX('Data Annex'!$K$1:$AV$6265,MATCH(Assets!Q$1&"|"&Assets!$B40,'Data Annex'!$K$1:$K$6265,0),MATCH(Assets!Q$2,'Data Annex'!$K$1:$AV$1,0)),"") -> 0.01965899978 | R40: =IFERROR(INDEX('Data Annex'!$K$1:$AV$6265,MATCH(Assets!R$1&"|"&Assets!$B40,'Data Annex'!$K$1:$K$6265,0),MATCH(Assets!R$2,'Data Annex'!$K$1:$AV$1,0)),"") -> 0.03865920149 | S40: =IFERROR(INDEX('Data Annex'!$K$1:$AV$6265,MATCH(Assets!S$1&"|"&Assets!$B40,'Data Annex'!$K$1:$K$6265,0),MATCH(Assets!S$2,'Data Annex'!$K$1:$AV$1,0)),"") -> 0.04530357682 | T40: =IFERROR(INDEX('Data Annex'!$K$1:$AV$6265,MATCH(Assets!T$1&"|"&Assets!$B40,'Data Annex'!$K$1:$K$6265,0),MATCH(Assets!T$2,'Data Annex'!$K$1:$AV$1,0)),"") -> 0.01343498759 | U40: =IFERROR(INDEX('Data Annex'!$K$1:$AV$6265,MATCH(Assets!U$1&"|"&Assets!$B40,'Data Annex'!$K$1:$K$6265,0),MATCH(Assets!U$2,'Data Annex'!$K$1:$AV$1,0)),"") -> 0.04080933344 | V40: =IFERROR(INDEX('Data Annex'!$K$1:$AV$6265,MATCH(Assets!V$1&"|"&Assets!$B40,'Data Annex'!$K$1:$K$6265,0),MATCH(Assets!V$2,'Data Annex'!$K$1:$AV$1,0)),"") -> 0.03886962445
B41: SI | D41: SI | E41: =IFERROR(INDEX('Data Annex'!$K$1:$AV$6265,MATCH(Assets!E$1&"|"&Assets!$B41,'Data Annex'!$K$1:$K$6265,0),MATCH(Assets!E$2,'Data Annex'!$K$1:$AV$1,0)),"") -> 0.2327196356 | F41: =IFERROR(INDEX('Data Annex'!$K$1:$AV$6265,MATCH(Assets!F$1&"|"&Assets!$B41,'Data Annex'!$K$1:$K$6265,0),MATCH(Assets!F$2,'Data Annex'!$K$1:$AV$1,0)),"") -> 0.1898056481 | G41: =IFERROR(INDEX('Data Annex'!$K$1:$AV$6265,MATCH(Assets!G$1&"|"&Assets!$B41,'Data Annex'!$K$1:$K$6265,0),MATCH(Assets!G$2,'Data Annex'!$K$1:$AV$1,0)),"") -> 0.1950686815 | H41: =IFERROR(INDEX('Data Annex'!$K$1:$AV$6265,MATCH(Assets!H$1&"|"&Assets!$B41,'Data Annex'!$K$1:$K$6265,0),MATCH(Assets!H$2,'Data Annex'!$K$1:$AV$1,0)),"") -> 0.004983309547 | I41: =IFERROR(INDEX('Data Annex'!$K$1:$AV$6265,MATCH(Assets!I$1&"|"&Assets!$B41,'Data Annex'!$K$1:$K$6265,0),MATCH(Assets!I$2,'Data Annex'!$K$1:$AV$1,0)),"") -> 0.005746736734 | J41: =IFERROR(INDEX('Data Annex'!$K$1:$AV$6265,MATCH(Assets!J$1&"|"&Assets!$B41,'Data Annex'!$K$1:$K$6265,0),MATCH(Assets!J$2,'Data Annex'!$K$1:$AV$1,0)),"") -> 0.005421447014 | K41: =IFERROR(INDEX('Data Annex'!$K$1:$AV$6265,MATCH(Assets!K$1&"|"&Assets!$B41,'Data Annex'!$K$1:$K$6265,0),MATCH(Assets!K$2,'Data Annex'!$K$1:$AV$1,0)),"") -> 0.2206796251 | L41: =IFERROR(INDEX('Data Annex'!$K$1:$AV$6265,MATCH(Assets!L$1&"|"&Assets!$B41,'Data Annex'!$K$1:$K$6265,0),MATCH(Assets!L$2,'Data Annex'!$K$1:$AV$1,0)),"") -> 0.1963775412 | M41: =IFERROR(INDEX('Data Annex'!$K$1:$AV$6265,MATCH(Assets!M$1&"|"&Assets!$B41,'Data Annex'!$K$1:$K$6265,0),MATCH(Assets!M$2,'Data Annex'!$K$1:$AV$1,0)),"") -> 0.1906734041 | N41: =IFERROR(INDEX('Data Annex'!$K$1:$AV$6265,MATCH(Assets!N$1&"|"&Assets!$B41,'Data Annex'!$K$1:$K$6265,0),MATCH(Assets!N$2,'Data Annex'!$K$1:$AV$1,0)),"") -> 0.5195650586 | O41: =IFERROR(INDEX('Data Annex'!$K$1:$AV$6265,MATCH(Assets!O$1&"|"&Assets!$B41,'Data Annex'!$K$1:$K$6265,0),MATCH(Assets!O$2,'Data Annex'!$K$1:$AV$1,0)),"") -> 0.5830937291 | P41: =IFERROR(INDEX('Data Annex'!$K$1:$AV$6265,MATCH(Assets!P$1&"|"&Assets!$B41,'Data Annex'!$K$1:$K$6265,0),MATCH(Assets!P$2,'Data Annex'!$K$1:$AV$1,0)),"") -> 0.5840901359 | Q41: =IFERROR(INDEX('Data Annex'!$K$1:$AV$6265,MATCH(Assets!Q$1&"|"&Assets!$B41,'Data Annex'!$K$1:$K$6265,0),MATCH(Assets!Q$2,'Data Annex'!$K$1:$AV$1,0)),"") -> 0.0006484236044 | R41: =IFERROR(INDEX('Data Annex'!$K$1:$AV$6265,MATCH(Assets!R$1&"|"&Assets!$B41,'Data Annex'!$K$1:$K$6265,0),MATCH(Assets!R$2,'Data Annex'!$K$1:$AV$1,0)),"") -> 0.00149895456 | S41: =IFERROR(INDEX('Data Annex'!$K$1:$AV$6265,MATCH(Assets!S$1&"|"&Assets!$B41,'Data Annex'!$K$1:$K$6265,0),MATCH(Assets!S$2,'Data Annex'!$K$1:$AV$1,0)),"") -> 0.002659509923 | T41: =IFERROR(INDEX('Data Annex'!$K$1:$AV$6265,MATCH(Assets!T$1&"|"&Assets!$B41,'Data Annex'!$K$1:$K$6265,0),MATCH(Assets!T$2,'Data Annex'!$K$1:$AV$1,0)),"") -> 0.02140391879 | U41: =IFERROR(INDEX('Data Annex'!$K$1:$AV$6265,MATCH(Assets!U$1&"|"&Assets!$B41,'Data Annex'!$K$1:$K$6265,0),MATCH(Assets!U$2,'Data Annex'!$K$1:$AV$1,0)),"") -> 0.0234774139 | V41: =IFERROR(INDEX('Data Annex'!$K$1:$AV$6265,MATCH(Assets!V$1&"|"&Assets!$B41,'Data Annex'!$K$1:$K$6265,0),MATCH(Assets!V$2,'Data Annex'!$K$1:$AV$1,0)),"") -> 0.02208682156
B42: SK | D42: SK | E42: =IFERROR(INDEX('Data Annex'!$K$1:$AV$6265,MATCH(Assets!E$1&"|"&Assets!$B42,'Data Annex'!$K$1:$K$6265,0),MATCH(Assets!E$2,'Data Annex'!$K$1:$AV$1,0)),"") -> 0.1492943482 | F42: =IFERROR(INDEX('Data Annex'!$K$1:$AV$6265,MATCH(Assets!F$1&"|"&Assets!$B42,'Data Annex'!$K$1:$K$6265,0),MATCH(Assets!F$2,'Data Annex'!$K$1:$AV$1,0)),"") -> 0.1323403748 | G42: =IFERROR(INDEX('Data Annex'!$K$1:$AV$6265,MATCH(Assets!G$1&"|"&Assets!$B42,'Data Annex'!$K$1:$K$6265,0),MATCH(Assets!G$2,'Data Annex'!$K$1:$AV$1,0)),"") -> 0.06666436522 | H42: =IFERROR(INDEX('Data Annex'!$K$1:$AV$6265,MATCH(Assets!H$1&"|"&Assets!$B42,'Data Annex'!$K$1:$K$6265,0),MATCH(Assets!H$2,'Data Annex'!$K$1:$AV$1,0)),"") -> 0.0003513766555 | I42: =IFERROR(INDEX('Data Annex'!$K$1:$AV$6265,MATCH(Assets!I$1&"|"&Assets!$B42,'Data Annex'!$K$1:$K$6265,0),MATCH(Assets!I$2,'Data Annex'!$K$1:$AV$1,0)),"") -> 0.000346373375 | J42: =IFERROR(INDEX('Data Annex'!$K$1:$AV$6265,MATCH(Assets!J$1&"|"&Assets!$B42,'Data Annex'!$K$1:$K$6265,0),MATCH(Assets!J$2,'Data Annex'!$K$1:$AV$1,0)),"") -> 0.0003993063864 | K42: =IFERROR(INDEX('Data Annex'!$K$1:$AV$6265,MATCH(Assets!K$1&"|"&Assets!$B42,'Data Annex'!$K$1:$K$6265,0),MATCH(Assets!K$2,'Data Annex'!$K$1:$AV$1,0)),"") -> 0.1195260656 | L42: =IFERROR(INDEX('Data Annex'!$K$1:$AV$6265,MATCH(Assets!L$1&"|"&Assets!$B42,'Data Annex'!$K$1:$K$6265,0),MATCH(Assets!L$2,'Data Annex'!$K$1:$AV$1,0)),"") -> 0.1195160673 | M42: =IFERROR(INDEX('Data Annex'!$K$1:$AV$6265,MATCH(Assets!M$1&"|"&Assets!$B42,'Data Annex'!$K$1:$K$6265,0),MATCH(Assets!M$2,'Data Annex'!$K$1:$AV$1,0)),"") -> 0.1158562241 | N42: =IFERROR(INDEX('Data Annex'!$K$1:$AV$6265,MATCH(Assets!N$1&"|"&Assets!$B42,'Data Annex'!$K$1:$K$6265,0),MATCH(Assets!N$2,'Data Annex'!$K$1:$AV$1,0)),"") -> 0.7119010625 | O42: =IFERROR(INDEX('Data Annex'!$K$1:$AV$6265,MATCH(Assets!O$1&"|"&Assets!$B42,'Data Annex'!$K$1:$K$6265,0),MATCH(Assets!O$2,'Data Annex'!$K$1:$AV$1,0)),"") -> 0.7274125493 | P42: =IFERROR(INDEX('Data Annex'!$K$1:$AV$6265,MATCH(Assets!P$1&"|"&Assets!$B42,'Data Annex'!$K$1:$K$6265,0),MATCH(Assets!P$2,'Data Annex'!$K$1:$AV$1,0)),"") -> 0.7946253659 | Q42: =IFERROR(INDEX('Data Annex'!$K$1:$AV$6265,MATCH(Assets!Q$1&"|"&Assets!$B42,'Data Annex'!$K$1:$K$6265,0),MATCH(Assets!Q$2,'Data Annex'!$K$1:$AV$1,0)),"") -> 0.003859070147 | R42: =IFERROR(INDEX('Data Annex'!$K$1:$AV$6265,MATCH(Assets!R$1&"|"&Assets!$B42,'Data Annex'!$K$1:$K$6265,0),MATCH(Assets!R$2,'Data Annex'!$K$1:$AV$1,0)),"") -> 0.005447464492 | S42: =IFERROR(INDEX('Data Annex'!$K$1:$AV$6265,MATCH(Assets!S$1&"|"&Assets!$B42,'Data Annex'!$K$1:$K$6265,0),MATCH(Assets!S$2,'Data Annex'!$K$1:$AV$1,0)),"") -> 0.008000397315 | T42: =IFERROR(INDEX('Data Annex'!$K$1:$AV$6265,MATCH(Assets!T$1&"|"&Assets!$B42,'Data Annex'!$K$1:$K$6265,0),MATCH(Assets!T$2,'Data Annex'!$K$1:$AV$1,0)),"") -> 0.01506807684 | U42: =IFERROR(INDEX('Data Annex'!$K$1:$AV$6265,MATCH(Assets!U$1&"|"&Assets!$B42,'Data Annex'!$K$1:$K$6265,0),MATCH(Assets!U$2,'Data Annex'!$K$1:$AV$1,0)),"") -> 0.01493717076 | V42: =IFERROR(INDEX('Data Annex'!$K$1:$AV$6265,MATCH(Assets!V$1&"|"&Assets!$B42,'Data Annex'!$K$1:$K$6265,0),MATCH(Assets!V$2,'Data Annex'!$K$1:$AV$1,0)),"") -> 0.01445434108
B43: EU | D43: EU/EEA | E43: =IFERROR(INDEX('Data Annex'!$K$1:$AV$6265,MATCH(Assets!E$1&"|"&Assets!$B43,'Data Annex'!$K$1:$K$6265,0),MATCH(Assets!E$2,'Data Annex'!$K$1:$AV$1,0)),"") -> 0.1608047714 | F43: =IFERROR(INDEX('Data Annex'!$K$1:$AV$6265,MATCH(Assets!F$1&"|"&Assets!$B43,'Data Annex'!$K$1:$K$6265,0),MATCH(Assets!F$2,'Data Annex'!$K$1:$AV$1,0)),"") -> 0.1512194702 | G43: =IFERROR(INDEX('Data Annex'!$K$1:$AV$6265,MATCH(Assets!G$1&"|"&Assets!$B43,'Data Annex'!$K$1:$K$6265,0),MATCH(Assets!G$2,'Data Annex'!$K$1:$AV$1,0)),"") -> 0.1486124895 | H43: =IFERROR(INDEX('Data Annex'!$K$1:$AV$6265,MATCH(Assets!H$1&"|"&Assets!$B43,'Data Annex'!$K$1:$K$6265,0),MATCH(Assets!H$2,'Data Annex'!$K$1:$AV$1,0)),"") -> 0.01884236544 | I43: =IFERROR(INDEX('Data Annex'!$K$1:$AV$6265,MATCH(Assets!I$1&"|"&Assets!$B43,'Data Annex'!$K$1:$K$6265,0),MATCH(Assets!I$2,'Data Annex'!$K$1:$AV$1,0)),"") -> 0.01297851191 | J43: =IFERROR(INDEX('Data Annex'!$K$1:$AV$6265,MATCH(Assets!J$1&"|"&Assets!$B43,'Data Annex'!$K$1:$K$6265,0),MATCH(Assets!J$2,'Data Annex'!$K$1:$AV$1,0)),"") -> 0.01137371027 | K43: =IFERROR(INDEX('Data Annex'!$K$1:$AV$6265,MATCH(Assets!K$1&"|"&Assets!$B43,'Data Annex'!$K$1:$K$6265,0),MATCH(Assets!K$2,'Data Annex'!$K$1:$AV$1,0)),"") -> 0.1232139907 | L43: =IFERROR(INDEX('Data Annex'!$K$1:$AV$6265,MATCH(Assets!L$1&"|"&Assets!$B43,'Data Annex'!$K$1:$K$6265,0),MATCH(Assets!L$2,'Data Annex'!$K$1:$AV$1,0)),"") -> 0.1166525514 | M43: =IFERROR(INDEX('Data Annex'!$K$1:$AV$6265,MATCH(Assets!M$1&"|"&Assets!$B43,'Data Annex'!$K$1:$K$6265,0),MATCH(Assets!M$2,'Data Annex'!$K$1:$AV$1,0)),"") -> 0.1116510348 | N43: =IFERROR(INDEX('Data Annex'!$K$1:$AV$6265,MATCH(Assets!N$1&"|"&Assets!$B43,'Data Annex'!$K$1:$K$6265,0),MATCH(Assets!N$2,'Data Annex'!$K$1:$AV$1,0)),"") -> 0.5951539101 | O43: =IFERROR(INDEX('Data Annex'!$K$1:$AV$6265,MATCH(Assets!O$1&"|"&Assets!$B43,'Data Annex'!$K$1:$K$6265,0),MATCH(Assets!O$2,'Data Annex'!$K$1:$AV$1,0)),"") -> 0.602881581 | P43: =IFERROR(INDEX('Data Annex'!$K$1:$AV$6265,MATCH(Assets!P$1&"|"&Assets!$B43,'Data Annex'!$K$1:$K$6265,0),MATCH(Assets!P$2,'Data Annex'!$K$1:$AV$1,0)),"") -> 0.5968681893 | Q43: =IFERROR(INDEX('Data Annex'!$K$1:$AV$6265,MATCH(Assets!Q$1&"|"&Assets!$B43,'Data Annex'!$K$1:$K$6265,0),MATCH(Assets!Q$2,'Data Annex'!$K$1:$AV$1,0)),"") -> 0.05318122894 | R43: =IFERROR(INDEX('Data Annex'!$K$1:$AV$6265,MATCH(Assets!R$1&"|"&Assets!$B43,'Data Annex'!$K$1:$K$6265,0),MATCH(Assets!R$2,'Data Annex'!$K$1:$AV$1,0)),"") -> 0.06597058737 | S43: =IFERROR(INDEX('Data Annex'!$K$1:$AV$6265,MATCH(Assets!S$1&"|"&Assets!$B43,'Data Annex'!$K$1:$K$6265,0),MATCH(Assets!S$2,'Data Annex'!$K$1:$AV$1,0)),"") -> 0.08087398247 | T43: =IFERROR(INDEX('Data Annex'!$K$1:$AV$6265,MATCH(Assets!T$1&"|"&Assets!$B43,'Data Annex'!$K$1:$K$6265,0),MATCH(Assets!T$2,'Data Annex'!$K$1:$AV$1,0)),"") -> 0.04880373343 | U43: =IFERROR(INDEX('Data Annex'!$K$1:$AV$6265,MATCH(Assets!U$1&"|"&Assets!$B43,'Data Annex'!$K$1:$K$6265,0),MATCH(Assets!U$2,'Data Annex'!$K$1:$AV$1,0)),"") -> 0.05029729809 | V43: =IFERROR(INDEX('Data Annex'!$K$1:$AV$6265,MATCH(Assets!V$1&"|"&Assets!$B43,'Data Annex'!$K$1:$K$6265,0),MATCH(Assets!V$2,'Data Annex'!$K$1:$AV$1,0)),"") -> 0.05062059385
F46: T02_1 | G46: T02_1 | H46: T02_1 | I46: T02_2 | J46: T02_2 | K46: T02_2 | O46: T03_1 | P46: T03_1 | Q46: T03_1 | R46: T03_2 | S46: T03_2 | T46: T03_2 | U46: T03_3 | V46: T03_3 | W46: T03_3
F47: =TEXT(F52,"YYYYMM")+0 -> 202109 | G47: 202206 | H47: 202209 | I47: 202109 | J47: 202206 | K47: 202209 | O47: =TEXT(O52,"YYYYMM")+0 -> 202109 | P47: 202206 | Q47: 202209 | R47: 202109 | S47: 202206 | T47: 202209 | U47: 202109 | V47: 202206 | W47: 202209
D48: Assets | M48: Financial Assets
D50: Volumes bn EUR | M50: % of total financial assets
F51: Total Assets | I51: Total Financial Assets | O51: Share of financial assets valued at (amortised) cost | R51: Share of financial assets at fair value through OCI | U51: Share of financial assets at fair value through profit&loss
F52: =EOMONTH($A$3,-12) -> 2021-09-30 | G52: =EOMONTH($A$3,-3) -> 2022-06-30 | H52: =$A$3 -> 2022-09-01 | I52: =EOMONTH($A$3,-12) -> 2021-09-30 | J52: =EOMONTH($A$3,-3) -> 2022-06-30 | K52: =$A$3 -> 2022-09-01 | O52: =EOMONTH($A$3,-12) -> 2021-09-30 | P52: =EOMONTH($A$3,-3) -> 2022-06-30 | Q52: =$A$3 -> 2022-09-01 | R52: =EOMONTH($A$3,-12) -> 2021-09-30 | S52: =EOMONTH($A$3,-3) -> 2022-06-30 | T52: =$A$3 -> 2022-09-01 | U52: =EOMONTH($A$3,-12) -> 2021-09-30 | V52: =EOMONTH($A$3,-3) -> 2022-06-30 | W52: =$A$3 -> 2022-09-01
B53: AT | D53: =IF(OR(F53="n.a.",G53="n.a.",H53="n.a.",I53="n.a.",J53="n.a.",K53="n.a."),$B53&"*",$B53) -> AT | F53: =IFERROR(INDEX('Data Annex'!$K$1:$AV$6265,MATCH(Assets!F$46&"|"&Assets!$B53,'Data Annex'!$K$1:$K$6265,0),MATCH(Assets!F$47,'Data Annex'!$K$1:$AV$1,0)),"") -> 766.209071 | G53: =IFERROR(INDEX('Data Annex'!$K$1:$AV$6265,MATCH(Assets!G$46&"|"&Assets!$B53,'Data Annex'!$K$1:$K$6265,0),MATCH(Assets!G$47,'Data Annex'!$K$1:$AV$1,0)),"") -> 800.3207525 | H53: =IFERROR(INDEX('Data Annex'!$K$1:$AV$6265,MATCH(Assets!H$46&"|"&Assets!$B53,'Data Annex'!$K$1:$K$6265,0),MATCH(Assets!H$47,'Data Annex'!$K$1:$AV$1,0)),"") -> 814.0728076 | I53: =IFERROR(INDEX('Data Annex'!$K$1:$AV$6265,MATCH(Assets!I$46&"|"&Assets!$B53,'Data Annex'!$K$1:$K$6265,0),MATCH(Assets!I$47,'Data Annex'!$K$1:$AV$1,0)),"") -> 744.1657053 | J53: =IFERROR(INDEX('Data Annex'!$K$1:$AV$6265,MATCH(Assets!J$46&"|"&Assets!$B53,'Data Annex'!$K$1:$K$6265,0),MATCH(Assets!J$47,'Data Annex'!$K$1:$AV$1,0)),"") -> 779.8870657 | K53: =IFERROR(INDEX('Data Annex'!$K$1:$AV$6265,MATCH(Assets!K$46&"|"&Assets!$B53,'Data Annex'!$K$1:$K$6265,0),MATCH(Assets!K$47,'Data Annex'!$K$1:$AV$1,0)),"") -> 796.133644 | L53: =K53/H53 -> 0.9779636865 | M53: =+D53 -> AT | O53: =IFERROR(INDEX('Data Annex'!$K$1:$AV$6265,MATCH(Assets!O$46&"|"&Assets!$B53,'Data Annex'!$K$1:$K$6265,0),MATCH(Assets!O$47,'Data Annex'!$K$1:$AV$1,0)),"") -> 0.9210712556 | P53: =IFERROR(INDEX('Data Annex'!$K$1:$AV$6265,MATCH(Assets!P$46&"|"&Assets!$B53,'Data Annex'!$K$1:$K$6265,0),MATCH(Assets!P$47,'Data Annex'!$K$1:$AV$1,0)),"") -> 0.9203885325 | Q53: =IFERROR(INDEX('Data Annex'!$K$1:$AV$6265,MATCH(Assets!Q$46&"|"&Assets!$B53,'Data Annex'!$K$1:$K$6265,0),MATCH(Assets!Q$47,'Data Annex'!$K$1:$AV$1,0)),"") -> 0.9189886888 | R53: =IFERROR(INDEX('Data Annex'!$K$1:$AV$6265,MATCH(Assets!R$46&"|"&Assets!$B53,'Data Annex'!$K$1:$K$6265,0),MATCH(Assets!R$47,'Data Annex'!$K$1:$AV$1,0)),"") -> 0.0477753408 | S53: =IFERROR(INDEX('Data Annex'!$K$1:$AV$6265,MATCH(Assets!S$46&"|"&Assets!$B53,'Data Annex'!$K$1:$K$6265,0),MATCH(Assets!S$47,'Data Annex'!$K$1:$AV$1,0)),"") -> 0.0427630352 | T53: =IFERROR(INDEX('Data Annex'!$K$1:$AV$6265,MATCH(Assets!T$46&"|"&Assets!$B53,'Data Annex'!$K$1:$K$6265,0),MATCH(Assets!T$47,'Data Annex'!$K$1:$AV$1,0)),"") -> 0.03964974188 | U53: =IFERROR(INDEX('Data Annex'!$K$1:$AV$6265,MATCH(Assets!U$46&"|"&Assets!$B53,'Data Annex'!$K$1:$K$6265,0),MATCH(Assets!U$47,'Data Annex'!$K$1:$AV$1,0)),"") -> 0.03115340358 | V53: =IFERROR(INDEX('Data Annex'!$K$1:$AV$6265,MATCH(Assets!V$46&"|"&Assets!$B53,'Data Annex'!$K$1:$K$6265,0),MATCH(Assets!V$47,'Data Annex'!$K$1:$AV$1,0)),"") -> 0.03684843226 | W53: =IFERROR(INDEX('Data Annex'!$K$1:$AV$6265,MATCH(Assets!W$46&"|"&Assets!$B53,'Data Annex'!$K$1:$K$6265,0),MATCH(Assets!W$47,'Data Annex'!$K$1:$AV$1,0)),"") -> 0.04136156929
B54: BE | D54: =IF(OR(F54="n.a.",G54="n.a.",H54="n.a.",I54="n.a.",J54="n.a.",K54="n.a."),$B54&"*",$B54) -> BE | F54: =IFERROR(INDEX('Data Annex'!$K$1:$AV$6265,MATCH(Assets!F$46&"|"&Assets!$B54,'Data Annex'!$K$1:$K$6265,0),MATCH(Assets!F$47,'Data Annex'!$K$1:$AV$1,0)),"") -> 1234.51482 | G54: =IFERROR(INDEX('Data Annex'!$K$1:$AV$6265,MATCH(Assets!G$46&"|"&Assets!$B54,'Data Annex'!$K$1:$K$6265,0),MATCH(Assets!G$47,'Data Annex'!$K$1:$AV$1,0)),"") -> 1271.010414 | H54: =IFERROR(INDEX('Data Annex'!$K$1:$AV$6265,MATCH(Assets!H$46&"|"&Assets!$B54,'Data Annex'!$K$1:$K$6265,0),MATCH(Assets!H$47,'Data Annex'!$K$1:$AV$1,0)),"") -> 1255.13627 | I54: =IFERROR(INDEX('Data Annex'!$K$1:$AV$6265,MATCH(Assets!I$46&"|"&Assets!$B54,'Data Annex'!$K$1:$K$6265,0),MATCH(Assets!I$47,'Data Annex'!$K$1:$AV$1,0)),"") -> 1180.999387 | J54: =IFERROR(INDEX('Data Annex'!$K$1:$AV$6265,MATCH(Assets!J$46&"|"&Assets!$B54,'Data Annex'!$K$1:$K$6265,0),MATCH(Assets!J$47,'Data Annex'!$K$1:$AV$1,0)),"") -> 1232.224216 | K54: =IFERROR(INDEX('Data Annex'!$K$1:$AV$6265,MATCH(Assets!K$46&"|"&Assets!$B54,'Data Annex'!$K$1:$K$6265,0),MATCH(Assets!K$47,'Data Annex'!$K$1:$AV$1,0)),"") -> 1217.822114 | L54: 0.9702708332 | M54: BE | O54: =IFERROR(INDEX('Data Annex'!$K$1:$AV$6265,MATCH(Assets!O$46&"|"&Assets!$B54,'Data Annex'!$K$1:$K$6265,0),MATCH(Assets!O$47,'Data Annex'!$K$1:$AV$1,0)),"") -> 0.92154639 | P54: =IFERROR(INDEX('Data Annex'!$K$1:$AV$6265,MATCH(Assets!P$46&"|"&Assets!$B54,'Data Annex'!$K$1:$K$6265,0),MATCH(Assets!P$47,'Data Annex'!$K$1:$AV$1,0)),"") -> 0.9241634142 | Q54: =IFERROR(INDEX('Data Annex'!$K$1:$AV$6265,MATCH(Assets!Q$46&"|"&Assets!$B54,'Data Annex'!$K$1:$K$6265,0),MATCH(Assets!Q$47,'Data Annex'!$K$1:$AV$1,0)),"") -> 0.9135100157 | R54: =IFERROR(INDEX('Data Annex'!$K$1:$AV$6265,MATCH(Assets!R$46&"|"&Assets!$B54,'Data Annex'!$K$1:$K$6265,0),MATCH(Assets!R$47,'Data Annex'!$K$1:$AV$1,0)),"") -> 0.03126360588 | S54: =IFERROR(INDEX('Data Annex'!$K$1:$AV$6265,MATCH(Assets!S$46&"|"&Assets!$B54,'Data Annex'!$K$1:$K$6265,0),MATCH(Assets!S$47,'Data Annex'!$K$1:$AV$1,0)),"") -> 0.02638373028 | T54: =IFERROR(INDEX('Data Annex'!$K$1:$AV$6265,MATCH(Assets!T$46&"|"&Assets!$B54,'Data Annex'!$K$1:$K$6265,0),MATCH(Assets!T$47,'Data Annex'!$K$1:$AV$1,0)),"") -> 0.02529809269 | U54: =IFERROR(INDEX('Data Annex'!$K$1:$AV$6265,MATCH(Assets!U$46&"|"&Assets!$B54,'Data Annex'!$K$1:$K$6265,0),MATCH(Assets!U$47,'Data Annex'!$K$1:$AV$1,0)),"") -> 0.04719000409 | V54: =IFERROR(INDEX('Data Annex'!$K$1:$AV$6265,MATCH(Assets!V$46&"|"&Assets!$B54,'Data Annex'!$K$1:$K$6265,0),MATCH(Assets!V$47,'Data Annex'!$K$1:$AV$1,0)),"") -> 0.04945285549 | W54: =IFERROR(INDEX('Data Annex'!$K$1:$AV$6265,MATCH(Assets!W$46&"|"&Assets!$B54,'Data Annex'!$K$1:$K$6265,0),MATCH(Assets!W$47,'Data Annex'!$K$1:$AV$1,0)),"") -> 0.06119189165
B55: BG | D55: BG | F55: =IFERROR(INDEX('Data Annex'!$K$1:$AV$6265,MATCH(Assets!F$46&"|"&Assets!$B55,'Data Annex'!$K$1:$K$6265,0),MATCH(Assets!F$47,'Data Annex'!$K$1:$AV$1,0)),"") -> 38.67711985 | G55: =IFERROR(INDEX('Data Annex'!$K$1:$AV$6265,MATCH(Assets!G$46&"|"&Assets!$B55,'Data Annex'!$K$1:$K$6265,0),MATCH(Assets!G$47,'Data Annex'!$K$1:$AV$1,0)),"") -> 35.1380632 | H55: =IFERROR(INDEX('Data Annex'!$K$1:$AV$6265,MATCH(Assets!H$46&"|"&Assets!$B55,'Data Annex'!$K$1:$K$6265,0),MATCH(Assets!H$47,'Data Annex'!$K$1:$AV$1,0)),"") -> 36.96949586 | I55: =IFERROR(INDEX('Data Annex'!$K$1:$AV$6265,MATCH(Assets!I$46&"|"&Assets!$B55,'Data Annex'!$K$1:$K$6265,0),MATCH(Assets!I$47,'Data Annex'!$K$1:$AV$1,0)),"") -> 37.09296247 | J55: =IFERROR(INDEX('Data Annex'!$K$1:$AV$6265,MATCH(Assets!J$46&"|"&Assets!$B55,'Data Annex'!$K$1:$K$6265,0),MATCH(Assets!J$47,'Data Annex'!$K$1:$AV$1,0)),"") -> 34.27637131 | K55: =IFERROR(INDEX('Data Annex'!$K$1:$AV$6265,MATCH(Assets!K$46&"|"&Assets!$B55,'Data Annex'!$K$1:$K$6265,0),MATCH(Assets!K$47,'Data Annex'!$K$1:$AV$1,0)),"") -> 36.07902751 | L55: 0.97591343 | M55: BG | O55: =IFERROR(INDEX('Data Annex'!$K$1:$AV$6265,MATCH(Assets!O$46&"|"&Assets!$B55,'Data Annex'!$K$1:$K$6265,0),MATCH(Assets!O$47,'Data Annex'!$K$1:$AV$1,0)),"") -> 0.8923464806 | P55: =IFERROR(INDEX('Data Annex'!$K$1:$AV$6265,MATCH(Assets!P$46&"|"&Assets!$B55,'Data Annex'!$K$1:$K$6265,0),MATCH(Assets!P$47,'Data Annex'!$K$1:$AV$1,0)),"") -> 0.9263924775 | Q55: =IFERROR(INDEX('Data Annex'!$K$1:$AV$6265,MATCH(Assets!Q$46&"|"&Assets!$B55,'Data Annex'!$K$1:$K$6265,0),MATCH(Assets!Q$47,'Data Annex'!$K$1:$AV$1,0)),"") -> 0.9305997778 | R55: =IFERROR(INDEX('Data Annex'!$K$1:$AV$6265,MATCH(Assets!R$46&"|"&Assets!$B55,'Data Annex'!$K$1:$K$6265,0),MATCH(Assets!R$47,'Data Annex'!$K$1:$AV$1,0)),"") -> 0.09989414226 | S55: =IFERROR(INDEX('Data Annex'!$K$1:$AV$6265,MATCH(Assets!S$46&"|"&Assets!$B55,'Data Annex'!$K$1:$K$6265,0),MATCH(Assets!S$47,'Data Annex'!$K$1:$AV$1,0)),"") -> 0.06721072151 | T55: =IFERROR(INDEX('Data Annex'!$K$1:$AV$6265,MATCH(Assets!T$46&"|"&Assets!$B55,'Data Annex'!$K$1:$K$6265,0),MATCH(Assets!T$47,'Data Annex'!$K$1:$AV$1,0)),"") -> 0.06071265425 | U55: =IFERROR(INDEX('Data Annex'!$K$1:$AV$6265,MATCH(Assets!U$46&"|"&Assets!$B55,'Data Annex'!$K$1:$K$6265,0),MATCH(Assets!U$47,'Data Annex'!$K$1:$AV$1,0)),"") -> 0.007759377114 | V55: =IFERROR(INDEX('Data Annex'!$K$1:$AV$6265,MATCH(Assets!V$46&"|"&Assets!$B55,'Data Annex'!$K$1:$K$6265,0),MATCH(Assets!V$47,'Data Annex'!$K$1:$AV$1,0)),"") -> 0.006396801013 | W55: =IFERROR(INDEX('Data Annex'!$K$1:$AV$6265,MATCH(Assets!W$46&"|"&Assets!$B55,'Data Annex'!$K$1:$K$6265,0),MATCH(Assets!W$47,'Data Annex'!$K$1:$AV$1,0)),"") -> 0.008687567919
B56: CY | D56: CY | F56: =IFERROR(INDEX('Data Annex'!$K$1:$AV$6265,MATCH(Assets!F$46&"|"&Assets!$B56,'Data Annex'!$K$1:$K$6265,0),MATCH(Assets!F$47,'Data Annex'!$K$1:$AV$1,0)),"") -> 42.15101472 | G56: =IFERROR(INDEX('Data Annex'!$K$1:$AV$6265,MATCH(Assets!G$46&"|"&Assets!$B56,'Data Annex'!$K$1:$K$6265,0),MATCH(Assets!G$47,'Data Annex'!$K$1:$AV$1,0)),"") -> 44.23615195 | H56: =IFERROR(INDEX('Data Annex'!$K$1:$AV$6265,MATCH(Assets!H$46&"|"&Assets!$B56,'Data Annex'!$K$1:$K$6265,0),MATCH(Assets!H$47,'Data Annex'!$K$1:$AV$1,0)),"") -> 44.85151766 | I56: =IFERROR(INDEX('Data Annex'!$K$1:$AV$6265,MATCH(Assets!I$46&"|"&Assets!$B56,'Data Annex'!$K$1:$K$6265,0),MATCH(Assets!I$47,'Data Annex'!$K$1:$AV$1,0)),"") -> 38.81793015 | J56: =IFERROR(INDEX('Data Annex'!$K$1:$AV$6265,MATCH(Assets!J$46&"|"&Assets!$B56,'Data Annex'!$K$1:$K$6265,0),MATCH(Assets!J$47,'Data Annex'!$K$1:$AV$1,0)),"") -> 40.94652106 | K56: =IFERROR(INDEX('Data Annex'!$K$1:$AV$6265,MATCH(Assets!K$46&"|"&Assets!$B56,'Data Annex'!$K$1:$K$6265,0),MATCH(Assets!K$47,'Data Annex'!$K$1:$AV$1,0)),"") -> 41.61390898 | L56: 0.9278149582 | M56: CY | O56: =IFERROR(INDEX('Data Annex'!$K$1:$AV$6265,MATCH(Assets!O$46&"|"&Assets!$B56,'Data Annex'!$K$1:$K$6265,0),MATCH(Assets!O$47,'Data Annex'!$K$1:$AV$1,0)),"") -> 0.9659880522 | P56: =IFERROR(INDEX('Data Annex'!$K$1:$AV$6265,MATCH(Assets!P$46&"|"&Assets!$B56,'Data Annex'!$K$1:$K$6265,0),MATCH(Assets!P$47,'Data Annex'!$K$1:$AV$1,0)),"") -> 0.9750480322 | Q56: =IFERROR(INDEX('Data Annex'!$K$1:$AV$6265,MATCH(Assets!Q$46&"|"&Assets!$B56,'Data Annex'!$K$1:$K$6265,0),MATCH(Assets!Q$47,'Data Annex'!$K$1:$AV$1,0)),"") -> 0.9771807134 | R56: =IFERROR(INDEX('Data Annex'!$K$1:$AV$6265,MATCH(Assets!R$46&"|"&Assets!$B56,'Data Annex'!$K$1:$K$6265,0),MATCH(Assets!R$47,'Data Annex'!$K$1:$AV$1,0)),"") -> 0.02525398974 | S56: =IFERROR(INDEX('Data Annex'!$K$1:$AV$6265,MATCH(Assets!S$46&"|"&Assets!$B56,'Data Annex'!$K$1:$K$6265,0),MATCH(Assets!S$47,'Data Annex'!$K$1:$AV$1,0)),"") -> 0.01607655019 | T56: =IFERROR(INDEX('Data Annex'!$K$1:$AV$6265,MATCH(Assets!T$46&"|"&Assets!$B56,'Data Annex'!$K$1:$K$6265,0),MATCH(Assets!T$47,'Data Annex'!$K$1:$AV$1,0)),"") -> 0.01453710273 | U56: =IFERROR(INDEX('Data Annex'!$K$1:$AV$6265,MATCH(Assets!U$46&"|"&Assets!$B56,'Data Annex'!$K$1:$K$6265,0),MATCH(Assets!U$47,'Data Annex'!$K$1:$AV$1,0)),"") -> 0.008757958028 | V56: =IFERROR(INDEX('Data Annex'!$K$1:$AV$6265,MATCH(Assets!V$46&"|"&Assets!$B56,'Data Annex'!$K$1:$K$6265,0),MATCH(Assets!V$47,'Data Annex'!$K$1:$AV$1,0)),"") -> 0.008875417607 | W56: =IFERROR(INDEX('Data Annex'!$K$1:$AV$6265,MATCH(Assets!W$46&"|"&Assets!$B56,'Data Annex'!$K$1:$K$6265,0),MATCH(Assets!W$47,'Data Annex'!$K$1:$AV$1,0)),"") -> 0.008282183876
B57: CZ | D57: CZ | F57: =IFERROR(INDEX('Data Annex'!$K$1:$AV$6265,MATCH(Assets!F$46&"|"&Assets!$B57,'Data Annex'!$K$1:$K$6265,0),MATCH(Assets!F$47,'Data Annex'!$K$1:$AV$1,0)),"") -> 199.4459619 | G57: =IFERROR(INDEX('Data Annex'!$K$1:$AV$6265,MATCH(Assets!G$46&"|"&Assets!$B57,'Data Annex'!$K$1:$K$6265,0),MATCH(Assets!G$47,'Data Annex'!$K$1:$AV$1,0)),"") -> 222.7323013 | H57: =IFERROR(INDEX('Data Annex'!$K$1:$AV$6265,MATCH(Assets!H$46&"|"&Assets!$B57,'Data Annex'!$K$1:$K$6265,0),MATCH(Assets!H$47,'Data Annex'!$K$1:$AV$1,0)),"") -> 214.0235953 | I57: =IFERROR(INDEX('Data Annex'!$K$1:$AV$6265,MATCH(Assets!I$46&"|"&Assets!$B57,'Data Annex'!$K$1:$K$6265,0),MATCH(Assets!I$47,'Data Annex'!$K$1:$AV$1,0)),"") -> 196.5264467 | J57: =IFERROR(INDEX('Data Annex'!$K$1:$AV$6265,MATCH(Assets!J$46&"|"&Assets!$B57,'Data Annex'!$K$1:$K$6265,0),MATCH(Assets!J$47,'Data Annex'!$K$1:$AV$1,0)),"") -> 220.5986548 | K57: =IFERROR(INDEX('Data Annex'!$K$1:$AV$6265,MATCH(Assets!K$46&"|"&Assets!$B57,'Data Annex'!$K$1:$K$6265,0),MATCH(Assets!K$47,'Data Annex'!$K$1:$AV$1,0)),"") -> 211.811314 | L57: 0.9896633766 | M57: CZ | O57: =IFERROR(INDEX('Data Annex'!$K$1:$AV$6265,MATCH(Assets!O$46&"|"&Assets!$B57,'Data Annex'!$K$1:$K$6265,0),MATCH(Assets!O$47,'Data Annex'!$K$1:$AV$1,0)),"") -> 0.9564263839 | P57: =IFERROR(INDEX('Data Annex'!$K$1:$AV$6265,MATCH(Assets!P$46&"|"&Assets!$B57,'Data Annex'!$K$1:$K$6265,0),MATCH(Assets!P$47,'Data Annex'!$K$1:$AV$1,0)),"") -> 0.9360352689 | Q57: =IFERROR(INDEX('Data Annex'!$K$1:$AV$6265,MATCH(Assets!Q$46&"|"&Assets!$B57,'Data Annex'!$K$1:$K$6265,0),MATCH(Assets!Q$47,'Data Annex'!$K$1:$AV$1,0)),"") -> 0.9321584719 | R57: =IFERROR(INDEX('Data Annex'!$K$1:$AV$6265,MATCH(Assets!R$46&"|"&Assets!$B57,'Data Annex'!$K$1:$K$6265,0),MATCH(Assets!R$47,'Data Annex'!$K$1:$AV$1,0)),"") -> 0.01776497251 | S57: =IFERROR(INDEX('Data Annex'!$K$1:$AV$6265,MATCH(Assets!S$46&"|"&Assets!$B57,'Data Annex'!$K$1:$K$6265,0),MATCH(Assets!S$47,'Data Annex'!$K$1:$AV$1,0)),"") -> 0.01706064127 | T57: =IFERROR(INDEX('Data Annex'!$K$1:$AV$6265,MATCH(Assets!T$46&"|"&Assets!$B57,'Data Annex'!$K$1:$K$6265,0),MATCH(Assets!T$47,'Data Annex'!$K$1:$AV$1,0)),"") -> 0.01719665427 | U57: =IFERROR(INDEX('Data Annex'!$K$1:$AV$6265,MATCH(Assets!U$46&"|"&Assets!$B57,'Data Annex'!$K$1:$K$6265,0),MATCH(Assets!U$47,'Data Annex'!$K$1:$AV$1,0)),"") -> 0.02580864357 | V57: =IFERROR(INDEX('Data Annex'!$K$1:$AV$6265,MATCH(Assets!V$46&"|"&Assets!$B57,'Data Annex'!$K$1:$K$6265,0),MATCH(Assets!V$47,'Data Annex'!$K$1:$AV$1,0)),"") -> 0.04690408985 | W57: =IFERROR(INDEX('Data Annex'!$K$1:$AV$6265,MATCH(Assets!W$46&"|"&Assets!$B57,'Data Annex'!$K$1:$K$6265,0),MATCH(Assets!W$47,'Data Annex'!$K$1:$AV$1,0)),"") -> 0.05064487388
B58: DE | D58: DE | F58: =IFERROR(INDEX('Data Annex'!$K$1:$AV$6265,MATCH(Assets!F$46&"|"&Assets!$B58,'Data Annex'!$K$1:$K$6265,0),MATCH(Assets!F$47,'Data Annex'!$K$1:$AV$1,0)),"") -> 3903.894603 | G58: =IFERROR(INDEX('Data Annex'!$K$1:$AV$6265,MATCH(Assets!G$46&"|"&Assets!$B58,'Data Annex'!$K$1:$K$6265,0),MATCH(Assets!G$47,'Data Annex'!$K$1:$AV$1,0)),"") -> 4152.697447 | H58: =IFERROR(INDEX('Data Annex'!$K$1:$AV$6265,MATCH(Assets!H$46&"|"&Assets!$B58,'Data Annex'!$K$1:$K$6265,0),MATCH(Assets!H$47,'Data Annex'!$K$1:$AV$1,0)),"") -> 4315.065789 | I58: =IFERROR(INDEX('Data Annex'!$K$1:$AV$6265,MATCH(Assets!I$46&"|"&Assets!$B58,'Data Annex'!$K$1:$K$6265,0),MATCH(Assets!I$47,'Data Annex'!$K$1:$AV$1,0)),"") -> 3805.1218 | J58: =IFERROR(INDEX('Data Annex'!$K$1:$AV$6265,MATCH(Assets!J$46&"|"&Assets!$B58,'Data Annex'!$K$1:$K$6265,0),MATCH(Assets!J$47,'Data Annex'!$K$1:$AV$1,0)),"") -> 4066.570962 | K58: =IFERROR(INDEX('Data Annex'!$K$1:$AV$6265,MATCH(Assets!K$46&"|"&Assets!$B58,'Data Annex'!$K$1:$K$6265,0),MATCH(Assets!K$47,'Data Annex'!$K$1:$AV$1,0)),"") -> 4233.539968 | L58: 0.9811067025 | M58: DE | O58: =IFERROR(INDEX('Data Annex'!$K$1:$AV$6265,MATCH(Assets!O$46&"|"&Assets!$B58,'Data Annex'!$K$1:$K$6265,0),MATCH(Assets!O$47,'Data Annex'!$K$1:$AV$1,0)),"") -> 0.739797666 | P58: =IFERROR(INDEX('Data Annex'!$K$1:$AV$6265,MATCH(Assets!P$46&"|"&Assets!$B58,'Data Annex'!$K$1:$K$6265,0),MATCH(Assets!P$47,'Data Annex'!$K$1:$AV$1,0)),"") -> 0.7338886941 | Q58: =IFERROR(INDEX('Data Annex'!$K$1:$AV$6265,MATCH(Assets!Q$46&"|"&Assets!$B58,'Data Annex'!$K$1:$K$6265,0),MATCH(Assets!Q$47,'Data Annex'!$K$1:$AV$1,0)),"") -> 0.7241949388 | R58: =IFERROR(INDEX('Data Annex'!$K$1:$AV$6265,MATCH(Assets!R$46&"|"&Assets!$B58,'Data Annex'!$K$1:$K$6265,0),MATCH(Assets!R$47,'Data Annex'!$K$1:$AV$1,0)),"") -> 0.05477582354 | S58: =IFERROR(INDEX('Data Annex'!$K$1:$AV$6265,MATCH(Assets!S$46&"|"&Assets!$B58,'Data Annex'!$K$1:$K$6265,0),MATCH(Assets!S$47,'Data Annex'!$K$1:$AV$1,0)),"") -> 0.04674504225 | T58: =IFERROR(INDEX('Data Annex'!$K$1:$AV$6265,MATCH(Assets!T$46&"|"&Assets!$B58,'Data Annex'!$K$1:$K$6265,0),MATCH(Assets!T$47,'Data Annex'!$K$1:$AV$1,0)),"") -> 0.04310681618 | U58: =IFERROR(INDEX('Data Annex'!$K$1:$AV$6265,MATCH(Assets!U$46&"|"&Assets!$B58,'Data Annex'!$K$1:$K$6265,0),MATCH(Assets!U$47,'Data Annex'!$K$1:$AV$1,0)),"") -> 0.2054265104 | V58: =IFERROR(INDEX('Data Annex'!$K$1:$AV$6265,MATCH(Assets!V$46&"|"&Assets!$B58,'Data Annex'!$K$1:$K$6265,0),MATCH(Assets!V$47,'Data Annex'!$K$1:$AV$1,0)),"") -> 0.2193662637 | W58: =IFERROR(INDEX('Data Annex'!$K$1:$AV$6265,MATCH(Assets!W$46&"|"&Assets!$B58,'Data Annex'!$K$1:$K$6265,0),MATCH(Assets!W$47,'Data Annex'!$K$1:$AV$1,0)),"") -> 0.232698245
B59: DK | D59: DK | F59: =IFERROR(INDEX('Data Annex'!$K$1:$AV$6265,MATCH(Assets!F$46&"|"&Assets!$B59,'Data Annex'!$K$1:$K$6265,0),MATCH(Assets!F$47,'Data Annex'!$K$1:$AV$1,0)),"") -> 786.474959 | G59: =IFERROR(INDEX('Data Annex'!$K$1:$AV$6265,MATCH(Assets!G$46&"|"&Assets!$B59,'Data Annex'!$K$1:$K$6265,0),MATCH(Assets!G$47,'Data Annex'!$K$1:$AV$1,0)),"") -> 765.8790205 | H59: =IFERROR(INDEX('Data Annex'!$K$1:$AV$6265,MATCH(Assets!H$46&"|"&Assets!$B59,'Data Annex'!$K$1:$K$6265,0),MATCH(Assets!H$47,'Data Annex'!$K$1:$AV$1,0)),"") -> 779.8036133 | I59: =IFERROR(INDEX('Data Annex'!$K$1:$AV$6265,MATCH(Assets!I$46&"|"&Assets!$B59,'Data Annex'!$K$1:$K$6265,0),MATCH(Assets!I$47,'Data Annex'!$K$1:$AV$1,0)),"") -> 766.7421974 | J59: =IFERROR(INDEX('Data Annex'!$K$1:$AV$6265,MATCH(Assets!J$46&"|"&Assets!$B59,'Data Annex'!$K$1:$K$6265,0),MATCH(Assets!J$47,'Data Annex'!$K$1:$AV$1,0)),"") -> 747.9806731 | K59: =IFERROR(INDEX('Data Annex'!$K$1:$AV$6265,MATCH(Assets!K$46&"|"&Assets!$B59,'Data Annex'!$K$1:$K$6265,0),MATCH(Assets!K$47,'Data Annex'!$K$1:$AV$1,0)),"") -> 762.6690936 | L59: 0.9780271348 | M59: DK | O59: =IFERROR(INDEX('Data Annex'!$K$1:$AV$6265,MATCH(Assets!O$46&"|"&Assets!$B59,'Data Annex'!$K$1:$K$6265,0),MATCH(Assets!O$47,'Data Annex'!$K$1:$AV$1,0)),"") -> 0.3382228082 | P59: =IFERROR(INDEX('Data Annex'!$K$1:$AV$6265,MATCH(Assets!P$46&"|"&Assets!$B59,'Data Annex'!$K$1:$K$6265,0),MATCH(Assets!P$47,'Data Annex'!$K$1:$AV$1,0)),"") -> 0.3463908146 | Q59: =IFERROR(INDEX('Data Annex'!$K$1:$AV$6265,MATCH(Assets!Q$46&"|"&Assets!$B59,'Data Annex'!$K$1:$K$6265,0),MATCH(Assets!Q$47,'Data Annex'!$K$1:$AV$1,0)),"") -> 0.3530852452 | R59: =IFERROR(INDEX('Data Annex'!$K$1:$AV$6265,MATCH(Assets!R$46&"|"&Assets!$B59,'Data Annex'!$K$1:$K$6265,0),MATCH(Assets!R$47,'Data Annex'!$K$1:$AV$1,0)),"") -> 0.02140061145 | S59: =IFERROR(INDEX('Data Annex'!$K$1:$AV$6265,MATCH(Assets!S$46&"|"&Assets!$B59,'Data Annex'!$K$1:$K$6265,0),MATCH(Assets!S$47,'Data Annex'!$K$1:$AV$1,0)),"") -> 0.02178159024 | T59: =IFERROR(INDEX('Data Annex'!$K$1:$AV$6265,MATCH(Assets!T$46&"|"&Assets!$B59,'Data Annex'!$K$1:$K$6265,0),MATCH(Assets!T$47,'Data Annex'!$K$1:$AV$1,0)),"") -> 0.02031324763 | U59: =IFERROR(INDEX('Data Annex'!$K$1:$AV$6265,MATCH(Assets!U$46&"|"&Assets!$B59,'Data Annex'!$K$1:$K$6265,0),MATCH(Assets!U$47,'Data Annex'!$K$1:$AV$1,0)),"") -> 0.6403765803 | V59: =IFERROR(INDEX('Data Annex'!$K$1:$AV$6265,MATCH(Assets!V$46&"|"&Assets!$B59,'Data Annex'!$K$1:$K$6265,0),MATCH(Assets!V$47,'Data Annex'!$K$1:$AV$1,0)),"") -> 0.6318275951 | W59: =IFERROR(INDEX('Data Annex'!$K$1:$AV$6265,MATCH(Assets!W$46&"|"&Assets!$B59,'Data Annex'!$K$1:$K$6265,0),MATCH(Assets!W$47,'Data Annex'!$K$1:$AV$1,0)),"") -> 0.6266015072
B60: EE | D60: EE | F60: =IFERROR(INDEX('Data Annex'!$K$1:$AV$6265,MATCH(Assets!F$46&"|"&Assets!$B60,'Data Annex'!$K$1:$K$6265,0),MATCH(Assets!F$47,'Data Annex'!$K$1:$AV$1,0)),"") -> 36.63970645 | G60: =IFERROR(INDEX('Data Annex'!$K$1:$AV$6265,MATCH(Assets!G$46&"|"&Assets!$B60,'Data Annex'!$K$1:$K$6265,0),MATCH(Assets!G$47,'Data Annex'!$K$1:$AV$1,0)),"") -> 43.93469553 | H60: =IFERROR(INDEX('Data Annex'!$K$1:$AV$6265,MATCH(Assets!H$46&"|"&Assets!$B60,'Data Annex'!$K$1:$K$6265,0),MATCH(Assets!H$47,'Data Annex'!$K$1:$AV$1,0)),"") -> 44.37547826 | I60: =IFERROR(INDEX('Data Annex'!$K$1:$AV$6265,MATCH(Assets!I$46&"|"&Assets!$B60,'Data Annex'!$K$1:$K$6265,0),MATCH(Assets!I$47,'Data Annex'!$K$1:$AV$1,0)),"") -> 36.34581088 | J60: =IFERROR(INDEX('Data Annex'!$K$1:$AV$6265,MATCH(Assets!J$46&"|"&Assets!$B60,'Data Annex'!$K$1:$K$6265,0),MATCH(Assets!J$47,'Data Annex'!$K$1:$AV$1,0)),"") -> 43.58187784 | K60: =IFERROR(INDEX('Data Annex'!$K$1:$AV$6265,MATCH(Assets!K$46&"|"&Assets!$B60,'Data Annex'!$K$1:$K$6265,0),MATCH(Assets!K$47,'Data Annex'!$K$1:$AV$1,0)),"") -> 43.93602738 | L60: 0.9900969884 | M60: EE | O60: =IFERROR(INDEX('Data Annex'!$K$1:$AV$6265,MATCH(Assets!O$46&"|"&Assets!$B60,'Data Annex'!$K$1:$K$6265,0),MATCH(Assets!O$47,'Data Annex'!$K$1:$AV$1,0)),"") -> 0.9220642155 | P60: =IFERROR(INDEX('Data Annex'!$K$1:$AV$6265,MATCH(Assets!P$46&"|"&Assets!$B60,'Data Annex'!$K$1:$K$6265,0),MATCH(Assets!P$47,'Data Annex'!$K$1:$AV$1,0)),"") -> 0.9381876456 | Q60: =IFERROR(INDEX('Data Annex'!$K$1:$AV$6265,MATCH(Assets!Q$46&"|"&Assets!$B60,'Data Annex'!$K$1:$K$6265,0),MATCH(Assets!Q$47,'Data Annex'!$K$1:$AV$1,0)),"") -> 0.9378208634 | R60: =IFERROR(INDEX('Data Annex'!$K$1:$AV$6265,MATCH(Assets!R$46&"|"&Assets!$B60,'Data Annex'!$K$1:$K$6265,0),MATCH(Assets!R$47,'Data Annex'!$K$1:$AV$1,0)),"") -> 2.58626779e-05 | S60: =IFERROR(INDEX('Data Annex'!$K$1:$AV$6265,MATCH(Assets!S$46&"|"&Assets!$B60,'Data Annex'!$K$1:$K$6265,0),MATCH(Assets!S$47,'Data Annex'!$K$1:$AV$1,0)),"") -> 7.619057542e-05 | T60: =IFERROR(INDEX('Data Annex'!$K$1:$AV$6265,MATCH(Assets!T$46&"|"&Assets!$B60,'Data Annex'!$K$1:$K$6265,0),MATCH(Assets!T$47,'Data Annex'!$K$1:$AV$1,0)),"") -> 7.299961197e-05 | U60: =IFERROR(INDEX('Data Annex'!$K$1:$AV$6265,MATCH(Assets!U$46&"|"&Assets!$B60,'Data Annex'!$K$1:$K$6265,0),MATCH(Assets!U$47,'Data Annex'!$K$1:$AV$1,0)),"") -> 0.07790992178 | V60: =IFERROR(INDEX('Data Annex'!$K$1:$AV$6265,MATCH(Assets!V$46&"|"&Assets!$B60,'Data Annex'!$K$1:$K$6265,0),MATCH(Assets!V$47,'Data Annex'!$K$1:$AV$1,0)),"") -> 0.06173616386 | W60: =IFERROR(INDEX('Data Annex'!$K$1:$AV$6265,MATCH(Assets!W$46&"|"&Assets!$B60,'Data Annex'!$K$1:$K$6265,0),MATCH(Assets!W$47,'Data Annex'!$K$1:$AV$1,0)),"") -> 0.06210613698
B61: ES | D61: ES | F61: =IFERROR(INDEX('Data Annex'!$K$1:$AV$6265,MATCH(Assets!F$46&"|"&Assets!$B61,'Data Annex'!$K$1:$K$6265,0),MATCH(Assets!F$47,'Data Annex'!$K$1:$AV$1,0)),"") -> 3520.750114 | G61: =IFERROR(INDEX('Data Annex'!$K$1:$AV$6265,MATCH(Assets!G$46&"|"&Assets!$B61,'Data Annex'!$K$1:$K$6265,0),MATCH(Assets!G$47,'Data Annex'!$K$1:$AV$1,0)),"") -> 3789.640935 | H61: =IFERROR(INDEX('Data Annex'!$K$1:$AV$6265,MATCH(Assets!H$46&"|"&Assets!$B61,'Data Annex'!$K$1:$K$6265,0),MATCH(Assets!H$47,'Data Annex'!$K$1:$AV$1,0)),"") -> 3875.3458 | I61: =IFERROR(INDEX('Data Annex'!$K$1:$AV$6265,MATCH(Assets!I$46&"|"&Assets!$B61,'Data Annex'!$K$1:$K$6265,0),MATCH(Assets!I$47,'Data Annex'!$K$1:$AV$1,0)),"") -> 3298.29653 | J61: =IFERROR(INDEX('Data Annex'!$K$1:$AV$6265,MATCH(Assets!J$46&"|"&Assets!$B61,'Data Annex'!$K$1:$K$6265,0),MATCH(Assets!J$47,'Data Annex'!$K$1:$AV$1,0)),"") -> 3567.273181 | K61: =IFERROR(INDEX('Data Annex'!$K$1:$AV$6265,MATCH(Assets!K$46&"|"&Assets!$B61,'Data Annex'!$K$1:$K$6265,0),MATCH(Assets!K$47,'Data Annex'!$K$1:$AV$1,0)),"") -> 3658.709468 | L61: 0.9440988384 | M61: ES | O61: =IFERROR(INDEX('Data Annex'!$K$1:$AV$6265,MATCH(Assets!O$46&"|"&Assets!$B61,'Data Annex'!$K$1:$K$6265,0),MATCH(Assets!O$47,'Data Annex'!$K$1:$AV$1,0)),"") -> 0.8488587542 | P61: =IFERROR(INDEX('Data Annex'!$K$1:$AV$6265,MATCH(Assets!P$46&"|"&Assets!$B61,'Data Annex'!$K$1:$K$6265,0),MATCH(Assets!P$47,'Data Annex'!$K$1:$AV$1,0)),"") -> 0.8579510194 | Q61: =IFERROR(INDEX('Data Annex'!$K$1:$AV$6265,MATCH(Assets!Q$46&"|"&Assets!$B61,'Data Annex'!$K$1:$K$6265,0),MATCH(Assets!Q$47,'Data Annex'!$K$1:$AV$1,0)),"") -> 0.856181974 | R61: =IFERROR(INDEX('Data Annex'!$K$1:$AV$6265,MATCH(Assets!R$46&"|"&Assets!$B61,'Data Annex'!$K$1:$K$6265,0),MATCH(Assets!R$47,'Data Annex'!$K$1:$AV$1,0)),"") -> 0.0576103618 | S61: =IFERROR(INDEX('Data Annex'!$K$1:$AV$6265,MATCH(Assets!S$46&"|"&Assets!$B61,'Data Annex'!$K$1:$K$6265,0),MATCH(Assets!S$47,'Data Annex'!$K$1:$AV$1,0)),"") -> 0.04638824487 | T61: =IFERROR(INDEX('Data Annex'!$K$1:$AV$6265,MATCH(Assets!T$46&"|"&Assets!$B61,'Data Annex'!$K$1:$K$6265,0),MATCH(Assets!T$47,'Data Annex'!$K$1:$AV$1,0)),"") -> 0.0433111188 | U61: =IFERROR(INDEX('Data Annex'!$K$1:$AV$6265,MATCH(Assets!U$46&"|"&Assets!$B61,'Data Annex'!$K$1:$K$6265,0),MATCH(Assets!U$47,'Data Annex'!$K$1:$AV$1,0)),"") -> 0.09353088397 | V61: =IFERROR(INDEX('Data Annex'!$K$1:$AV$6265,MATCH(Assets!V$46&"|"&Assets!$B61,'Data Annex'!$K$1:$K$6265,0),MATCH(Assets!V$47,'Data Annex'!$K$1:$AV$1,0)),"") -> 0.09566073569 | W61: =IFERROR(INDEX('Data Annex'!$K$1:$AV$6265,MATCH(Assets!W$46&"|"&Assets!$B61,'Data Annex'!$K$1:$K$6265,0),MATCH(Assets!W$47,'Data Annex'!$K$1:$AV$1,0)),"") -> 0.1005069072
B62: FI | D62: FI | F62: =IFERROR(INDEX('Data Annex'!$K$1:$AV$6265,MATCH(Assets!F$46&"|"&Assets!$B62,'Data Annex'!$K$1:$K$6265,0),MATCH(Assets!F$47,'Data Annex'!$K$1:$AV$1,0)),"") -> 752.9252782 | G62: =IFERROR(INDEX('Data Annex'!$K$1:$AV$6265,MATCH(Assets!G$46&"|"&Assets!$B62,'Data Annex'!$K$1:$K$6265,0),MATCH(Assets!G$47,'Data Annex'!$K$1:$AV$1,0)),"") -> 752.8885011 | H62: =IFERROR(INDEX('Data Annex'!$K$1:$AV$6265,MATCH(Assets!H$46&"|"&Assets!$B62,'Data Annex'!$K$1:$K$6265,0),MATCH(Assets!H$47,'Data Annex'!$K$1:$AV$1,0)),"") -> 771.455554 | I62: =IFERROR(INDEX('Data Annex'!$K$1:$AV$6265,MATCH(Assets!I$46&"|"&Assets!$B62,'Data Annex'!$K$1:$K$6265,0),MATCH(Assets!I$47,'Data Annex'!$K$1:$AV$1,0)),"") -> 734.563593 | J62: =IFERROR(INDEX('Data Annex'!$K$1:$AV$6265,MATCH(Assets!J$46&"|"&Assets!$B62,'Data Annex'!$K$1:$K$6265,0),MATCH(Assets!J$47,'Data Annex'!$K$1:$AV$1,0)),"") -> 739.98977 | K62: =IFERROR(INDEX('Data Annex'!$K$1:$AV$6265,MATCH(Assets!K$46&"|"&Assets!$B62,'Data Annex'!$K$1:$K$6265,0),MATCH(Assets!K$47,'Data Annex'!$K$1:$AV$1,0)),"") -> 759.0730271 | L62: 0.9839491376 | M62: FI | O62: =IFERROR(INDEX('Data Annex'!$K$1:$AV$6265,MATCH(Assets!O$46&"|"&Assets!$B62,'Data Annex'!$K$1:$K$6265,0),MATCH(Assets!O$47,'Data Annex'!$K$1:$AV$1,0)),"") -> 0.6948494356 | P62: =IFERROR(INDEX('Data Annex'!$K$1:$AV$6265,MATCH(Assets!P$46&"|"&Assets!$B62,'Data Annex'!$K$1:$K$6265,0),MATCH(Assets!P$47,'Data Annex'!$K$1:$AV$1,0)),"") -> 0.6993622918 | Q62: =IFERROR(INDEX('Data Annex'!$K$1:$AV$6265,MATCH(Assets!Q$46&"|"&Assets!$B62,'Data Annex'!$K$1:$K$6265,0),MATCH(Assets!Q$47,'Data Annex'!$K$1:$AV$1,0)),"") -> 0.6901565918 | R62: =IFERROR(INDEX('Data Annex'!$K$1:$AV$6265,MATCH(Assets!R$46&"|"&Assets!$B62,'Data Annex'!$K$1:$K$6265,0),MATCH(Assets!R$47,'Data Annex'!$K$1:$AV$1,0)),"") -> 0.06293504108 | S62: =IFERROR(INDEX('Data Annex'!$K$1:$AV$6265,MATCH(Assets!S$46&"|"&Assets!$B62,'Data Annex'!$K$1:$K$6265,0),MATCH(Assets!S$47,'Data Annex'!$K$1:$AV$1,0)),"") -> 0.06531173189 | T62: =IFERROR(INDEX('Data Annex'!$K$1:$AV$6265,MATCH(Assets!T$46&"|"&Assets!$B62,'Data Annex'!$K$1:$K$6265,0),MATCH(Assets!T$47,'Data Annex'!$K$1:$AV$1,0)),"") -> 0.06355227252 | U62: =IFERROR(INDEX('Data Annex'!$K$1:$AV$6265,MATCH(Assets!U$46&"|"&Assets!$B62,'Data Annex'!$K$1:$K$6265,0),MATCH(Assets!U$47,'Data Annex'!$K$1:$AV$1,0)),"") -> 0.2422155233 | V62: =IFERROR(INDEX('Data Annex'!$K$1:$AV$6265,MATCH(Assets!V$46&"|"&Assets!$B62,'Data Annex'!$K$1:$K$6265,0),MATCH(Assets!V$47,'Data Annex'!$K$1:$AV$1,0)),"") -> 0.2353259764 | W62: =IFERROR(INDEX('Data Annex'!$K$1:$AV$6265,MATCH(Assets!W$46&"|"&Assets!$B62,'Data Annex'!$K$1:$K$6265,0),MATCH(Assets!W$47,'Data Annex'!$K$1:$AV$1,0)),"") -> 0.2462911357
B63: FR | D63: FR | F63: =IFERROR(INDEX('Data Annex'!$K$1:$AV$6265,MATCH(Assets!F$46&"|"&Assets!$B63,'Data Annex'!$K$1:$K$6265,0),MATCH(Assets!F$47,'Data Annex'!$K$1:$AV$1,0)),"") -> 8800.384357 | G63: =IFERROR(INDEX('Data Annex'!$K$1:$AV$6265,MATCH(Assets!G$46&"|"&Assets!$B63,'Data Annex'!$K$1:$K$6265,0),MATCH(Assets!G$47,'Data Annex'!$K$1:$AV$1,0)),"") -> 9071.097685 | H63: =IFERROR(INDEX('Data Annex'!$K$1:$AV$6265,MATCH(Assets!H$46&"|"&Assets!$B63,'Data Annex'!$K$1:$K$6265,0),MATCH(Assets!H$47,'Data Annex'!$K$1:$AV$1,0)),"") -> 9472.535575 | I63: =IFERROR(INDEX('Data Annex'!$K$1:$AV$6265,MATCH(Assets!I$46&"|"&Assets!$B63,'Data Annex'!$K$1:$K$6265,0),MATCH(Assets!I$47,'Data Annex'!$K$1:$AV$1,0)),"") -> 8252.233771 | J63: =IFERROR(INDEX('Data Annex'!$K$1:$AV$6265,MATCH(Assets!J$46&"|"&Assets!$B63,'Data Annex'!$K$1:$K$6265,0),MATCH(Assets!J$47,'Data Annex'!$K$1:$AV$1,0)),"") -> 8373.499791 | K63: =IFERROR(INDEX('Data Annex'!$K$1:$AV$6265,MATCH(Assets!K$46&"|"&Assets!$B63,'Data Annex'!$K$1:$K$6265,0),MATCH(Assets!K$47,'Data Annex'!$K$1:$AV$1,0)),"") -> 8689.372028 | L63: 0.9173227125 | M63: FR | O63: =IFERROR(INDEX('Data Annex'!$K$1:$AV$6265,MATCH(Assets!O$46&"|"&Assets!$B63,'Data Annex'!$K$1:$K$6265,0),MATCH(Assets!O$47,'Data Annex'!$K$1:$AV$1,0)),"") -> 0.7378249905 | P63: =IFERROR(INDEX('Data Annex'!$K$1:$AV$6265,MATCH(Assets!P$46&"|"&Assets!$B63,'Data Annex'!$K$1:$K$6265,0),MATCH(Assets!P$47,'Data Annex'!$K$1:$AV$1,0)),"") -> 0.7381592744 | Q63: =IFERROR(INDEX('Data Annex'!$K$1:$AV$6265,MATCH(Assets!Q$46&"|"&Assets!$B63,'Data Annex'!$K$1:$K$6265,0),MATCH(Assets!Q$47,'Data Annex'!$K$1:$AV$1,0)),"") -> 0.7251783782 | R63: =IFERROR(INDEX('Data Annex'!$K$1:$AV$6265,MATCH(Assets!R$46&"|"&Assets!$B63,'Data Annex'!$K$1:$K$6265,0),MATCH(Assets!R$47,'Data Annex'!$K$1:$AV$1,0)),"") -> 0.03308782885 | S63: =IFERROR(INDEX('Data Annex'!$K$1:$AV$6265,MATCH(Assets!S$46&"|"&Assets!$B63,'Data Annex'!$K$1:$K$6265,0),MATCH(Assets!S$47,'Data Annex'!$K$1:$AV$1,0)),"") -> 0.03110991276 | T63: =IFERROR(INDEX('Data Annex'!$K$1:$AV$6265,MATCH(Assets!T$46&"|"&Assets!$B63,'Data Annex'!$K$1:$K$6265,0),MATCH(Assets!T$47,'Data Annex'!$K$1:$AV$1,0)),"") -> 0.02863761765 | U63: =IFERROR(INDEX('Data Annex'!$K$1:$AV$6265,MATCH(Assets!U$46&"|"&Assets!$B63,'Data Annex'!$K$1:$K$6265,0),MATCH(Assets!U$47,'Data Annex'!$K$1:$AV$1,0)),"") -> 0.2290871806 | V63: =IFERROR(INDEX('Data Annex'!$K$1:$AV$6265,MATCH(Assets!V$46&"|"&Assets!$B63,'Data Annex'!$K$1:$K$6265,0),MATCH(Assets!V$47,'Data Annex'!$K$1:$AV$1,0)),"") -> 0.2307308128 | W63: =IFERROR(INDEX('Data Annex'!$K$1:$AV$6265,MATCH(Assets!W$46&"|"&Assets!$B63,'Data Annex'!$K$1:$K$6265,0),MATCH(Assets!W$47,'Data Annex'!$K$1:$AV$1,0)),"") -> 0.2461840041
B64: GR | D64: GR | F64: =IFERROR(INDEX('Data Annex'!$K$1:$AV$6265,MATCH(Assets!F$46&"|"&Assets!$B64,'Data Annex'!$K$1:$K$6265,0),MATCH(Assets!F$47,'Data Annex'!$K$1:$AV$1,0)),"") -> 299.5644038 | G64: =IFERROR(INDEX('Data Annex'!$K$1:$AV$6265,MATCH(Assets!G$46&"|"&Assets!$B64,'Data Annex'!$K$1:$K$6265,0),MATCH(Assets!G$47,'Data Annex'!$K$1:$AV$1,0)),"") -> 316.6478489 | H64: =IFERROR(INDEX('Data Annex'!$K$1:$AV$6265,MATCH(Assets!H$46&"|"&Assets!$B64,'Data Annex'!$K$1:$K$6265,0),MATCH(Assets!H$47,'Data Annex'!$K$1:$AV$1,0)),"") -> 323.7056065 | I64: =IFERROR(INDEX('Data Annex'!$K$1:$AV$6265,MATCH(Assets!I$46&"|"&Assets!$B64,'Data Annex'!$K$1:$K$6265,0),MATCH(Assets!I$47,'Data Annex'!$K$1:$AV$1,0)),"") -> 250.4033398 | J64: =IFERROR(INDEX('Data Annex'!$K$1:$AV$6265,MATCH(Assets!J$46&"|"&Assets!$B64,'Data Annex'!$K$1:$K$6265,0),MATCH(Assets!J$47,'Data Annex'!$K$1:$AV$1,0)),"") -> 272.667562 | K64: =IFERROR(INDEX('Data Annex'!$K$1:$AV$6265,MATCH(Assets!K$46&"|"&Assets!$B64,'Data Annex'!$K$1:$K$6265,0),MATCH(Assets!K$47,'Data Annex'!$K$1:$AV$1,0)),"") -> 280.9200295 | L64: 0.8678256536 | M64: GR | O64: =IFERROR(INDEX('Data Annex'!$K$1:$AV$6265,MATCH(Assets!O$46&"|"&Assets!$B64,'Data Annex'!$K$1:$K$6265,0),MATCH(Assets!O$47,'Data Annex'!$K$1:$AV$1,0)),"") -> 0.8817075112 | P64: =IFERROR(INDEX('Data Annex'!$K$1:$AV$6265,MATCH(Assets!P$46&"|"&Assets!$B64,'Data Annex'!$K$1:$K$6265,0),MATCH(Assets!P$47,'Data Annex'!$K$1:$AV$1,0)),"") -> 0.9227626907 | Q64: =IFERROR(INDEX('Data Annex'!$K$1:$AV$6265,MATCH(Assets!Q$46&"|"&Assets!$B64,'Data Annex'!$K$1:$K$6265,0),MATCH(Assets!Q$47,'Data Annex'!$K$1:$AV$1,0)),"") -> 0.9257903284 | R64: =IFERROR(INDEX('Data Annex'!$K$1:$AV$6265,MATCH(Assets!R$46&"|"&Assets!$B64,'Data Annex'!$K$1:$K$6265,0),MATCH(Assets!R$47,'Data Annex'!$K$1:$AV$1,0)),"") -> 0.07448639394 | S64: =IFERROR(INDEX('Data Annex'!$K$1:$AV$6265,MATCH(Assets!S$46&"|"&Assets!$B64,'Data Annex'!$K$1:$K$6265,0),MATCH(Assets!S$47,'Data Annex'!$K$1:$AV$1,0)),"") -> 0.03978366375 | T64: =IFERROR(INDEX('Data Annex'!$K$1:$AV$6265,MATCH(Assets!T$46&"|"&Assets!$B64,'Data Annex'!$K$1:$K$6265,0),MATCH(Assets!T$47,'Data Annex'!$K$1:$AV$1,0)),"") -> 0.03412072508 | U64: =IFERROR(INDEX('Data Annex'!$K$1:$AV$6265,MATCH(Assets!U$46&"|"&Assets!$B64,'Data Annex'!$K$1:$K$6265,0),MATCH(Assets!U$47,'Data Annex'!$K$1:$AV$1,0)),"") -> 0.04380609491 | V64: =IFERROR(INDEX('Data Annex'!$K$1:$AV$6265,MATCH(Assets!V$46&"|"&Assets!$B64,'Data Annex'!$K$1:$K$6265,0),MATCH(Assets!V$47,'Data Annex'!$K$1:$AV$1,0)),"") -> 0.03745364557 | W64: =IFERROR(INDEX('Data Annex'!$K$1:$AV$6265,MATCH(Assets!W$46&"|"&Assets!$B64,'Data Annex'!$K$1:$K$6265,0),MATCH(Assets!W$47,'Data Annex'!$K$1:$AV$1,0)),"") -> 0.04008894657
B65: HR | D65: HR | F65: =IFERROR(INDEX('Data Annex'!$K$1:$AV$6265,MATCH(Assets!F$46&"|"&Assets!$B65,'Data Annex'!$K$1:$K$6265,0),MATCH(Assets!F$47,'Data Annex'!$K$1:$AV$1,0)),"") -> 51.42286194 | G65: =IFERROR(INDEX('Data Annex'!$K$1:$AV$6265,MATCH(Assets!G$46&"|"&Assets!$B65,'Data Annex'!$K$1:$K$6265,0),MATCH(Assets!G$47,'Data Annex'!$K$1:$AV$1,0)),"") -> 55.23971574 | H65: =IFERROR(INDEX('Data Annex'!$K$1:$AV$6265,MATCH(Assets!H$46&"|"&Assets!$B65,'Data Annex'!$K$1:$K$6265,0),MATCH(Assets!H$47,'Data Annex'!$K$1:$AV$1,0)),"") -> 57.48844687 | I65: =IFERROR(INDEX('Data Annex'!$K$1:$AV$6265,MATCH(Assets!I$46&"|"&Assets!$B65,'Data Annex'!$K$1:$K$6265,0),MATCH(Assets!I$47,'Data Annex'!$K$1:$AV$1,0)),"") -> 50.2961885 | J65: =IFERROR(INDEX('Data Annex'!$K$1:$AV$6265,MATCH(Assets!J$46&"|"&Assets!$B65,'Data Annex'!$K$1:$K$6265,0),MATCH(Assets!J$47,'Data Annex'!$K$1:$AV$1,0)),"") -> 54.106997 | K65: =IFERROR(INDEX('Data Annex'!$K$1:$AV$6265,MATCH(Assets!K$46&"|"&Assets!$B65,'Data Annex'!$K$1:$K$6265,0),MATCH(Assets!K$47,'Data Annex'!$K$1:$AV$1,0)),"") -> 56.32086035 | L65: 0.9796900667 | M65: HR | O65: =IFERROR(INDEX('Data Annex'!$K$1:$AV$6265,MATCH(Assets!O$46&"|"&Assets!$B65,'Data Annex'!$K$1:$K$6265,0),MATCH(Assets!O$47,'Data Annex'!$K$1:$AV$1,0)),"") -> 0.9027040551 | P65: =IFERROR(INDEX('Data Annex'!$K$1:$AV$6265,MATCH(Assets!P$46&"|"&Assets!$B65,'Data Annex'!$K$1:$K$6265,0),MATCH(Assets!P$47,'Data Annex'!$K$1:$AV$1,0)),"") -> 0.9173330548 | Q65: =IFERROR(INDEX('Data Annex'!$K$1:$AV$6265,MATCH(Assets!Q$46&"|"&Assets!$B65,'Data Annex'!$K$1:$K$6265,0),MATCH(Assets!Q$47,'Data Annex'!$K$1:$AV$1,0)),"") -> 0.9199826389 | R65: =IFERROR(INDEX('Data Annex'!$K$1:$AV$6265,MATCH(Assets!R$46&"|"&Assets!$B65,'Data Annex'!$K$1:$K$6265,0),MATCH(Assets!R$47,'Data Annex'!$K$1:$AV$1,0)),"") -> 0.09026246609 | S65: =IFERROR(INDEX('Data Annex'!$K$1:$AV$6265,MATCH(Assets!S$46&"|"&Assets!$B65,'Data Annex'!$K$1:$K$6265,0),MATCH(Assets!S$47,'Data Annex'!$K$1:$AV$1,0)),"") -> 0.07356474698 | T65: =IFERROR(INDEX('Data Annex'!$K$1:$AV$6265,MATCH(Assets!T$46&"|"&Assets!$B65,'Data Annex'!$K$1:$K$6265,0),MATCH(Assets!T$47,'Data Annex'!$K$1:$AV$1,0)),"") -> 0.06830405688 | U65: =IFERROR(INDEX('Data Annex'!$K$1:$AV$6265,MATCH(Assets!U$46&"|"&Assets!$B65,'Data Annex'!$K$1:$K$6265,0),MATCH(Assets!U$47,'Data Annex'!$K$1:$AV$1,0)),"") -> 0.007033478849 | V65: =IFERROR(INDEX('Data Annex'!$K$1:$AV$6265,MATCH(Assets!V$46&"|"&Assets!$B65,'Data Annex'!$K$1:$K$6265,0),MATCH(Assets!V$47,'Data Annex'!$K$1:$AV$1,0)),"") -> 0.00910219822 | W65: =IFERROR(INDEX('Data Annex'!$K$1:$AV$6265,MATCH(Assets!W$46&"|"&Assets!$B65,'Data Annex'!$K$1:$K$6265,0),MATCH(Assets!W$47,'Data Annex'!$K$1:$AV$1,0)),"") -> 0.01171330418
B66: HU | D66: HU | F66: =IFERROR(INDEX('Data Annex'!$K$1:$AV$6265,MATCH(Assets!F$46&"|"&Assets!$B66,'Data Annex'!$K$1:$K$6265,0),MATCH(Assets!F$47,'Data Annex'!$K$1:$AV$1,0)),"") -> 124.3139515 | G66: =IFERROR(INDEX('Data Annex'!$K$1:$AV$6265,MATCH(Assets!G$46&"|"&Assets!$B66,'Data Annex'!$K$1:$K$6265,0),MATCH(Assets!G$47,'Data Annex'!$K$1:$AV$1,0)),"") -> 129.5563038 | H66: =IFERROR(INDEX('Data Annex'!$K$1:$AV$6265,MATCH(Assets!H$46&"|"&Assets!$B66,'Data Annex'!$K$1:$K$6265,0),MATCH(Assets!H$47,'Data Annex'!$K$1:$AV$1,0)),"") -> 132.2515047 | I66: =IFERROR(INDEX('Data Annex'!$K$1:$AV$6265,MATCH(Assets!I$46&"|"&Assets!$B66,'Data Annex'!$K$1:$K$6265,0),MATCH(Assets!I$47,'Data Annex'!$K$1:$AV$1,0)),"") -> 119.897049 | J66: =IFERROR(INDEX('Data Annex'!$K$1:$AV$6265,MATCH(Assets!J$46&"|"&Assets!$B66,'Data Annex'!$K$1:$K$6265,0),MATCH(Assets!J$47,'Data Annex'!$K$1:$AV$1,0)),"") -> 126.164041 | K66: =IFERROR(INDEX('Data Annex'!$K$1:$AV$6265,MATCH(Assets!K$46&"|"&Assets!$B66,'Data Annex'!$K$1:$K$6265,0),MATCH(Assets!K$47,'Data Annex'!$K$1:$AV$1,0)),"") -> 128.8639868 | L66: 0.9743857897 | M66: HU | O66: =IFERROR(INDEX('Data Annex'!$K$1:$AV$6265,MATCH(Assets!O$46&"|"&Assets!$B66,'Data Annex'!$K$1:$K$6265,0),MATCH(Assets!O$47,'Data Annex'!$K$1:$AV$1,0)),"") -> 0.871404017 | P66: =IFERROR(INDEX('Data Annex'!$K$1:$AV$6265,MATCH(Assets!P$46&"|"&Assets!$B66,'Data Annex'!$K$1:$K$6265,0),MATCH(Assets!P$47,'Data Annex'!$K$1:$AV$1,0)),"") -> 0.8679011471 | Q66: =IFERROR(INDEX('Data Annex'!$K$1:$AV$6265,MATCH(Assets!Q$46&"|"&Assets!$B66,'Data Annex'!$K$1:$K$6265,0),MATCH(Assets!Q$47,'Data Annex'!$K$1:$AV$1,0)),"") -> 0.8679432381 | R66: =IFERROR(INDEX('Data Annex'!$K$1:$AV$6265,MATCH(Assets!R$46&"|"&Assets!$B66,'Data Annex'!$K$1:$K$6265,0),MATCH(Assets!R$47,'Data Annex'!$K$1:$AV$1,0)),"") -> 0.07845694413 | S66: =IFERROR(INDEX('Data Annex'!$K$1:$AV$6265,MATCH(Assets!S$46&"|"&Assets!$B66,'Data Annex'!$K$1:$K$6265,0),MATCH(Assets!S$47,'Data Annex'!$K$1:$AV$1,0)),"") -> 0.05938978934 | T66: =IFERROR(INDEX('Data Annex'!$K$1:$AV$6265,MATCH(Assets!T$46&"|"&Assets!$B66,'Data Annex'!$K$1:$K$6265,0),MATCH(Assets!T$47,'Data Annex'!$K$1:$AV$1,0)),"") -> 0.05462502923 | U66: =IFERROR(INDEX('Data Annex'!$K$1:$AV$6265,MATCH(Assets!U$46&"|"&Assets!$B66,'Data Annex'!$K$1:$K$6265,0),MATCH(Assets!U$47,'Data Annex'!$K$1:$AV$1,0)),"") -> 0.05013903886 | V66: =IFERROR(INDEX('Data Annex'!$K$1:$AV$6265,MATCH(Assets!V$46&"|"&Assets!$B66,'Data Annex'!$K$1:$K$6265,0),MATCH(Assets!V$47,'Data Annex'!$K$1:$AV$1,0)),"") -> 0.07270906355 | W66: =IFERROR(INDEX('Data Annex'!$K$1:$AV$6265,MATCH(Assets!W$46&"|"&Assets!$B66,'Data Annex'!$K$1:$K$6265,0),MATCH(Assets!W$47,'Data Annex'!$K$1:$AV$1,0)),"") -> 0.07743173271
B67: IE | D67: IE | F67: =IFERROR(INDEX('Data Annex'!$K$1:$AV$6265,MATCH(Assets!F$46&"|"&Assets!$B67,'Data Annex'!$K$1:$K$6265,0),MATCH(Assets!F$47,'Data Annex'!$K$1:$AV$1,0)),"") -> 330.289514 | G67: =IFERROR(INDEX('Data Annex'!$K$1:$AV$6265,MATCH(Assets!G$46&"|"&Assets!$B67,'Data Annex'!$K$1:$K$6265,0),MATCH(Assets!G$47,'Data Annex'!$K$1:$AV$1,0)),"") -> 382.9694645 | H67: =IFERROR(INDEX('Data Annex'!$K$1:$AV$6265,MATCH(Assets!H$46&"|"&Assets!$B67,'Data Annex'!$K$1:$K$6265,0),MATCH(Assets!H$47,'Data Annex'!$K$1:$AV$1,0)),"") -> 406.1934205 | I67: =IFERROR(INDEX('Data Annex'!$K$1:$AV$6265,MATCH(Assets!I$46&"|"&Assets!$B67,'Data Annex'!$K$1:$K$6265,0),MATCH(Assets!I$47,'Data Annex'!$K$1:$AV$1,0)),"") -> 313.8748445 | J67: =IFERROR(INDEX('Data Annex'!$K$1:$AV$6265,MATCH(Assets!J$46&"|"&Assets!$B67,'Data Annex'!$K$1:$K$6265,0),MATCH(Assets!J$47,'Data Annex'!$K$1:$AV$1,0)),"") -> 360.8640156 | K67: =IFERROR(INDEX('Data Annex'!$K$1:$AV$6265,MATCH(Assets!K$46&"|"&Assets!$B67,'Data Annex'!$K$1:$K$6265,0),MATCH(Assets!K$47,'Data Annex'!$K$1:$AV$1,0)),"") -> 384.3354389 | L67: 0.9461882431 | M67: IE | O67: =IFERROR(INDEX('Data Annex'!$K$1:$AV$6265,MATCH(Assets!O$46&"|"&Assets!$B67,'Data Annex'!$K$1:$K$6265,0),MATCH(Assets!O$47,'Data Annex'!$K$1:$AV$1,0)),"") -> 0.852696366 | P67: =IFERROR(INDEX('Data Annex'!$K$1:$AV$6265,MATCH(Assets!P$46&"|"&Assets!$B67,'Data Annex'!$K$1:$K$6265,0),MATCH(Assets!P$47,'Data Annex'!$K$1:$AV$1,0)),"") -> 0.7999919722 | Q67: =IFERROR(INDEX('Data Annex'!$K$1:$AV$6265,MATCH(Assets!Q$46&"|"&Assets!$B67,'Data Annex'!$K$1:$K$6265,0),MATCH(Assets!Q$47,'Data Annex'!$K$1:$AV$1,0)),"") -> 0.7784017629 | R67: =IFERROR(INDEX('Data Annex'!$K$1:$AV$6265,MATCH(Assets!R$46&"|"&Assets!$B67,'Data Annex'!$K$1:$K$6265,0),MATCH(Assets!R$47,'Data Annex'!$K$1:$AV$1,0)),"") -> 0.09152888132 | S67: =IFERROR(INDEX('Data Annex'!$K$1:$AV$6265,MATCH(Assets!S$46&"|"&Assets!$B67,'Data Annex'!$K$1:$K$6265,0),MATCH(Assets!S$47,'Data Annex'!$K$1:$AV$1,0)),"") -> 0.06958534283 | T67: =IFERROR(INDEX('Data Annex'!$K$1:$AV$6265,MATCH(Assets!T$46&"|"&Assets!$B67,'Data Annex'!$K$1:$K$6265,0),MATCH(Assets!T$47,'Data Annex'!$K$1:$AV$1,0)),"") -> 0.0644869544 | U67: =IFERROR(INDEX('Data Annex'!$K$1:$AV$6265,MATCH(Assets!U$46&"|"&Assets!$B67,'Data Annex'!$K$1:$K$6265,0),MATCH(Assets!U$47,'Data Annex'!$K$1:$AV$1,0)),"") -> 0.05577475272 | V67: =IFERROR(INDEX('Data Annex'!$K$1:$AV$6265,MATCH(Assets!V$46&"|"&Assets!$B67,'Data Annex'!$K$1:$K$6265,0),MATCH(Assets!V$47,'Data Annex'!$K$1:$AV$1,0)),"") -> 0.130422685 | W67: =IFERROR(INDEX('Data Annex'!$K$1:$AV$6265,MATCH(Assets!W$46&"|"&Assets!$B67,'Data Annex'!$K$1:$K$6265,0),MATCH(Assets!W$47,'Data Annex'!$K$1:$AV$1,0)),"") -> 0.1571112827
B68: IS | D68: IS | F68: =IFERROR(INDEX('Data Annex'!$K$1:$AV$6265,MATCH(Assets!F$46&"|"&Assets!$B68,'Data Annex'!$K$1:$K$6265,0),MATCH(Assets!F$47,'Data Annex'!$K$1:$AV$1,0)),"") -> 29.95906331 | G68: =IFERROR(INDEX('Data Annex'!$K$1:$AV$6265,MATCH(Assets!G$46&"|"&Assets!$B68,'Data Annex'!$K$1:$K$6265,0),MATCH(Assets!G$47,'Data Annex'!$K$1:$AV$1,0)),"") -> 32.7484321 | H68: =IFERROR(INDEX('Data Annex'!$K$1:$AV$6265,MATCH(Assets!H$46&"|"&Assets!$B68,'Data Annex'!$K$1:$K$6265,0),MATCH(Assets!H$47,'Data Annex'!$K$1:$AV$1,0)),"") -> 33.69542724 | I68: =IFERROR(INDEX('Data Annex'!$K$1:$AV$6265,MATCH(Assets!I$46&"|"&Assets!$B68,'Data Annex'!$K$1:$K$6265,0),MATCH(Assets!I$47,'Data Annex'!$K$1:$AV$1,0)),"") -> 28.93448259 | J68: =IFERROR(INDEX('Data Annex'!$K$1:$AV$6265,MATCH(Assets!J$46&"|"&Assets!$B68,'Data Annex'!$K$1:$K$6265,0),MATCH(Assets!J$47,'Data Annex'!$K$1:$AV$1,0)),"") -> 31.95423465 | K68: =IFERROR(INDEX('Data Annex'!$K$1:$AV$6265,MATCH(Assets!K$46&"|"&Assets!$B68,'Data Annex'!$K$1:$K$6265,0),MATCH(Assets!K$47,'Data Annex'!$K$1:$AV$1,0)),"") -> 33.06214314 | L68: 0.9812056366 | M68: IS | O68: =IFERROR(INDEX('Data Annex'!$K$1:$AV$6265,MATCH(Assets!O$46&"|"&Assets!$B68,'Data Annex'!$K$1:$K$6265,0),MATCH(Assets!O$47,'Data Annex'!$K$1:$AV$1,0)),"") -> 0.8639578639 | P68: =IFERROR(INDEX('Data Annex'!$K$1:$AV$6265,MATCH(Assets!P$46&"|"&Assets!$B68,'Data Annex'!$K$1:$K$6265,0),MATCH(Assets!P$47,'Data Annex'!$K$1:$AV$1,0)),"") -> 0.8883375338 | Q68: =IFERROR(INDEX('Data Annex'!$K$1:$AV$6265,MATCH(Assets!Q$46&"|"&Assets!$B68,'Data Annex'!$K$1:$K$6265,0),MATCH(Assets!Q$47,'Data Annex'!$K$1:$AV$1,0)),"") -> 0.8888593425 | R68: =IFERROR(INDEX('Data Annex'!$K$1:$AV$6265,MATCH(Assets!R$46&"|"&Assets!$B68,'Data Annex'!$K$1:$K$6265,0),MATCH(Assets!R$47,'Data Annex'!$K$1:$AV$1,0)),"") -> 0.03290903683 | S68: =IFERROR(INDEX('Data Annex'!$K$1:$AV$6265,MATCH(Assets!S$46&"|"&Assets!$B68,'Data Annex'!$K$1:$K$6265,0),MATCH(Assets!S$47,'Data Annex'!$K$1:$AV$1,0)),"") -> 0.0245077549 | T68: =IFERROR(INDEX('Data Annex'!$K$1:$AV$6265,MATCH(Assets!T$46&"|"&Assets!$B68,'Data Annex'!$K$1:$K$6265,0),MATCH(Assets!T$47,'Data Annex'!$K$1:$AV$1,0)),"") -> 0.02881865414 | U68: =IFERROR(INDEX('Data Annex'!$K$1:$AV$6265,MATCH(Assets!U$46&"|"&Assets!$B68,'Data Annex'!$K$1:$K$6265,0),MATCH(Assets!U$47,'Data Annex'!$K$1:$AV$1,0)),"") -> 0.1031330993 | V68: =IFERROR(INDEX('Data Annex'!$K$1:$AV$6265,MATCH(Assets!V$46&"|"&Assets!$B68,'Data Annex'!$K$1:$K$6265,0),MATCH(Assets!V$47,'Data Annex'!$K$1:$AV$1,0)),"") -> 0.08715471134 | W68: =IFERROR(INDEX('Data Annex'!$K$1:$AV$6265,MATCH(Assets!W$46&"|"&Assets!$B68,'Data Annex'!$K$1:$K$6265,0),MATCH(Assets!W$47,'Data Annex'!$K$1:$AV$1,0)),"") -> 0.0823220034
B69: IT | D69: IT | F69: =IFERROR(INDEX('Data Annex'!$K$1:$AV$6265,MATCH(Assets!F$46&"|"&Assets!$B69,'Data Annex'!$K$1:$K$6265,0),MATCH(Assets!F$47,'Data Annex'!$K$1:$AV$1,0)),"") -> 2820.691359 | G69: =IFERROR(INDEX('Data Annex'!$K$1:$AV$6265,MATCH(Assets!G$46&"|"&Assets!$B69,'Data Annex'!$K$1:$K$6265,0),MATCH(Assets!G$47,'Data Annex'!$K$1:$AV$1,0)),"") -> 2848.292167 | H69: =IFERROR(INDEX('Data Annex'!$K$1:$AV$6265,MATCH(Assets!H$46&"|"&Assets!$B69,'Data Annex'!$K$1:$K$6265,0),MATCH(Assets!H$47,'Data Annex'!$K$1:$AV$1,0)),"") -> 2833.701878 | I69: =IFERROR(INDEX('Data Annex'!$K$1:$AV$6265,MATCH(Assets!I$46&"|"&Assets!$B69,'Data Annex'!$K$1:$K$6265,0),MATCH(Assets!I$47,'Data Annex'!$K$1:$AV$1,0)),"") -> 2674.553631 | J69: =IFERROR(INDEX('Data Annex'!$K$1:$AV$6265,MATCH(Assets!J$46&"|"&Assets!$B69,'Data Annex'!$K$1:$K$6265,0),MATCH(Assets!J$47,'Data Annex'!$K$1:$AV$1,0)),"") -> 2703.560386 | K69: =IFERROR(INDEX('Data Annex'!$K$1:$AV$6265,MATCH(Assets!K$46&"|"&Assets!$B69,'Data Annex'!$K$1:$K$6265,0),MATCH(Assets!K$47,'Data Annex'!$K$1:$AV$1,0)),"") -> 2688.172998 | L69: 0.9486435462 | M69: IT | O69: =IFERROR(INDEX('Data Annex'!$K$1:$AV$6265,MATCH(Assets!O$46&"|"&Assets!$B69,'Data Annex'!$K$1:$K$6265,0),MATCH(Assets!O$47,'Data Annex'!$K$1:$AV$1,0)),"") -> 0.8539853748 | P69: =IFERROR(INDEX('Data Annex'!$K$1:$AV$6265,MATCH(Assets!P$46&"|"&Assets!$B69,'Data Annex'!$K$1:$K$6265,0),MATCH(Assets!P$47,'Data Annex'!$K$1:$AV$1,0)),"") -> 0.8615567526 | Q69: =IFERROR(INDEX('Data Annex'!$K$1:$AV$6265,MATCH(Assets!Q$46&"|"&Assets!$B69,'Data Annex'!$K$1:$K$6265,0),MATCH(Assets!Q$47,'Data Annex'!$K$1:$AV$1,0)),"") -> 0.8620504525 | R69: =IFERROR(INDEX('Data Annex'!$K$1:$AV$6265,MATCH(Assets!R$46&"|"&Assets!$B69,'Data Annex'!$K$1:$K$6265,0),MATCH(Assets!R$47,'Data Annex'!$K$1:$AV$1,0)),"") -> 0.07074517025 | S69: =IFERROR(INDEX('Data Annex'!$K$1:$AV$6265,MATCH(Assets!S$46&"|"&Assets!$B69,'Data Annex'!$K$1:$K$6265,0),MATCH(Assets!S$47,'Data Annex'!$K$1:$AV$1,0)),"") -> 0.06738079998 | T69: =IFERROR(INDEX('Data Annex'!$K$1:$AV$6265,MATCH(Assets!T$46&"|"&Assets!$B69,'Data Annex'!$K$1:$K$6265,0),MATCH(Assets!T$47,'Data Annex'!$K$1:$AV$1,0)),"") -> 0.06302846586 | U69: =IFERROR(INDEX('Data Annex'!$K$1:$AV$6265,MATCH(Assets!U$46&"|"&Assets!$B69,'Data Annex'!$K$1:$K$6265,0),MATCH(Assets!U$47,'Data Annex'!$K$1:$AV$1,0)),"") -> 0.07526945491 | V69: =IFERROR(INDEX('Data Annex'!$K$1:$AV$6265,MATCH(Assets!V$46&"|"&Assets!$B69,'Data Annex'!$K$1:$K$6265,0),MATCH(Assets!V$47,'Data Annex'!$K$1:$AV$1,0)),"") -> 0.07106244742 | W69: =IFERROR(INDEX('Data Annex'!$K$1:$AV$6265,MATCH(Assets!W$46&"|"&Assets!$B69,'Data Annex'!$K$1:$K$6265,0),MATCH(Assets!W$47,'Data Annex'!$K$1:$AV$1,0)),"") -> 0.07492108161
B70: LI | D70: LI* | F70: =IFERROR(INDEX('Data Annex'!$K$1:$AV$6265,MATCH(Assets!F$46&"|"&Assets!$B70,'Data Annex'!$K$1:$K$6265,0),MATCH(Assets!F$47,'Data Annex'!$K$1:$AV$1,0)),"") -> 0 | G70: =IFERROR(INDEX('Data Annex'!$K$1:$AV$6265,MATCH(Assets!G$46&"|"&Assets!$B70,'Data Annex'!$K$1:$K$6265,0),MATCH(Assets!G$47,'Data Annex'!$K$1:$AV$1,0)),"") -> 97.43371631 | H70: =IFERROR(INDEX('Data Annex'!$K$1:$AV$6265,MATCH(Assets!H$46&"|"&Assets!$B70,'Data Annex'!$K$1:$K$6265,0),MATCH(Assets!H$47,'Data Annex'!$K$1:$AV$1,0)),"") -> 103.7373348 | I70: =IFERROR(INDEX('Data Annex'!$K$1:$AV$6265,MATCH(Assets!I$46&"|"&Assets!$B70,'Data Annex'!$K$1:$K$6265,0),MATCH(Assets!I$47,'Data Annex'!$K$1:$AV$1,0)),"") -> 0 | J70: =IFERROR(INDEX('Data Annex'!$K$1:$AV$6265,MATCH(Assets!J$46&"|"&Assets!$B70,'Data Annex'!$K$1:$K$6265,0),MATCH(Assets!J$47,'Data Annex'!$K$1:$AV$1,0)),"") -> 93.39212884 | K70: =IFERROR(INDEX('Data Annex'!$K$1:$AV$6265,MATCH(Assets!K$46&"|"&Assets!$B70,'Data Annex'!$K$1:$K$6265,0),MATCH(Assets!K$47,'Data Annex'!$K$1:$AV$1,0)),"") -> 99.55819939 | M70: LI* | O70: =IFERROR(INDEX('Data Annex'!$K$1:$AV$6265,MATCH(Assets!O$46&"|"&Assets!$B70,'Data Annex'!$K$1:$K$6265,0),MATCH(Assets!O$47,'Data Annex'!$K$1:$AV$1,0)),"") -> 0 | P70: =IFERROR(INDEX('Data Annex'!$K$1:$AV$6265,MATCH(Assets!P$46&"|"&Assets!$B70,'Data Annex'!$K$1:$K$6265,0),MATCH(Assets!P$47,'Data Annex'!$K$1:$AV$1,0)),"") -> 0.797515838 | Q70: =IFERROR(INDEX('Data Annex'!$K$1:$AV$6265,MATCH(Assets!Q$46&"|"&Assets!$B70,'Data Annex'!$K$1:$K$6265,0),MATCH(Assets!Q$47,'Data Annex'!$K$1:$AV$1,0)),"") -> 0.7257386494 | R70: =IFERROR(INDEX('Data Annex'!$K$1:$AV$6265,MATCH(Assets!R$46&"|"&Assets!$B70,'Data Annex'!$K$1:$K$6265,0),MATCH(Assets!R$47,'Data Annex'!$K$1:$AV$1,0)),"") -> 0 | S70: =IFERROR(INDEX('Data Annex'!$K$1:$AV$6265,MATCH(Assets!S$46&"|"&Assets!$B70,'Data Annex'!$K$1:$K$6265,0),MATCH(Assets!S$47,'Data Annex'!$K$1:$AV$1,0)),"") -> 0.1591780602 | T70: =IFERROR(INDEX('Data Annex'!$K$1:$AV$6265,MATCH(Assets!T$46&"|"&Assets!$B70,'Data Annex'!$K$1:$K$6265,0),MATCH(Assets!T$47,'Data Annex'!$K$1:$AV$1,0)),"") -> 0.2294097578 | U70: =IFERROR(INDEX('Data Annex'!$K$1:$AV$6265,MATCH(Assets!U$46&"|"&Assets!$B70,'Data Annex'!$K$1:$K$6265,0),MATCH(Assets!U$47,'Data Annex'!$K$1:$AV$1,0)),"") -> 0 | V70: =IFERROR(INDEX('Data Annex'!$K$1:$AV$6265,MATCH(Assets!V$46&"|"&Assets!$B70,'Data Annex'!$K$1:$K$6265,0),MATCH(Assets!V$47,'Data Annex'!$K$1:$AV$1,0)),"") -> 0.0433061019 | W70: =IFERROR(INDEX('Data Annex'!$K$1:$AV$6265,MATCH(Assets!W$46&"|"&Assets!$B70,'Data Annex'!$K$1:$K$6265,0),MATCH(Assets!W$47,'Data Annex'!$K$1:$AV$1,0)),"") -> 0.04485159281
B71: LT | D71: LT | F71: =IFERROR(INDEX('Data Annex'!$K$1:$AV$6265,MATCH(Assets!F$46&"|"&Assets!$B71,'Data Annex'!$K$1:$K$6265,0),MATCH(Assets!F$47,'Data Annex'!$K$1:$AV$1,0)),"") -> 29.877033 | G71: =IFERROR(INDEX('Data Annex'!$K$1:$AV$6265,MATCH(Assets!G$46&"|"&Assets!$B71,'Data Annex'!$K$1:$K$6265,0),MATCH(Assets!G$47,'Data Annex'!$K$1:$AV$1,0)),"") -> 20.222241 | H71: =IFERROR(INDEX('Data Annex'!$K$1:$AV$6265,MATCH(Assets!H$46&"|"&Assets!$B71,'Data Annex'!$K$1:$K$6265,0),MATCH(Assets!H$47,'Data Annex'!$K$1:$AV$1,0)),"") -> 20.904106 | I71: =IFERROR(INDEX('Data Annex'!$K$1:$AV$6265,MATCH(Assets!I$46&"|"&Assets!$B71,'Data Annex'!$K$1:$K$6265,0),MATCH(Assets!I$47,'Data Annex'!$K$1:$AV$1,0)),"") -> 29.666679 | J71: =IFERROR(INDEX('Data Annex'!$K$1:$AV$6265,MATCH(Assets!J$46&"|"&Assets!$B71,'Data Annex'!$K$1:$K$6265,0),MATCH(Assets!J$47,'Data Annex'!$K$1:$AV$1,0)),"") -> 20.074992 | K71: =IFERROR(INDEX('Data Annex'!$K$1:$AV$6265,MATCH(Assets!K$46&"|"&Assets!$B71,'Data Annex'!$K$1:$K$6265,0),MATCH(Assets!K$47,'Data Annex'!$K$1:$AV$1,0)),"") -> 20.767567 | L71: 0.9934683167 | M71: LT | O71: =IFERROR(INDEX('Data Annex'!$K$1:$AV$6265,MATCH(Assets!O$46&"|"&Assets!$B71,'Data Annex'!$K$1:$K$6265,0),MATCH(Assets!O$47,'Data Annex'!$K$1:$AV$1,0)),"") -> 0.9378122843 | P71: =IFERROR(INDEX('Data Annex'!$K$1:$AV$6265,MATCH(Assets!P$46&"|"&Assets!$B71,'Data Annex'!$K$1:$K$6265,0),MATCH(Assets!P$47,'Data Annex'!$K$1:$AV$1,0)),"") -> 0.879276465 | Q71: =IFERROR(INDEX('Data Annex'!$K$1:$AV$6265,MATCH(Assets!Q$46&"|"&Assets!$B71,'Data Annex'!$K$1:$K$6265,0),MATCH(Assets!Q$47,'Data Annex'!$K$1:$AV$1,0)),"") -> 0.9305623042 | R71: =IFERROR(INDEX('Data Annex'!$K$1:$AV$6265,MATCH(Assets!R$46&"|"&Assets!$B71,'Data Annex'!$K$1:$K$6265,0),MATCH(Assets!R$47,'Data Annex'!$K$1:$AV$1,0)),"") -> 0.001766999265 | S71: =IFERROR(INDEX('Data Annex'!$K$1:$AV$6265,MATCH(Assets!S$46&"|"&Assets!$B71,'Data Annex'!$K$1:$K$6265,0),MATCH(Assets!S$47,'Data Annex'!$K$1:$AV$1,0)),"") -> 0.00601529505 | T71: =IFERROR(INDEX('Data Annex'!$K$1:$AV$6265,MATCH(Assets!T$46&"|"&Assets!$B71,'Data Annex'!$K$1:$K$6265,0),MATCH(Assets!T$47,'Data Annex'!$K$1:$AV$1,0)),"") -> 0.005866310676 | U71: =IFERROR(INDEX('Data Annex'!$K$1:$AV$6265,MATCH(Assets!U$46&"|"&Assets!$B71,'Data Annex'!$K$1:$K$6265,0),MATCH(Assets!U$47,'Data Annex'!$K$1:$AV$1,0)),"") -> 0.06042071645 | V71: =IFERROR(INDEX('Data Annex'!$K$1:$AV$6265,MATCH(Assets!V$46&"|"&Assets!$B71,'Data Annex'!$K$1:$K$6265,0),MATCH(Assets!V$47,'Data Annex'!$K$1:$AV$1,0)),"") -> 0.11470824 | W71: =IFERROR(INDEX('Data Annex'!$K$1:$AV$6265,MATCH(Assets!W$46&"|"&Assets!$B71,'Data Annex'!$K$1:$K$6265,0),MATCH(Assets!W$47,'Data Annex'!$K$1:$AV$1,0)),"") -> 0.06357138513
B72: LU | D72: LU | F72: =IFERROR(INDEX('Data Annex'!$K$1:$AV$6265,MATCH(Assets!F$46&"|"&Assets!$B72,'Data Annex'!$K$1:$K$6265,0),MATCH(Assets!F$47,'Data Annex'!$K$1:$AV$1,0)),"") -> 190.0379667 | G72: =IFERROR(INDEX('Data Annex'!$K$1:$AV$6265,MATCH(Assets!G$46&"|"&Assets!$B72,'Data Annex'!$K$1:$K$6265,0),MATCH(Assets!G$47,'Data Annex'!$K$1:$AV$1,0)),"") -> 204.4011357 | H72: =IFERROR(INDEX('Data Annex'!$K$1:$AV$6265,MATCH(Assets!H$46&"|"&Assets!$B72,'Data Annex'!$K$1:$K$6265,0),MATCH(Assets!H$47,'Data Annex'!$K$1:$AV$1,0)),"") -> 207.9809125 | I72: =IFERROR(INDEX('Data Annex'!$K$1:$AV$6265,MATCH(Assets!I$46&"|"&Assets!$B72,'Data Annex'!$K$1:$K$6265,0),MATCH(Assets!I$47,'Data Annex'!$K$1:$AV$1,0)),"") -> 185.0831728 | J72: =IFERROR(INDEX('Data Annex'!$K$1:$AV$6265,MATCH(Assets!J$46&"|"&Assets!$B72,'Data Annex'!$K$1:$K$6265,0),MATCH(Assets!J$47,'Data Annex'!$K$1:$AV$1,0)),"") -> 199.0733853 | K72: =IFERROR(INDEX('Data Annex'!$K$1:$AV$6265,MATCH(Assets!K$46&"|"&Assets!$B72,'Data Annex'!$K$1:$K$6265,0),MATCH(Assets!K$47,'Data Annex'!$K$1:$AV$1,0)),"") -> 202.7975103 | L72: 0.9750775098 | M72: LU | O72: =IFERROR(INDEX('Data Annex'!$K$1:$AV$6265,MATCH(Assets!O$46&"|"&Assets!$B72,'Data Annex'!$K$1:$K$6265,0),MATCH(Assets!O$47,'Data Annex'!$K$1:$AV$1,0)),"") -> 0.9318752966 | P72: =IFERROR(INDEX('Data Annex'!$K$1:$AV$6265,MATCH(Assets!P$46&"|"&Assets!$B72,'Data Annex'!$K$1:$K$6265,0),MATCH(Assets!P$47,'Data Annex'!$K$1:$AV$1,0)),"") -> 0.9404297499 | Q72: =IFERROR(INDEX('Data Annex'!$K$1:$AV$6265,MATCH(Assets!Q$46&"|"&Assets!$B72,'Data Annex'!$K$1:$K$6265,0),MATCH(Assets!Q$47,'Data Annex'!$K$1:$AV$1,0)),"") -> 0.9382346433 | R72: =IFERROR(INDEX('Data Annex'!$K$1:$AV$6265,MATCH(Assets!R$46&"|"&Assets!$B72,'Data Annex'!$K$1:$K$6265,0),MATCH(Assets!R$47,'Data Annex'!$K$1:$AV$1,0)),"") -> 0.04918269017 | S72: =IFERROR(INDEX('Data Annex'!$K$1:$AV$6265,MATCH(Assets!S$46&"|"&Assets!$B72,'Data Annex'!$K$1:$K$6265,0),MATCH(Assets!S$47,'Data Annex'!$K$1:$AV$1,0)),"") -> 0.03690660201 | T72: =IFERROR(INDEX('Data Annex'!$K$1:$AV$6265,MATCH(Assets!T$46&"|"&Assets!$B72,'Data Annex'!$K$1:$K$6265,0),MATCH(Assets!T$47,'Data Annex'!$K$1:$AV$1,0)),"") -> 0.03218459911 | U72: =IFERROR(INDEX('Data Annex'!$K$1:$AV$6265,MATCH(Assets!U$46&"|"&Assets!$B72,'Data Annex'!$K$1:$K$6265,0),MATCH(Assets!U$47,'Data Annex'!$K$1:$AV$1,0)),"") -> 0.01894201319 | V72: =IFERROR(INDEX('Data Annex'!$K$1:$AV$6265,MATCH(Assets!V$46&"|"&Assets!$B72,'Data Annex'!$K$1:$K$6265,0),MATCH(Assets!V$47,'Data Annex'!$K$1:$AV$1,0)),"") -> 0.02266364811 | W72: =IFERROR(INDEX('Data Annex'!$K$1:$AV$6265,MATCH(Assets!W$46&"|"&Assets!$B72,'Data Annex'!$K$1:$K$6265,0),MATCH(Assets!W$47,'Data Annex'!$K$1:$AV$1,0)),"") -> 0.02958075755
B73: LV | D73: LV | F73: =IFERROR(INDEX('Data Annex'!$K$1:$AV$6265,MATCH(Assets!F$46&"|"&Assets!$B73,'Data Annex'!$K$1:$K$6265,0),MATCH(Assets!F$47,'Data Annex'!$K$1:$AV$1,0)),"") -> 17.20865601 | G73: =IFERROR(INDEX('Data Annex'!$K$1:$AV$6265,MATCH(Assets!G$46&"|"&Assets!$B73,'Data Annex'!$K$1:$K$6265,0),MATCH(Assets!G$47,'Data Annex'!$K$1:$AV$1,0)),"") -> 48.72938199 | H73: =IFERROR(INDEX('Data Annex'!$K$1:$AV$6265,MATCH(Assets!H$46&"|"&Assets!$B73,'Data Annex'!$K$1:$K$6265,0),MATCH(Assets!H$47,'Data Annex'!$K$1:$AV$1,0)),"") -> 49.65881601 | I73: =IFERROR(INDEX('Data Annex'!$K$1:$AV$6265,MATCH(Assets!I$46&"|"&Assets!$B73,'Data Annex'!$K$1:$K$6265,0),MATCH(Assets!I$47,'Data Annex'!$K$1:$AV$1,0)),"") -> 17.0431866 | J73: =IFERROR(INDEX('Data Annex'!$K$1:$AV$6265,MATCH(Assets!J$46&"|"&Assets!$B73,'Data Annex'!$K$1:$K$6265,0),MATCH(Assets!J$47,'Data Annex'!$K$1:$AV$1,0)),"") -> 48.24947166 | K73: =IFERROR(INDEX('Data Annex'!$K$1:$AV$6265,MATCH(Assets!K$46&"|"&Assets!$B73,'Data Annex'!$K$1:$K$6265,0),MATCH(Assets!K$47,'Data Annex'!$K$1:$AV$1,0)),"") -> 49.17390236 | L73: 0.9902350944 | M73: LV | O73: =IFERROR(INDEX('Data Annex'!$K$1:$AV$6265,MATCH(Assets!O$46&"|"&Assets!$B73,'Data Annex'!$K$1:$K$6265,0),MATCH(Assets!O$47,'Data Annex'!$K$1:$AV$1,0)),"") -> 0.9035051354 | P73: =IFERROR(INDEX('Data Annex'!$K$1:$AV$6265,MATCH(Assets!P$46&"|"&Assets!$B73,'Data Annex'!$K$1:$K$6265,0),MATCH(Assets!P$47,'Data Annex'!$K$1:$AV$1,0)),"") -> 0.8941073054 | Q73: =IFERROR(INDEX('Data Annex'!$K$1:$AV$6265,MATCH(Assets!Q$46&"|"&Assets!$B73,'Data Annex'!$K$1:$K$6265,0),MATCH(Assets!Q$47,'Data Annex'!$K$1:$AV$1,0)),"") -> 0.9166276761 | R73: =IFERROR(INDEX('Data Annex'!$K$1:$AV$6265,MATCH(Assets!R$46&"|"&Assets!$B73,'Data Annex'!$K$1:$K$6265,0),MATCH(Assets!R$47,'Data Annex'!$K$1:$AV$1,0)),"") -> 0.01679305981 | S73: =IFERROR(INDEX('Data Annex'!$K$1:$AV$6265,MATCH(Assets!S$46&"|"&Assets!$B73,'Data Annex'!$K$1:$K$6265,0),MATCH(Assets!S$47,'Data Annex'!$K$1:$AV$1,0)),"") -> 0.003936949496 | T73: =IFERROR(INDEX('Data Annex'!$K$1:$AV$6265,MATCH(Assets!T$46&"|"&Assets!$B73,'Data Annex'!$K$1:$K$6265,0),MATCH(Assets!T$47,'Data Annex'!$K$1:$AV$1,0)),"") -> 0.00379260684 | U73: =IFERROR(INDEX('Data Annex'!$K$1:$AV$6265,MATCH(Assets!U$46&"|"&Assets!$B73,'Data Annex'!$K$1:$K$6265,0),MATCH(Assets!U$47,'Data Annex'!$K$1:$AV$1,0)),"") -> 0.07970180475 | V73: =IFERROR(INDEX('Data Annex'!$K$1:$AV$6265,MATCH(Assets!V$46&"|"&Assets!$B73,'Data Annex'!$K$1:$K$6265,0),MATCH(Assets!V$47,'Data Annex'!$K$1:$AV$1,0)),"") -> 0.1019557451 | W73: =IFERROR(INDEX('Data Annex'!$K$1:$AV$6265,MATCH(Assets!W$46&"|"&Assets!$B73,'Data Annex'!$K$1:$K$6265,0),MATCH(Assets!W$47,'Data Annex'!$K$1:$AV$1,0)),"") -> 0.07957971702
B74: MT | D74: MT | F74: =IFERROR(INDEX('Data Annex'!$K$1:$AV$6265,MATCH(Assets!F$46&"|"&Assets!$B74,'Data Annex'!$K$1:$K$6265,0),MATCH(Assets!F$47,'Data Annex'!$K$1:$AV$1,0)),"") -> 24.20159298 | G74: =IFERROR(INDEX('Data Annex'!$K$1:$AV$6265,MATCH(Assets!G$46&"|"&Assets!$B74,'Data Annex'!$K$1:$K$6265,0),MATCH(Assets!G$47,'Data Annex'!$K$1:$AV$1,0)),"") -> 25.506947 | H74: =IFERROR(INDEX('Data Annex'!$K$1:$AV$6265,MATCH(Assets!H$46&"|"&Assets!$B74,'Data Annex'!$K$1:$K$6265,0),MATCH(Assets!H$47,'Data Annex'!$K$1:$AV$1,0)),"") -> 25.87580002 | I74: =IFERROR(INDEX('Data Annex'!$K$1:$AV$6265,MATCH(Assets!I$46&"|"&Assets!$B74,'Data Annex'!$K$1:$K$6265,0),MATCH(Assets!I$47,'Data Annex'!$K$1:$AV$1,0)),"") -> 23.53362037 | J74: =IFERROR(INDEX('Data Annex'!$K$1:$AV$6265,MATCH(Assets!J$46&"|"&Assets!$B74,'Data Annex'!$K$1:$K$6265,0),MATCH(Assets!J$47,'Data Annex'!$K$1:$AV$1,0)),"") -> 24.95290754 | K74: =IFERROR(INDEX('Data Annex'!$K$1:$AV$6265,MATCH(Assets!K$46&"|"&Assets!$B74,'Data Annex'!$K$1:$K$6265,0),MATCH(Assets!K$47,'Data Annex'!$K$1:$AV$1,0)),"") -> 25.39950012 | L74: 0.9815928435 | M74: MT | O74: =IFERROR(INDEX('Data Annex'!$K$1:$AV$6265,MATCH(Assets!O$46&"|"&Assets!$B74,'Data Annex'!$K$1:$K$6265,0),MATCH(Assets!O$47,'Data Annex'!$K$1:$AV$1,0)),"") -> 0.8944367837 | P74: =IFERROR(INDEX('Data Annex'!$K$1:$AV$6265,MATCH(Assets!P$46&"|"&Assets!$B74,'Data Annex'!$K$1:$K$6265,0),MATCH(Assets!P$47,'Data Annex'!$K$1:$AV$1,0)),"") -> 0.8844649934 | Q74: =IFERROR(INDEX('Data Annex'!$K$1:$AV$6265,MATCH(Assets!Q$46&"|"&Assets!$B74,'Data Annex'!$K$1:$K$6265,0),MATCH(Assets!Q$47,'Data Annex'!$K$1:$AV$1,0)),"") -> 0.9219192615 | R74: =IFERROR(INDEX('Data Annex'!$K$1:$AV$6265,MATCH(Assets!R$46&"|"&Assets!$B74,'Data Annex'!$K$1:$K$6265,0),MATCH(Assets!R$47,'Data Annex'!$K$1:$AV$1,0)),"") -> 0.09796416267 | S74: =IFERROR(INDEX('Data Annex'!$K$1:$AV$6265,MATCH(Assets!S$46&"|"&Assets!$B74,'Data Annex'!$K$1:$K$6265,0),MATCH(Assets!S$47,'Data Annex'!$K$1:$AV$1,0)),"") -> 0.1020324067 | T74: =IFERROR(INDEX('Data Annex'!$K$1:$AV$6265,MATCH(Assets!T$46&"|"&Assets!$B74,'Data Annex'!$K$1:$K$6265,0),MATCH(Assets!T$47,'Data Annex'!$K$1:$AV$1,0)),"") -> 0.0617772485 | U74: =IFERROR(INDEX('Data Annex'!$K$1:$AV$6265,MATCH(Assets!U$46&"|"&Assets!$B74,'Data Annex'!$K$1:$K$6265,0),MATCH(Assets!U$47,'Data Annex'!$K$1:$AV$1,0)),"") -> 0.007599053676 | V74: =IFERROR(INDEX('Data Annex'!$K$1:$AV$6265,MATCH(Assets!V$46&"|"&Assets!$B74,'Data Annex'!$K$1:$K$6265,0),MATCH(Assets!V$47,'Data Annex'!$K$1:$AV$1,0)),"") -> 0.01350259981 | W74: =IFERROR(INDEX('Data Annex'!$K$1:$AV$6265,MATCH(Assets!W$46&"|"&Assets!$B74,'Data Annex'!$K$1:$K$6265,0),MATCH(Assets!W$47,'Data Annex'!$K$1:$AV$1,0)),"") -> 0.01630348997
B75: NL | D75: NL | F75: =IFERROR(INDEX('Data Annex'!$K$1:$AV$6265,MATCH(Assets!F$46&"|"&Assets!$B75,'Data Annex'!$K$1:$K$6265,0),MATCH(Assets!F$47,'Data Annex'!$K$1:$AV$1,0)),"") -> 2354.585731 | G75: =IFERROR(INDEX('Data Annex'!$K$1:$AV$6265,MATCH(Assets!G$46&"|"&Assets!$B75,'Data Annex'!$K$1:$K$6265,0),MATCH(Assets!G$47,'Data Annex'!$K$1:$AV$1,0)),"") -> 2356.239688 | H75: =IFERROR(INDEX('Data Annex'!$K$1:$AV$6265,MATCH(Assets!H$46&"|"&Assets!$B75,'Data Annex'!$K$1:$K$6265,0),MATCH(Assets!H$47,'Data Annex'!$K$1:$AV$1,0)),"") -> 2475.448891 | I75: =IFERROR(INDEX('Data Annex'!$K$1:$AV$6265,MATCH(Assets!I$46&"|"&Assets!$B75,'Data Annex'!$K$1:$K$6265,0),MATCH(Assets!I$47,'Data Annex'!$K$1:$AV$1,0)),"") -> 2266.307413 | J75: =IFERROR(INDEX('Data Annex'!$K$1:$AV$6265,MATCH(Assets!J$46&"|"&Assets!$B75,'Data Annex'!$K$1:$K$6265,0),MATCH(Assets!J$47,'Data Annex'!$K$1:$AV$1,0)),"") -> 2316.547623 | K75: =IFERROR(INDEX('Data Annex'!$K$1:$AV$6265,MATCH(Assets!K$46&"|"&Assets!$B75,'Data Annex'!$K$1:$K$6265,0),MATCH(Assets!K$47,'Data Annex'!$K$1:$AV$1,0)),"") -> 2452.888656 | L75: 0.9908864065 | M75: NL | O75: =IFERROR(INDEX('Data Annex'!$K$1:$AV$6265,MATCH(Assets!O$46&"|"&Assets!$B75,'Data Annex'!$K$1:$K$6265,0),MATCH(Assets!O$47,'Data Annex'!$K$1:$AV$1,0)),"") -> 0.8813092742 | P75: =IFERROR(INDEX('Data Annex'!$K$1:$AV$6265,MATCH(Assets!P$46&"|"&Assets!$B75,'Data Annex'!$K$1:$K$6265,0),MATCH(Assets!P$47,'Data Annex'!$K$1:$AV$1,0)),"") -> 0.878333385 | Q75: =IFERROR(INDEX('Data Annex'!$K$1:$AV$6265,MATCH(Assets!Q$46&"|"&Assets!$B75,'Data Annex'!$K$1:$K$6265,0),MATCH(Assets!Q$47,'Data Annex'!$K$1:$AV$1,0)),"") -> 0.8737554925 | R75: =IFERROR(INDEX('Data Annex'!$K$1:$AV$6265,MATCH(Assets!R$46&"|"&Assets!$B75,'Data Annex'!$K$1:$K$6265,0),MATCH(Assets!R$47,'Data Annex'!$K$1:$AV$1,0)),"") -> 0.04335875195 | S75: =IFERROR(INDEX('Data Annex'!$K$1:$AV$6265,MATCH(Assets!S$46&"|"&Assets!$B75,'Data Annex'!$K$1:$K$6265,0),MATCH(Assets!S$47,'Data Annex'!$K$1:$AV$1,0)),"") -> 0.04030016521 | T75: =IFERROR(INDEX('Data Annex'!$K$1:$AV$6265,MATCH(Assets!T$46&"|"&Assets!$B75,'Data Annex'!$K$1:$K$6265,0),MATCH(Assets!T$47,'Data Annex'!$K$1:$AV$1,0)),"") -> 0.03776067391 | U75: =IFERROR(INDEX('Data Annex'!$K$1:$AV$6265,MATCH(Assets!U$46&"|"&Assets!$B75,'Data Annex'!$K$1:$K$6265,0),MATCH(Assets!U$47,'Data Annex'!$K$1:$AV$1,0)),"") -> 0.07533197382 | V75: =IFERROR(INDEX('Data Annex'!$K$1:$AV$6265,MATCH(Assets!V$46&"|"&Assets!$B75,'Data Annex'!$K$1:$K$6265,0),MATCH(Assets!V$47,'Data Annex'!$K$1:$AV$1,0)),"") -> 0.08136644976 | W75: =IFERROR(INDEX('Data Annex'!$K$1:$AV$6265,MATCH(Assets!W$46&"|"&Assets!$B75,'Data Annex'!$K$1:$K$6265,0),MATCH(Assets!W$47,'Data Annex'!$K$1:$AV$1,0)),"") -> 0.08848383358
B76: NO | D76: NO* | F76: =IFERROR(INDEX('Data Annex'!$K$1:$AV$6265,MATCH(Assets!F$46&"|"&Assets!$B76,'Data Annex'!$K$1:$K$6265,0),MATCH(Assets!F$47,'Data Annex'!$K$1:$AV$1,0)),"") -> 0 | G76: =IFERROR(INDEX('Data Annex'!$K$1:$AV$6265,MATCH(Assets!G$46&"|"&Assets!$B76,'Data Annex'!$K$1:$K$6265,0),MATCH(Assets!G$47,'Data Annex'!$K$1:$AV$1,0)),"") -> 348.193432 | H76: =IFERROR(INDEX('Data Annex'!$K$1:$AV$6265,MATCH(Assets!H$46&"|"&Assets!$B76,'Data Annex'!$K$1:$K$6265,0),MATCH(Assets!H$47,'Data Annex'!$K$1:$AV$1,0)),"") -> 360.1558376 | I76: =IFERROR(INDEX('Data Annex'!$K$1:$AV$6265,MATCH(Assets!I$46&"|"&Assets!$B76,'Data Annex'!$K$1:$K$6265,0),MATCH(Assets!I$47,'Data Annex'!$K$1:$AV$1,0)),"") -> 0 | J76: =IFERROR(INDEX('Data Annex'!$K$1:$AV$6265,MATCH(Assets!J$46&"|"&Assets!$B76,'Data Annex'!$K$1:$K$6265,0),MATCH(Assets!J$47,'Data Annex'!$K$1:$AV$1,0)),"") -> 339.1382305 | K76: =IFERROR(INDEX('Data Annex'!$K$1:$AV$6265,MATCH(Assets!K$46&"|"&Assets!$B76,'Data Annex'!$K$1:$K$6265,0),MATCH(Assets!K$47,'Data Annex'!$K$1:$AV$1,0)),"") -> 351.0472018 | L76: 0.9747091818 | M76: NO* | O76: =IFERROR(INDEX('Data Annex'!$K$1:$AV$6265,MATCH(Assets!O$46&"|"&Assets!$B76,'Data Annex'!$K$1:$K$6265,0),MATCH(Assets!O$47,'Data Annex'!$K$1:$AV$1,0)),"") -> 0 | P76: =IFERROR(INDEX('Data Annex'!$K$1:$AV$6265,MATCH(Assets!P$46&"|"&Assets!$B76,'Data Annex'!$K$1:$K$6265,0),MATCH(Assets!P$47,'Data Annex'!$K$1:$AV$1,0)),"") -> 0.7743689946 | Q76: =IFERROR(INDEX('Data Annex'!$K$1:$AV$6265,MATCH(Assets!Q$46&"|"&Assets!$B76,'Data Annex'!$K$1:$K$6265,0),MATCH(Assets!Q$47,'Data Annex'!$K$1:$AV$1,0)),"") -> 0.7664028281 | R76: =IFERROR(INDEX('Data Annex'!$K$1:$AV$6265,MATCH(Assets!R$46&"|"&Assets!$B76,'Data Annex'!$K$1:$K$6265,0),MATCH(Assets!R$47,'Data Annex'!$K$1:$AV$1,0)),"") -> 0 | S76: =IFERROR(INDEX('Data Annex'!$K$1:$AV$6265,MATCH(Assets!S$46&"|"&Assets!$B76,'Data Annex'!$K$1:$K$6265,0),MATCH(Assets!S$47,'Data Annex'!$K$1:$AV$1,0)),"") -> 0.06687571817 | T76: =IFERROR(INDEX('Data Annex'!$K$1:$AV$6265,MATCH(Assets!T$46&"|"&Assets!$B76,'Data Annex'!$K$1:$K$6265,0),MATCH(Assets!T$47,'Data Annex'!$K$1:$AV$1,0)),"") -> 0.06500023115 | U76: =IFERROR(INDEX('Data Annex'!$K$1:$AV$6265,MATCH(Assets!U$46&"|"&Assets!$B76,'Data Annex'!$K$1:$K$6265,0),MATCH(Assets!U$47,'Data Annex'!$K$1:$AV$1,0)),"") -> 0 | V76: =IFERROR(INDEX('Data Annex'!$K$1:$AV$6265,MATCH(Assets!V$46&"|"&Assets!$B76,'Data Annex'!$K$1:$K$6265,0),MATCH(Assets!V$47,'Data Annex'!$K$1:$AV$1,0)),"") -> 0.1587552873 | W76: =IFERROR(INDEX('Data Annex'!$K$1:$AV$6265,MATCH(Assets!W$46&"|"&Assets!$B76,'Data Annex'!$K$1:$K$6265,0),MATCH(Assets!W$47,'Data Annex'!$K$1:$AV$1,0)),"") -> 0.1685969407
B77: PL | D77: =IF(OR(F77="n.a.",G77="n.a.",H77="n.a.",I77="n.a.",J77="n.a.",K77="n.a."),$B77&"*",$B77) -> PL | F77: =IFERROR(INDEX('Data Annex'!$K$1:$AV$6265,MATCH(Assets!F$46&"|"&Assets!$B77,'Data Annex'!$K$1:$K$6265,0),MATCH(Assets!F$47,'Data Annex'!$K$1:$AV$1,0)),"") -> 190.9719102 | G77: =IFERROR(INDEX('Data Annex'!$K$1:$AV$6265,MATCH(Assets!G$46&"|"&Assets!$B77,'Data Annex'!$K$1:$K$6265,0),MATCH(Assets!G$47,'Data Annex'!$K$1:$AV$1,0)),"") -> 202.729302 | H77: =IFERROR(INDEX('Data Annex'!$K$1:$AV$6265,MATCH(Assets!H$46&"|"&Assets!$B77,'Data Annex'!$K$1:$K$6265,0),MATCH(Assets!H$47,'Data Annex'!$K$1:$AV$1,0)),"") -> 202.0578209 | I77: =IFERROR(INDEX('Data Annex'!$K$1:$AV$6265,MATCH(Assets!I$46&"|"&Assets!$B77,'Data Annex'!$K$1:$K$6265,0),MATCH(Assets!I$47,'Data Annex'!$K$1:$AV$1,0)),"") -> 184.5630475 | J77: =IFERROR(INDEX('Data Annex'!$K$1:$AV$6265,MATCH(Assets!J$46&"|"&Assets!$B77,'Data Annex'!$K$1:$K$6265,0),MATCH(Assets!J$47,'Data Annex'!$K$1:$AV$1,0)),"") -> 195.722793 | K77: =IFERROR(INDEX('Data Annex'!$K$1:$AV$6265,MATCH(Assets!K$46&"|"&Assets!$B77,'Data Annex'!$K$1:$K$6265,0),MATCH(Assets!K$47,'Data Annex'!$K$1:$AV$1,0)),"") -> 195.2485627 | L77: 0.9663004471 | M77: PL | O77: =IFERROR(INDEX('Data Annex'!$K$1:$AV$6265,MATCH(Assets!O$46&"|"&Assets!$B77,'Data Annex'!$K$1:$K$6265,0),MATCH(Assets!O$47,'Data Annex'!$K$1:$AV$1,0)),"") -> 0.7724586356 | P77: =IFERROR(INDEX('Data Annex'!$K$1:$AV$6265,MATCH(Assets!P$46&"|"&Assets!$B77,'Data Annex'!$K$1:$K$6265,0),MATCH(Assets!P$47,'Data Annex'!$K$1:$AV$1,0)),"") -> 0.802189262 | Q77: =IFERROR(INDEX('Data Annex'!$K$1:$AV$6265,MATCH(Assets!Q$46&"|"&Assets!$B77,'Data Annex'!$K$1:$K$6265,0),MATCH(Assets!Q$47,'Data Annex'!$K$1:$AV$1,0)),"") -> 0.8116098467 | R77: =IFERROR(INDEX('Data Annex'!$K$1:$AV$6265,MATCH(Assets!R$46&"|"&Assets!$B77,'Data Annex'!$K$1:$K$6265,0),MATCH(Assets!R$47,'Data Annex'!$K$1:$AV$1,0)),"") -> 0.1955041785 | S77: =IFERROR(INDEX('Data Annex'!$K$1:$AV$6265,MATCH(Assets!S$46&"|"&Assets!$B77,'Data Annex'!$K$1:$K$6265,0),MATCH(Assets!S$47,'Data Annex'!$K$1:$AV$1,0)),"") -> 0.1369512151 | T77: =IFERROR(INDEX('Data Annex'!$K$1:$AV$6265,MATCH(Assets!T$46&"|"&Assets!$B77,'Data Annex'!$K$1:$K$6265,0),MATCH(Assets!T$47,'Data Annex'!$K$1:$AV$1,0)),"") -> 0.1267640415 | U77: =IFERROR(INDEX('Data Annex'!$K$1:$AV$6265,MATCH(Assets!U$46&"|"&Assets!$B77,'Data Annex'!$K$1:$K$6265,0),MATCH(Assets!U$47,'Data Annex'!$K$1:$AV$1,0)),"") -> 0.03203718587 | V77: =IFERROR(INDEX('Data Annex'!$K$1:$AV$6265,MATCH(Assets!V$46&"|"&Assets!$B77,'Data Annex'!$K$1:$K$6265,0),MATCH(Assets!V$47,'Data Annex'!$K$1:$AV$1,0)),"") -> 0.06085952297 | W77: =IFERROR(INDEX('Data Annex'!$K$1:$AV$6265,MATCH(Assets!W$46&"|"&Assets!$B77,'Data Annex'!$K$1:$K$6265,0),MATCH(Assets!W$47,'Data Annex'!$K$1:$AV$1,0)),"") -> 0.06162611181
B78: PT | D78: PT | F78: =IFERROR(INDEX('Data Annex'!$K$1:$AV$6265,MATCH(Assets!F$46&"|"&Assets!$B78,'Data Annex'!$K$1:$K$6265,0),MATCH(Assets!F$47,'Data Annex'!$K$1:$AV$1,0)),"") -> 296.8497526 | G78: =IFERROR(INDEX('Data Annex'!$K$1:$AV$6265,MATCH(Assets!G$46&"|"&Assets!$B78,'Data Annex'!$K$1:$K$6265,0),MATCH(Assets!G$47,'Data Annex'!$K$1:$AV$1,0)),"") -> 306.7107185 | H78: =IFERROR(INDEX('Data Annex'!$K$1:$AV$6265,MATCH(Assets!H$46&"|"&Assets!$B78,'Data Annex'!$K$1:$K$6265,0),MATCH(Assets!H$47,'Data Annex'!$K$1:$AV$1,0)),"") -> 309.5966459 | I78: =IFERROR(INDEX('Data Annex'!$K$1:$AV$6265,MATCH(Assets!I$46&"|"&Assets!$B78,'Data Annex'!$K$1:$K$6265,0),MATCH(Assets!I$47,'Data Annex'!$K$1:$AV$1,0)),"") -> 278.941543 | J78: =IFERROR(INDEX('Data Annex'!$K$1:$AV$6265,MATCH(Assets!J$46&"|"&Assets!$B78,'Data Annex'!$K$1:$K$6265,0),MATCH(Assets!J$47,'Data Annex'!$K$1:$AV$1,0)),"") -> 289.0312909 | K78: =IFERROR(INDEX('Data Annex'!$K$1:$AV$6265,MATCH(Assets!K$46&"|"&Assets!$B78,'Data Annex'!$K$1:$K$6265,0),MATCH(Assets!K$47,'Data Annex'!$K$1:$AV$1,0)),"") -> 291.5267454 | L78: 0.941634056 | M78: PT | O78: =IFERROR(INDEX('Data Annex'!$K$1:$AV$6265,MATCH(Assets!O$46&"|"&Assets!$B78,'Data Annex'!$K$1:$K$6265,0),MATCH(Assets!O$47,'Data Annex'!$K$1:$AV$1,0)),"") -> 0.8548657437 | P78: =IFERROR(INDEX('Data Annex'!$K$1:$AV$6265,MATCH(Assets!P$46&"|"&Assets!$B78,'Data Annex'!$K$1:$K$6265,0),MATCH(Assets!P$47,'Data Annex'!$K$1:$AV$1,0)),"") -> 0.9007495692 | Q78: =IFERROR(INDEX('Data Annex'!$K$1:$AV$6265,MATCH(Assets!Q$46&"|"&Assets!$B78,'Data Annex'!$K$1:$K$6265,0),MATCH(Assets!Q$47,'Data Annex'!$K$1:$AV$1,0)),"") -> 0.9090495617 | R78: =IFERROR(INDEX('Data Annex'!$K$1:$AV$6265,MATCH(Assets!R$46&"|"&Assets!$B78,'Data Annex'!$K$1:$K$6265,0),MATCH(Assets!R$47,'Data Annex'!$K$1:$AV$1,0)),"") -> 0.1161177406 | S78: =IFERROR(INDEX('Data Annex'!$K$1:$AV$6265,MATCH(Assets!S$46&"|"&Assets!$B78,'Data Annex'!$K$1:$K$6265,0),MATCH(Assets!S$47,'Data Annex'!$K$1:$AV$1,0)),"") -> 0.06828067116 | T78: =IFERROR(INDEX('Data Annex'!$K$1:$AV$6265,MATCH(Assets!T$46&"|"&Assets!$B78,'Data Annex'!$K$1:$K$6265,0),MATCH(Assets!T$47,'Data Annex'!$K$1:$AV$1,0)),"") -> 0.06100675268 | U78: =IFERROR(INDEX('Data Annex'!$K$1:$AV$6265,MATCH(Assets!U$46&"|"&Assets!$B78,'Data Annex'!$K$1:$K$6265,0),MATCH(Assets!U$47,'Data Annex'!$K$1:$AV$1,0)),"") -> 0.02901651569 | V78: =IFERROR(INDEX('Data Annex'!$K$1:$AV$6265,MATCH(Assets!V$46&"|"&Assets!$B78,'Data Annex'!$K$1:$K$6265,0),MATCH(Assets!V$47,'Data Annex'!$K$1:$AV$1,0)),"") -> 0.03096975963 | W78: =IFERROR(INDEX('Data Annex'!$K$1:$AV$6265,MATCH(Assets!W$46&"|"&Assets!$B78,'Data Annex'!$K$1:$K$6265,0),MATCH(Assets!W$47,'Data Annex'!$K$1:$AV$1,0)),"") -> 0.02994368567
B79: RO | D79: RO | F79: =IFERROR(INDEX('Data Annex'!$K$1:$AV$6265,MATCH(Assets!F$46&"|"&Assets!$B79,'Data Annex'!$K$1:$K$6265,0),MATCH(Assets!F$47,'Data Annex'!$K$1:$AV$1,0)),"") -> 54.72444998 | G79: =IFERROR(INDEX('Data Annex'!$K$1:$AV$6265,MATCH(Assets!G$46&"|"&Assets!$B79,'Data Annex'!$K$1:$K$6265,0),MATCH(Assets!G$47,'Data Annex'!$K$1:$AV$1,0)),"") -> 61.55476995 | H79: =IFERROR(INDEX('Data Annex'!$K$1:$AV$6265,MATCH(Assets!H$46&"|"&Assets!$B79,'Data Annex'!$K$1:$K$6265,0),MATCH(Assets!H$47,'Data Annex'!$K$1:$AV$1,0)),"") -> 62.09610108 | I79: =IFERROR(INDEX('Data Annex'!$K$1:$AV$6265,MATCH(Assets!I$46&"|"&Assets!$B79,'Data Annex'!$K$1:$K$6265,0),MATCH(Assets!I$47,'Data Annex'!$K$1:$AV$1,0)),"") -> 53.55290599 | J79: =IFERROR(INDEX('Data Annex'!$K$1:$AV$6265,MATCH(Assets!J$46&"|"&Assets!$B79,'Data Annex'!$K$1:$K$6265,0),MATCH(Assets!J$47,'Data Annex'!$K$1:$AV$1,0)),"") -> 60.11053327 | K79: =IFERROR(INDEX('Data Annex'!$K$1:$AV$6265,MATCH(Assets!K$46&"|"&Assets!$B79,'Data Annex'!$K$1:$K$6265,0),MATCH(Assets!K$47,'Data Annex'!$K$1:$AV$1,0)),"") -> 60.63801081 | L79: 0.9765188112 | M79: RO | O79: =IFERROR(INDEX('Data Annex'!$K$1:$AV$6265,MATCH(Assets!O$46&"|"&Assets!$B79,'Data Annex'!$K$1:$K$6265,0),MATCH(Assets!O$47,'Data Annex'!$K$1:$AV$1,0)),"") -> 0.7259130969 | P79: =IFERROR(INDEX('Data Annex'!$K$1:$AV$6265,MATCH(Assets!P$46&"|"&Assets!$B79,'Data Annex'!$K$1:$K$6265,0),MATCH(Assets!P$47,'Data Annex'!$K$1:$AV$1,0)),"") -> 0.8428827202 | Q79: =IFERROR(INDEX('Data Annex'!$K$1:$AV$6265,MATCH(Assets!Q$46&"|"&Assets!$B79,'Data Annex'!$K$1:$K$6265,0),MATCH(Assets!Q$47,'Data Annex'!$K$1:$AV$1,0)),"") -> 0.8445516804 | R79: =IFERROR(INDEX('Data Annex'!$K$1:$AV$6265,MATCH(Assets!R$46&"|"&Assets!$B79,'Data Annex'!$K$1:$K$6265,0),MATCH(Assets!R$47,'Data Annex'!$K$1:$AV$1,0)),"") -> 0.2542033423 | S79: =IFERROR(INDEX('Data Annex'!$K$1:$AV$6265,MATCH(Assets!S$46&"|"&Assets!$B79,'Data Annex'!$K$1:$K$6265,0),MATCH(Assets!S$47,'Data Annex'!$K$1:$AV$1,0)),"") -> 0.1473795864 | T79: =IFERROR(INDEX('Data Annex'!$K$1:$AV$6265,MATCH(Assets!T$46&"|"&Assets!$B79,'Data Annex'!$K$1:$K$6265,0),MATCH(Assets!T$47,'Data Annex'!$K$1:$AV$1,0)),"") -> 0.1434125145 | U79: =IFERROR(INDEX('Data Annex'!$K$1:$AV$6265,MATCH(Assets!U$46&"|"&Assets!$B79,'Data Annex'!$K$1:$K$6265,0),MATCH(Assets!U$47,'Data Annex'!$K$1:$AV$1,0)),"") -> 0.01988356088 | V79: =IFERROR(INDEX('Data Annex'!$K$1:$AV$6265,MATCH(Assets!V$46&"|"&Assets!$B79,'Data Annex'!$K$1:$K$6265,0),MATCH(Assets!V$47,'Data Annex'!$K$1:$AV$1,0)),"") -> 0.009737693415 | W79: =IFERROR(INDEX('Data Annex'!$K$1:$AV$6265,MATCH(Assets!W$46&"|"&Assets!$B79,'Data Annex'!$K$1:$K$6265,0),MATCH(Assets!W$47,'Data Annex'!$K$1:$AV$1,0)),"") -> 0.01203580511
B80: SE | D80: SE | F80: =IFERROR(INDEX('Data Annex'!$K$1:$AV$6265,MATCH(Assets!F$46&"|"&Assets!$B80,'Data Annex'!$K$1:$K$6265,0),MATCH(Assets!F$47,'Data Annex'!$K$1:$AV$1,0)),"") -> 1047.55173 | G80: =IFERROR(INDEX('Data Annex'!$K$1:$AV$6265,MATCH(Assets!G$46&"|"&Assets!$B80,'Data Annex'!$K$1:$K$6265,0),MATCH(Assets!G$47,'Data Annex'!$K$1:$AV$1,0)),"") -> 1071.755871 | H80: =IFERROR(INDEX('Data Annex'!$K$1:$AV$6265,MATCH(Assets!H$46&"|"&Assets!$B80,'Data Annex'!$K$1:$K$6265,0),MATCH(Assets!H$47,'Data Annex'!$K$1:$AV$1,0)),"") -> 1081.430118 | I80: =IFERROR(INDEX('Data Annex'!$K$1:$AV$6265,MATCH(Assets!I$46&"|"&Assets!$B80,'Data Annex'!$K$1:$K$6265,0),MATCH(Assets!I$47,'Data Annex'!$K$1:$AV$1,0)),"") -> 1033.477886 | J80: =IFERROR(INDEX('Data Annex'!$K$1:$AV$6265,MATCH(Assets!J$46&"|"&Assets!$B80,'Data Annex'!$K$1:$K$6265,0),MATCH(Assets!J$47,'Data Annex'!$K$1:$AV$1,0)),"") -> 1028.018228 | K80: =IFERROR(INDEX('Data Annex'!$K$1:$AV$6265,MATCH(Assets!K$46&"|"&Assets!$B80,'Data Annex'!$K$1:$K$6265,0),MATCH(Assets!K$47,'Data Annex'!$K$1:$AV$1,0)),"") -> 1039.395335 | L80: 0.9611303755 | M80: SE | O80: =IFERROR(INDEX('Data Annex'!$K$1:$AV$6265,MATCH(Assets!O$46&"|"&Assets!$B80,'Data Annex'!$K$1:$K$6265,0),MATCH(Assets!O$47,'Data Annex'!$K$1:$AV$1,0)),"") -> 0.8737877849 | P80: =IFERROR(INDEX('Data Annex'!$K$1:$AV$6265,MATCH(Assets!P$46&"|"&Assets!$B80,'Data Annex'!$K$1:$K$6265,0),MATCH(Assets!P$47,'Data Annex'!$K$1:$AV$1,0)),"") -> 0.8601102805 | Q80: =IFERROR(INDEX('Data Annex'!$K$1:$AV$6265,MATCH(Assets!Q$46&"|"&Assets!$B80,'Data Annex'!$K$1:$K$6265,0),MATCH(Assets!Q$47,'Data Annex'!$K$1:$AV$1,0)),"") -> 0.8536753681 | R80: =IFERROR(INDEX('Data Annex'!$K$1:$AV$6265,MATCH(Assets!R$46&"|"&Assets!$B80,'Data Annex'!$K$1:$K$6265,0),MATCH(Assets!R$47,'Data Annex'!$K$1:$AV$1,0)),"") -> 0.01148562332 | S80: =IFERROR(INDEX('Data Annex'!$K$1:$AV$6265,MATCH(Assets!S$46&"|"&Assets!$B80,'Data Annex'!$K$1:$K$6265,0),MATCH(Assets!S$47,'Data Annex'!$K$1:$AV$1,0)),"") -> 0.01163534006 | T80: =IFERROR(INDEX('Data Annex'!$K$1:$AV$6265,MATCH(Assets!T$46&"|"&Assets!$B80,'Data Annex'!$K$1:$K$6265,0),MATCH(Assets!T$47,'Data Annex'!$K$1:$AV$1,0)),"") -> 0.01158547799 | U80: =IFERROR(INDEX('Data Annex'!$K$1:$AV$6265,MATCH(Assets!U$46&"|"&Assets!$B80,'Data Annex'!$K$1:$K$6265,0),MATCH(Assets!U$47,'Data Annex'!$K$1:$AV$1,0)),"") -> 0.1147265918 | V80: =IFERROR(INDEX('Data Annex'!$K$1:$AV$6265,MATCH(Assets!V$46&"|"&Assets!$B80,'Data Annex'!$K$1:$K$6265,0),MATCH(Assets!V$47,'Data Annex'!$K$1:$AV$1,0)),"") -> 0.1282543794 | W80: =IFERROR(INDEX('Data Annex'!$K$1:$AV$6265,MATCH(Assets!W$46&"|"&Assets!$B80,'Data Annex'!$K$1:$K$6265,0),MATCH(Assets!W$47,'Data Annex'!$K$1:$AV$1,0)),"") -> 0.1347391539
B81: SI | D81: SI | F81: =IFERROR(INDEX('Data Annex'!$K$1:$AV$6265,MATCH(Assets!F$46&"|"&Assets!$B81,'Data Annex'!$K$1:$K$6265,0),MATCH(Assets!F$47,'Data Annex'!$K$1:$AV$1,0)),"") -> 34.85103648 | G81: =IFERROR(INDEX('Data Annex'!$K$1:$AV$6265,MATCH(Assets!G$46&"|"&Assets!$B81,'Data Annex'!$K$1:$K$6265,0),MATCH(Assets!G$47,'Data Annex'!$K$1:$AV$1,0)),"") -> 42.46724811 | H81: =IFERROR(INDEX('Data Annex'!$K$1:$AV$6265,MATCH(Assets!H$46&"|"&Assets!$B81,'Data Annex'!$K$1:$K$6265,0),MATCH(Assets!H$47,'Data Annex'!$K$1:$AV$1,0)),"") -> 43.52480664 | I81: =IFERROR(INDEX('Data Annex'!$K$1:$AV$6265,MATCH(Assets!I$46&"|"&Assets!$B81,'Data Annex'!$K$1:$K$6265,0),MATCH(Assets!I$47,'Data Annex'!$K$1:$AV$1,0)),"") -> 34.10508772 | J81: =IFERROR(INDEX('Data Annex'!$K$1:$AV$6265,MATCH(Assets!J$46&"|"&Assets!$B81,'Data Annex'!$K$1:$K$6265,0),MATCH(Assets!J$47,'Data Annex'!$K$1:$AV$1,0)),"") -> 41.47022795 | K81: =IFERROR(INDEX('Data Annex'!$K$1:$AV$6265,MATCH(Assets!K$46&"|"&Assets!$B81,'Data Annex'!$K$1:$K$6265,0),MATCH(Assets!K$47,'Data Annex'!$K$1:$AV$1,0)),"") -> 42.563482 | L81: 0.9779131784 | M81: SI | O81: =IFERROR(INDEX('Data Annex'!$K$1:$AV$6265,MATCH(Assets!O$46&"|"&Assets!$B81,'Data Annex'!$K$1:$K$6265,0),MATCH(Assets!O$47,'Data Annex'!$K$1:$AV$1,0)),"") -> 0.8406294251 | P81: =IFERROR(INDEX('Data Annex'!$K$1:$AV$6265,MATCH(Assets!P$46&"|"&Assets!$B81,'Data Annex'!$K$1:$K$6265,0),MATCH(Assets!P$47,'Data Annex'!$K$1:$AV$1,0)),"") -> 0.8771523308 | Q81: =IFERROR(INDEX('Data Annex'!$K$1:$AV$6265,MATCH(Assets!Q$46&"|"&Assets!$B81,'Data Annex'!$K$1:$K$6265,0),MATCH(Assets!Q$47,'Data Annex'!$K$1:$AV$1,0)),"") -> 0.8868840193 | R81: =IFERROR(INDEX('Data Annex'!$K$1:$AV$6265,MATCH(Assets!R$46&"|"&Assets!$B81,'Data Annex'!$K$1:$K$6265,0),MATCH(Assets!R$47,'Data Annex'!$K$1:$AV$1,0)),"") -> 0.1568010357 | S81: =IFERROR(INDEX('Data Annex'!$K$1:$AV$6265,MATCH(Assets!S$46&"|"&Assets!$B81,'Data Annex'!$K$1:$K$6265,0),MATCH(Assets!S$47,'Data Annex'!$K$1:$AV$1,0)),"") -> 0.1187699752 | T81: =IFERROR(INDEX('Data Annex'!$K$1:$AV$6265,MATCH(Assets!T$46&"|"&Assets!$B81,'Data Annex'!$K$1:$K$6265,0),MATCH(Assets!T$47,'Data Annex'!$K$1:$AV$1,0)),"") -> 0.1078415301 | U81: =IFERROR(INDEX('Data Annex'!$K$1:$AV$6265,MATCH(Assets!U$46&"|"&Assets!$B81,'Data Annex'!$K$1:$K$6265,0),MATCH(Assets!U$47,'Data Annex'!$K$1:$AV$1,0)),"") -> 0.002569539223 | V81: =IFERROR(INDEX('Data Annex'!$K$1:$AV$6265,MATCH(Assets!V$46&"|"&Assets!$B81,'Data Annex'!$K$1:$K$6265,0),MATCH(Assets!V$47,'Data Annex'!$K$1:$AV$1,0)),"") -> 0.004077694005 | W81: =IFERROR(INDEX('Data Annex'!$K$1:$AV$6265,MATCH(Assets!W$46&"|"&Assets!$B81,'Data Annex'!$K$1:$K$6265,0),MATCH(Assets!W$47,'Data Annex'!$K$1:$AV$1,0)),"") -> 0.005274450632
B82: SK | D82: SK | F82: =IFERROR(INDEX('Data Annex'!$K$1:$AV$6265,MATCH(Assets!F$46&"|"&Assets!$B82,'Data Annex'!$K$1:$K$6265,0),MATCH(Assets!F$47,'Data Annex'!$K$1:$AV$1,0)),"") -> 64.11054545 | G82: =IFERROR(INDEX('Data Annex'!$K$1:$AV$6265,MATCH(Assets!G$46&"|"&Assets!$B82,'Data Annex'!$K$1:$K$6265,0),MATCH(Assets!G$47,'Data Annex'!$K$1:$AV$1,0)),"") -> 68.07101163 | H82: =IFERROR(INDEX('Data Annex'!$K$1:$AV$6265,MATCH(Assets!H$46&"|"&Assets!$B82,'Data Annex'!$K$1:$K$6265,0),MATCH(Assets!H$47,'Data Annex'!$K$1:$AV$1,0)),"") -> 69.16517943 | I82: =IFERROR(INDEX('Data Annex'!$K$1:$AV$6265,MATCH(Assets!I$46&"|"&Assets!$B82,'Data Annex'!$K$1:$K$6265,0),MATCH(Assets!I$47,'Data Annex'!$K$1:$AV$1,0)),"") -> 63.14452283 | J82: =IFERROR(INDEX('Data Annex'!$K$1:$AV$6265,MATCH(Assets!J$46&"|"&Assets!$B82,'Data Annex'!$K$1:$K$6265,0),MATCH(Assets!J$47,'Data Annex'!$K$1:$AV$1,0)),"") -> 67.0542233 | K82: =IFERROR(INDEX('Data Annex'!$K$1:$AV$6265,MATCH(Assets!K$46&"|"&Assets!$B82,'Data Annex'!$K$1:$K$6265,0),MATCH(Assets!K$47,'Data Annex'!$K$1:$AV$1,0)),"") -> 68.16544233 | L82: 0.9855456589 | M82: SK | O82: =IFERROR(INDEX('Data Annex'!$K$1:$AV$6265,MATCH(Assets!O$46&"|"&Assets!$B82,'Data Annex'!$K$1:$K$6265,0),MATCH(Assets!O$47,'Data Annex'!$K$1:$AV$1,0)),"") -> 0.9691623942 | P82: =IFERROR(INDEX('Data Annex'!$K$1:$AV$6265,MATCH(Assets!P$46&"|"&Assets!$B82,'Data Annex'!$K$1:$K$6265,0),MATCH(Assets!P$47,'Data Annex'!$K$1:$AV$1,0)),"") -> 0.967619609 | Q82: =IFERROR(INDEX('Data Annex'!$K$1:$AV$6265,MATCH(Assets!Q$46&"|"&Assets!$B82,'Data Annex'!$K$1:$K$6265,0),MATCH(Assets!Q$47,'Data Annex'!$K$1:$AV$1,0)),"") -> 0.9686391769 | R82: =IFERROR(INDEX('Data Annex'!$K$1:$AV$6265,MATCH(Assets!R$46&"|"&Assets!$B82,'Data Annex'!$K$1:$K$6265,0),MATCH(Assets!R$47,'Data Annex'!$K$1:$AV$1,0)),"") -> 0.02524781873 | S82: =IFERROR(INDEX('Data Annex'!$K$1:$AV$6265,MATCH(Assets!S$46&"|"&Assets!$B82,'Data Annex'!$K$1:$K$6265,0),MATCH(Assets!S$47,'Data Annex'!$K$1:$AV$1,0)),"") -> 0.02544741895 | T82: =IFERROR(INDEX('Data Annex'!$K$1:$AV$6265,MATCH(Assets!T$46&"|"&Assets!$B82,'Data Annex'!$K$1:$K$6265,0),MATCH(Assets!T$47,'Data Annex'!$K$1:$AV$1,0)),"") -> 0.02224824301 | U82: =IFERROR(INDEX('Data Annex'!$K$1:$AV$6265,MATCH(Assets!U$46&"|"&Assets!$B82,'Data Annex'!$K$1:$K$6265,0),MATCH(Assets!U$47,'Data Annex'!$K$1:$AV$1,0)),"") -> 0.005589787094 | V82: =IFERROR(INDEX('Data Annex'!$K$1:$AV$6265,MATCH(Assets!V$46&"|"&Assets!$B82,'Data Annex'!$K$1:$K$6265,0),MATCH(Assets!V$47,'Data Annex'!$K$1:$AV$1,0)),"") -> 0.006932972 | W82: =IFERROR(INDEX('Data Annex'!$K$1:$AV$6265,MATCH(Assets!W$46&"|"&Assets!$B82,'Data Annex'!$K$1:$K$6265,0),MATCH(Assets!W$47,'Data Annex'!$K$1:$AV$1,0)),"") -> 0.009112580112
B83: EU | D83: =+D43 -> EU/EEA | F83: =IFERROR(INDEX('Data Annex'!$K$1:$AV$6265,MATCH(Assets!F$46&"|"&Assets!$B83,'Data Annex'!$K$1:$K$6265,0),MATCH(Assets!F$47,'Data Annex'!$K$1:$AV$1,0)),"") -> 26716.80219 | G83: =IFERROR(INDEX('Data Annex'!$K$1:$AV$6265,MATCH(Assets!G$46&"|"&Assets!$B83,'Data Annex'!$K$1:$K$6265,0),MATCH(Assets!G$47,'Data Annex'!$K$1:$AV$1,0)),"") -> 28152.27992 | H83: =IFERROR(INDEX('Data Annex'!$K$1:$AV$6265,MATCH(Assets!H$46&"|"&Assets!$B83,'Data Annex'!$K$1:$K$6265,0),MATCH(Assets!H$47,'Data Annex'!$K$1:$AV$1,0)),"") -> 29005.98673 | I83: =IFERROR(INDEX('Data Annex'!$K$1:$AV$6265,MATCH(Assets!I$46&"|"&Assets!$B83,'Data Annex'!$K$1:$K$6265,0),MATCH(Assets!I$47,'Data Annex'!$K$1:$AV$1,0)),"") -> 25412.92249 | J83: =IFERROR(INDEX('Data Annex'!$K$1:$AV$6265,MATCH(Assets!J$46&"|"&Assets!$B83,'Data Annex'!$K$1:$K$6265,0),MATCH(Assets!J$47,'Data Annex'!$K$1:$AV$1,0)),"") -> 26736.29631 | K83: =IFERROR(INDEX('Data Annex'!$K$1:$AV$6265,MATCH(Assets!K$46&"|"&Assets!$B83,'Data Annex'!$K$1:$K$6265,0),MATCH(Assets!K$47,'Data Annex'!$K$1:$AV$1,0)),"") -> 27537.68645 | L83: 0.9493794062 | M83: =D83 -> EU/EEA | O83: =IFERROR(INDEX('Data Annex'!$K$1:$AV$6265,MATCH(Assets!O$46&"|"&Assets!$B83,'Data Annex'!$K$1:$K$6265,0),MATCH(Assets!O$47,'Data Annex'!$K$1:$AV$1,0)),"") -> 0.785555753 | P83: =IFERROR(INDEX('Data Annex'!$K$1:$AV$6265,MATCH(Assets!P$46&"|"&Assets!$B83,'Data Annex'!$K$1:$K$6265,0),MATCH(Assets!P$47,'Data Annex'!$K$1:$AV$1,0)),"") -> 0.7883136998 | Q83: =IFERROR(INDEX('Data Annex'!$K$1:$AV$6265,MATCH(Assets!Q$46&"|"&Assets!$B83,'Data Annex'!$K$1:$K$6265,0),MATCH(Assets!Q$47,'Data Annex'!$K$1:$AV$1,0)),"") -> 0.7807107839 | R83: =IFERROR(INDEX('Data Annex'!$K$1:$AV$6265,MATCH(Assets!R$46&"|"&Assets!$B83,'Data Annex'!$K$1:$K$6265,0),MATCH(Assets!R$47,'Data Annex'!$K$1:$AV$1,0)),"") -> 0.04746629451 | S83: =IFERROR(INDEX('Data Annex'!$K$1:$AV$6265,MATCH(Assets!S$46&"|"&Assets!$B83,'Data Annex'!$K$1:$K$6265,0),MATCH(Assets!S$47,'Data Annex'!$K$1:$AV$1,0)),"") -> 0.04250544422 | T83: =IFERROR(INDEX('Data Annex'!$K$1:$AV$6265,MATCH(Assets!T$46&"|"&Assets!$B83,'Data Annex'!$K$1:$K$6265,0),MATCH(Assets!T$47,'Data Annex'!$K$1:$AV$1,0)),"") -> 0.03983154614 | U83: =IFERROR(INDEX('Data Annex'!$K$1:$AV$6265,MATCH(Assets!U$46&"|"&Assets!$B83,'Data Annex'!$K$1:$K$6265,0),MATCH(Assets!U$47,'Data Annex'!$K$1:$AV$1,0)),"") -> 0.1669779525 | V83: =IFERROR(INDEX('Data Annex'!$K$1:$AV$6265,MATCH(Assets!V$46&"|"&Assets!$B83,'Data Annex'!$K$1:$K$6265,0),MATCH(Assets!V$47,'Data Annex'!$K$1:$AV$1,0)),"") -> 0.169180856 | W83: =IFERROR(INDEX('Data Annex'!$K$1:$AV$6265,MATCH(Assets!W$46&"|"&Assets!$B83,'Data Annex'!$K$1:$K$6265,0),MATCH(Assets!W$47,'Data Annex'!$K$1:$AV$1,0)),"") -> 0.1794576699
D84: * The EBA Risk Dashboard does not include data from Norwegian nor Liechtensteiner banks from June 2021 to March 2022 due to the implementation of the reporting framework based on CRR2/CRD5 taking place only in Q2 2022.
N85: =G43+J43+M43+P43+S43 -> 0.9493794063
D86: Individual country data includes subsidiaries, which are excluded from EU aggregate. For example, at country level the subsidiary in country X of a bank domiciled in country Y is included both in data for countries X and Y (for the latter as part of the consolidated entity). In the EU aggregate, only the consolidated entity domiciled in country Y is considered. The sample of banks is unbalanced and reviewed annually. As of Q1 2020 onwards UK banks are removed from the EU/EEA aggregate and subsidiaries of UK banks in EU member states are used instead.
D87: * Norwegian banks have not implemented yet the reporting framework based on CRR2/CRD5. Therefore, Norwegian figures are included in the EBA Risk dashboard only until March 2021.

Sheet Loans Composition (hidden)
E1: T20_1 | F1: T20_1 | G1: T20_1 | H1: T20_2 | I1: T20_2 | J1: T20_2 | K1: T20_3 | L1: T20_3 | M1: T20_3 | N1: T20_4 | O1: T20_4 | P1: T20_4 | Q1: T20_5 | R1: T20_5 | S1: T20_5 | T1: T20_6 | U1: T20_6 | V1: T20_6
A2: ='Reference Dates'!$C$8 -> 202209 | E2: =TEXT(E50,"YYYYMM")+0 -> 202109 | F2: 202206 | G2: 202209 | H2: 202109 | I2: 202206 | J2: 202209 | K2: =TEXT(K50,"YYYYMM")+0 -> 202109 | L2: 202206 | M2: 202209 | N2: 202109 | O2: 202206 | P2: 202209 | Q2: 202109 | R2: 202206 | S2: 202209 | T2: 202109 | U2: 202206 | V2: 202209
A3: =DATE(LEFT(A2,4),RIGHT(A2,2),1) -> 2022-09-01 | D3: Statistical Annex
D4: Loans: composition and asset quality
H7: of which: loans and advances at amortised cost - by segment (volumes) (2)
D9: Volumes bn EUR
E10: Loans and advances (1) | H10: HHs | K10: …of which mortgages | N10: NFCs | Q10: …of which SMEs | T10: …of which CRE
E11: =EOMONTH($A$3,-12) -> 2021-09-30 | F11: =EOMONTH($A$3,-3) -> 2022-06-30 | G11: =EOMONTH($A$3,0) -> 2022-09-30 | H11: =EOMONTH($A$3,-12) -> 2021-09-30 | I11: =EOMONTH($A$3,-3) -> 2022-06-30 | J11: =EOMONTH($A$3,0) -> 2022-09-30 | K11: =EOMONTH($A$3,-12) -> 2021-09-30 | L11: =EOMONTH($A$3,-3) -> 2022-06-30 | M11: =EOMONTH($A$3,0) -> 2022-09-30 | N11: =EOMONTH($A$3,-12) -> 2021-09-30 | O11: =EOMONTH($A$3,-3) -> 2022-06-30 | P11: =EOMONTH($A$3,0) -> 2022-09-30 | Q11: =EOMONTH($A$3,-12) -> 2021-09-30 | R11: =EOMONTH($A$3,-3) -> 2022-06-30 | S11: =EOMONTH($A$3,0) -> 2022-09-30 | T11: =EOMONTH($A$3,-12) -> 2021-09-30 | U11: =EOMONTH($A$3,-3) -> 2022-06-30 | V11: =EOMONTH($A$3,0) -> 2022-09-30
A12: 1 | B12: AT | D12: AT | E12: =IFERROR(INDEX('Data Annex'!$K$1:$AV$6265,MATCH(E$1&"|"&$B12,'Data Annex'!$K$1:$K$6265,0),MATCH(E$2,'Data Annex'!$K$1:$AV$1,0)),"") -> 625.4445654 | F12: =IFERROR(INDEX('Data Annex'!$K$1:$AV$6265,MATCH(F$1&"|"&$B12,'Data Annex'!$K$1:$K$6265,0),MATCH(F$2,'Data Annex'!$K$1:$AV$1,0)),"") -> 646.5272532 | G12: =IFERROR(INDEX('Data Annex'!$K$1:$AV$6265,MATCH(G$1&"|"&$B12,'Data Annex'!$K$1:$K$6265,0),MATCH(G$2,'Data Annex'!$K$1:$AV$1,0)),"") -> 663.635823 | H12: =IFERROR(INDEX('Data Annex'!$K$1:$AV$6265,MATCH(H$1&"|"&$B12,'Data Annex'!$K$1:$K$6265,0),MATCH(H$2,'Data Annex'!$K$1:$AV$1,0)),"") -> 183.6526907 | I12: =IFERROR(INDEX('Data Annex'!$K$1:$AV$6265,MATCH(I$1&"|"&$B12,'Data Annex'!$K$1:$K$6265,0),MATCH(I$2,'Data Annex'!$K$1:$AV$1,0)),"") -> 190.8442526 | J12: =IFERROR(INDEX('Data Annex'!$K$1:$AV$6265,MATCH(J$1&"|"&$B12,'Data Annex'!$K$1:$K$6265,0),MATCH(J$2,'Data Annex'!$K$1:$AV$1,0)),"") -> 192.8857191 | K12: =IFERROR(INDEX('Data Annex'!$K$1:$AV$6265,MATCH(K$1&"|"&$B12,'Data Annex'!$K$1:$K$6265,0),MATCH(K$2,'Data Annex'!$K$1:$AV$1,0)),"") -> 124.4478782 | L12: =IFERROR(INDEX('Data Annex'!$K$1:$AV$6265,MATCH(L$1&"|"&$B12,'Data Annex'!$K$1:$K$6265,0),MATCH(L$2,'Data Annex'!$K$1:$AV$1,0)),"") -> 131.5940158 | M12: =IFERROR(INDEX('Data Annex'!$K$1:$AV$6265,MATCH(M$1&"|"&$B12,'Data Annex'!$K$1:$K$6265,0),MATCH(M$2,'Data Annex'!$K$1:$AV$1,0)),"") -> 134.4692092 | N12: =IFERROR(INDEX('Data Annex'!$K$1:$AV$6265,MATCH(N$1&"|"&$B12,'Data Annex'!$K$1:$K$6265,0),MATCH(N$2,'Data Annex'!$K$1:$AV$1,0)),"") -> 207.670211 | O12: =IFERROR(INDEX('Data Annex'!$K$1:$AV$6265,MATCH(O$1&"|"&$B12,'Data Annex'!$K$1:$K$6265,0),MATCH(O$2,'Data Annex'!$K$1:$AV$1,0)),"") -> 219.7963965 | P12: =IFERROR(INDEX('Data Annex'!$K$1:$AV$6265,MATCH(P$1&"|"&$B12,'Data Annex'!$K$1:$K$6265,0),MATCH(P$2,'Data Annex'!$K$1:$AV$1,0)),"") -> 226.5142964 | Q12: =IFERROR(INDEX('Data Annex'!$K$1:$AV$6265,MATCH(Q$1&"|"&$B12,'Data Annex'!$K$1:$K$6265,0),MATCH(Q$2,'Data Annex'!$K$1:$AV$1,0)),"") -> 74.11431391 | R12: =IFERROR(INDEX('Data Annex'!$K$1:$AV$6265,MATCH(R$1&"|"&$B12,'Data Annex'!$K$1:$K$6265,0),MATCH(R$2,'Data Annex'!$K$1:$AV$1,0)),"") -> 77.48865306 | S12: =IFERROR(INDEX('Data Annex'!$K$1:$AV$6265,MATCH(S$1&"|"&$B12,'Data Annex'!$K$1:$K$6265,0),MATCH(S$2,'Data Annex'!$K$1:$AV$1,0)),"") -> 77.4012412 | T12: =IFERROR(INDEX('Data Annex'!$K$1:$AV$6265,MATCH(T$1&"|"&$B12,'Data Annex'!$K$1:$K$6265,0),MATCH(T$2,'Data Annex'!$K$1:$AV$1,0)),"") -> 59.51282499 | U12: =IFERROR(INDEX('Data Annex'!$K$1:$AV$6265,MATCH(U$1&"|"&$B12,'Data Annex'!$K$1:$K$6265,0),MATCH(U$2,'Data Annex'!$K$1:$AV$1,0)),"") -> 62.66977347 | V12: =IFERROR(INDEX('Data Annex'!$K$1:$AV$6265,MATCH(V$1&"|"&$B12,'Data Annex'!$K$1:$K$6265,0),MATCH(V$2,'Data Annex'!$K$1:$AV$1,0)),"") -> 64.25342206
A13: 2 | B13: BE | D13: BE | E13: =IFERROR(INDEX('Data Annex'!$K$1:$AV$6265,MATCH(E$1&"|"&$B13,'Data Annex'!$K$1:$K$6265,0),MATCH(E$2,'Data Annex'!$K$1:$AV$1,0)),"") -> 982.3382709 | F13: =IFERROR(INDEX('Data Annex'!$K$1:$AV$6265,MATCH(F$1&"|"&$B13,'Data Annex'!$K$1:$K$6265,0),MATCH(F$2,'Data Annex'!$K$1:$AV$1,0)),"") -> 1032.087185 | G13: =IFERROR(INDEX('Data Annex'!$K$1:$AV$6265,MATCH(G$1&"|"&$B13,'Data Annex'!$K$1:$K$6265,0),MATCH(G$2,'Data Annex'!$K$1:$AV$1,0)),"") -> 1011.358752 | H13: =IFERROR(INDEX('Data Annex'!$K$1:$AV$6265,MATCH(H$1&"|"&$B13,'Data Annex'!$K$1:$K$6265,0),MATCH(H$2,'Data Annex'!$K$1:$AV$1,0)),"") -> 304.9283015 | I13: =IFERROR(INDEX('Data Annex'!$K$1:$AV$6265,MATCH(I$1&"|"&$B13,'Data Annex'!$K$1:$K$6265,0),MATCH(I$2,'Data Annex'!$K$1:$AV$1,0)),"") -> 338.4959616 | J13: =IFERROR(INDEX('Data Annex'!$K$1:$AV$6265,MATCH(J$1&"|"&$B13,'Data Annex'!$K$1:$K$6265,0),MATCH(J$2,'Data Annex'!$K$1:$AV$1,0)),"") -> 343.8169534 | K13: =IFERROR(INDEX('Data Annex'!$K$1:$AV$6265,MATCH(K$1&"|"&$B13,'Data Annex'!$K$1:$K$6265,0),MATCH(K$2,'Data Annex'!$K$1:$AV$1,0)),"") -> 262.7830965 | L13: =IFERROR(INDEX('Data Annex'!$K$1:$AV$6265,MATCH(L$1&"|"&$B13,'Data Annex'!$K$1:$K$6265,0),MATCH(L$2,'Data Annex'!$K$1:$AV$1,0)),"") -> 292.952618 | M13: =IFERROR(INDEX('Data Annex'!$K$1:$AV$6265,MATCH(M$1&"|"&$B13,'Data Annex'!$K$1:$K$6265,0),MATCH(M$2,'Data Annex'!$K$1:$AV$1,0)),"") -> 297.701623 | N13: =IFERROR(INDEX('Data Annex'!$K$1:$AV$6265,MATCH(N$1&"|"&$B13,'Data Annex'!$K$1:$K$6265,0),MATCH(N$2,'Data Annex'!$K$1:$AV$1,0)),"") -> 267.9740673 | O13: =IFERROR(INDEX('Data Annex'!$K$1:$AV$6265,MATCH(O$1&"|"&$B13,'Data Annex'!$K$1:$K$6265,0),MATCH(O$2,'Data Annex'!$K$1:$AV$1,0)),"") -> 292.4146963 | P13: =IFERROR(INDEX('Data Annex'!$K$1:$AV$6265,MATCH(P$1&"|"&$B13,'Data Annex'!$K$1:$K$6265,0),MATCH(P$2,'Data Annex'!$K$1:$AV$1,0)),"") -> 300.7141338 | Q13: =IFERROR(INDEX('Data Annex'!$K$1:$AV$6265,MATCH(Q$1&"|"&$B13,'Data Annex'!$K$1:$K$6265,0),MATCH(Q$2,'Data Annex'!$K$1:$AV$1,0)),"") -> 127.6084073 | R13: =IFERROR(INDEX('Data Annex'!$K$1:$AV$6265,MATCH(R$1&"|"&$B13,'Data Annex'!$K$1:$K$6265,0),MATCH(R$2,'Data Annex'!$K$1:$AV$1,0)),"") -> 137.4408688 | S13: =IFERROR(INDEX('Data Annex'!$K$1:$AV$6265,MATCH(S$1&"|"&$B13,'Data Annex'!$K$1:$K$6265,0),MATCH(S$2,'Data Annex'!$K$1:$AV$1,0)),"") -> 141.1495953 | T13: =IFERROR(INDEX('Data Annex'!$K$1:$AV$6265,MATCH(T$1&"|"&$B13,'Data Annex'!$K$1:$K$6265,0),MATCH(T$2,'Data Annex'!$K$1:$AV$1,0)),"") -> 71.36606922 | U13: =IFERROR(INDEX('Data Annex'!$K$1:$AV$6265,MATCH(U$1&"|"&$B13,'Data Annex'!$K$1:$K$6265,0),MATCH(U$2,'Data Annex'!$K$1:$AV$1,0)),"") -> 78.35597408 | V13: =IFERROR(INDEX('Data Annex'!$K$1:$AV$6265,MATCH(V$1&"|"&$B13,'Data Annex'!$K$1:$K$6265,0),MATCH(V$2,'Data Annex'!$K$1:$AV$1,0)),"") -> 80.748055
A14: 3 | B14: BG | D14: BG | E14: =IFERROR(INDEX('Data Annex'!$K$1:$AV$6265,MATCH(E$1&"|"&$B14,'Data Annex'!$K$1:$K$6265,0),MATCH(E$2,'Data Annex'!$K$1:$AV$1,0)),"") -> 31.42326005 | F14: =IFERROR(INDEX('Data Annex'!$K$1:$AV$6265,MATCH(F$1&"|"&$B14,'Data Annex'!$K$1:$K$6265,0),MATCH(F$2,'Data Annex'!$K$1:$AV$1,0)),"") -> 28.98452756 | G14: =IFERROR(INDEX('Data Annex'!$K$1:$AV$6265,MATCH(G$1&"|"&$B14,'Data Annex'!$K$1:$K$6265,0),MATCH(G$2,'Data Annex'!$K$1:$AV$1,0)),"") -> 30.32730494 | H14: =IFERROR(INDEX('Data Annex'!$K$1:$AV$6265,MATCH(H$1&"|"&$B14,'Data Annex'!$K$1:$K$6265,0),MATCH(H$2,'Data Annex'!$K$1:$AV$1,0)),"") -> 9.916266489 | I14: =IFERROR(INDEX('Data Annex'!$K$1:$AV$6265,MATCH(I$1&"|"&$B14,'Data Annex'!$K$1:$K$6265,0),MATCH(I$2,'Data Annex'!$K$1:$AV$1,0)),"") -> 9.588081603 | J14: =IFERROR(INDEX('Data Annex'!$K$1:$AV$6265,MATCH(J$1&"|"&$B14,'Data Annex'!$K$1:$K$6265,0),MATCH(J$2,'Data Annex'!$K$1:$AV$1,0)),"") -> 10.00031343 | K14: =IFERROR(INDEX('Data Annex'!$K$1:$AV$6265,MATCH(K$1&"|"&$B14,'Data Annex'!$K$1:$K$6265,0),MATCH(K$2,'Data Annex'!$K$1:$AV$1,0)),"") -> 4.657309541 | L14: =IFERROR(INDEX('Data Annex'!$K$1:$AV$6265,MATCH(L$1&"|"&$B14,'Data Annex'!$K$1:$K$6265,0),MATCH(L$2,'Data Annex'!$K$1:$AV$1,0)),"") -> 4.512589733 | M14: =IFERROR(INDEX('Data Annex'!$K$1:$AV$6265,MATCH(M$1&"|"&$B14,'Data Annex'!$K$1:$K$6265,0),MATCH(M$2,'Data Annex'!$K$1:$AV$1,0)),"") -> 4.724031087 | N14: =IFERROR(INDEX('Data Annex'!$K$1:$AV$6265,MATCH(N$1&"|"&$B14,'Data Annex'!$K$1:$K$6265,0),MATCH(N$2,'Data Annex'!$K$1:$AV$1,0)),"") -> 11.49687238 | O14: =IFERROR(INDEX('Data Annex'!$K$1:$AV$6265,MATCH(O$1&"|"&$B14,'Data Annex'!$K$1:$K$6265,0),MATCH(O$2,'Data Annex'!$K$1:$AV$1,0)),"") -> 10.49251355 | P14: =IFERROR(INDEX('Data Annex'!$K$1:$AV$6265,MATCH(P$1&"|"&$B14,'Data Annex'!$K$1:$K$6265,0),MATCH(P$2,'Data Annex'!$K$1:$AV$1,0)),"") -> 10.87616218 | Q14: =IFERROR(INDEX('Data Annex'!$K$1:$AV$6265,MATCH(Q$1&"|"&$B14,'Data Annex'!$K$1:$K$6265,0),MATCH(Q$2,'Data Annex'!$K$1:$AV$1,0)),"") -> 5.464826158 | R14: =IFERROR(INDEX('Data Annex'!$K$1:$AV$6265,MATCH(R$1&"|"&$B14,'Data Annex'!$K$1:$K$6265,0),MATCH(R$2,'Data Annex'!$K$1:$AV$1,0)),"") -> 5.694805706 | S14: =IFERROR(INDEX('Data Annex'!$K$1:$AV$6265,MATCH(S$1&"|"&$B14,'Data Annex'!$K$1:$K$6265,0),MATCH(S$2,'Data Annex'!$K$1:$AV$1,0)),"") -> 5.992600982 | T14: =IFERROR(INDEX('Data Annex'!$K$1:$AV$6265,MATCH(T$1&"|"&$B14,'Data Annex'!$K$1:$K$6265,0),MATCH(T$2,'Data Annex'!$K$1:$AV$1,0)),"") -> 5.587299315 | U14: =IFERROR(INDEX('Data Annex'!$K$1:$AV$6265,MATCH(U$1&"|"&$B14,'Data Annex'!$K$1:$K$6265,0),MATCH(U$2,'Data Annex'!$K$1:$AV$1,0)),"") -> 4.816749156 | V14: =IFERROR(INDEX('Data Annex'!$K$1:$AV$6265,MATCH(V$1&"|"&$B14,'Data Annex'!$K$1:$K$6265,0),MATCH(V$2,'Data Annex'!$K$1:$AV$1,0)),"") -> 4.91465794
A15: 4 | B15: CY | D15: CY | E15: =IFERROR(INDEX('Data Annex'!$K$1:$AV$6265,MATCH(E$1&"|"&$B15,'Data Annex'!$K$1:$K$6265,0),MATCH(E$2,'Data Annex'!$K$1:$AV$1,0)),"") -> 32.66134774 | F15: =IFERROR(INDEX('Data Annex'!$K$1:$AV$6265,MATCH(F$1&"|"&$B15,'Data Annex'!$K$1:$K$6265,0),MATCH(F$2,'Data Annex'!$K$1:$AV$1,0)),"") -> 34.32669874 | G15: =IFERROR(INDEX('Data Annex'!$K$1:$AV$6265,MATCH(G$1&"|"&$B15,'Data Annex'!$K$1:$K$6265,0),MATCH(G$2,'Data Annex'!$K$1:$AV$1,0)),"") -> 34.60768411 | H15: =IFERROR(INDEX('Data Annex'!$K$1:$AV$6265,MATCH(H$1&"|"&$B15,'Data Annex'!$K$1:$K$6265,0),MATCH(H$2,'Data Annex'!$K$1:$AV$1,0)),"") -> 8.588376361 | I15: =IFERROR(INDEX('Data Annex'!$K$1:$AV$6265,MATCH(I$1&"|"&$B15,'Data Annex'!$K$1:$K$6265,0),MATCH(I$2,'Data Annex'!$K$1:$AV$1,0)),"") -> 8.353204427 | J15: =IFERROR(INDEX('Data Annex'!$K$1:$AV$6265,MATCH(J$1&"|"&$B15,'Data Annex'!$K$1:$K$6265,0),MATCH(J$2,'Data Annex'!$K$1:$AV$1,0)),"") -> 8.331073354 | K15: =IFERROR(INDEX('Data Annex'!$K$1:$AV$6265,MATCH(K$1&"|"&$B15,'Data Annex'!$K$1:$K$6265,0),MATCH(K$2,'Data Annex'!$K$1:$AV$1,0)),"") -> 6.541641263 | L15: =IFERROR(INDEX('Data Annex'!$K$1:$AV$6265,MATCH(L$1&"|"&$B15,'Data Annex'!$K$1:$K$6265,0),MATCH(L$2,'Data Annex'!$K$1:$AV$1,0)),"") -> 6.457539781 | M15: =IFERROR(INDEX('Data Annex'!$K$1:$AV$6265,MATCH(M$1&"|"&$B15,'Data Annex'!$K$1:$K$6265,0),MATCH(M$2,'Data Annex'!$K$1:$AV$1,0)),"") -> 6.461402431 | N15: =IFERROR(INDEX('Data Annex'!$K$1:$AV$6265,MATCH(N$1&"|"&$B15,'Data Annex'!$K$1:$K$6265,0),MATCH(N$2,'Data Annex'!$K$1:$AV$1,0)),"") -> 7.640697266 | O15: =IFERROR(INDEX('Data Annex'!$K$1:$AV$6265,MATCH(O$1&"|"&$B15,'Data Annex'!$K$1:$K$6265,0),MATCH(O$2,'Data Annex'!$K$1:$AV$1,0)),"") -> 7.698215623 | P15: =IFERROR(INDEX('Data Annex'!$K$1:$AV$6265,MATCH(P$1&"|"&$B15,'Data Annex'!$K$1:$K$6265,0),MATCH(P$2,'Data Annex'!$K$1:$AV$1,0)),"") -> 7.608429888 | Q15: =IFERROR(INDEX('Data Annex'!$K$1:$AV$6265,MATCH(Q$1&"|"&$B15,'Data Annex'!$K$1:$K$6265,0),MATCH(Q$2,'Data Annex'!$K$1:$AV$1,0)),"") -> 6.196757486 | R15: =IFERROR(INDEX('Data Annex'!$K$1:$AV$6265,MATCH(R$1&"|"&$B15,'Data Annex'!$K$1:$K$6265,0),MATCH(R$2,'Data Annex'!$K$1:$AV$1,0)),"") -> 5.987482776 | S15: =IFERROR(INDEX('Data Annex'!$K$1:$AV$6265,MATCH(S$1&"|"&$B15,'Data Annex'!$K$1:$K$6265,0),MATCH(S$2,'Data Annex'!$K$1:$AV$1,0)),"") -> 5.685762974 | T15: =IFERROR(INDEX('Data Annex'!$K$1:$AV$6265,MATCH(T$1&"|"&$B15,'Data Annex'!$K$1:$K$6265,0),MATCH(T$2,'Data Annex'!$K$1:$AV$1,0)),"") -> 5.656716009 | U15: =IFERROR(INDEX('Data Annex'!$K$1:$AV$6265,MATCH(U$1&"|"&$B15,'Data Annex'!$K$1:$K$6265,0),MATCH(U$2,'Data Annex'!$K$1:$AV$1,0)),"") -> 5.593336567 | V15: =IFERROR(INDEX('Data Annex'!$K$1:$AV$6265,MATCH(V$1&"|"&$B15,'Data Annex'!$K$1:$K$6265,0),MATCH(V$2,'Data Annex'!$K$1:$AV$1,0)),"") -> 5.462611012
A16: 5 | B16: CZ | D16: CZ | E16: =IFERROR(INDEX('Data Annex'!$K$1:$AV$6265,MATCH(E$1&"|"&$B16,'Data Annex'!$K$1:$K$6265,0),MATCH(E$2,'Data Annex'!$K$1:$AV$1,0)),"") -> 163.2567739 | F16: =IFERROR(INDEX('Data Annex'!$K$1:$AV$6265,MATCH(F$1&"|"&$B16,'Data Annex'!$K$1:$K$6265,0),MATCH(F$2,'Data Annex'!$K$1:$AV$1,0)),"") -> 177.6978786 | G16: =IFERROR(INDEX('Data Annex'!$K$1:$AV$6265,MATCH(G$1&"|"&$B16,'Data Annex'!$K$1:$K$6265,0),MATCH(G$2,'Data Annex'!$K$1:$AV$1,0)),"") -> 167.6421402 | H16: =IFERROR(INDEX('Data Annex'!$K$1:$AV$6265,MATCH(H$1&"|"&$B16,'Data Annex'!$K$1:$K$6265,0),MATCH(H$2,'Data Annex'!$K$1:$AV$1,0)),"") -> 56.16599227 | I16: =IFERROR(INDEX('Data Annex'!$K$1:$AV$6265,MATCH(I$1&"|"&$B16,'Data Annex'!$K$1:$K$6265,0),MATCH(I$2,'Data Annex'!$K$1:$AV$1,0)),"") -> 61.27073987 | J16: =IFERROR(INDEX('Data Annex'!$K$1:$AV$6265,MATCH(J$1&"|"&$B16,'Data Annex'!$K$1:$K$6265,0),MATCH(J$2,'Data Annex'!$K$1:$AV$1,0)),"") -> 62.38028923 | K16: =IFERROR(INDEX('Data Annex'!$K$1:$AV$6265,MATCH(K$1&"|"&$B16,'Data Annex'!$K$1:$K$6265,0),MATCH(K$2,'Data Annex'!$K$1:$AV$1,0)),"") -> 43.81406127 | L16: =IFERROR(INDEX('Data Annex'!$K$1:$AV$6265,MATCH(L$1&"|"&$B16,'Data Annex'!$K$1:$K$6265,0),MATCH(L$2,'Data Annex'!$K$1:$AV$1,0)),"") -> 48.46334397 | M16: =IFERROR(INDEX('Data Annex'!$K$1:$AV$6265,MATCH(M$1&"|"&$B16,'Data Annex'!$K$1:$K$6265,0),MATCH(M$2,'Data Annex'!$K$1:$AV$1,0)),"") -> 49.55267923 | N16: =IFERROR(INDEX('Data Annex'!$K$1:$AV$6265,MATCH(N$1&"|"&$B16,'Data Annex'!$K$1:$K$6265,0),MATCH(N$2,'Data Annex'!$K$1:$AV$1,0)),"") -> 31.83711458 | O16: =IFERROR(INDEX('Data Annex'!$K$1:$AV$6265,MATCH(O$1&"|"&$B16,'Data Annex'!$K$1:$K$6265,0),MATCH(O$2,'Data Annex'!$K$1:$AV$1,0)),"") -> 35.11818472 | P16: =IFERROR(INDEX('Data Annex'!$K$1:$AV$6265,MATCH(P$1&"|"&$B16,'Data Annex'!$K$1:$K$6265,0),MATCH(P$2,'Data Annex'!$K$1:$AV$1,0)),"") -> 37.13545726 | Q16: =IFERROR(INDEX('Data Annex'!$K$1:$AV$6265,MATCH(Q$1&"|"&$B16,'Data Annex'!$K$1:$K$6265,0),MATCH(Q$2,'Data Annex'!$K$1:$AV$1,0)),"") -> 12.17246964 | R16: =IFERROR(INDEX('Data Annex'!$K$1:$AV$6265,MATCH(R$1&"|"&$B16,'Data Annex'!$K$1:$K$6265,0),MATCH(R$2,'Data Annex'!$K$1:$AV$1,0)),"") -> 13.54895051 | S16: =IFERROR(INDEX('Data Annex'!$K$1:$AV$6265,MATCH(S$1&"|"&$B16,'Data Annex'!$K$1:$K$6265,0),MATCH(S$2,'Data Annex'!$K$1:$AV$1,0)),"") -> 14.07925276 | T16: =IFERROR(INDEX('Data Annex'!$K$1:$AV$6265,MATCH(T$1&"|"&$B16,'Data Annex'!$K$1:$K$6265,0),MATCH(T$2,'Data Annex'!$K$1:$AV$1,0)),"") -> 13.39908382 | U16: =IFERROR(INDEX('Data Annex'!$K$1:$AV$6265,MATCH(U$1&"|"&$B16,'Data Annex'!$K$1:$K$6265,0),MATCH(U$2,'Data Annex'!$K$1:$AV$1,0)),"") -> 14.32145596 | V16: =IFERROR(INDEX('Data Annex'!$K$1:$AV$6265,MATCH(V$1&"|"&$B16,'Data Annex'!$K$1:$K$6265,0),MATCH(V$2,'Data Annex'!$K$1:$AV$1,0)),"") -> 15.23425798
A17: 6 | B17: DE | D17: DE | E17: =IFERROR(INDEX('Data Annex'!$K$1:$AV$6265,MATCH(E$1&"|"&$B17,'Data Annex'!$K$1:$K$6265,0),MATCH(E$2,'Data Annex'!$K$1:$AV$1,0)),"") -> 2836.332476 | F17: =IFERROR(INDEX('Data Annex'!$K$1:$AV$6265,MATCH(F$1&"|"&$B17,'Data Annex'!$K$1:$K$6265,0),MATCH(F$2,'Data Annex'!$K$1:$AV$1,0)),"") -> 3020.086779 | G17: =IFERROR(INDEX('Data Annex'!$K$1:$AV$6265,MATCH(G$1&"|"&$B17,'Data Annex'!$K$1:$K$6265,0),MATCH(G$2,'Data Annex'!$K$1:$AV$1,0)),"") -> 3094.354483 | H17: =IFERROR(INDEX('Data Annex'!$K$1:$AV$6265,MATCH(H$1&"|"&$B17,'Data Annex'!$K$1:$K$6265,0),MATCH(H$2,'Data Annex'!$K$1:$AV$1,0)),"") -> 543.3449422 | I17: =IFERROR(INDEX('Data Annex'!$K$1:$AV$6265,MATCH(I$1&"|"&$B17,'Data Annex'!$K$1:$K$6265,0),MATCH(I$2,'Data Annex'!$K$1:$AV$1,0)),"") -> 555.5744712 | J17: =IFERROR(INDEX('Data Annex'!$K$1:$AV$6265,MATCH(J$1&"|"&$B17,'Data Annex'!$K$1:$K$6265,0),MATCH(J$2,'Data Annex'!$K$1:$AV$1,0)),"") -> 555.8472588 | K17: =IFERROR(INDEX('Data Annex'!$K$1:$AV$6265,MATCH(K$1&"|"&$B17,'Data Annex'!$K$1:$K$6265,0),MATCH(K$2,'Data Annex'!$K$1:$AV$1,0)),"") -> 372.1116249 | L17: =IFERROR(INDEX('Data Annex'!$K$1:$AV$6265,MATCH(L$1&"|"&$B17,'Data Annex'!$K$1:$K$6265,0),MATCH(L$2,'Data Annex'!$K$1:$AV$1,0)),"") -> 381.8214946 | M17: =IFERROR(INDEX('Data Annex'!$K$1:$AV$6265,MATCH(M$1&"|"&$B17,'Data Annex'!$K$1:$K$6265,0),MATCH(M$2,'Data Annex'!$K$1:$AV$1,0)),"") -> 384.9836673 | N17: =IFERROR(INDEX('Data Annex'!$K$1:$AV$6265,MATCH(N$1&"|"&$B17,'Data Annex'!$K$1:$K$6265,0),MATCH(N$2,'Data Annex'!$K$1:$AV$1,0)),"") -> 789.0682351 | O17: =IFERROR(INDEX('Data Annex'!$K$1:$AV$6265,MATCH(O$1&"|"&$B17,'Data Annex'!$K$1:$K$6265,0),MATCH(O$2,'Data Annex'!$K$1:$AV$1,0)),"") -> 855.7929436 | P17: =IFERROR(INDEX('Data Annex'!$K$1:$AV$6265,MATCH(P$1&"|"&$B17,'Data Annex'!$K$1:$K$6265,0),MATCH(P$2,'Data Annex'!$K$1:$AV$1,0)),"") -> 847.7099843 | Q17: =IFERROR(INDEX('Data Annex'!$K$1:$AV$6265,MATCH(Q$1&"|"&$B17,'Data Annex'!$K$1:$K$6265,0),MATCH(Q$2,'Data Annex'!$K$1:$AV$1,0)),"") -> 206.2171551 | R17: =IFERROR(INDEX('Data Annex'!$K$1:$AV$6265,MATCH(R$1&"|"&$B17,'Data Annex'!$K$1:$K$6265,0),MATCH(R$2,'Data Annex'!$K$1:$AV$1,0)),"") -> 217.0114079 | S17: =IFERROR(INDEX('Data Annex'!$K$1:$AV$6265,MATCH(S$1&"|"&$B17,'Data Annex'!$K$1:$K$6265,0),MATCH(S$2,'Data Annex'!$K$1:$AV$1,0)),"") -> 203.8466781 | T17: =IFERROR(INDEX('Data Annex'!$K$1:$AV$6265,MATCH(T$1&"|"&$B17,'Data Annex'!$K$1:$K$6265,0),MATCH(T$2,'Data Annex'!$K$1:$AV$1,0)),"") -> 263.8483539 | U17: =IFERROR(INDEX('Data Annex'!$K$1:$AV$6265,MATCH(U$1&"|"&$B17,'Data Annex'!$K$1:$K$6265,0),MATCH(U$2,'Data Annex'!$K$1:$AV$1,0)),"") -> 272.8354883 | V17: =IFERROR(INDEX('Data Annex'!$K$1:$AV$6265,MATCH(V$1&"|"&$B17,'Data Annex'!$K$1:$K$6265,0),MATCH(V$2,'Data Annex'!$K$1:$AV$1,0)),"") -> 260.0624139
A18: 7 | B18: DK | D18: DK | E18: =IFERROR(INDEX('Data Annex'!$K$1:$AV$6265,MATCH(E$1&"|"&$B18,'Data Annex'!$K$1:$K$6265,0),MATCH(E$2,'Data Annex'!$K$1:$AV$1,0)),"") -> 609.9040687 | F18: =IFERROR(INDEX('Data Annex'!$K$1:$AV$6265,MATCH(F$1&"|"&$B18,'Data Annex'!$K$1:$K$6265,0),MATCH(F$2,'Data Annex'!$K$1:$AV$1,0)),"") -> 590.9896473 | G18: =IFERROR(INDEX('Data Annex'!$K$1:$AV$6265,MATCH(G$1&"|"&$B18,'Data Annex'!$K$1:$K$6265,0),MATCH(G$2,'Data Annex'!$K$1:$AV$1,0)),"") -> 588.3658345 | H18: =IFERROR(INDEX('Data Annex'!$K$1:$AV$6265,MATCH(H$1&"|"&$B18,'Data Annex'!$K$1:$K$6265,0),MATCH(H$2,'Data Annex'!$K$1:$AV$1,0)),"") -> 74.04994031 | I18: =IFERROR(INDEX('Data Annex'!$K$1:$AV$6265,MATCH(I$1&"|"&$B18,'Data Annex'!$K$1:$K$6265,0),MATCH(I$2,'Data Annex'!$K$1:$AV$1,0)),"") -> 71.58456482 | J18: =IFERROR(INDEX('Data Annex'!$K$1:$AV$6265,MATCH(J$1&"|"&$B18,'Data Annex'!$K$1:$K$6265,0),MATCH(J$2,'Data Annex'!$K$1:$AV$1,0)),"") -> 70.92018278 | K18: =IFERROR(INDEX('Data Annex'!$K$1:$AV$6265,MATCH(K$1&"|"&$B18,'Data Annex'!$K$1:$K$6265,0),MATCH(K$2,'Data Annex'!$K$1:$AV$1,0)),"") -> 55.967261 | L18: =IFERROR(INDEX('Data Annex'!$K$1:$AV$6265,MATCH(L$1&"|"&$B18,'Data Annex'!$K$1:$K$6265,0),MATCH(L$2,'Data Annex'!$K$1:$AV$1,0)),"") -> 55.92115272 | M18: =IFERROR(INDEX('Data Annex'!$K$1:$AV$6265,MATCH(M$1&"|"&$B18,'Data Annex'!$K$1:$K$6265,0),MATCH(M$2,'Data Annex'!$K$1:$AV$1,0)),"") -> 55.43320923 | N18: =IFERROR(INDEX('Data Annex'!$K$1:$AV$6265,MATCH(N$1&"|"&$B18,'Data Annex'!$K$1:$K$6265,0),MATCH(N$2,'Data Annex'!$K$1:$AV$1,0)),"") -> 81.15000029 | O18: =IFERROR(INDEX('Data Annex'!$K$1:$AV$6265,MATCH(O$1&"|"&$B18,'Data Annex'!$K$1:$K$6265,0),MATCH(O$2,'Data Annex'!$K$1:$AV$1,0)),"") -> 87.03883408 | P18: =IFERROR(INDEX('Data Annex'!$K$1:$AV$6265,MATCH(P$1&"|"&$B18,'Data Annex'!$K$1:$K$6265,0),MATCH(P$2,'Data Annex'!$K$1:$AV$1,0)),"") -> 89.54736583 | Q18: =IFERROR(INDEX('Data Annex'!$K$1:$AV$6265,MATCH(Q$1&"|"&$B18,'Data Annex'!$K$1:$K$6265,0),MATCH(Q$2,'Data Annex'!$K$1:$AV$1,0)),"") -> 38.66815629 | R18: =IFERROR(INDEX('Data Annex'!$K$1:$AV$6265,MATCH(R$1&"|"&$B18,'Data Annex'!$K$1:$K$6265,0),MATCH(R$2,'Data Annex'!$K$1:$AV$1,0)),"") -> 37.35533251 | S18: =IFERROR(INDEX('Data Annex'!$K$1:$AV$6265,MATCH(S$1&"|"&$B18,'Data Annex'!$K$1:$K$6265,0),MATCH(S$2,'Data Annex'!$K$1:$AV$1,0)),"") -> 37.96964734 | T18: =IFERROR(INDEX('Data Annex'!$K$1:$AV$6265,MATCH(T$1&"|"&$B18,'Data Annex'!$K$1:$K$6265,0),MATCH(T$2,'Data Annex'!$K$1:$AV$1,0)),"") -> 24.90117205 | U18: =IFERROR(INDEX('Data Annex'!$K$1:$AV$6265,MATCH(U$1&"|"&$B18,'Data Annex'!$K$1:$K$6265,0),MATCH(U$2,'Data Annex'!$K$1:$AV$1,0)),"") -> 24.42972305 | V18: =IFERROR(INDEX('Data Annex'!$K$1:$AV$6265,MATCH(V$1&"|"&$B18,'Data Annex'!$K$1:$K$6265,0),MATCH(V$2,'Data Annex'!$K$1:$AV$1,0)),"") -> 24.52800367
A19: 8 | B19: EE | D19: EE | E19: =IFERROR(INDEX('Data Annex'!$K$1:$AV$6265,MATCH(E$1&"|"&$B19,'Data Annex'!$K$1:$K$6265,0),MATCH(E$2,'Data Annex'!$K$1:$AV$1,0)),"") -> 33.26882716 | F19: =IFERROR(INDEX('Data Annex'!$K$1:$AV$6265,MATCH(F$1&"|"&$B19,'Data Annex'!$K$1:$K$6265,0),MATCH(F$2,'Data Annex'!$K$1:$AV$1,0)),"") -> 39.64959286 | G19: =IFERROR(INDEX('Data Annex'!$K$1:$AV$6265,MATCH(G$1&"|"&$B19,'Data Annex'!$K$1:$K$6265,0),MATCH(G$2,'Data Annex'!$K$1:$AV$1,0)),"") -> 39.90551389 | H19: =IFERROR(INDEX('Data Annex'!$K$1:$AV$6265,MATCH(H$1&"|"&$B19,'Data Annex'!$K$1:$K$6265,0),MATCH(H$2,'Data Annex'!$K$1:$AV$1,0)),"") -> 13.52572125 | I19: =IFERROR(INDEX('Data Annex'!$K$1:$AV$6265,MATCH(I$1&"|"&$B19,'Data Annex'!$K$1:$K$6265,0),MATCH(I$2,'Data Annex'!$K$1:$AV$1,0)),"") -> 15.3666184 | J19: =IFERROR(INDEX('Data Annex'!$K$1:$AV$6265,MATCH(J$1&"|"&$B19,'Data Annex'!$K$1:$K$6265,0),MATCH(J$2,'Data Annex'!$K$1:$AV$1,0)),"") -> 15.72071358 | K19: =IFERROR(INDEX('Data Annex'!$K$1:$AV$6265,MATCH(K$1&"|"&$B19,'Data Annex'!$K$1:$K$6265,0),MATCH(K$2,'Data Annex'!$K$1:$AV$1,0)),"") -> 11.29484852 | L19: =IFERROR(INDEX('Data Annex'!$K$1:$AV$6265,MATCH(L$1&"|"&$B19,'Data Annex'!$K$1:$K$6265,0),MATCH(L$2,'Data Annex'!$K$1:$AV$1,0)),"") -> 12.90823481 | M19: =IFERROR(INDEX('Data Annex'!$K$1:$AV$6265,MATCH(M$1&"|"&$B19,'Data Annex'!$K$1:$K$6265,0),MATCH(M$2,'Data Annex'!$K$1:$AV$1,0)),"") -> 13.1916469 | N19: =IFERROR(INDEX('Data Annex'!$K$1:$AV$6265,MATCH(N$1&"|"&$B19,'Data Annex'!$K$1:$K$6265,0),MATCH(N$2,'Data Annex'!$K$1:$AV$1,0)),"") -> 10.25235041 | O19: =IFERROR(INDEX('Data Annex'!$K$1:$AV$6265,MATCH(O$1&"|"&$B19,'Data Annex'!$K$1:$K$6265,0),MATCH(O$2,'Data Annex'!$K$1:$AV$1,0)),"") -> 12.32618953 | P19: =IFERROR(INDEX('Data Annex'!$K$1:$AV$6265,MATCH(P$1&"|"&$B19,'Data Annex'!$K$1:$K$6265,0),MATCH(P$2,'Data Annex'!$K$1:$AV$1,0)),"") -> 12.97981804 | Q19: =IFERROR(INDEX('Data Annex'!$K$1:$AV$6265,MATCH(Q$1&"|"&$B19,'Data Annex'!$K$1:$K$6265,0),MATCH(Q$2,'Data Annex'!$K$1:$AV$1,0)),"") -> 7.165898542 | R19: =IFERROR(INDEX('Data Annex'!$K$1:$AV$6265,MATCH(R$1&"|"&$B19,'Data Annex'!$K$1:$K$6265,0),MATCH(R$2,'Data Annex'!$K$1:$AV$1,0)),"") -> 8.98163281 | S19: =IFERROR(INDEX('Data Annex'!$K$1:$AV$6265,MATCH(S$1&"|"&$B19,'Data Annex'!$K$1:$K$6265,0),MATCH(S$2,'Data Annex'!$K$1:$AV$1,0)),"") -> 8.754478174 | T19: =IFERROR(INDEX('Data Annex'!$K$1:$AV$6265,MATCH(T$1&"|"&$B19,'Data Annex'!$K$1:$K$6265,0),MATCH(T$2,'Data Annex'!$K$1:$AV$1,0)),"") -> 5.932936202 | U19: =IFERROR(INDEX('Data Annex'!$K$1:$AV$6265,MATCH(U$1&"|"&$B19,'Data Annex'!$K$1:$K$6265,0),MATCH(U$2,'Data Annex'!$K$1:$AV$1,0)),"") -> 7.34539824 | V19: =IFERROR(INDEX('Data Annex'!$K$1:$AV$6265,MATCH(V$1&"|"&$B19,'Data Annex'!$K$1:$K$6265,0),MATCH(V$2,'Data Annex'!$K$1:$AV$1,0)),"") -> 7.655653823
A20: 9 | B20: ES | D20: ES | E20: =IFERROR(INDEX('Data Annex'!$K$1:$AV$6265,MATCH(E$1&"|"&$B20,'Data Annex'!$K$1:$K$6265,0),MATCH(E$2,'Data Annex'!$K$1:$AV$1,0)),"") -> 2672.924998 | F20: =IFERROR(INDEX('Data Annex'!$K$1:$AV$6265,MATCH(F$1&"|"&$B20,'Data Annex'!$K$1:$K$6265,0),MATCH(F$2,'Data Annex'!$K$1:$AV$1,0)),"") -> 2853.827071 | G20: =IFERROR(INDEX('Data Annex'!$K$1:$AV$6265,MATCH(G$1&"|"&$B20,'Data Annex'!$K$1:$K$6265,0),MATCH(G$2,'Data Annex'!$K$1:$AV$1,0)),"") -> 2904.515866 | H20: =IFERROR(INDEX('Data Annex'!$K$1:$AV$6265,MATCH(H$1&"|"&$B20,'Data Annex'!$K$1:$K$6265,0),MATCH(H$2,'Data Annex'!$K$1:$AV$1,0)),"") -> 1164.905073 | I20: =IFERROR(INDEX('Data Annex'!$K$1:$AV$6265,MATCH(I$1&"|"&$B20,'Data Annex'!$K$1:$K$6265,0),MATCH(I$2,'Data Annex'!$K$1:$AV$1,0)),"") -> 1221.81384 | J20: =IFERROR(INDEX('Data Annex'!$K$1:$AV$6265,MATCH(J$1&"|"&$B20,'Data Annex'!$K$1:$K$6265,0),MATCH(J$2,'Data Annex'!$K$1:$AV$1,0)),"") -> 1227.961714 | K20: =IFERROR(INDEX('Data Annex'!$K$1:$AV$6265,MATCH(K$1&"|"&$B20,'Data Annex'!$K$1:$K$6265,0),MATCH(K$2,'Data Annex'!$K$1:$AV$1,0)),"") -> 824.4462552 | L20: =IFERROR(INDEX('Data Annex'!$K$1:$AV$6265,MATCH(L$1&"|"&$B20,'Data Annex'!$K$1:$K$6265,0),MATCH(L$2,'Data Annex'!$K$1:$AV$1,0)),"") -> 845.8224174 | M20: =IFERROR(INDEX('Data Annex'!$K$1:$AV$6265,MATCH(M$1&"|"&$B20,'Data Annex'!$K$1:$K$6265,0),MATCH(M$2,'Data Annex'!$K$1:$AV$1,0)),"") -> 848.2026552 | N20: =IFERROR(INDEX('Data Annex'!$K$1:$AV$6265,MATCH(N$1&"|"&$B20,'Data Annex'!$K$1:$K$6265,0),MATCH(N$2,'Data Annex'!$K$1:$AV$1,0)),"") -> 732.0601649 | O20: =IFERROR(INDEX('Data Annex'!$K$1:$AV$6265,MATCH(O$1&"|"&$B20,'Data Annex'!$K$1:$K$6265,0),MATCH(O$2,'Data Annex'!$K$1:$AV$1,0)),"") -> 792.261228 | P20: =IFERROR(INDEX('Data Annex'!$K$1:$AV$6265,MATCH(P$1&"|"&$B20,'Data Annex'!$K$1:$K$6265,0),MATCH(P$2,'Data Annex'!$K$1:$AV$1,0)),"") -> 812.2441109 | Q20: =IFERROR(INDEX('Data Annex'!$K$1:$AV$6265,MATCH(Q$1&"|"&$B20,'Data Annex'!$K$1:$K$6265,0),MATCH(Q$2,'Data Annex'!$K$1:$AV$1,0)),"") -> 315.1713804 | R20: =IFERROR(INDEX('Data Annex'!$K$1:$AV$6265,MATCH(R$1&"|"&$B20,'Data Annex'!$K$1:$K$6265,0),MATCH(R$2,'Data Annex'!$K$1:$AV$1,0)),"") -> 324.5165764 | S20: =IFERROR(INDEX('Data Annex'!$K$1:$AV$6265,MATCH(S$1&"|"&$B20,'Data Annex'!$K$1:$K$6265,0),MATCH(S$2,'Data Annex'!$K$1:$AV$1,0)),"") -> 324.4047026 | T20: =IFERROR(INDEX('Data Annex'!$K$1:$AV$6265,MATCH(T$1&"|"&$B20,'Data Annex'!$K$1:$K$6265,0),MATCH(T$2,'Data Annex'!$K$1:$AV$1,0)),"") -> 108.8249198 | U20: =IFERROR(INDEX('Data Annex'!$K$1:$AV$6265,MATCH(U$1&"|"&$B20,'Data Annex'!$K$1:$K$6265,0),MATCH(U$2,'Data Annex'!$K$1:$AV$1,0)),"") -> 119.1632861 | V20: =IFERROR(INDEX('Data Annex'!$K$1:$AV$6265,MATCH(V$1&"|"&$B20,'Data Annex'!$K$1:$K$6265,0),MATCH(V$2,'Data Annex'!$K$1:$AV$1,0)),"") -> 119.540688
A21: 10 | B21: FI | D21: FI | E21: =IFERROR(INDEX('Data Annex'!$K$1:$AV$6265,MATCH(E$1&"|"&$B21,'Data Annex'!$K$1:$K$6265,0),MATCH(E$2,'Data Annex'!$K$1:$AV$1,0)),"") -> 569.1252892 | F21: =IFERROR(INDEX('Data Annex'!$K$1:$AV$6265,MATCH(F$1&"|"&$B21,'Data Annex'!$K$1:$K$6265,0),MATCH(F$2,'Data Annex'!$K$1:$AV$1,0)),"") -> 571.9629574 | G21: =IFERROR(INDEX('Data Annex'!$K$1:$AV$6265,MATCH(G$1&"|"&$B21,'Data Annex'!$K$1:$K$6265,0),MATCH(G$2,'Data Annex'!$K$1:$AV$1,0)),"") -> 575.5035993 | H21: =IFERROR(INDEX('Data Annex'!$K$1:$AV$6265,MATCH(H$1&"|"&$B21,'Data Annex'!$K$1:$K$6265,0),MATCH(H$2,'Data Annex'!$K$1:$AV$1,0)),"") -> 204.0032698 | I21: =IFERROR(INDEX('Data Annex'!$K$1:$AV$6265,MATCH(I$1&"|"&$B21,'Data Annex'!$K$1:$K$6265,0),MATCH(I$2,'Data Annex'!$K$1:$AV$1,0)),"") -> 204.4347539 | J21: =IFERROR(INDEX('Data Annex'!$K$1:$AV$6265,MATCH(J$1&"|"&$B21,'Data Annex'!$K$1:$K$6265,0),MATCH(J$2,'Data Annex'!$K$1:$AV$1,0)),"") -> 201.3257013 | K21: =IFERROR(INDEX('Data Annex'!$K$1:$AV$6265,MATCH(K$1&"|"&$B21,'Data Annex'!$K$1:$K$6265,0),MATCH(K$2,'Data Annex'!$K$1:$AV$1,0)),"") -> 169.4512711 | L21: =IFERROR(INDEX('Data Annex'!$K$1:$AV$6265,MATCH(L$1&"|"&$B21,'Data Annex'!$K$1:$K$6265,0),MATCH(L$2,'Data Annex'!$K$1:$AV$1,0)),"") -> 174.2608249 | M21: =IFERROR(INDEX('Data Annex'!$K$1:$AV$6265,MATCH(M$1&"|"&$B21,'Data Annex'!$K$1:$K$6265,0),MATCH(M$2,'Data Annex'!$K$1:$AV$1,0)),"") -> 168.9775998 | N21: =IFERROR(INDEX('Data Annex'!$K$1:$AV$6265,MATCH(N$1&"|"&$B21,'Data Annex'!$K$1:$K$6265,0),MATCH(N$2,'Data Annex'!$K$1:$AV$1,0)),"") -> 155.5621131 | O21: =IFERROR(INDEX('Data Annex'!$K$1:$AV$6265,MATCH(O$1&"|"&$B21,'Data Annex'!$K$1:$K$6265,0),MATCH(O$2,'Data Annex'!$K$1:$AV$1,0)),"") -> 168.299545 | P21: =IFERROR(INDEX('Data Annex'!$K$1:$AV$6265,MATCH(P$1&"|"&$B21,'Data Annex'!$K$1:$K$6265,0),MATCH(P$2,'Data Annex'!$K$1:$AV$1,0)),"") -> 178.8134752 | Q21: =IFERROR(INDEX('Data Annex'!$K$1:$AV$6265,MATCH(Q$1&"|"&$B21,'Data Annex'!$K$1:$K$6265,0),MATCH(Q$2,'Data Annex'!$K$1:$AV$1,0)),"") -> 63.02364485 | R21: =IFERROR(INDEX('Data Annex'!$K$1:$AV$6265,MATCH(R$1&"|"&$B21,'Data Annex'!$K$1:$K$6265,0),MATCH(R$2,'Data Annex'!$K$1:$AV$1,0)),"") -> 63.43919315 | S21: =IFERROR(INDEX('Data Annex'!$K$1:$AV$6265,MATCH(S$1&"|"&$B21,'Data Annex'!$K$1:$K$6265,0),MATCH(S$2,'Data Annex'!$K$1:$AV$1,0)),"") -> 63.38909009 | T21: =IFERROR(INDEX('Data Annex'!$K$1:$AV$6265,MATCH(T$1&"|"&$B21,'Data Annex'!$K$1:$K$6265,0),MATCH(T$2,'Data Annex'!$K$1:$AV$1,0)),"") -> 34.06115365 | U21: =IFERROR(INDEX('Data Annex'!$K$1:$AV$6265,MATCH(U$1&"|"&$B21,'Data Annex'!$K$1:$K$6265,0),MATCH(U$2,'Data Annex'!$K$1:$AV$1,0)),"") -> 35.47230294 | V21: =IFERROR(INDEX('Data Annex'!$K$1:$AV$6265,MATCH(V$1&"|"&$B21,'Data Annex'!$K$1:$K$6265,0),MATCH(V$2,'Data Annex'!$K$1:$AV$1,0)),"") -> 35.29069855
A22: 11 | B22: FR | D22: FR | E22: =IFERROR(INDEX('Data Annex'!$K$1:$AV$6265,MATCH(E$1&"|"&$B22,'Data Annex'!$K$1:$K$6265,0),MATCH(E$2,'Data Annex'!$K$1:$AV$1,0)),"") -> 5870.214971 | F22: =IFERROR(INDEX('Data Annex'!$K$1:$AV$6265,MATCH(F$1&"|"&$B22,'Data Annex'!$K$1:$K$6265,0),MATCH(F$2,'Data Annex'!$K$1:$AV$1,0)),"") -> 5957.914501 | G22: =IFERROR(INDEX('Data Annex'!$K$1:$AV$6265,MATCH(G$1&"|"&$B22,'Data Annex'!$K$1:$K$6265,0),MATCH(G$2,'Data Annex'!$K$1:$AV$1,0)),"") -> 6077.246912 | H22: =IFERROR(INDEX('Data Annex'!$K$1:$AV$6265,MATCH(H$1&"|"&$B22,'Data Annex'!$K$1:$K$6265,0),MATCH(H$2,'Data Annex'!$K$1:$AV$1,0)),"") -> 1973.418394 | I22: =IFERROR(INDEX('Data Annex'!$K$1:$AV$6265,MATCH(I$1&"|"&$B22,'Data Annex'!$K$1:$K$6265,0),MATCH(I$2,'Data Annex'!$K$1:$AV$1,0)),"") -> 2024.45707 | J22: =IFERROR(INDEX('Data Annex'!$K$1:$AV$6265,MATCH(J$1&"|"&$B22,'Data Annex'!$K$1:$K$6265,0),MATCH(J$2,'Data Annex'!$K$1:$AV$1,0)),"") -> 2004.713435 | K22: =IFERROR(INDEX('Data Annex'!$K$1:$AV$6265,MATCH(K$1&"|"&$B22,'Data Annex'!$K$1:$K$6265,0),MATCH(K$2,'Data Annex'!$K$1:$AV$1,0)),"") -> 663.4306569 | L22: =IFERROR(INDEX('Data Annex'!$K$1:$AV$6265,MATCH(L$1&"|"&$B22,'Data Annex'!$K$1:$K$6265,0),MATCH(L$2,'Data Annex'!$K$1:$AV$1,0)),"") -> 658.1455835 | M22: =IFERROR(INDEX('Data Annex'!$K$1:$AV$6265,MATCH(M$1&"|"&$B22,'Data Annex'!$K$1:$K$6265,0),MATCH(M$2,'Data Annex'!$K$1:$AV$1,0)),"") -> 632.880832 | N22: =IFERROR(INDEX('Data Annex'!$K$1:$AV$6265,MATCH(N$1&"|"&$B22,'Data Annex'!$K$1:$K$6265,0),MATCH(N$2,'Data Annex'!$K$1:$AV$1,0)),"") -> 1709.922975 | O22: =IFERROR(INDEX('Data Annex'!$K$1:$AV$6265,MATCH(O$1&"|"&$B22,'Data Annex'!$K$1:$K$6265,0),MATCH(O$2,'Data Annex'!$K$1:$AV$1,0)),"") -> 1843.097442 | P22: =IFERROR(INDEX('Data Annex'!$K$1:$AV$6265,MATCH(P$1&"|"&$B22,'Data Annex'!$K$1:$K$6265,0),MATCH(P$2,'Data Annex'!$K$1:$AV$1,0)),"") -> 1898.901483 | Q22: =IFERROR(INDEX('Data Annex'!$K$1:$AV$6265,MATCH(Q$1&"|"&$B22,'Data Annex'!$K$1:$K$6265,0),MATCH(Q$2,'Data Annex'!$K$1:$AV$1,0)),"") -> 790.1334564 | R22: =IFERROR(INDEX('Data Annex'!$K$1:$AV$6265,MATCH(R$1&"|"&$B22,'Data Annex'!$K$1:$K$6265,0),MATCH(R$2,'Data Annex'!$K$1:$AV$1,0)),"") -> 836.9624306 | S22: =IFERROR(INDEX('Data Annex'!$K$1:$AV$6265,MATCH(S$1&"|"&$B22,'Data Annex'!$K$1:$K$6265,0),MATCH(S$2,'Data Annex'!$K$1:$AV$1,0)),"") -> 860.0372454 | T22: =IFERROR(INDEX('Data Annex'!$K$1:$AV$6265,MATCH(T$1&"|"&$B22,'Data Annex'!$K$1:$K$6265,0),MATCH(T$2,'Data Annex'!$K$1:$AV$1,0)),"") -> 239.6583168 | U22: =IFERROR(INDEX('Data Annex'!$K$1:$AV$6265,MATCH(U$1&"|"&$B22,'Data Annex'!$K$1:$K$6265,0),MATCH(U$2,'Data Annex'!$K$1:$AV$1,0)),"") -> 254.5564107 | V22: =IFERROR(INDEX('Data Annex'!$K$1:$AV$6265,MATCH(V$1&"|"&$B22,'Data Annex'!$K$1:$K$6265,0),MATCH(V$2,'Data Annex'!$K$1:$AV$1,0)),"") -> 262.0211224
A23: 13 | B23: GR | D23: GR | E23: =IFERROR(INDEX('Data Annex'!$K$1:$AV$6265,MATCH(E$1&"|"&$B23,'Data Annex'!$K$1:$K$6265,0),MATCH(E$2,'Data Annex'!$K$1:$AV$1,0)),"") -> 203.0274442 | F23: =IFERROR(INDEX('Data Annex'!$K$1:$AV$6265,MATCH(F$1&"|"&$B23,'Data Annex'!$K$1:$K$6265,0),MATCH(F$2,'Data Annex'!$K$1:$AV$1,0)),"") -> 217.6454986 | G23: =IFERROR(INDEX('Data Annex'!$K$1:$AV$6265,MATCH(G$1&"|"&$B23,'Data Annex'!$K$1:$K$6265,0),MATCH(G$2,'Data Annex'!$K$1:$AV$1,0)),"") -> 225.3019558 | H23: =IFERROR(INDEX('Data Annex'!$K$1:$AV$6265,MATCH(H$1&"|"&$B23,'Data Annex'!$K$1:$K$6265,0),MATCH(H$2,'Data Annex'!$K$1:$AV$1,0)),"") -> 49.8640017 | I23: =IFERROR(INDEX('Data Annex'!$K$1:$AV$6265,MATCH(I$1&"|"&$B23,'Data Annex'!$K$1:$K$6265,0),MATCH(I$2,'Data Annex'!$K$1:$AV$1,0)),"") -> 46.06146523 | J23: =IFERROR(INDEX('Data Annex'!$K$1:$AV$6265,MATCH(J$1&"|"&$B23,'Data Annex'!$K$1:$K$6265,0),MATCH(J$2,'Data Annex'!$K$1:$AV$1,0)),"") -> 45.92545169 | K23: =IFERROR(INDEX('Data Annex'!$K$1:$AV$6265,MATCH(K$1&"|"&$B23,'Data Annex'!$K$1:$K$6265,0),MATCH(K$2,'Data Annex'!$K$1:$AV$1,0)),"") -> 35.15416354 | L23: =IFERROR(INDEX('Data Annex'!$K$1:$AV$6265,MATCH(L$1&"|"&$B23,'Data Annex'!$K$1:$K$6265,0),MATCH(L$2,'Data Annex'!$K$1:$AV$1,0)),"") -> 32.91375624 | M23: =IFERROR(INDEX('Data Annex'!$K$1:$AV$6265,MATCH(M$1&"|"&$B23,'Data Annex'!$K$1:$K$6265,0),MATCH(M$2,'Data Annex'!$K$1:$AV$1,0)),"") -> 32.8748225 | N23: =IFERROR(INDEX('Data Annex'!$K$1:$AV$6265,MATCH(N$1&"|"&$B23,'Data Annex'!$K$1:$K$6265,0),MATCH(N$2,'Data Annex'!$K$1:$AV$1,0)),"") -> 77.68694829 | O23: =IFERROR(INDEX('Data Annex'!$K$1:$AV$6265,MATCH(O$1&"|"&$B23,'Data Annex'!$K$1:$K$6265,0),MATCH(O$2,'Data Annex'!$K$1:$AV$1,0)),"") -> 81.0299521 | P23: =IFERROR(INDEX('Data Annex'!$K$1:$AV$6265,MATCH(P$1&"|"&$B23,'Data Annex'!$K$1:$K$6265,0),MATCH(P$2,'Data Annex'!$K$1:$AV$1,0)),"") -> 82.34158979 | Q23: =IFERROR(INDEX('Data Annex'!$K$1:$AV$6265,MATCH(Q$1&"|"&$B23,'Data Annex'!$K$1:$K$6265,0),MATCH(Q$2,'Data Annex'!$K$1:$AV$1,0)),"") -> 34.82990879 | R23: =IFERROR(INDEX('Data Annex'!$K$1:$AV$6265,MATCH(R$1&"|"&$B23,'Data Annex'!$K$1:$K$6265,0),MATCH(R$2,'Data Annex'!$K$1:$AV$1,0)),"") -> 33.83590674 | S23: =IFERROR(INDEX('Data Annex'!$K$1:$AV$6265,MATCH(S$1&"|"&$B23,'Data Annex'!$K$1:$K$6265,0),MATCH(S$2,'Data Annex'!$K$1:$AV$1,0)),"") -> 34.2670395 | T23: =IFERROR(INDEX('Data Annex'!$K$1:$AV$6265,MATCH(T$1&"|"&$B23,'Data Annex'!$K$1:$K$6265,0),MATCH(T$2,'Data Annex'!$K$1:$AV$1,0)),"") -> 21.77240051 | U23: =IFERROR(INDEX('Data Annex'!$K$1:$AV$6265,MATCH(U$1&"|"&$B23,'Data Annex'!$K$1:$K$6265,0),MATCH(U$2,'Data Annex'!$K$1:$AV$1,0)),"") -> 23.29916261 | V23: =IFERROR(INDEX('Data Annex'!$K$1:$AV$6265,MATCH(V$1&"|"&$B23,'Data Annex'!$K$1:$K$6265,0),MATCH(V$2,'Data Annex'!$K$1:$AV$1,0)),"") -> 23.13798938
A24: 14 | B24: HR | D24: HR | E24: =IFERROR(INDEX('Data Annex'!$K$1:$AV$6265,MATCH(E$1&"|"&$B24,'Data Annex'!$K$1:$K$6265,0),MATCH(E$2,'Data Annex'!$K$1:$AV$1,0)),"") -> 44.18306045 | F24: =IFERROR(INDEX('Data Annex'!$K$1:$AV$6265,MATCH(F$1&"|"&$B24,'Data Annex'!$K$1:$K$6265,0),MATCH(F$2,'Data Annex'!$K$1:$AV$1,0)),"") -> 46.92631389 | G24: =IFERROR(INDEX('Data Annex'!$K$1:$AV$6265,MATCH(G$1&"|"&$B24,'Data Annex'!$K$1:$K$6265,0),MATCH(G$2,'Data Annex'!$K$1:$AV$1,0)),"") -> 48.41658636 | H24: =IFERROR(INDEX('Data Annex'!$K$1:$AV$6265,MATCH(H$1&"|"&$B24,'Data Annex'!$K$1:$K$6265,0),MATCH(H$2,'Data Annex'!$K$1:$AV$1,0)),"") -> 14.00104575 | I24: =IFERROR(INDEX('Data Annex'!$K$1:$AV$6265,MATCH(I$1&"|"&$B24,'Data Annex'!$K$1:$K$6265,0),MATCH(I$2,'Data Annex'!$K$1:$AV$1,0)),"") -> 14.42650133 | J24: =IFERROR(INDEX('Data Annex'!$K$1:$AV$6265,MATCH(J$1&"|"&$B24,'Data Annex'!$K$1:$K$6265,0),MATCH(J$2,'Data Annex'!$K$1:$AV$1,0)),"") -> 14.55686296 | K24: =IFERROR(INDEX('Data Annex'!$K$1:$AV$6265,MATCH(K$1&"|"&$B24,'Data Annex'!$K$1:$K$6265,0),MATCH(K$2,'Data Annex'!$K$1:$AV$1,0)),"") -> 5.633313341 | L24: =IFERROR(INDEX('Data Annex'!$K$1:$AV$6265,MATCH(L$1&"|"&$B24,'Data Annex'!$K$1:$K$6265,0),MATCH(L$2,'Data Annex'!$K$1:$AV$1,0)),"") -> 6.17662412 | M24: =IFERROR(INDEX('Data Annex'!$K$1:$AV$6265,MATCH(M$1&"|"&$B24,'Data Annex'!$K$1:$K$6265,0),MATCH(M$2,'Data Annex'!$K$1:$AV$1,0)),"") -> 6.304384391 | N24: =IFERROR(INDEX('Data Annex'!$K$1:$AV$6265,MATCH(N$1&"|"&$B24,'Data Annex'!$K$1:$K$6265,0),MATCH(N$2,'Data Annex'!$K$1:$AV$1,0)),"") -> 9.926801476 | O24: =IFERROR(INDEX('Data Annex'!$K$1:$AV$6265,MATCH(O$1&"|"&$B24,'Data Annex'!$K$1:$K$6265,0),MATCH(O$2,'Data Annex'!$K$1:$AV$1,0)),"") -> 11.39256885 | P24: =IFERROR(INDEX('Data Annex'!$K$1:$AV$6265,MATCH(P$1&"|"&$B24,'Data Annex'!$K$1:$K$6265,0),MATCH(P$2,'Data Annex'!$K$1:$AV$1,0)),"") -> 11.87633693 | Q24: =IFERROR(INDEX('Data Annex'!$K$1:$AV$6265,MATCH(Q$1&"|"&$B24,'Data Annex'!$K$1:$K$6265,0),MATCH(Q$2,'Data Annex'!$K$1:$AV$1,0)),"") -> 4.891996614 | R24: =IFERROR(INDEX('Data Annex'!$K$1:$AV$6265,MATCH(R$1&"|"&$B24,'Data Annex'!$K$1:$K$6265,0),MATCH(R$2,'Data Annex'!$K$1:$AV$1,0)),"") -> 5.830462145 | S24: =IFERROR(INDEX('Data Annex'!$K$1:$AV$6265,MATCH(S$1&"|"&$B24,'Data Annex'!$K$1:$K$6265,0),MATCH(S$2,'Data Annex'!$K$1:$AV$1,0)),"") -> 5.792690116 | T24: =IFERROR(INDEX('Data Annex'!$K$1:$AV$6265,MATCH(T$1&"|"&$B24,'Data Annex'!$K$1:$K$6265,0),MATCH(T$2,'Data Annex'!$K$1:$AV$1,0)),"") -> 4.305977913 | U24: =IFERROR(INDEX('Data Annex'!$K$1:$AV$6265,MATCH(U$1&"|"&$B24,'Data Annex'!$K$1:$K$6265,0),MATCH(U$2,'Data Annex'!$K$1:$AV$1,0)),"") -> 4.407497542 | V24: =IFERROR(INDEX('Data Annex'!$K$1:$AV$6265,MATCH(V$1&"|"&$B24,'Data Annex'!$K$1:$K$6265,0),MATCH(V$2,'Data Annex'!$K$1:$AV$1,0)),"") -> 4.354752653
A25: 15 | B25: HU | D25: HU | E25: =IFERROR(INDEX('Data Annex'!$K$1:$AV$6265,MATCH(E$1&"|"&$B25,'Data Annex'!$K$1:$K$6265,0),MATCH(E$2,'Data Annex'!$K$1:$AV$1,0)),"") -> 89.31546029 | F25: =IFERROR(INDEX('Data Annex'!$K$1:$AV$6265,MATCH(F$1&"|"&$B25,'Data Annex'!$K$1:$K$6265,0),MATCH(F$2,'Data Annex'!$K$1:$AV$1,0)),"") -> 92.70528508 | G25: =IFERROR(INDEX('Data Annex'!$K$1:$AV$6265,MATCH(G$1&"|"&$B25,'Data Annex'!$K$1:$K$6265,0),MATCH(G$2,'Data Annex'!$K$1:$AV$1,0)),"") -> 95.45073347 | H25: =IFERROR(INDEX('Data Annex'!$K$1:$AV$6265,MATCH(H$1&"|"&$B25,'Data Annex'!$K$1:$K$6265,0),MATCH(H$2,'Data Annex'!$K$1:$AV$1,0)),"") -> 29.38214452 | I25: =IFERROR(INDEX('Data Annex'!$K$1:$AV$6265,MATCH(I$1&"|"&$B25,'Data Annex'!$K$1:$K$6265,0),MATCH(I$2,'Data Annex'!$K$1:$AV$1,0)),"") -> 29.39309074 | J25: =IFERROR(INDEX('Data Annex'!$K$1:$AV$6265,MATCH(J$1&"|"&$B25,'Data Annex'!$K$1:$K$6265,0),MATCH(J$2,'Data Annex'!$K$1:$AV$1,0)),"") -> 29.1338236 | K25: =IFERROR(INDEX('Data Annex'!$K$1:$AV$6265,MATCH(K$1&"|"&$B25,'Data Annex'!$K$1:$K$6265,0),MATCH(K$2,'Data Annex'!$K$1:$AV$1,0)),"") -> 13.8637796 | L25: =IFERROR(INDEX('Data Annex'!$K$1:$AV$6265,MATCH(L$1&"|"&$B25,'Data Annex'!$K$1:$K$6265,0),MATCH(L$2,'Data Annex'!$K$1:$AV$1,0)),"") -> 13.71812771 | M25: =IFERROR(INDEX('Data Annex'!$K$1:$AV$6265,MATCH(M$1&"|"&$B25,'Data Annex'!$K$1:$K$6265,0),MATCH(M$2,'Data Annex'!$K$1:$AV$1,0)),"") -> 13.67038885 | N25: =IFERROR(INDEX('Data Annex'!$K$1:$AV$6265,MATCH(N$1&"|"&$B25,'Data Annex'!$K$1:$K$6265,0),MATCH(N$2,'Data Annex'!$K$1:$AV$1,0)),"") -> 30.34951389 | O25: =IFERROR(INDEX('Data Annex'!$K$1:$AV$6265,MATCH(O$1&"|"&$B25,'Data Annex'!$K$1:$K$6265,0),MATCH(O$2,'Data Annex'!$K$1:$AV$1,0)),"") -> 33.43080641 | P25: =IFERROR(INDEX('Data Annex'!$K$1:$AV$6265,MATCH(P$1&"|"&$B25,'Data Annex'!$K$1:$K$6265,0),MATCH(P$2,'Data Annex'!$K$1:$AV$1,0)),"") -> 34.40266395 | Q25: =IFERROR(INDEX('Data Annex'!$K$1:$AV$6265,MATCH(Q$1&"|"&$B25,'Data Annex'!$K$1:$K$6265,0),MATCH(Q$2,'Data Annex'!$K$1:$AV$1,0)),"") -> 15.08176833 | R25: =IFERROR(INDEX('Data Annex'!$K$1:$AV$6265,MATCH(R$1&"|"&$B25,'Data Annex'!$K$1:$K$6265,0),MATCH(R$2,'Data Annex'!$K$1:$AV$1,0)),"") -> 16.29215884 | S25: =IFERROR(INDEX('Data Annex'!$K$1:$AV$6265,MATCH(S$1&"|"&$B25,'Data Annex'!$K$1:$K$6265,0),MATCH(S$2,'Data Annex'!$K$1:$AV$1,0)),"") -> 16.70843124 | T25: =IFERROR(INDEX('Data Annex'!$K$1:$AV$6265,MATCH(T$1&"|"&$B25,'Data Annex'!$K$1:$K$6265,0),MATCH(T$2,'Data Annex'!$K$1:$AV$1,0)),"") -> 9.977674331 | U25: =IFERROR(INDEX('Data Annex'!$K$1:$AV$6265,MATCH(U$1&"|"&$B25,'Data Annex'!$K$1:$K$6265,0),MATCH(U$2,'Data Annex'!$K$1:$AV$1,0)),"") -> 11.01729911 | V25: =IFERROR(INDEX('Data Annex'!$K$1:$AV$6265,MATCH(V$1&"|"&$B25,'Data Annex'!$K$1:$K$6265,0),MATCH(V$2,'Data Annex'!$K$1:$AV$1,0)),"") -> 11.49106363
A26: 16 | B26: IE | D26: IE | E26: =IFERROR(INDEX('Data Annex'!$K$1:$AV$6265,MATCH(E$1&"|"&$B26,'Data Annex'!$K$1:$K$6265,0),MATCH(E$2,'Data Annex'!$K$1:$AV$1,0)),"") -> 262.5237786 | F26: =IFERROR(INDEX('Data Annex'!$K$1:$AV$6265,MATCH(F$1&"|"&$B26,'Data Annex'!$K$1:$K$6265,0),MATCH(F$2,'Data Annex'!$K$1:$AV$1,0)),"") -> 291.5475077 | G26: =IFERROR(INDEX('Data Annex'!$K$1:$AV$6265,MATCH(G$1&"|"&$B26,'Data Annex'!$K$1:$K$6265,0),MATCH(G$2,'Data Annex'!$K$1:$AV$1,0)),"") -> 300.5950964 | H26: =IFERROR(INDEX('Data Annex'!$K$1:$AV$6265,MATCH(H$1&"|"&$B26,'Data Annex'!$K$1:$K$6265,0),MATCH(H$2,'Data Annex'!$K$1:$AV$1,0)),"") -> 83.26903355 | I26: =IFERROR(INDEX('Data Annex'!$K$1:$AV$6265,MATCH(I$1&"|"&$B26,'Data Annex'!$K$1:$K$6265,0),MATCH(I$2,'Data Annex'!$K$1:$AV$1,0)),"") -> 82.20382608 | J26: =IFERROR(INDEX('Data Annex'!$K$1:$AV$6265,MATCH(J$1&"|"&$B26,'Data Annex'!$K$1:$K$6265,0),MATCH(J$2,'Data Annex'!$K$1:$AV$1,0)),"") -> 80.36732314 | K26: =IFERROR(INDEX('Data Annex'!$K$1:$AV$6265,MATCH(K$1&"|"&$B26,'Data Annex'!$K$1:$K$6265,0),MATCH(K$2,'Data Annex'!$K$1:$AV$1,0)),"") -> 73.18133044 | L26: =IFERROR(INDEX('Data Annex'!$K$1:$AV$6265,MATCH(L$1&"|"&$B26,'Data Annex'!$K$1:$K$6265,0),MATCH(L$2,'Data Annex'!$K$1:$AV$1,0)),"") -> 70.15867062 | M26: =IFERROR(INDEX('Data Annex'!$K$1:$AV$6265,MATCH(M$1&"|"&$B26,'Data Annex'!$K$1:$K$6265,0),MATCH(M$2,'Data Annex'!$K$1:$AV$1,0)),"") -> 68.82731848 | N26: =IFERROR(INDEX('Data Annex'!$K$1:$AV$6265,MATCH(N$1&"|"&$B26,'Data Annex'!$K$1:$K$6265,0),MATCH(N$2,'Data Annex'!$K$1:$AV$1,0)),"") -> 67.2255298 | O26: =IFERROR(INDEX('Data Annex'!$K$1:$AV$6265,MATCH(O$1&"|"&$B26,'Data Annex'!$K$1:$K$6265,0),MATCH(O$2,'Data Annex'!$K$1:$AV$1,0)),"") -> 69.7092758 | P26: =IFERROR(INDEX('Data Annex'!$K$1:$AV$6265,MATCH(P$1&"|"&$B26,'Data Annex'!$K$1:$K$6265,0),MATCH(P$2,'Data Annex'!$K$1:$AV$1,0)),"") -> 70.09824213 | Q26: =IFERROR(INDEX('Data Annex'!$K$1:$AV$6265,MATCH(Q$1&"|"&$B26,'Data Annex'!$K$1:$K$6265,0),MATCH(Q$2,'Data Annex'!$K$1:$AV$1,0)),"") -> 28.65612386 | R26: =IFERROR(INDEX('Data Annex'!$K$1:$AV$6265,MATCH(R$1&"|"&$B26,'Data Annex'!$K$1:$K$6265,0),MATCH(R$2,'Data Annex'!$K$1:$AV$1,0)),"") -> 27.06348824 | S26: =IFERROR(INDEX('Data Annex'!$K$1:$AV$6265,MATCH(S$1&"|"&$B26,'Data Annex'!$K$1:$K$6265,0),MATCH(S$2,'Data Annex'!$K$1:$AV$1,0)),"") -> 27.5305144 | T26: =IFERROR(INDEX('Data Annex'!$K$1:$AV$6265,MATCH(T$1&"|"&$B26,'Data Annex'!$K$1:$K$6265,0),MATCH(T$2,'Data Annex'!$K$1:$AV$1,0)),"") -> 17.80412894 | U26: =IFERROR(INDEX('Data Annex'!$K$1:$AV$6265,MATCH(U$1&"|"&$B26,'Data Annex'!$K$1:$K$6265,0),MATCH(U$2,'Data Annex'!$K$1:$AV$1,0)),"") -> 19.3187499 | V26: =IFERROR(INDEX('Data Annex'!$K$1:$AV$6265,MATCH(V$1&"|"&$B26,'Data Annex'!$K$1:$K$6265,0),MATCH(V$2,'Data Annex'!$K$1:$AV$1,0)),"") -> 19.12142456
A27: 17 | B27: IS | D27: IS | E27: =IFERROR(INDEX('Data Annex'!$K$1:$AV$6265,MATCH(E$1&"|"&$B27,'Data Annex'!$K$1:$K$6265,0),MATCH(E$2,'Data Annex'!$K$1:$AV$1,0)),"") -> 25.3564489 | F27: =IFERROR(INDEX('Data Annex'!$K$1:$AV$6265,MATCH(F$1&"|"&$B27,'Data Annex'!$K$1:$K$6265,0),MATCH(F$2,'Data Annex'!$K$1:$AV$1,0)),"") -> 28.67980688 | G27: =IFERROR(INDEX('Data Annex'!$K$1:$AV$6265,MATCH(G$1&"|"&$B27,'Data Annex'!$K$1:$K$6265,0),MATCH(G$2,'Data Annex'!$K$1:$AV$1,0)),"") -> 29.65809895 | H27: =IFERROR(INDEX('Data Annex'!$K$1:$AV$6265,MATCH(H$1&"|"&$B27,'Data Annex'!$K$1:$K$6265,0),MATCH(H$2,'Data Annex'!$K$1:$AV$1,0)),"") -> 11.42501545 | I27: =IFERROR(INDEX('Data Annex'!$K$1:$AV$6265,MATCH(I$1&"|"&$B27,'Data Annex'!$K$1:$K$6265,0),MATCH(I$2,'Data Annex'!$K$1:$AV$1,0)),"") -> 13.49444805 | J27: =IFERROR(INDEX('Data Annex'!$K$1:$AV$6265,MATCH(J$1&"|"&$B27,'Data Annex'!$K$1:$K$6265,0),MATCH(J$2,'Data Annex'!$K$1:$AV$1,0)),"") -> 13.66454617 | K27: =IFERROR(INDEX('Data Annex'!$K$1:$AV$6265,MATCH(K$1&"|"&$B27,'Data Annex'!$K$1:$K$6265,0),MATCH(K$2,'Data Annex'!$K$1:$AV$1,0)),"") -> 10.1190066 | L27: =IFERROR(INDEX('Data Annex'!$K$1:$AV$6265,MATCH(L$1&"|"&$B27,'Data Annex'!$K$1:$K$6265,0),MATCH(L$2,'Data Annex'!$K$1:$AV$1,0)),"") -> 11.99280056 | M27: =IFERROR(INDEX('Data Annex'!$K$1:$AV$6265,MATCH(M$1&"|"&$B27,'Data Annex'!$K$1:$K$6265,0),MATCH(M$2,'Data Annex'!$K$1:$AV$1,0)),"") -> 12.15712696 | N27: =IFERROR(INDEX('Data Annex'!$K$1:$AV$6265,MATCH(N$1&"|"&$B27,'Data Annex'!$K$1:$K$6265,0),MATCH(N$2,'Data Annex'!$K$1:$AV$1,0)),"") -> 10.30737854 | O27: =IFERROR(INDEX('Data Annex'!$K$1:$AV$6265,MATCH(O$1&"|"&$B27,'Data Annex'!$K$1:$K$6265,0),MATCH(O$2,'Data Annex'!$K$1:$AV$1,0)),"") -> 11.8813018 | P27: =IFERROR(INDEX('Data Annex'!$K$1:$AV$6265,MATCH(P$1&"|"&$B27,'Data Annex'!$K$1:$K$6265,0),MATCH(P$2,'Data Annex'!$K$1:$AV$1,0)),"") -> 11.89487443 | Q27: =IFERROR(INDEX('Data Annex'!$K$1:$AV$6265,MATCH(Q$1&"|"&$B27,'Data Annex'!$K$1:$K$6265,0),MATCH(Q$2,'Data Annex'!$K$1:$AV$1,0)),"") -> 4.827024921 | R27: =IFERROR(INDEX('Data Annex'!$K$1:$AV$6265,MATCH(R$1&"|"&$B27,'Data Annex'!$K$1:$K$6265,0),MATCH(R$2,'Data Annex'!$K$1:$AV$1,0)),"") -> 6.123496097 | S27: =IFERROR(INDEX('Data Annex'!$K$1:$AV$6265,MATCH(S$1&"|"&$B27,'Data Annex'!$K$1:$K$6265,0),MATCH(S$2,'Data Annex'!$K$1:$AV$1,0)),"") -> 6.06123116 | T27: =IFERROR(INDEX('Data Annex'!$K$1:$AV$6265,MATCH(T$1&"|"&$B27,'Data Annex'!$K$1:$K$6265,0),MATCH(T$2,'Data Annex'!$K$1:$AV$1,0)),"") -> 4.651865507 | U27: =IFERROR(INDEX('Data Annex'!$K$1:$AV$6265,MATCH(U$1&"|"&$B27,'Data Annex'!$K$1:$K$6265,0),MATCH(U$2,'Data Annex'!$K$1:$AV$1,0)),"") -> 5.041644301 | V27: =IFERROR(INDEX('Data Annex'!$K$1:$AV$6265,MATCH(V$1&"|"&$B27,'Data Annex'!$K$1:$K$6265,0),MATCH(V$2,'Data Annex'!$K$1:$AV$1,0)),"") -> 5.059377745
A28: 18 | B28: IT | D28: IT | E28: =IFERROR(INDEX('Data Annex'!$K$1:$AV$6265,MATCH(E$1&"|"&$B28,'Data Annex'!$K$1:$K$6265,0),MATCH(E$2,'Data Annex'!$K$1:$AV$1,0)),"") -> 2005.968451 | F28: =IFERROR(INDEX('Data Annex'!$K$1:$AV$6265,MATCH(F$1&"|"&$B28,'Data Annex'!$K$1:$K$6265,0),MATCH(F$2,'Data Annex'!$K$1:$AV$1,0)),"") -> 2014.934239 | G28: =IFERROR(INDEX('Data Annex'!$K$1:$AV$6265,MATCH(G$1&"|"&$B28,'Data Annex'!$K$1:$K$6265,0),MATCH(G$2,'Data Annex'!$K$1:$AV$1,0)),"") -> 2007.811972 | H28: =IFERROR(INDEX('Data Annex'!$K$1:$AV$6265,MATCH(H$1&"|"&$B28,'Data Annex'!$K$1:$K$6265,0),MATCH(H$2,'Data Annex'!$K$1:$AV$1,0)),"") -> 555.4657542 | I28: =IFERROR(INDEX('Data Annex'!$K$1:$AV$6265,MATCH(I$1&"|"&$B28,'Data Annex'!$K$1:$K$6265,0),MATCH(I$2,'Data Annex'!$K$1:$AV$1,0)),"") -> 577.2997486 | J28: =IFERROR(INDEX('Data Annex'!$K$1:$AV$6265,MATCH(J$1&"|"&$B28,'Data Annex'!$K$1:$K$6265,0),MATCH(J$2,'Data Annex'!$K$1:$AV$1,0)),"") -> 582.2329555 | K28: =IFERROR(INDEX('Data Annex'!$K$1:$AV$6265,MATCH(K$1&"|"&$B28,'Data Annex'!$K$1:$K$6265,0),MATCH(K$2,'Data Annex'!$K$1:$AV$1,0)),"") -> 392.315591 | L28: =IFERROR(INDEX('Data Annex'!$K$1:$AV$6265,MATCH(L$1&"|"&$B28,'Data Annex'!$K$1:$K$6265,0),MATCH(L$2,'Data Annex'!$K$1:$AV$1,0)),"") -> 411.2740206 | M28: =IFERROR(INDEX('Data Annex'!$K$1:$AV$6265,MATCH(M$1&"|"&$B28,'Data Annex'!$K$1:$K$6265,0),MATCH(M$2,'Data Annex'!$K$1:$AV$1,0)),"") -> 413.9541441 | N28: =IFERROR(INDEX('Data Annex'!$K$1:$AV$6265,MATCH(N$1&"|"&$B28,'Data Annex'!$K$1:$K$6265,0),MATCH(N$2,'Data Annex'!$K$1:$AV$1,0)),"") -> 721.4822962 | O28: =IFERROR(INDEX('Data Annex'!$K$1:$AV$6265,MATCH(O$1&"|"&$B28,'Data Annex'!$K$1:$K$6265,0),MATCH(O$2,'Data Annex'!$K$1:$AV$1,0)),"") -> 747.8765994 | P28: =IFERROR(INDEX('Data Annex'!$K$1:$AV$6265,MATCH(P$1&"|"&$B28,'Data Annex'!$K$1:$K$6265,0),MATCH(P$2,'Data Annex'!$K$1:$AV$1,0)),"") -> 745.510814 | Q28: =IFERROR(INDEX('Data Annex'!$K$1:$AV$6265,MATCH(Q$1&"|"&$B28,'Data Annex'!$K$1:$K$6265,0),MATCH(Q$2,'Data Annex'!$K$1:$AV$1,0)),"") -> 336.9906596 | R28: =IFERROR(INDEX('Data Annex'!$K$1:$AV$6265,MATCH(R$1&"|"&$B28,'Data Annex'!$K$1:$K$6265,0),MATCH(R$2,'Data Annex'!$K$1:$AV$1,0)),"") -> 343.154764 | S28: =IFERROR(INDEX('Data Annex'!$K$1:$AV$6265,MATCH(S$1&"|"&$B28,'Data Annex'!$K$1:$K$6265,0),MATCH(S$2,'Data Annex'!$K$1:$AV$1,0)),"") -> 336.1181599 | T28: =IFERROR(INDEX('Data Annex'!$K$1:$AV$6265,MATCH(T$1&"|"&$B28,'Data Annex'!$K$1:$K$6265,0),MATCH(T$2,'Data Annex'!$K$1:$AV$1,0)),"") -> 156.0235985 | U28: =IFERROR(INDEX('Data Annex'!$K$1:$AV$6265,MATCH(U$1&"|"&$B28,'Data Annex'!$K$1:$K$6265,0),MATCH(U$2,'Data Annex'!$K$1:$AV$1,0)),"") -> 146.9588705 | V28: =IFERROR(INDEX('Data Annex'!$K$1:$AV$6265,MATCH(V$1&"|"&$B28,'Data Annex'!$K$1:$K$6265,0),MATCH(V$2,'Data Annex'!$K$1:$AV$1,0)),"") -> 144.9966095
B29: LI | D29: LI* | E29: =IFERROR(INDEX('Data Annex'!$K$1:$AV$6265,MATCH(E$1&"|"&$B29,'Data Annex'!$K$1:$K$6265,0),MATCH(E$2,'Data Annex'!$K$1:$AV$1,0)),"") -> 0 | F29: =IFERROR(INDEX('Data Annex'!$K$1:$AV$6265,MATCH(F$1&"|"&$B29,'Data Annex'!$K$1:$K$6265,0),MATCH(F$2,'Data Annex'!$K$1:$AV$1,0)),"") -> 71.87110978 | G29: =IFERROR(INDEX('Data Annex'!$K$1:$AV$6265,MATCH(G$1&"|"&$B29,'Data Annex'!$K$1:$K$6265,0),MATCH(G$2,'Data Annex'!$K$1:$AV$1,0)),"") -> 69.46186204 | H29: =IFERROR(INDEX('Data Annex'!$K$1:$AV$6265,MATCH(H$1&"|"&$B29,'Data Annex'!$K$1:$K$6265,0),MATCH(H$2,'Data Annex'!$K$1:$AV$1,0)),"") -> 0 | I29: =IFERROR(INDEX('Data Annex'!$K$1:$AV$6265,MATCH(I$1&"|"&$B29,'Data Annex'!$K$1:$K$6265,0),MATCH(I$2,'Data Annex'!$K$1:$AV$1,0)),"") -> 21.341931 | J29: =IFERROR(INDEX('Data Annex'!$K$1:$AV$6265,MATCH(J$1&"|"&$B29,'Data Annex'!$K$1:$K$6265,0),MATCH(J$2,'Data Annex'!$K$1:$AV$1,0)),"") -> 22.22308614 | K29: =IFERROR(INDEX('Data Annex'!$K$1:$AV$6265,MATCH(K$1&"|"&$B29,'Data Annex'!$K$1:$K$6265,0),MATCH(K$2,'Data Annex'!$K$1:$AV$1,0)),"") -> 0 | L29: =IFERROR(INDEX('Data Annex'!$K$1:$AV$6265,MATCH(L$1&"|"&$B29,'Data Annex'!$K$1:$K$6265,0),MATCH(L$2,'Data Annex'!$K$1:$AV$1,0)),"") -> 12.13879519 | M29: =IFERROR(INDEX('Data Annex'!$K$1:$AV$6265,MATCH(M$1&"|"&$B29,'Data Annex'!$K$1:$K$6265,0),MATCH(M$2,'Data Annex'!$K$1:$AV$1,0)),"") -> 12.75206116 | N29: =IFERROR(INDEX('Data Annex'!$K$1:$AV$6265,MATCH(N$1&"|"&$B29,'Data Annex'!$K$1:$K$6265,0),MATCH(N$2,'Data Annex'!$K$1:$AV$1,0)),"") -> 0 | O29: =IFERROR(INDEX('Data Annex'!$K$1:$AV$6265,MATCH(O$1&"|"&$B29,'Data Annex'!$K$1:$K$6265,0),MATCH(O$2,'Data Annex'!$K$1:$AV$1,0)),"") -> 7.484120765 | P29: =IFERROR(INDEX('Data Annex'!$K$1:$AV$6265,MATCH(P$1&"|"&$B29,'Data Annex'!$K$1:$K$6265,0),MATCH(P$2,'Data Annex'!$K$1:$AV$1,0)),"") -> 7.918955772 | Q29: =IFERROR(INDEX('Data Annex'!$K$1:$AV$6265,MATCH(Q$1&"|"&$B29,'Data Annex'!$K$1:$K$6265,0),MATCH(Q$2,'Data Annex'!$K$1:$AV$1,0)),"") -> 0 | R29: =IFERROR(INDEX('Data Annex'!$K$1:$AV$6265,MATCH(R$1&"|"&$B29,'Data Annex'!$K$1:$K$6265,0),MATCH(R$2,'Data Annex'!$K$1:$AV$1,0)),"") -> 4.617140442 | S29: =IFERROR(INDEX('Data Annex'!$K$1:$AV$6265,MATCH(S$1&"|"&$B29,'Data Annex'!$K$1:$K$6265,0),MATCH(S$2,'Data Annex'!$K$1:$AV$1,0)),"") -> 4.840262319 | T29: =IFERROR(INDEX('Data Annex'!$K$1:$AV$6265,MATCH(T$1&"|"&$B29,'Data Annex'!$K$1:$K$6265,0),MATCH(T$2,'Data Annex'!$K$1:$AV$1,0)),"") -> 0 | U29: =IFERROR(INDEX('Data Annex'!$K$1:$AV$6265,MATCH(U$1&"|"&$B29,'Data Annex'!$K$1:$K$6265,0),MATCH(U$2,'Data Annex'!$K$1:$AV$1,0)),"") -> 2.59552833 | V29: =IFERROR(INDEX('Data Annex'!$K$1:$AV$6265,MATCH(V$1&"|"&$B29,'Data Annex'!$K$1:$K$6265,0),MATCH(V$2,'Data Annex'!$K$1:$AV$1,0)),"") -> 2.659964674
A30: 19 | B30: LT | D30: LT | E30: =IFERROR(INDEX('Data Annex'!$K$1:$AV$6265,MATCH(E$1&"|"&$B30,'Data Annex'!$K$1:$K$6265,0),MATCH(E$2,'Data Annex'!$K$1:$AV$1,0)),"") -> 26.895968 | F30: =IFERROR(INDEX('Data Annex'!$K$1:$AV$6265,MATCH(F$1&"|"&$B30,'Data Annex'!$K$1:$K$6265,0),MATCH(F$2,'Data Annex'!$K$1:$AV$1,0)),"") -> 16.509709 | G30: =IFERROR(INDEX('Data Annex'!$K$1:$AV$6265,MATCH(G$1&"|"&$B30,'Data Annex'!$K$1:$K$6265,0),MATCH(G$2,'Data Annex'!$K$1:$AV$1,0)),"") -> 18.156502 | H30: =IFERROR(INDEX('Data Annex'!$K$1:$AV$6265,MATCH(H$1&"|"&$B30,'Data Annex'!$K$1:$K$6265,0),MATCH(H$2,'Data Annex'!$K$1:$AV$1,0)),"") -> 8.488382 | I30: =IFERROR(INDEX('Data Annex'!$K$1:$AV$6265,MATCH(I$1&"|"&$B30,'Data Annex'!$K$1:$K$6265,0),MATCH(I$2,'Data Annex'!$K$1:$AV$1,0)),"") -> 6.191718 | J30: =IFERROR(INDEX('Data Annex'!$K$1:$AV$6265,MATCH(J$1&"|"&$B30,'Data Annex'!$K$1:$K$6265,0),MATCH(J$2,'Data Annex'!$K$1:$AV$1,0)),"") -> 6.44433 | K30: =IFERROR(INDEX('Data Annex'!$K$1:$AV$6265,MATCH(K$1&"|"&$B30,'Data Annex'!$K$1:$K$6265,0),MATCH(K$2,'Data Annex'!$K$1:$AV$1,0)),"") -> 7.153304 | L30: =IFERROR(INDEX('Data Annex'!$K$1:$AV$6265,MATCH(L$1&"|"&$B30,'Data Annex'!$K$1:$K$6265,0),MATCH(L$2,'Data Annex'!$K$1:$AV$1,0)),"") -> 4.938399 | M30: =IFERROR(INDEX('Data Annex'!$K$1:$AV$6265,MATCH(M$1&"|"&$B30,'Data Annex'!$K$1:$K$6265,0),MATCH(M$2,'Data Annex'!$K$1:$AV$1,0)),"") -> 5.126777 | N30: =IFERROR(INDEX('Data Annex'!$K$1:$AV$6265,MATCH(N$1&"|"&$B30,'Data Annex'!$K$1:$K$6265,0),MATCH(N$2,'Data Annex'!$K$1:$AV$1,0)),"") -> 5.978941 | O30: =IFERROR(INDEX('Data Annex'!$K$1:$AV$6265,MATCH(O$1&"|"&$B30,'Data Annex'!$K$1:$K$6265,0),MATCH(O$2,'Data Annex'!$K$1:$AV$1,0)),"") -> 3.697857 | P30: =IFERROR(INDEX('Data Annex'!$K$1:$AV$6265,MATCH(P$1&"|"&$B30,'Data Annex'!$K$1:$K$6265,0),MATCH(P$2,'Data Annex'!$K$1:$AV$1,0)),"") -> 4.241873 | Q30: =IFERROR(INDEX('Data Annex'!$K$1:$AV$6265,MATCH(Q$1&"|"&$B30,'Data Annex'!$K$1:$K$6265,0),MATCH(Q$2,'Data Annex'!$K$1:$AV$1,0)),"") -> 3.147019 | R30: =IFERROR(INDEX('Data Annex'!$K$1:$AV$6265,MATCH(R$1&"|"&$B30,'Data Annex'!$K$1:$K$6265,0),MATCH(R$2,'Data Annex'!$K$1:$AV$1,0)),"") -> 2.810783 | S30: =IFERROR(INDEX('Data Annex'!$K$1:$AV$6265,MATCH(S$1&"|"&$B30,'Data Annex'!$K$1:$K$6265,0),MATCH(S$2,'Data Annex'!$K$1:$AV$1,0)),"") -> 2.970675 | T30: =IFERROR(INDEX('Data Annex'!$K$1:$AV$6265,MATCH(T$1&"|"&$B30,'Data Annex'!$K$1:$K$6265,0),MATCH(T$2,'Data Annex'!$K$1:$AV$1,0)),"") -> 3.733523 | U30: =IFERROR(INDEX('Data Annex'!$K$1:$AV$6265,MATCH(U$1&"|"&$B30,'Data Annex'!$K$1:$K$6265,0),MATCH(U$2,'Data Annex'!$K$1:$AV$1,0)),"") -> 2.336893 | V30: =IFERROR(INDEX('Data Annex'!$K$1:$AV$6265,MATCH(V$1&"|"&$B30,'Data Annex'!$K$1:$K$6265,0),MATCH(V$2,'Data Annex'!$K$1:$AV$1,0)),"") -> 2.526842
